Workbook

Sheet Оглавление
B1: Содержание
B3: Инф-я
B4: Соответствие критериям
A5: Балансы | B5: Баланс энергии
B6: Баланс мощности
A7: УЕ | B7: УЕ ВЛЭП 2015-2018
B8: УЕ ТП 2015-2018
B9: Подконтрольные расходы
A10: Неподконтрольные расходы | B10: Расчет аморт. max срок
B11: Справка по ОС
B12: Ввод выбытие ОС
B13: Свод по амортизации
B14: Отчислен во внебюдж фонды
B15: Расходы рег. орг-ий
B16: Аренда имущества
B17: Плата за землю
B18: Транспортный налог
B19: Налог на имущество
B20: Налог на прибыль
B21: Негативное воздействие на ОС
B22: Услуги ФСК
B23: Прочие НР
B24: КВЛ
B25: Выпадающий доход
B26: Возврат заемных средств
A27: Расчеты по выпадающим доходам | B27: Расчет выпадающих до 15 кВт
B28: Расчет выпадающих до 150 кВт
B29: СВОД по % по рассрочке
B30: Заявитель1
B31: Заявитель2
B32: Заявитель3
B33: Заявитель4
A34: Корр-ки | B34: Корр. ПР
B35: Корр. ПО
B36: Корр.НВВ
B37: Корр. НР
B38: Корр. ИП
B39: Корр. КНК
A40: ИТОГИ | B40: НВВ содержание
B41: НВВ по данным предпр.
B42: НВВ по данным экспертов
B43: НВВ на потери
B44: Тарифы
A45: Формы для показателя КНК | B45: Форма 1.1
B46: Форма 1.2
B47: Форма 2.1
B48: Форма 2.2
B49: форма 2.3
B50: форма 2.4
B51: форма 3

Sheet Инф-я
A2: Расчет НВВ на услуги по передаче электрической энергии, устанавливаемых с применением метода долгосрочной индексации необходимой валовой выручки
B5: Информация об организации
A7: № п/п | B7: Требуемая информация | C7: Данные об организации
A8: 1. | B8: Наименование организации в соответствии с уставом: | C8: Общество с ограниченной ответственностью "Энергетик"
B9: сокращенное название организации | C9: Общество с ограниченной ответственностью "Энергетик"
B10: полное наименование организации | C10: ООО "Энергетик"
A11: 2. | B11: Муниципальное образование | C11: Владимирская область, Александровский район
A12: 3. | B12: Адрес организации:
B13: юридический адрес | C13: 601640, Владимирская обл, г.Карабаново, ул. Вокзальная, д. 9
B14: фактический адрес (месторасположение) | C14: 601640, Владимирская обл, г.Карабаново, ул. Вокзальная, д. 9
A15: 4. | B15: ИНН | C15: 3311023373
A16: 5. | B16: КПП | C16: 331101001
A17: 6. | B17: ФИО руководителя организации | C17: Окунев Василий Михайлович
B18: контактный телефон/факс | C18: 8-49244-5-24-72
B19: е-mail | C19: оао-energetik@yandex.ru
A20: 7. | B20: ФИО начальника ПЭО | C20: Ивановский Михаил Владимирович
B21: контактный телефон/факс | C21: 8-49244-5-26-01
A22: 8. | B22: ФИО ответственного за электрохозяйство
B23: контактный телефон/факс
A24: 9. | B24: ФИО главного бухгалтера | C24: Макарова Галина Юрьевна
B25: контактный телефон/факс | C25: 8-49244-5-10-79
A26: 10. | B26: ФИО непосредственного исполнителя | C26: Макарова Галина Юрьевна
B27: контактный телефон/факс | C27: 8-49244-5-10-79
B28: е-mail | C28: оао-energetik@yandex.ru
A29: 11. | B29: Банковские реквизиты:
B30: расчетный счет | C30: 40702810710000002518
B31: банк | C31: Владимирское отделение №8611 ПАО Сбербанк
B32: корреспондентский счет | C32: 30101810000000000602
B33: БИК | C33: 041708602
A35: В конце книги Excel размещены листы серого цвета для заполнения шаблона "Расчет фактических показателей надежности и качества за 2017 год". Согласно п. 14 Постановления Правительства от 31.12.2009 г. № 1220 организации предоставляют регулирующим органам до 1 апреля года, следующего за отчетным, отчетные данные, используемые при расчете фактических значений показателей надежности и качества.
A37: Согласно п. 9 Постановления Правительства РФ от 21.01.2004 г. № 24 "Об утверждении стандартов раскрытия информации субъектами оптового и розничных рынков электрической энергии":
A38: "Субъекты рынков электрической энергии раскрывают следующую информацию:
A39: г) предложение о размере цен (тарифов), долгосрочных параметров регулирования (при применении метода доходности инвестированного капитала или метода долгосрочной необходимой валовой выручки), подлежащих регулированию в соответствии с Основами ценообразования в области регулируемых цен (тарифов) в электроэнергетике, утвержденными постановлением Правительства Российской Федерации от 29 декабря 2011 г. № 1178".
A40: Указанная в подпункте "г" пункта 9 настоящего документа информация подлежит раскрытию на официальных сайтах регулируемых организаций или на ином официальном сайте в сети Интернет, определяемом Правительством Российской Федерации, и (или) в периодическом печатном издании, в котором публикуются нормативные правовые акты органа исполнительной власти в области регулирования тарифов, - за 10 дней до представления в регулирующий орган предложения об установлении цен (тарифов) и (или) их предельных уровней, содержащего такую информацию
A41: Согласно п. 9.1 Правил государственного регулирования (пересмотра, применения) цен (тарифов) в электроэнергктике, утвержденных постановлением Правительства РФ от 29 декабря 2011 г. N 1178:
A42: "Регулирующий орган отказывает в открытии дела об установлении цены (тарифа), в случае если регулируемая организация не опубликовала предложение о размере цен (тарифов) и долгосрочных параметров регулирования (при применении метода доходности инвестированного капитала или метода долгосрочной индексации необходимой валовой выручки), подлежащих регулированию, в порядке, установленном стандартами раскрытия информации субъектами оптового и розничных рынков электрической энергии, утвержденными постановлением Правительства Российской Федерации от 21 января 2004 г. N 24, или указанное опубликованное предложение не соответствует предложению, представляемому в орган регулирования".
A101: 1 | B101: ООО «Радугагорэнерго»
A102: 2 | B102: МУП «Горэлектросеть» г. Муром
A103: 3 | B103: МУП «Александровэлектросеть»
A104: 4 | B104: ООО «СтройГарант»
A105: 5 | B105: ООО «Костеревские городские электрические сети»
A106: 6 | B106: ООО «Ковровэлектросетьремонт»
A107: 7 | B107: ООО «ПромРЭС»
A108: 8 | B108: ООО «ПромЭнерго» г. Судогда
A109: 9 | B109: ОАО «Энергетик» г. Карабаново
A110: 10 | B110: ООО «Электросистемы»
A111: 11 | B111: ООО «Ярцево-Энерго»
A112: 12 | B112: ПАО «Ставровский завод АТО»
A113: 13 | B113: ООО «ЭнергоАктив»

Sheet Соответствие критериям
A2: Критерии отнесения владельцев объектов электросетевого хозяйства к территориальным сетевым организациям (утв. постановлением Правительства РФ от 28 февраля 2015 г. N 184)
A4: ='Инф-я'!C9 -> Общество с ограниченной ответственностью "Энергетик"
A6: № п./п. | B6: Наименование показателя | C6: Ед. измерения | D6: Значение | E6: Представляемые обосновывающие материалы
A7: 1 | B7: 2 | C7: 3 | D7: 4 | E7: 5
A8: 1. | B8: Владение на праве собственности и (или) на ином законном основании на срок не менее долгосрочного периода регулирования трансформаторными и иными подстанциями с установленными силовыми трансформаторами (автотрансформаторами), расположенными и используемыми для осуществления регулируемой деятельности в административных границах субъекта Российской Федерации, сумма номинальных мощностей которых составляет не менее 10 МВА. | C8: МВА | D8: 18723 | E8: Согласно пункта 17 Правил государственного регулирования (пересмотра, применения) цен (тарифов) в электроэнергетике, утвержденных Постановлением Правительства РФ от 29 декабря 2011 г. N 1178: К заявлениям, направленным в соответствии с пунктами 12, 14 и 16 настоящих Правил, организации, осуществляющие регулируемую деятельность, и органы исполнительной власти субъектов Российской Федерации в области государственного регулирования тарифов прилагают следующие обосновывающие материалы: . . . 13) документы, подтверждающие осуществление (фактическое или планируемое) регулируемой деятельности, - документы, подтверждающие право собственности или иные законные основания владения в отношении объектов, используемых для осуществления деятельности, и (или) договоры на осуществление регулируемой деятельности (при реорганизации юридического лица - передаточные акты); . . . 15) справка о наличии официального сайта в сети Интернет и выделенного абонентского номера для обращений потребителей услуг по передаче электрической энергии и (или) технологическому присоединению, подписанная руководителем или иным уполномоченным лицом заявителя и заверенная печатью заявителя; 16) утвержденные руководителем или иным уполномоченным лицом заявителя и заверенные печатью заявителя (при наличии печати) схемы соединений электрической сети заявителя с обозначением трансформаторных и иных подстанций, а также линий электропередачи, указанных в пунктах 1 и 2 критериев отнесения владельцев объектов электросетевого хозяйства к территориальным сетевым организациям, утвержденных постановлением Правительства Российской Федерации от 28 февраля 2015 г. N 184 "Об отнесении владельцев объектов электросетевого хозяйства к территориальным сетевым организациям" (далее - критерии отнесения владельцев объектов электросетевого хозяйства к территориальным сетевым организациям).
A9: 2. | B9: Владение на праве собственности и (или) на ином законном основании на срок не менее долгосрочного периода регулирования линиями электропередачи (воздушными и (или) кабельными), расположенными и используемыми для осуществления регулируемой деятельности в административных границах субъекта Российской Федерации, непосредственно соединенными с трансформаторными и иными подстанциями, указанными в пункте 1 настоящих критериев, сумма протяженностей которых по трассе составляет не менее 15 км, не менее 2 из следующих проектных номинальных классов напряжения: | C9: км | D9: =D10+D11+D12+D13 -> 61.39
B10: 110 кВ и выше; | C10: км
B11: 35 кВ; | C11: км
B12: 1 - 20 кВ; | C12: км | D12: 61.39
B13: ниже 1 кВ - трехфазных участков линий электропередачи. | C13: км
A14: 3. | B14: 3. Отсутствие за 3 предшествующих расчетных периода регулирования 3 фактов применения органами исполнительной власти субъектов Российской Федерации в области государственного регулирования тарифов понижающих коэффициентов, позволяющих обеспечить соответствие уровня тарифов, установленных для владельца объектов электросетевого хозяйства, уровню надежности и качества поставляемых товаров и оказываемых услуг, а также корректировки цен (тарифов), установленных на долгосрочный период регулирования, в случае представления владельцем объектов электросетевого хозяйства, для которого такие цены (тарифы) установлены, недостоверных отчетных данных, используемых при расчете фактических значений показателей надежности и качества поставляемых товаров и оказываемых услуг, или непредставления таких данных. | C14: х | D14: нет
A15: 4. | B15: 4. Наличие выделенного абонентского номера для обращений потребителей услуг по передаче электрической энергии и (или) технологическому присоединению. | C15: х | D15: есть
A16: 5. | B16: 5. Наличие официального сайта в информационно-телекоммуникационной сети "Интернет". | C16: х | D16: есть
A17: 6. | B17: 6. Отсутствие во владении и (или) пользовании объектов электросетевого хозяйства, расположенных в административных границах субъекта Российской Федерации и используемых для осуществления регулируемой деятельности в указанных границах, принадлежащих на праве собственности или ином законном основании иному лицу, владеющему объектом по производству электрической энергии (мощности), который расположен в административных границах соответствующего субъекта Российской Федерации и с использованием которого осуществляется производство электрической энергии и мощности с целью ее продажи на оптовом рынке электрической энергии (мощности) и (или) розничных рынках электрической энергии. | C17: х | D17: нет
B19: Руководитель организации | D19: ='Инф-я'!C17 -> Окунев Василий Михайлович

Sheet Баланс энергии
A3: Баланс электрической энергии по сетям ВН, СН1, СН2, и НН
A4: ='Инф-я'!C9 -> Общество с ограниченной ответственностью "Энергетик"
AY5: млн. кВт.ч.
A6: № п.п. | B6: Показатели | C6: Принято регулирующим органом на 2017 год | H6: Факт за 1 полугодие 2017 года | M6: Факт за 2 полугодие 2017 года | R6: Факт за 2017 год | W6: Принято регулирующим органом на 1 полугодие 2018 года | AB6: Принято регулирующим органом на 2 полугодие 2018 года | AG6: Принято регулирующим органом на 2018 год | AL6: По данным организации на 1 полугодие 2019 года | AQ6: По данным организации на 2 полугодие 2019 года | AV6: По данным организации на 2019 год | BA6: Принято регулирующим органом на 1 полугодие 2019 года | BF6: Принято регулирующим органом на 2 полугодие 2019 года | BK6: Принято регулирующим органом на 2019 год
C7: Всего | D7: ВН | E7: СН1 | F7: СН2 | G7: НН | H7: Всего | I7: ВН | J7: СН1 | K7: СН2 | L7: НН | M7: Всего | N7: ВН | O7: СН1 | P7: СН2 | Q7: НН | R7: Всего | S7: ВН | T7: СН1 | U7: СН2 | V7: НН | W7: Всего | X7: ВН | Y7: СН1 | Z7: СН2 | AA7: НН | AB7: Всего | AC7: ВН | AD7: СН1 | AE7: СН2 | AF7: НН | AG7: Всего | AH7: ВН | AI7: СН1 | AJ7: СН2 | AK7: НН | AL7: Всего | AM7: ВН | AN7: СН1 | AO7: СН2 | AP7: НН | AQ7: Всего | AR7: ВН | AS7: СН1 | AT7: СН2 | AU7: НН | AV7: Всего | AW7: ВН | AX7: СН1 | AY7: СН2 | AZ7: НН | BA7: Всего | BB7: ВН | BC7: СН1 | BD7: СН2 | BE7: НН | BF7: Всего | BG7: ВН | BH7: СН1 | BI7: СН2 | BJ7: НН | BK7: Всего | BL7: ВН | BM7: СН1 | BN7: СН2 | BO7: НН
A8: 1 | B8: 2 | C8: 3 | D8: 4 | E8: 5 | F8: 6 | G8: 7 | H8: 8 | I8: 9 | J8: 10 | K8: 11 | L8: 12 | M8: 13 | N8: 14 | O8: 15 | P8: 16 | Q8: 17 | R8: 18 | S8: 19 | T8: 20 | U8: 21 | V8: 22 | W8: 23 | X8: 24 | Y8: 25 | Z8: 26 | AA8: 27 | AB8: 28 | AC8: 29 | AD8: 30 | AE8: 31 | AF8: 32 | AG8: 33 | AH8: 34 | AI8: 35 | AJ8: 36 | AK8: 37 | AL8: 38 | AM8: 39 | AN8: 40 | AO8: 41 | AP8: 42 | AQ8: 43 | AR8: 44 | AS8: 45 | AT8: 46 | AU8: 47 | AV8: 48 | AW8: 49 | AX8: 50 | AY8: 51 | AZ8: 52 | BA8: 53 | BB8: 54 | BC8: 55 | BD8: 56 | BE8: 57 | BF8: 58 | BG8: 59 | BH8: 60 | BI8: 61 | BJ8: 62 | BK8: 63 | BL8: 64 | BM8: 65 | BN8: 66 | BO8: 67
A9: 1. | B9: Поступление эл.энергии в сеть , ВСЕГО | C9: =C19+C21+C22 -> 26.8119 | D9: =D15+D16+D17+D18 -> 26.8119 | E9: =E10+E15+E16+E17+E18 -> 0 | F9: =F10+F15+F16+F17+F18 -> 26.8119 | G9: =G10+G15+G16+G17+G18 -> 18.07485068 | H9: =H19+H21+H22 -> 13.01155 | I9: =I15+I16+I17+I18 -> 13.01155 | J9: =J10+J15+J16+J17+J18 -> 0 | K9: =K10+K15+K16+K17+K18 -> 13.01155 | L9: =L10+L15+L16+L17+L18 -> 9.017134164 | M9: =M19+M21+M22 -> 12.29456 | N9: =N15+N16+N17+N18 -> 12.29456 | O9: =O10+O15+O16+O17+O18 -> 0 | P9: =P10+P15+P16+P17+P18 -> 12.29456 | Q9: =Q10+Q15+Q16+Q17+Q18 -> 8.600107014 | R9: =R19+R21+R22 -> 25.3061 | S9: =S15+S16+S17+S18 -> 25.3061 | T9: =T10+T15+T16+T17+T18 -> 0 | U9: =U10+U15+U16+U17+U18 -> 25.3061 | V9: =V10+V15+V16+V17+V18 -> 17.6171918 | W9: =W19+W21+W22 -> 14.2611 | X9: =X15+X16+X17+X18 -> 14.2611 | Y9: =Y10+Y15+Y16+Y17+Y18 -> 0 | Z9: =Z10+Z15+Z16+Z17+Z18 -> 14.2611 | AA9: =AA10+AA15+AA16+AA17+AA18 -> 9.079002986 | AB9: =AB19+AB21+AB22 -> 11.8855 | AC9: =AC15+AC16+AC17+AC18 -> 11.8855 | AD9: =AD10+AD15+AD16+AD17+AD18 -> 0 | AE9: =AE10+AE15+AE16+AE17+AE18 -> 11.8855 | AF9: =AF10+AF15+AF16+AF17+AF18 -> 7.566635291 | AG9: =AG19+AG21+AG22 -> 26.1466 | AH9: =AH15+AH16+AH17+AH18 -> 26.1466 | AI9: =AI10+AI15+AI16+AI17+AI18 -> 0 | AJ9: =AJ10+AJ15+AJ16+AJ17+AJ18 -> 26.1466 | AK9: =AK10+AK15+AK16+AK17+AK18 -> 16.64563828 | AL9: =AL19+AL21+AL22 -> 14.2615 | AM9: =AM15+AM16+AM17+AM18 -> 14.2615 | AN9: =AN10+AN15+AN16+AN17+AN18 -> 0 | AO9: =AO10+AO15+AO16+AO17+AO18 -> 14.2615 | AP9: =AP10+AP15+AP16+AP17+AP18 -> 9.0743393 | AQ9: =AQ19+AQ21+AQ22 -> 11.8851 | AR9: =AR15+AR16+AR17+AR18 -> 11.8851 | AS9: =AS10+AS15+AS16+AS17+AS18 -> 0 | AT9: =AT10+AT15+AT16+AT17+AT18 -> 11.8851 | AU9: =AU10+AU15+AU16+AU17+AU18 -> 7.56240082 | AV9: =AV19+AV21+AV22 -> 26.1466 | AW9: =AW15+AW16+AW17+AW18 -> 26.1466 | AX9: =AX10+AX15+AX16+AX17+AX18 -> 0 | AY9: =AY10+AY15+AY16+AY17+AY18 -> 26.1466 | AZ9: =AZ10+AZ15+AZ16+AZ17+AZ18 -> 16.63676012 | BA9: =BA19+BA21+BA22 -> 0 | BB9: =BB15+BB16+BB17+BB18 -> 0 | BC9: =BC10+BC15+BC16+BC17+BC18 -> 0 | BD9: =BD10+BD15+BD16+BD17+BD18 -> 0 | BE9: =BE10+BE15+BE16+BE17+BE18 -> 0 | BF9: =BF19+BF21+BF22 -> 0 | BG9: =BG15+BG16+BG17+BG18 -> 0 | BH9: =BH10+BH15+BH16+BH17+BH18 -> 0 | BI9: =BI10+BI15+BI16+BI17+BI18 -> 0 | BJ9: =BJ10+BJ15+BJ16+BJ17+BJ18 -> 0 | BK9: =BK19+BK21+BK22 -> 0 | BL9: =BL15+BL16+BL17+BL18 -> 0 | BM9: =BM10+BM15+BM16+BM17+BM18 -> 0 | BN9: =BN10+BN15+BN16+BN17+BN18 -> 0 | BO9: =BO10+BO15+BO16+BO17+BO18 -> 0
A10: 1.1. | B10: из смежной сети, всего | C10: х | D10: х | E10: =E12 -> 0 | F10: =F12+F13 -> 26.8119 | G10: =G12+G13+G14 -> 18.07485068 | H10: х | I10: х | J10: =J12 -> 0 | K10: =K12+K13 -> 13.01155 | L10: =L12+L13+L14 -> 9.017134164 | M10: х | N10: х | O10: =O12 -> 0 | P10: =P12+P13 -> 12.29456 | Q10: =Q12+Q13+Q14 -> 8.600107014 | R10: х | S10: х | T10: =T12 -> 0 | U10: =U12+U13 -> 25.3061 | V10: =V12+V13+V14 -> 17.6171918 | W10: х | X10: х | Y10: =Y12 -> 0 | Z10: =Z12+Z13 -> 14.2611 | AA10: =AA12+AA13+AA14 -> 9.079002986 | AB10: х | AC10: х | AD10: =AD12 -> 0 | AE10: =AE12+AE13 -> 11.8855 | AF10: =AF12+AF13+AF14 -> 7.566635291 | AG10: х | AH10: х | AI10: =AI12 -> 0 | AJ10: =AJ12+AJ13 -> 26.1466 | AK10: =AK12+AK13+AK14 -> 16.64563828 | AL10: х | AM10: х | AN10: =AN12 -> 0 | AO10: =AO12+AO13 -> 14.2615 | AP10: =AP12+AP13+AP14 -> 9.0743393 | AQ10: х | AR10: х | AS10: =AS12 -> 0 | AT10: =AT12+AT13 -> 11.8851 | AU10: =AU12+AU13+AU14 -> 7.56240082 | AV10: х | AW10: х | AX10: =AX12 -> 0 | AY10: =AY12+AY13 -> 26.1466 | AZ10: =AZ12+AZ13+AZ14 -> 16.63676012 | BA10: х | BB10: х | BC10: =BC12 -> 0 | BD10: =BD12+BD13 -> 0 | BE10: =BE12+BE13+BE14 -> 0 | BF10: х | BG10: х | BH10: =BH12 -> 0 | BI10: =BI12+BI13 -> 0 | BJ10: =BJ12+BJ13+BJ14 -> 0 | BK10: х | BL10: х | BM10: =BM12 -> 0 | BN10: =BN12+BN13 -> 0 | BO10: =BO12+BO13+BO14 -> 0
B11: в том числе из сети | C11: х | D11: х | E11: х | F11: х | G11: х | H11: х | I11: х | J11: х | K11: х | L11: х | M11: х | N11: х | O11: х | P11: х | Q11: х | R11: х | S11: х | T11: х | U11: х | V11: х | W11: х | X11: х | Y11: х | Z11: х | AA11: х | AB11: х | AC11: х | AD11: х | AE11: х | AF11: х | AG11: х | AH11: х | AI11: х | AJ11: х | AK11: х | AL11: х | AM11: х | AN11: х | AO11: х | AP11: х | AQ11: х | AR11: х | AS11: х | AT11: х | AU11: х | AV11: х | AW11: х | AX11: х | AY11: х | AZ11: х | BA11: х | BB11: х | BC11: х | BD11: х | BE11: х | BF11: х | BG11: х | BH11: х | BI11: х | BJ11: х | BK11: х | BL11: х | BM11: х | BN11: х | BO11: х
A12: 1.1.1. | B12: ВН | C12: х | D12: х | F12: =D9-D19-D21-D22-E12-G12 -> 26.8119 | H12: х | I12: х | K12: =I9-I19-I21-I22-J12-L12 -> 13.01155 | M12: х | N12: х | P12: =N9-N19-N21-N22-O12-Q12 -> 12.29456 | R12: х | S12: х | U12: =S9-S19-S21-S22-T12-V12 -> 25.3061 | W12: х | X12: х | Z12: =X9-X19-X21-X22-Y12-AA12 -> 14.2611 | AB12: х | AC12: х | AE12: =AC9-AC19-AC21-AC22-AD12-AF12 -> 11.8855 | AG12: х | AH12: х | AJ12: =AH9-AH19-AH21-AH22-AI12-AK12 -> 26.1466 | AL12: х | AM12: х | AO12: =AM9-AM19-AM21-AM22-AN12-AP12 -> 14.2615 | AQ12: х | AR12: х | AT12: =AR9-AR19-AR21-AR22-AS12-AU12 -> 11.8851 | AV12: х | AW12: х | AY12: =AW9-AW19-AW21-AW22-AX12-AZ12 -> 26.1466 | BA12: х | BB12: х | BD12: =BB9-BB19-BB21-BB22-BC12-BE12 -> 0 | BF12: х | BG12: х | BI12: =BG9-BG19-BG21-BG22-BH12-BJ12 -> 0 | BK12: х | BL12: х | BN12: =BL9-BL19-BL21-BL22-BM12-BO12 -> 0
A13: 1.1.2. | B13: СН1 | C13: х | D13: х | E13: х | F13: =E9-E19-E21-E22-G13 -> 0 | H13: х | I13: х | J13: х | K13: =J9-J19-J21-J22-L13 -> 0 | M13: х | N13: х | O13: х | P13: =O9-O19-O21-O22-Q13 -> 0 | R13: х | S13: х | T13: х | U13: =T9-T19-T21-T22-V13 -> 0 | W13: х | X13: х | Y13: х | Z13: =Y9-Y19-Y21-Y22-AA13 -> 0 | AB13: х | AC13: х | AD13: х | AE13: =AD9-AD19-AD21-AD22-AF13 -> 0 | AG13: х | AH13: х | AI13: х | AJ13: =AI9-AI19-AI21-AI22-AK13 -> 0 | AL13: х | AM13: х | AN13: х | AO13: =AN9-AN19-AN21-AN22-AP13 -> 0 | AQ13: х | AR13: х | AS13: х | AT13: =AS9-AS19-AS21-AS22-AU13 -> 0 | AV13: х | AW13: х | AX13: х | AY13: =AX9-AX19-AX21-AX22-AZ13 -> 0 | BA13: х | BB13: х | BC13: х | BD13: =BC9-BC19-BC21-BC22-BE13 -> 0 | BF13: х | BG13: х | BH13: х | BI13: =BH9-BH19-BH21-BH22-BJ13 -> 0 | BK13: х | BL13: х | BM13: х | BN13: =BM9-BM19-BM21-BM22-BO13 -> 0
A14: 1.1.3. | B14: СН2 | C14: х | D14: х | E14: х | F14: х | G14: =F9-F19-F21-F22 -> 18.07485068 | H14: х | I14: х | J14: х | K14: х | L14: =K9-K19-K21-K22 -> 9.017134164 | M14: х | N14: х | O14: х | P14: х | Q14: =P9-P19-P21-P22 -> 8.600107014 | R14: х | S14: х | T14: х | U14: х | V14: =U9-U19-U21-U22 -> 17.6171918 | W14: х | X14: х | Y14: х | Z14: х | AA14: =Z9-Z19-Z21-Z22 -> 9.079002986 | AB14: х | AC14: х | AD14: х | AE14: х | AF14: =AE9-AE19-AE21-AE22 -> 7.566635291 | AG14: х | AH14: х | AI14: х | AJ14: х | AK14: =AJ9-AJ19-AJ21-AJ22 -> 16.64563828 | AL14: х | AM14: х | AN14: х | AO14: х | AP14: =AO9-AO19-AO21-AO22 -> 9.0743393 | AQ14: х | AR14: х | AS14: х | AT14: х | AU14: =AT9-AT19-AT21-AT22 -> 7.56240082 | AV14: х | AW14: х | AX14: х | AY14: х | AZ14: =AY9-AY19-AY21-AY22 -> 16.63676012 | BA14: х | BB14: х | BC14: х | BD14: х | BE14: =BD9-BD19-BD21-BD22 -> 0 | BF14: х | BG14: х | BH14: х | BI14: х | BJ14: =BI9-BI19-BI21-BI22 -> 0 | BK14: х | BL14: х | BM14: х | BN14: х | BO14: =BN9-BN19-BN21-BN22 -> 0
A15: 1.2. | B15: от электростанций | C15: =SUM(D15:G15) -> 0 | H15: =SUM(I15:L15) -> 0 | M15: =SUM(N15:Q15) -> 0 | R15: =SUM(S15:V15) -> 0 | W15: =SUM(X15:AA15) -> 0 | AB15: =SUM(AC15:AF15) -> 0 | AG15: =SUM(AH15:AK15) -> 0 | AL15: =SUM(AM15:AP15) -> 0 | AQ15: =SUM(AR15:AU15) -> 0 | AV15: =SUM(AW15:AZ15) -> 0 | BA15: =SUM(BB15:BE15) -> 0 | BF15: =SUM(BG15:BJ15) -> 0 | BK15: =SUM(BL15:BO15) -> 0
A16: 1.3. | B16: от ОАО "ФСК ЕЭС" | C16: =SUM(D16:G16) -> 0 | H16: =SUM(I16:L16) -> 0 | M16: =SUM(N16:Q16) -> 0 | R16: =SUM(S16:V16) -> 0 | W16: =SUM(X16:AA16) -> 0 | AB16: =SUM(AC16:AF16) -> 0 | AG16: =SUM(AH16:AK16) -> 0 | AL16: =SUM(AM16:AP16) -> 0 | AQ16: =SUM(AR16:AU16) -> 0 | AV16: =SUM(AW16:AZ16) -> 0 | BA16: =SUM(BB16:BE16) -> 0 | BF16: =SUM(BG16:BJ16) -> 0 | BK16: =SUM(BL16:BO16) -> 0
A17: 1.4. | B17: от филиала "Владимирэнерго" ОАО "МРСК Центра и Приволжья" | C17: =SUM(D17:G17) -> 26.8119 | D17: 26.8119 | H17: =SUM(I17:L17) -> 13.01155 | I17: 13.01155 | M17: =SUM(N17:Q17) -> 12.29456 | N17: 12.29456 | R17: =SUM(S17:V17) -> 25.3061 | S17: 25.3061 | W17: =SUM(X17:AA17) -> 14.2611 | X17: 14.2611 | AB17: =SUM(AC17:AF17) -> 11.8855 | AC17: 11.8855 | AG17: =SUM(AH17:AK17) -> 26.1466 | AH17: 26.1466 | AL17: =SUM(AM17:AP17) -> 14.2615 | AM17: 14.2615 | AQ17: =SUM(AR17:AU17) -> 11.8851 | AR17: 11.8851 | AV17: =SUM(AW17:AZ17) -> 26.1466 | AW17: 26.1466 | BA17: =SUM(BB17:BE17) -> 0 | BF17: =SUM(BG17:BJ17) -> 0 | BK17: =SUM(BL17:BO17) -> 0
A18: 1.5. | B18: от других сетевых организаций | C18: =SUM(D18:G18) -> 0 | H18: =SUM(I18:L18) -> 0 | M18: =SUM(N18:Q18) -> 0 | R18: =SUM(S18:V18) -> 0 | W18: =SUM(X18:AA18) -> 0 | AB18: =SUM(AC18:AF18) -> 0 | AG18: =SUM(AH18:AK18) -> 0 | AL18: =SUM(AM18:AP18) -> 0 | AQ18: =SUM(AR18:AU18) -> 0 | AV18: =SUM(AW18:AZ18) -> 0 | BA18: =SUM(BB18:BE18) -> 0 | BF18: =SUM(BG18:BJ18) -> 0 | BK18: =SUM(BL18:BO18) -> 0
A19: 2. | B19: Потери электроэнергии в сети | C19: =SUM(D19:G19) -> 3.888093379 | D19: =D9*D20/100 -> 0 | E19: =E9*E20/100 -> 0 | F19: =F9*F20/100 -> 1.65584932 | G19: =G9*G20/100 -> 2.232244059 | H19: =SUM(I19:L19) -> 1.534454515 | I19: =I9*I20/100 -> 0 | J19: =J9*J20/100 -> 0 | K19: =K9*K20/100 -> 0.8041658362 | L19: =L9*L20/100 -> 0.7302886788 | M19: =SUM(N19:Q19) -> 1.397249918 | N19: =N9*N20/100 -> 0 | O19: =O9*O20/100 -> 0 | P19: =P9*P20/100 -> 0.7598529862 | Q19: =Q9*Q20/100 -> 0.6373969313 | R19: =SUM(S19:V19) -> 2.931658421 | S19: =S9*S20/100 -> 0 | T19: =T9*T20/100 -> 0 | U19: =U9*U20/100 -> 1.564018204 | V19: =V9*V20/100 -> 1.367640216 | W19: =SUM(X19:AA19) -> 2.002002962 | X19: =X9*X20/100 -> 0 | Y19: =Y9*Y20/100 -> 0 | Z19: =Z9*Z20/100 -> 0.8807370138 | AA19: =AA9*AA20/100 -> 1.121265948 | AB19: =SUM(AC19:AF19) -> 1.668504167 | AC19: =AC9*AC20/100 -> 0 | AD19: =AD9*AD20/100 -> 0 | AE19: =AE9*AE20/100 -> 0.734024709 | AF19: =AF9*AF20/100 -> 0.9344794584 | AG19: =SUM(AH19:AK19) -> 3.67049805 | AH19: =AH9*AH20/100 -> 0 | AI19: =AI9*AI20/100 -> 0 | AJ19: =AJ9*AJ20/100 -> 1.614761723 | AK19: =AK9*AK20/100 -> 2.055736327 | AL19: =SUM(AM19:AP19) -> 2.002041604 | AM19: =AM9*AM20/100 -> 0 | AN19: =AN9*AN20/100 -> 0 | AO19: =AO9*AO20/100 -> 0.8813607 | AP19: =AP9*AP20/100 -> 1.120680904 | AQ19: =SUM(AR19:AU19) -> 1.668455681 | AR19: =AR9*AR20/100 -> 0 | AS19: =AS9*AS20/100 -> 0 | AT19: =AT9*AT20/100 -> 0.73449918 | AU19: =AU9*AU20/100 -> 0.9339565013 | AV19: =SUM(AW19:AZ19) -> 3.670499755 | AW19: =AW9*AW20/100 -> 0 | AX19: =AX9*AX20/100 -> 0 | AY19: =AY9*AY20/100 -> 1.61585988 | AZ19: =AZ9*AZ20/100 -> 2.054639875 | BA19: =SUM(BB19:BE19) -> 0 | BB19: =BB9*BB20/100 -> 0 | BC19: =BC9*BC20/100 -> 0 | BD19: =BD9*BD20/100 -> 0 | BE19: =BE9*BE20/100 -> 0 | BF19: =SUM(BG19:BJ19) -> 0 | BG19: =BG9*BG20/100 -> 0 | BH19: =BH9*BH20/100 -> 0 | BI19: =BI9*BI20/100 -> 0 | BJ19: =BJ9*BJ20/100 -> 0 | BK19: =SUM(BL19:BO19) -> 0 | BL19: =BL9*BL20/100 -> 0 | BM19: =BM9*BM20/100 -> 0 | BN19: =BN9*BN20/100 -> 0 | BO19: =BO9*BO20/100 -> 0
A20: 2.1. | B20: то же в % (п.2./п.1.) | C20: =IF(C9=0,0,C19/C9*100) -> 14.50137207 | F20: 6.1758 | G20: 12.35 | H20: =IF(H9=0,0,H19/H9*100) -> 11.79301863 | K20: 6.1804 | L20: 8.0989 | M20: =IF(M9=0,0,M19/M9*100) -> 11.3647818 | P20: 6.1804 | Q20: 7.4115 | R20: =IF(R9=0,0,R19/R9*100) -> 11.58478952 | U20: 6.1804 | V20: 7.7631 | W20: =IF(W9=0,0,W19/W9*100) -> 14.03820856 | Z20: 6.1758 | AA20: 12.3501 | AB20: =IF(AB9=0,0,AB19/AB9*100) -> 14.03814873 | AE20: 6.1758 | AF20: 12.35 | AG20: =IF(AG9=0,0,AG19/AG9*100) -> 14.03814664 | AJ20: 6.1758 | AK20: 12.35 | AL20: =IF(AL9=0,0,AL19/AL9*100) -> 14.03808578 | AO20: 6.18 | AP20: 12.35 | AQ20: =IF(AQ9=0,0,AQ19/AQ9*100) -> 14.03821324 | AT20: 6.18 | AU20: 12.35 | AV20: =IF(AV9=0,0,AV19/AV9*100) -> 14.03815316 | AY20: 6.18 | AZ20: 12.35 | BA20: =IF(BA9=0,0,BA19/BA9*100) -> 0 | BF20: =IF(BF9=0,0,BF19/BF9*100) -> 0 | BK20: =IF(BK9=0,0,BK19/BK9*100) -> 0
A21: 3. | B21: Расход электроэнергии на производственные и хознужды | C21: =SUM(D21:G21) -> 0 | H21: =SUM(I21:L21) -> 0 | M21: =SUM(N21:Q21) -> 0 | R21: =SUM(S21:V21) -> 0 | W21: =SUM(X21:AA21) -> 0 | AB21: =SUM(AC21:AF21) -> 0 | AG21: =SUM(AH21:AK21) -> 0 | AL21: =SUM(AM21:AP21) -> 0 | AQ21: =SUM(AR21:AU21) -> 0 | AV21: =SUM(AW21:AZ21) -> 0 | BA21: =SUM(BB21:BE21) -> 0 | BF21: =SUM(BG21:BJ21) -> 0 | BK21: =SUM(BL21:BO21) -> 0
A22: 4. | B22: Полезный отпуск из сети | C22: =SUM(D22:G22) -> 22.92380662 | D22: =D23+D24+D25 -> 0 | E22: =E23+E24+E25 -> 0 | F22: =F23+F24+F25 -> 7.0812 | G22: =G9-G19-G21 -> 15.84260662 | H22: =SUM(I22:L22) -> 11.47709549 | I22: =I23+I24+I25 -> 0 | J22: =J23+J24+J25 -> 0 | K22: =K23+K24+K25 -> 3.19025 | L22: =L9-L19-L21 -> 8.286845485 | M22: =SUM(N22:Q22) -> 10.89731008 | N22: =N23+N24+N25 -> 0 | O22: =O23+O24+O25 -> 0 | P22: =P23+P24+P25 -> 2.9346 | Q22: =Q9-Q19-Q21 -> 7.962710082 | R22: =SUM(S22:V22) -> 22.37444158 | S22: =S23+S24+S25 -> 0 | T22: =T23+T24+T25 -> 0 | U22: =U23+U24+U25 -> 6.12489 | V22: =V9-V19-V21 -> 16.24955158 | W22: =SUM(X22:AA22) -> 12.25909704 | X22: =X23+X24+X25 -> 0 | Y22: =Y23+Y24+Y25 -> 0 | Z22: =Z23+Z24+Z25 -> 4.30136 | AA22: =AA9-AA19-AA21 -> 7.957737038 | AB22: =SUM(AC22:AF22) -> 10.21699583 | AC22: =AC23+AC24+AC25 -> 0 | AD22: =AD23+AD24+AD25 -> 0 | AE22: =AE23+AE24+AE25 -> 3.58484 | AF22: =AF9-AF19-AF21 -> 6.632155833 | AG22: =SUM(AH22:AK22) -> 22.47610195 | AH22: =AH23+AH24+AH25 -> 0 | AI22: =AI23+AI24+AI25 -> 0 | AJ22: =AJ23+AJ24+AJ25 -> 7.8862 | AK22: =AK9-AK19-AK21 -> 14.58990195 | AL22: =SUM(AM22:AP22) -> 12.2594584 | AM22: =AM23+AM24+AM25 -> 0 | AN22: =AN23+AN24+AN25 -> 0 | AO22: =AO23+AO24+AO25 -> 4.3058 | AP22: =AP9-AP19-AP21 -> 7.953658396 | AQ22: =SUM(AR22:AU22) -> 10.21664432 | AR22: =AR23+AR24+AR25 -> 0 | AS22: =AS23+AS24+AS25 -> 0 | AT22: =AT23+AT24+AT25 -> 3.5882 | AU22: =AU9-AU19-AU21 -> 6.628444319 | AV22: =SUM(AW22:AZ22) -> 22.47610025 | AW22: =AW23+AW24+AW25 -> 0 | AX22: =AX23+AX24+AX25 -> 0 | AY22: =AY23+AY24+AY25 -> 7.89398 | AZ22: =AZ9-AZ19-AZ21 -> 14.58212025 | BA22: =SUM(BB22:BE22) -> 0 | BB22: =BB23+BB24+BB25 -> 0 | BC22: =BC23+BC24+BC25 -> 0 | BD22: =BD23+BD24+BD25 -> 0 | BE22: =BE9-BE19-BE21 -> 0 | BF22: =SUM(BG22:BJ22) -> 0 | BG22: =BG23+BG24+BG25 -> 0 | BH22: =BH23+BH24+BH25 -> 0 | BI22: =BI23+BI24+BI25 -> 0 | BJ22: =BJ9-BJ19-BJ21 -> 0 | BK22: =SUM(BL22:BO22) -> 0 | BL22: =BL23+BL24+BL25 -> 0 | BM22: =BM23+BM24+BM25 -> 0 | BN22: =BN23+BN24+BN25 -> 0 | BO22: =BO9-BO19-BO21 -> 0
A23: 4.1. | B23: потребителям, присоединенным к сети | C23: =SUM(D23:G23) -> 22.92380662 | F23: 7.0812 | G23: 15.84260662 | H23: =SUM(I23:L23) -> 11.477088 | K23: 3.19025 | L23: 8.286838 | M23: =SUM(N23:Q23) -> 10.897283 | P23: 2.9346 | Q23: 7.962683 | R23: =SUM(S23:V23) -> 22.37441 | U23: 6.12489 | V23: 16.24952 | W23: =SUM(X23:AA23) -> 12.25912 | Z23: 4.30136 | AA23: 7.95776 | AB23: =SUM(AC23:AF23) -> 10.21703 | AE23: 3.58484 | AF23: 6.63219 | AG23: =SUM(AH23:AK23) -> 22.4761 | AJ23: 7.8862 | AK23: 14.5899 | AL23: =SUM(AM23:AP23) -> 12.2595 | AO23: 4.3058 | AP23: 7.9537 | AQ23: =SUM(AR23:AU23) -> 10.2166 | AT23: 3.5882 | AU23: 6.6284 | AV23: =SUM(AW23:AZ23) -> 22.4761 | AY23: 7.89398 | AZ23: 14.58212 | BA23: =SUM(BB23:BE23) -> 0 | BF23: =SUM(BG23:BJ23) -> 0 | BK23: =SUM(BL23:BO23) -> 0
A24: 4.2. | B24: переток в филиал "Владимирэнерго" ОАО "МРСК Центра и Приволжья" | C24: =SUM(D24:G24) -> 0 | H24: =SUM(I24:L24) -> 0 | M24: =SUM(N24:Q24) -> 0 | R24: =SUM(S24:V24) -> 0 | W24: =SUM(X24:AA24) -> 0 | AB24: =SUM(AC24:AF24) -> 0 | AG24: =SUM(AH24:AK24) -> 0 | AL24: =SUM(AM24:AP24) -> 0 | AQ24: =SUM(AR24:AU24) -> 0 | AV24: =SUM(AW24:AZ24) -> 0 | BA24: =SUM(BB24:BE24) -> 0 | BF24: =SUM(BG24:BJ24) -> 0 | BK24: =SUM(BL24:BO24) -> 0
A25: 4.3. | B25: переток в другие сетевые организации | C25: =SUM(D25:G25) -> 0 | H25: =SUM(I25:L25) -> 0 | M25: =SUM(N25:Q25) -> 0 | R25: =SUM(S25:V25) -> 0 | W25: =SUM(X25:AA25) -> 0 | AB25: =SUM(AC25:AF25) -> 0 | AG25: =SUM(AH25:AK25) -> 0 | AL25: =SUM(AM25:AP25) -> 0 | AQ25: =SUM(AR25:AU25) -> 0 | AV25: =SUM(AW25:AZ25) -> 0 | BA25: =SUM(BB25:BE25) -> 0 | BF25: =SUM(BG25:BJ25) -> 0 | BK25: =SUM(BL25:BO25) -> 0
B26: Проверка | D26: =D9-D19-D21-D23-D24-D25-E12-F12-G12 -> 0 | E26: =E9-E19-E21-E23-E24-E25-F13-G13 -> 0 | F26: =F9-F19-F21-F23-F24-F25-G14 -> 0 | G26: =G9-G19-G21-G23-G24-G25 -> 1.776356839e-15 | I26: =I9-I19-I21-I23-I24-I25-J12-K12-L12 -> 0 | J26: =J9-J19-J21-J23-J24-J25-K13-L13 -> 0 | K26: =K9-K19-K21-K23-K24-K25-L14 -> 0 | L26: =L9-L19-L21-L23-L24-L25 -> 7.485008004e-06 | N26: =N9-N19-N21-N23-N24-N25-O12-P12-Q12 -> 0 | O26: =O9-O19-O21-O23-O24-O25-P13-Q13 -> 0 | P26: =P9-P19-P21-P23-P24-P25-Q14 -> 0 | Q26: =Q9-Q19-Q21-Q23-Q24-Q25 -> 2.708243518e-05 | S26: =S9-S19-S21-S23-S24-S25-T12-U12-V12 -> 0 | T26: =T9-T19-T21-T23-T24-T25-U13-V13 -> 0 | U26: =U9-U19-U21-U23-U24-U25-V14 -> 0 | V26: =V9-V19-V21-V23-V24-V25 -> 3.157931578e-05 | X26: =X9-X19-X21-X23-X24-X25-Y12-Z12-AA12 -> 0 | Y26: =Y9-Y19-Y21-Y23-Y24-Y25-Z13-AA13 -> 0 | Z26: =Z9-Z19-Z21-Z23-Z24-Z25-AA14 -> 0 | AA26: =AA9-AA19-AA21-AA23-AA24-AA25 -> -2.296159868e-05 | AC26: =AC9-AC19-AC21-AC23-AC24-AC25-AD12-AE12-AF12 -> 0 | AD26: =AD9-AD19-AD21-AD23-AD24-AD25-AE13-AF13 -> 0 | AE26: =AE9-AE19-AE21-AE23-AE24-AE25-AF14 -> 0 | AF26: =AF9-AF19-AF21-AF23-AF24-AF25 -> -3.41674385e-05 | AH26: =AH9-AH19-AH21-AH23-AH24-AH25-AI12-AJ12-AK12 -> 0 | AI26: =AI9-AI19-AI21-AI23-AI24-AI25-AJ13-AK13 -> 0 | AJ26: =AJ9-AJ19-AJ21-AJ23-AJ24-AJ25-AK14 -> 0 | AK26: =AK9-AK19-AK21-AK23-AK24-AK25 -> 1.949965799e-06 | AM26: =AM9-AM19-AM21-AM23-AM24-AM25-AN12-AO12-AP12 -> 0 | AN26: =AN9-AN19-AN21-AN23-AN24-AN25-AO13-AP13 -> 0 | AO26: =AO9-AO19-AO21-AO23-AO24-AO25-AP14 -> 0 | AP26: =AP9-AP19-AP21-AP23-AP24-AP25 -> -4.160355e-05 | AR26: =AR9-AR19-AR21-AR23-AR24-AR25-AS12-AT12-AU12 -> 0 | AS26: =AS9-AS19-AS21-AS23-AS24-AS25-AT13-AU13 -> 0 | AT26: =AT9-AT19-AT21-AT23-AT24-AT25-AU14 -> 0 | AU26: =AU9-AU19-AU21-AU23-AU24-AU25 -> 4.431873e-05 | AW26: =AW9-AW19-AW21-AW23-AW24-AW25-AX12-AY12-AZ12 -> 0 | AX26: =AX9-AX19-AX21-AX23-AX24-AX25-AY13-AZ13 -> 0 | AY26: =AY9-AY19-AY21-AY23-AY24-AY25-AZ14 -> 0 | AZ26: =AZ9-AZ19-AZ21-AZ23-AZ24-AZ25 -> 2.451800007e-07 | BB26: =BB9-BB19-BB21-BB23-BB24-BB25-BC12-BD12-BE12 -> 0 | BC26: =BC9-BC19-BC21-BC23-BC24-BC25-BD13-BE13 -> 0 | BD26: =BD9-BD19-BD21-BD23-BD24-BD25-BE14 -> 0 | BE26: =BE9-BE19-BE21-BE23-BE24-BE25 -> 0 | BG26: =BG9-BG19-BG21-BG23-BG24-BG25-BH12-BI12-BJ12 -> 0 | BH26: =BH9-BH19-BH21-BH23-BH24-BH25-BI13-BJ13 -> 0 | BI26: =BI9-BI19-BI21-BI23-BI24-BI25-BJ14 -> 0 | BJ26: =BJ9-BJ19-BJ21-BJ23-BJ24-BJ25 -> 0 | BL26: =BL9-BL19-BL21-BL23-BL24-BL25-BM12-BN12-BO12 -> 0 | BM26: =BM9-BM19-BM21-BM23-BM24-BM25-BN13-BO13 -> 0 | BN26: =BN9-BN19-BN21-BN23-BN24-BN25-BO14 -> 0 | BO26: =BO9-BO19-BO21-BO23-BO24-BO25 -> 0
B28: Примечание
B30: Расшифровка п. 1.5. (Поступление от других сетевых организаций)
A31: № | B31: Наименование других сетевых организаций | C31: Всего | D31: ВН | E31: СН1 | F31: СН2 | G31: НН | H31: Всего | I31: ВН | J31: СН1 | K31: СН2 | L31: НН | M31: Всего | N31: ВН | O31: СН1 | P31: СН2 | Q31: НН | R31: Всего | S31: ВН | T31: СН1 | U31: СН2 | V31: НН | W31: Всего | X31: ВН | Y31: СН1 | Z31: СН2 | AA31: НН | AB31: Всего | AC31: ВН | AD31: СН1 | AE31: СН2 | AF31: НН | AG31: Всего | AH31: ВН | AI31: СН1 | AJ31: СН2 | AK31: НН | AL31: Всего | AM31: ВН | AN31: СН1 | AO31: СН2 | AP31: НН | AQ31: Всего | AR31: ВН | AS31: СН1 | AT31: СН2 | AU31: НН | AV31: Всего | AW31: ВН | AX31: СН1 | AY31: СН2 | AZ31: НН | BA31: Всего | BB31: ВН | BC31: СН1 | BD31: СН2 | BE31: НН | BF31: Всего | BG31: ВН | BH31: СН1 | BI31: СН2 | BJ31: НН | BK31: Всего | BL31: ВН | BM31: СН1 | BN31: СН2 | BO31: НН
C32: =SUM(D32:G32) -> 0 | H32: =SUM(I32:L32) -> 0 | M32: =SUM(N32:Q32) -> 0 | R32: =SUM(S32:V32) -> 0 | W32: =SUM(X32:AA32) -> 0 | AB32: =SUM(AC32:AF32) -> 0 | AG32: =SUM(AH32:AK32) -> 0 | AL32: =SUM(AM32:AP32) -> 0 | AQ32: =SUM(AR32:AU32) -> 0 | AV32: =SUM(AW32:AZ32) -> 0 | BA32: =SUM(BB32:BE32) -> 0 | BF32: =SUM(BG32:BJ32) -> 0 | BK32: =SUM(BL32:BO32) -> 0
C33: =SUM(D33:G33) -> 0 | H33: =SUM(I33:L33) -> 0 | M33: =SUM(N33:Q33) -> 0 | R33: =SUM(S33:V33) -> 0 | W33: =SUM(X33:AA33) -> 0 | AB33: =SUM(AC33:AF33) -> 0 | AG33: =SUM(AH33:AK33) -> 0 | AL33: =SUM(AM33:AP33) -> 0 | AQ33: =SUM(AR33:AU33) -> 0 | AV33: =SUM(AW33:AZ33) -> 0 | BA33: =SUM(BB33:BE33) -> 0 | BF33: =SUM(BG33:BJ33) -> 0 | BK33: =SUM(BL33:BO33) -> 0
C34: =SUM(D34:G34) -> 0 | H34: =SUM(I34:L34) -> 0 | M34: =SUM(N34:Q34) -> 0 | R34: =SUM(S34:V34) -> 0 | W34: =SUM(X34:AA34) -> 0 | AB34: =SUM(AC34:AF34) -> 0 | AG34: =SUM(AH34:AK34) -> 0 | AL34: =SUM(AM34:AP34) -> 0 | AQ34: =SUM(AR34:AU34) -> 0 | AV34: =SUM(AW34:AZ34) -> 0 | BA34: =SUM(BB34:BE34) -> 0 | BF34: =SUM(BG34:BJ34) -> 0 | BK34: =SUM(BL34:BO34) -> 0
C35: =SUM(D35:G35) -> 0 | H35: =SUM(I35:L35) -> 0 | M35: =SUM(N35:Q35) -> 0 | R35: =SUM(S35:V35) -> 0 | W35: =SUM(X35:AA35) -> 0 | AB35: =SUM(AC35:AF35) -> 0 | AG35: =SUM(AH35:AK35) -> 0 | AL35: =SUM(AM35:AP35) -> 0 | AQ35: =SUM(AR35:AU35) -> 0 | AV35: =SUM(AW35:AZ35) -> 0 | BA35: =SUM(BB35:BE35) -> 0 | BF35: =SUM(BG35:BJ35) -> 0 | BK35: =SUM(BL35:BO35) -> 0
A36: Добавить
B37: Итого | C37: =SUM(C32:C35) -> 0 | D37: =SUM(D32:D35) -> 0 | E37: =SUM(E32:E35) -> 0 | F37: =SUM(F32:F35) -> 0 | G37: =SUM(G32:G35) -> 0 | H37: =SUM(H32:H35) -> 0 | I37: 0 | J37: 0 | K37: 0 | L37: 0 | M37: 0 | N37: 0 | O37: 0 | P37: 0 | Q37: 0 | R37: 0 | S37: 0 | T37: 0 | U37: 0 | V37: 0 | W37: 0 | X37: 0 | Y37: 0 | Z37: 0 | AA37: 0 | AB37: 0 | AC37: 0 | AD37: 0 | AE37: 0 | AF37: 0 | AG37: 0 | AH37: 0 | AI37: 0 | AJ37: 0 | AK37: 0 | AL37: 0 | AM37: 0 | AN37: 0 | AO37: 0 | AP37: 0 | AQ37: 0 | AR37: 0 | AS37: 0 | AT37: 0 | AU37: 0 | AV37: =SUM(AV32:AV35) -> 0 | AW37: =SUM(AW32:AW35) -> 0 | AX37: =SUM(AX32:AX35) -> 0 | AY37: =SUM(AY32:AY35) -> 0 | AZ37: =SUM(AZ32:AZ35) -> 0 | BA37: =SUM(BA32:BA35) -> 0 | BB37: 0 | BC37: 0 | BD37: 0 | BE37: 0 | BF37: 0 | BG37: 0 | BH37: 0 | BI37: 0 | BJ37: 0 | BK37: =SUM(BK32:BK35) -> 0 | BL37: =SUM(BL32:BL35) -> 0 | BM37: =SUM(BM32:BM35) -> 0 | BN37: =SUM(BN32:BN35) -> 0 | BO37: =SUM(BO32:BO35) -> 0
B39: Расшифровка п. 4.3. (Полезный отпуск - переток в другие сетевые организации)
A40: № | B40: Наименование других сетевых организаций | C40: Всего | D40: ВН | E40: СН1 | F40: СН2 | G40: НН | H40: Всего | I40: ВН | J40: СН1 | K40: СН2 | L40: НН | M40: Всего | N40: ВН | O40: СН1 | P40: СН2 | Q40: НН | R40: Всего | S40: ВН | T40: СН1 | U40: СН2 | V40: НН | W40: Всего | X40: ВН | Y40: СН1 | Z40: СН2 | AA40: НН | AB40: Всего | AC40: ВН | AD40: СН1 | AE40: СН2 | AF40: НН | AG40: Всего | AH40: ВН | AI40: СН1 | AJ40: СН2 | AK40: НН | AL40: Всего | AM40: ВН | AN40: СН1 | AO40: СН2 | AP40: НН | AQ40: Всего | AR40: ВН | AS40: СН1 | AT40: СН2 | AU40: НН | AV40: Всего | AW40: ВН | AX40: СН1 | AY40: СН2 | AZ40: НН | BA40: Всего | BB40: ВН | BC40: СН1 | BD40: СН2 | BE40: НН | BF40: Всего | BG40: ВН | BH40: СН1 | BI40: СН2 | BJ40: НН | BK40: Всего | BL40: ВН | BM40: СН1 | BN40: СН2 | BO40: НН
C41: =SUM(D41:G41) -> 0 | H41: =SUM(I41:L41) -> 0 | M41: =SUM(N41:Q41) -> 0 | R41: =SUM(S41:V41) -> 0 | W41: =SUM(X41:AA41) -> 0 | AB41: =SUM(AC41:AF41) -> 0 | AG41: =SUM(AH41:AK41) -> 0 | AL41: =SUM(AM41:AP41) -> 0 | AQ41: =SUM(AR41:AU41) -> 0 | AV41: =SUM(AW41:AZ41) -> 0 | BA41: =SUM(BB41:BE41) -> 0 | BF41: =SUM(BG41:BJ41) -> 0 | BK41: =SUM(BL41:BO41) -> 0
C42: 0 | H42: 0 | M42: 0 | R42: 0 | W42: 0 | AB42: 0 | AG42: 0 | AL42: 0 | AQ42: 0 | AV42: 0 | BA42: 0 | BF42: 0 | BK42: 0
C43: 0 | H43: 0 | M43: 0 | R43: 0 | W43: 0 | AB43: 0 | AG43: 0 | AL43: 0 | AQ43: 0 | AV43: 0 | BA43: 0 | BF43: 0 | BK43: 0
C44: 0 | H44: 0 | M44: 0 | R44: 0 | W44: 0 | AB44: 0 | AG44: 0 | AL44: 0 | AQ44: 0 | AV44: 0 | BA44: 0 | BF44: 0 | BK44: 0
C45: 0 | H45: 0 | M45: 0 | R45: 0 | W45: 0 | AB45: 0 | AG45: 0 | AL45: 0 | AQ45: 0 | AV45: 0 | BA45: 0 | BF45: 0 | BK45: 0
C46: 0 | H46: 0 | M46: 0 | R46: 0 | W46: 0 | AB46: 0 | AG46: 0 | AL46: 0 | AQ46: 0 | AV46: 0 | BA46: 0 | BF46: 0 | BK46: 0
A47: Добавить
B48: Итого | C48: =SUM(C41:C46) -> 0 | D48: =SUM(D41:D46) -> 0 | E48: =SUM(E41:E46) -> 0 | F48: =SUM(F41:F46) -> 0 | G48: =SUM(G41:G46) -> 0 | H48: =SUM(H41:H46) -> 0 | I48: 0 | J48: 0 | K48: 0 | L48: 0 | M48: 0 | N48: 0 | O48: 0 | P48: 0 | Q48: 0 | R48: 0 | S48: 0 | T48: 0 | U48: 0 | V48: 0 | W48: 0 | X48: 0 | Y48: 0 | Z48: 0 | AA48: 0 | AB48: 0 | AC48: 0 | AD48: 0 | AE48: 0 | AF48: 0 | AG48: 0 | AH48: 0 | AI48: 0 | AJ48: 0 | AK48: 0 | AL48: 0 | AM48: 0 | AN48: 0 | AO48: 0 | AP48: 0 | AQ48: 0 | AR48: 0 | AS48: 0 | AT48: 0 | AU48: 0 | AV48: =SUM(AV41:AV46) -> 0 | AW48: =SUM(AW41:AW46) -> 0 | AX48: =SUM(AX41:AX46) -> 0 | AY48: =SUM(AY41:AY46) -> 0 | AZ48: =SUM(AZ41:AZ46) -> 0 | BA48: =SUM(BA41:BA46) -> 0 | BB48: 0 | BC48: 0 | BD48: 0 | BE48: 0 | BF48: 0 | BG48: 0 | BH48: 0 | BI48: 0 | BJ48: 0 | BK48: =SUM(BK41:BK46) -> 0 | BL48: =SUM(BL41:BL46) -> 0 | BM48: =SUM(BM41:BM46) -> 0 | BN48: =SUM(BN41:BN46) -> 0 | BO48: =SUM(BO41:BO46) -> 0
B50: Расшифровка п. 4.1. (Полезный отпуск потребителям, присоединенным к сети)
A51: № | B51: Наименование сбытовых организаций | C51: Всего | D51: ВН | E51: СН1 | F51: СН2 | G51: НН | H51: Всего | I51: ВН | J51: СН1 | K51: СН2 | L51: НН | M51: Всего | N51: ВН | O51: СН1 | P51: СН2 | Q51: НН | R51: Всего | S51: ВН | T51: СН1 | U51: СН2 | V51: НН | W51: Всего | X51: ВН | Y51: СН1 | Z51: СН2 | AA51: НН | AB51: Всего | AC51: ВН | AD51: СН1 | AE51: СН2 | AF51: НН | AG51: Всего | AH51: ВН | AI51: СН1 | AJ51: СН2 | AK51: НН | AL51: Всего | AM51: ВН | AN51: СН1 | AO51: СН2 | AP51: НН | AQ51: Всего | AR51: ВН | AS51: СН1 | AT51: СН2 | AU51: НН | AV51: Всего | AW51: ВН | AX51: СН1 | AY51: СН2 | AZ51: НН | BA51: Всего | BB51: ВН | BC51: СН1 | BD51: СН2 | BE51: НН | BF51: Всего | BG51: ВН | BH51: СН1 | BI51: СН2 | BJ51: НН | BK51: Всего | BL51: ВН | BM51: СН1 | BN51: СН2 | BO51: НН
A52: 1. | B52: ОАО "Владимирэнергосбыт" всего, в том числе: | C52: =D52+E52+F52+G52 -> 0 | D52: =D53+D54 -> 0 | E52: =E53+E54 -> 0 | F52: =F53+F54 -> 0 | G52: =G53+G54 -> 0 | H52: =I52+J52+K52+L52 -> 0 | I52: =I53+I54 -> 0 | J52: =J53+J54 -> 0 | K52: =K53+K54 -> 0 | L52: =L53+L54 -> 0 | M52: =N52+O52+P52+Q52 -> 0 | N52: =N53+N54 -> 0 | O52: =O53+O54 -> 0 | P52: =P53+P54 -> 0 | Q52: =Q53+Q54 -> 0 | R52: =S52+T52+U52+V52 -> 0 | S52: =S53+S54 -> 0 | T52: =T53+T54 -> 0 | U52: =U53+U54 -> 0 | V52: =V53+V54 -> 0 | W52: =X52+Y52+Z52+AA52 -> 0 | X52: =X53+X54 -> 0 | Y52: =Y53+Y54 -> 0 | Z52: =Z53+Z54 -> 0 | AA52: =AA53+AA54 -> 0 | AB52: =AC52+AD52+AE52+AF52 -> 0 | AC52: =AC53+AC54 -> 0 | AD52: =AD53+AD54 -> 0 | AE52: =AE53+AE54 -> 0 | AF52: =AF53+AF54 -> 0 | AG52: =AH52+AI52+AJ52+AK52 -> 0 | AH52: =AH53+AH54 -> 0 | AI52: =AI53+AI54 -> 0 | AJ52: =AJ53+AJ54 -> 0 | AK52: =AK53+AK54 -> 0 | AL52: =AM52+AN52+AO52+AP52 -> 0 | AM52: =AM53+AM54 -> 0 | AN52: =AN53+AN54 -> 0 | AO52: =AO53+AO54 -> 0 | AP52: =AP53+AP54 -> 0 | AQ52: =AR52+AS52+AT52+AU52 -> 0 | AR52: =AR53+AR54 -> 0 | AS52: =AS53+AS54 -> 0 | AT52: =AT53+AT54 -> 0 | AU52: =AU53+AU54 -> 0 | AV52: =AW52+AX52+AY52+AZ52 -> 0 | AW52: =AW53+AW54 -> 0 | AX52: =AX53+AX54 -> 0 | AY52: =AY53+AY54 -> 0 | AZ52: =AZ53+AZ54 -> 0 | BA52: =BB52+BC52+BD52+BE52 -> 0 | BB52: =BB53+BB54 -> 0 | BC52: =BC53+BC54 -> 0 | BD52: =BD53+BD54 -> 0 | BE52: =BE53+BE54 -> 0 | BF52: =BG52+BH52+BI52+BJ52 -> 0 | BG52: =BG53+BG54 -> 0 | BH52: =BH53+BH54 -> 0 | BI52: =BI53+BI54 -> 0 | BJ52: =BJ53+BJ54 -> 0 | BK52: =BL52+BM52+BN52+BO52 -> 0 | BL52: =BL53+BL54 -> 0 | BM52: =BM53+BM54 -> 0 | BN52: =BN53+BN54 -> 0 | BO52: =BO53+BO54 -> 0
A53: 1.1. | B53: прочие потребители | C53: =D53+E53+F53+G53 -> 0 | H53: =I53+J53+K53+L53 -> 0 | M53: =N53+O53+P53+Q53 -> 0 | R53: =S53+T53+U53+V53 -> 0 | W53: =X53+Y53+Z53+AA53 -> 0 | AB53: =AC53+AD53+AE53+AF53 -> 0 | AG53: =AH53+AI53+AJ53+AK53 -> 0 | AL53: =AM53+AN53+AO53+AP53 -> 0 | AQ53: =AR53+AS53+AT53+AU53 -> 0 | AV53: =AW53+AX53+AY53+AZ53 -> 0 | BA53: =BB53+BC53+BD53+BE53 -> 0 | BF53: =BG53+BH53+BI53+BJ53 -> 0 | BK53: =BL53+BM53+BN53+BO53 -> 0
A54: 1.2. | B54: население | C54: =D54+E54+F54+G54 -> 0 | H54: 0 | M54: 0 | R54: 0 | W54: 0 | AB54: 0 | AG54: 0 | AL54: 0 | AQ54: 0 | AV54: 0 | BA54: 0 | BF54: 0 | BK54: 0
A55: 2. | B55: ОАО "ВКС" всего, в том числе: | C55: 0 | D55: =D56+D57 -> 0 | E55: =E56+E57 -> 0 | F55: =F56+F57 -> 0 | G55: =G56+G57 -> 0 | H55: 0 | I55: =I56+I57 -> 0 | J55: =J56+J57 -> 0 | K55: =K56+K57 -> 0 | L55: =L56+L57 -> 0 | M55: 0 | N55: =N56+N57 -> 0 | O55: =O56+O57 -> 0 | P55: =P56+P57 -> 0 | Q55: =Q56+Q57 -> 0 | R55: 0 | S55: =S56+S57 -> 0 | T55: =T56+T57 -> 0 | U55: =U56+U57 -> 0 | V55: =V56+V57 -> 0 | W55: 0 | X55: =X56+X57 -> 0 | Y55: =Y56+Y57 -> 0 | Z55: =Z56+Z57 -> 0 | AA55: =AA56+AA57 -> 0 | AB55: 0 | AC55: =AC56+AC57 -> 0 | AD55: =AD56+AD57 -> 0 | AE55: =AE56+AE57 -> 0 | AF55: =AF56+AF57 -> 0 | AG55: 0 | AH55: =AH56+AH57 -> 0 | AI55: =AI56+AI57 -> 0 | AJ55: =AJ56+AJ57 -> 0 | AK55: =AK56+AK57 -> 0 | AL55: 0 | AM55: =AM56+AM57 -> 0 | AN55: =AN56+AN57 -> 0 | AO55: =AO56+AO57 -> 0 | AP55: =AP56+AP57 -> 0 | AQ55: 0 | AR55: =AR56+AR57 -> 0 | AS55: =AS56+AS57 -> 0 | AT55: =AT56+AT57 -> 0 | AU55: =AU56+AU57 -> 0 | AV55: 0 | AW55: =AW56+AW57 -> 0 | AX55: =AX56+AX57 -> 0 | AY55: =AY56+AY57 -> 0 | AZ55: =AZ56+AZ57 -> 0 | BA55: 0 | BB55: =BB56+BB57 -> 0 | BC55: =BC56+BC57 -> 0 | BD55: =BD56+BD57 -> 0 | BE55: =BE56+BE57 -> 0 | BF55: 0 | BG55: =BG56+BG57 -> 0 | BH55: =BH56+BH57 -> 0 | BI55: =BI56+BI57 -> 0 | BJ55: =BJ56+BJ57 -> 0 | BK55: 0 | BL55: =BL56+BL57 -> 0 | BM55: =BM56+BM57 -> 0 | BN55: =BN56+BN57 -> 0 | BO55: =BO56+BO57 -> 0
A56: 2.1. | B56: прочие потребители | C56: 0 | H56: 0 | M56: 0 | R56: 0 | W56: 0 | AB56: 0 | AG56: 0 | AL56: 0 | AQ56: 0 | AV56: 0 | BA56: 0 | BF56: 0 | BK56: 0
A57: 2.2. | B57: население | C57: 0 | H57: 0 | M57: 0 | R57: 0 | W57: 0 | AB57: 0 | AG57: 0 | AL57: 0 | AQ57: 0 | AV57: 0 | BA57: 0 | BF57: 0 | BK57: 0
A58: 3. | B58: ОАО "Русэнергосбыт" | C58: 0 | D58: =D59+D60 -> 0 | E58: =E59+E60 -> 0 | F58: =F59+F60 -> 0 | G58: =G59+G60 -> 0 | H58: 0 | I58: =I59+I60 -> 0 | J58: =J59+J60 -> 0 | K58: =K59+K60 -> 0 | L58: =L59+L60 -> 0 | M58: 0 | N58: =N59+N60 -> 0 | O58: =O59+O60 -> 0 | P58: =P59+P60 -> 0 | Q58: =Q59+Q60 -> 0 | R58: 0 | S58: =S59+S60 -> 0 | T58: =T59+T60 -> 0 | U58: =U59+U60 -> 0 | V58: =V59+V60 -> 0 | W58: 0 | X58: =X59+X60 -> 0 | Y58: =Y59+Y60 -> 0 | Z58: =Z59+Z60 -> 0 | AA58: =AA59+AA60 -> 0 | AB58: 0 | AC58: =AC59+AC60 -> 0 | AD58: =AD59+AD60 -> 0 | AE58: =AE59+AE60 -> 0 | AF58: =AF59+AF60 -> 0 | AG58: 0 | AH58: =AH59+AH60 -> 0 | AI58: =AI59+AI60 -> 0 | AJ58: =AJ59+AJ60 -> 0 | AK58: =AK59+AK60 -> 0 | AL58: 0 | AM58: =AM59+AM60 -> 0 | AN58: =AN59+AN60 -> 0 | AO58: =AO59+AO60 -> 0 | AP58: =AP59+AP60 -> 0 | AQ58: 0 | AR58: =AR59+AR60 -> 0 | AS58: =AS59+AS60 -> 0 | AT58: =AT59+AT60 -> 0 | AU58: =AU59+AU60 -> 0 | AV58: 0 | AW58: =AW59+AW60 -> 0 | AX58: =AX59+AX60 -> 0 | AY58: =AY59+AY60 -> 0 | AZ58: =AZ59+AZ60 -> 0 | BA58: 0 | BB58: =BB59+BB60 -> 0 | BC58: =BC59+BC60 -> 0 | BD58: =BD59+BD60 -> 0 | BE58: =BE59+BE60 -> 0 | BF58: 0 | BG58: =BG59+BG60 -> 0 | BH58: =BH59+BH60 -> 0 | BI58: =BI59+BI60 -> 0 | BJ58: =BJ59+BJ60 -> 0 | BK58: 0 | BL58: =BL59+BL60 -> 0 | BM58: =BM59+BM60 -> 0 | BN58: =BN59+BN60 -> 0 | BO58: =BO59+BO60 -> 0
A59: 3.1. | B59: прочие потребители | C59: 0 | H59: 0 | M59: 0 | R59: 0 | W59: 0 | AB59: 0 | AG59: 0 | AL59: 0 | AQ59: 0 | AV59: 0 | BA59: 0 | BF59: 0 | BK59: 0
A60: 3.2. | B60: население | C60: 0 | H60: 0 | M60: 0 | R60: 0 | W60: 0 | AB60: 0 | AG60: 0 | AL60: 0 | AQ60: 0 | AV60: 0 | BA60: 0 | BF60: 0 | BK60: 0
A61: 4. | B61: ОАО "Оборонэнергосбыт" | C61: 0 | D61: =D62+D63 -> 0 | E61: =E62+E63 -> 0 | F61: =F62+F63 -> 0 | G61: =G62+G63 -> 0 | H61: 0 | I61: =I62+I63 -> 0 | J61: =J62+J63 -> 0 | K61: =K62+K63 -> 0 | L61: =L62+L63 -> 0 | M61: 0 | N61: =N62+N63 -> 0 | O61: =O62+O63 -> 0 | P61: =P62+P63 -> 0 | Q61: =Q62+Q63 -> 0 | R61: 0 | S61: =S62+S63 -> 0 | T61: =T62+T63 -> 0 | U61: =U62+U63 -> 0 | V61: =V62+V63 -> 0 | W61: 0 | X61: =X62+X63 -> 0 | Y61: =Y62+Y63 -> 0 | Z61: =Z62+Z63 -> 0 | AA61: =AA62+AA63 -> 0 | AB61: 0 | AC61: =AC62+AC63 -> 0 | AD61: =AD62+AD63 -> 0 | AE61: =AE62+AE63 -> 0 | AF61: =AF62+AF63 -> 0 | AG61: 0 | AH61: =AH62+AH63 -> 0 | AI61: =AI62+AI63 -> 0 | AJ61: =AJ62+AJ63 -> 0 | AK61: =AK62+AK63 -> 0 | AL61: 0 | AM61: =AM62+AM63 -> 0 | AN61: =AN62+AN63 -> 0 | AO61: =AO62+AO63 -> 0 | AP61: =AP62+AP63 -> 0 | AQ61: 0 | AR61: =AR62+AR63 -> 0 | AS61: =AS62+AS63 -> 0 | AT61: =AT62+AT63 -> 0 | AU61: =AU62+AU63 -> 0 | AV61: 0 | AW61: =AW62+AW63 -> 0 | AX61: =AX62+AX63 -> 0 | AY61: =AY62+AY63 -> 0 | AZ61: =AZ62+AZ63 -> 0 | BA61: 0 | BB61: =BB62+BB63 -> 0 | BC61: =BC62+BC63 -> 0 | BD61: =BD62+BD63 -> 0 | BE61: =BE62+BE63 -> 0 | BF61: 0 | BG61: =BG62+BG63 -> 0 | BH61: =BH62+BH63 -> 0 | BI61: =BI62+BI63 -> 0 | BJ61: =BJ62+BJ63 -> 0 | BK61: 0 | BL61: =BL62+BL63 -> 0 | BM61: =BM62+BM63 -> 0 | BN61: =BN62+BN63 -> 0 | BO61: =BO62+BO63 -> 0
A62: 4.1. | B62: прочие потребители | C62: 0 | H62: 0 | M62: 0 | R62: 0 | W62: 0 | AB62: 0 | AG62: 0 | AL62: 0 | AQ62: 0 | AV62: 0 | BA62: 0 | BF62: 0 | BK62: 0
A63: 4.2. | B63: население | C63: 0 | H63: 0 | M63: 0 | R63: 0 | W63: 0 | AB63: 0 | AG63: 0 | AL63: 0 | AQ63: 0 | AV63: 0 | BA63: 0 | BF63: 0 | BK63: 0
A64: Добавить
B65: Итого всего, в том числе: | C65: =D65+E65+F65+G65 -> 0 | D65: =D66+D67 -> 0 | E65: =E66+E67 -> 0 | F65: =F66+F67 -> 0 | G65: =G66+G67 -> 0 | H65: =I65+J65+K65+L65 -> 0 | I65: =I66+I67 -> 0 | J65: =J66+J67 -> 0 | K65: =K66+K67 -> 0 | L65: =L66+L67 -> 0 | M65: =N65+O65+P65+Q65 -> 0 | N65: =N66+N67 -> 0 | O65: =O66+O67 -> 0 | P65: =P66+P67 -> 0 | Q65: =Q66+Q67 -> 0 | R65: =S65+T65+U65+V65 -> 0 | S65: =S66+S67 -> 0 | T65: =T66+T67 -> 0 | U65: =U66+U67 -> 0 | V65: =V66+V67 -> 0 | W65: =X65+Y65+Z65+AA65 -> 0 | X65: =X66+X67 -> 0 | Y65: =Y66+Y67 -> 0 | Z65: =Z66+Z67 -> 0 | AA65: =AA66+AA67 -> 0 | AB65: =AC65+AD65+AE65+AF65 -> 0 | AC65: =AC66+AC67 -> 0 | AD65: =AD66+AD67 -> 0 | AE65: =AE66+AE67 -> 0 | AF65: =AF66+AF67 -> 0 | AG65: =AH65+AI65+AJ65+AK65 -> 0 | AH65: =AH66+AH67 -> 0 | AI65: =AI66+AI67 -> 0 | AJ65: =AJ66+AJ67 -> 0 | AK65: =AK66+AK67 -> 0 | AL65: =AM65+AN65+AO65+AP65 -> 0 | AM65: =AM66+AM67 -> 0 | AN65: =AN66+AN67 -> 0 | AO65: =AO66+AO67 -> 0 | AP65: =AP66+AP67 -> 0 | AQ65: =AR65+AS65+AT65+AU65 -> 0 | AR65: =AR66+AR67 -> 0 | AS65: =AS66+AS67 -> 0 | AT65: =AT66+AT67 -> 0 | AU65: =AU66+AU67 -> 0 | AV65: =AW65+AX65+AY65+AZ65 -> 0 | AW65: =AW66+AW67 -> 0 | AX65: =AX66+AX67 -> 0 | AY65: =AY66+AY67 -> 0 | AZ65: =AZ66+AZ67 -> 0 | BA65: =BB65+BC65+BD65+BE65 -> 0 | BB65: =BB66+BB67 -> 0 | BC65: =BC66+BC67 -> 0 | BD65: =BD66+BD67 -> 0 | BE65: =BE66+BE67 -> 0 | BF65: =BG65+BH65+BI65+BJ65 -> 0 | BG65: =BG66+BG67 -> 0 | BH65: =BH66+BH67 -> 0 | BI65: =BI66+BI67 -> 0 | BJ65: =BJ66+BJ67 -> 0 | BK65: =BL65+BM65+BN65+BO65 -> 0 | BL65: =BL66+BL67 -> 0 | BM65: =BM66+BM67 -> 0 | BN65: =BN66+BN67 -> 0 | BO65: =BO66+BO67 -> 0
B66: прочие потребители | C66: =D66+E66+F66+G66 -> 0 | D66: =D53+D56+D59+D62 -> 0 | E66: 0 | F66: 0 | G66: 0 | H66: =I66+J66+K66+L66 -> 0 | I66: =I53+I56+I59+I62 -> 0 | J66: 0 | K66: 0 | L66: 0 | M66: =N66+O66+P66+Q66 -> 0 | N66: =N53+N56+N59+N62 -> 0 | O66: 0 | P66: 0 | Q66: 0 | R66: =S66+T66+U66+V66 -> 0 | S66: =S53+S56+S59+S62 -> 0 | T66: 0 | U66: 0 | V66: 0 | W66: =X66+Y66+Z66+AA66 -> 0 | X66: =X53+X56+X59+X62 -> 0 | Y66: 0 | Z66: 0 | AA66: 0 | AB66: =AC66+AD66+AE66+AF66 -> 0 | AC66: =AC53+AC56+AC59+AC62 -> 0 | AD66: 0 | AE66: 0 | AF66: 0 | AG66: =AH66+AI66+AJ66+AK66 -> 0 | AH66: =AH53+AH56+AH59+AH62 -> 0 | AI66: 0 | AJ66: 0 | AK66: 0 | AL66: =AM66+AN66+AO66+AP66 -> 0 | AM66: =AM53+AM56+AM59+AM62 -> 0 | AN66: 0 | AO66: 0 | AP66: 0 | AQ66: =AR66+AS66+AT66+AU66 -> 0 | AR66: =AR53+AR56+AR59+AR62 -> 0 | AS66: 0 | AT66: 0 | AU66: 0 | AV66: =AW66+AX66+AY66+AZ66 -> 0 | AW66: =AW53+AW56+AW59+AW62 -> 0 | AX66: 0 | AY66: 0 | AZ66: 0 | BA66: =BB66+BC66+BD66+BE66 -> 0 | BB66: =BB53+BB56+BB59+BB62 -> 0 | BC66: 0 | BD66: 0 | BE66: 0 | BF66: =BG66+BH66+BI66+BJ66 -> 0 | BG66: =BG53+BG56+BG59+BG62 -> 0 | BH66: 0 | BI66: 0 | BJ66: 0 | BK66: =BL66+BM66+BN66+BO66 -> 0 | BL66: =BL53+BL56+BL59+BL62 -> 0 | BM66: 0 | BN66: 0 | BO66: 0
B67: население | C67: =D67+E67+F67+G67 -> 0 | D67: 0 | E67: =E54+E57+E60+E63 -> 0 | F67: 0 | G67: =G54+G57+G60+G63 -> 0 | H67: =I67+J67+K67+L67 -> 0 | I67: 0 | J67: 0 | K67: 0 | L67: 0 | M67: =N67+O67+P67+Q67 -> 0 | N67: 0 | O67: 0 | P67: 0 | Q67: 0 | R67: =S67+T67+U67+V67 -> 0 | S67: 0 | T67: 0 | U67: 0 | V67: 0 | W67: =X67+Y67+Z67+AA67 -> 0 | X67: 0 | Y67: 0 | Z67: 0 | AA67: 0 | AB67: =AC67+AD67+AE67+AF67 -> 0 | AC67: 0 | AD67: 0 | AE67: 0 | AF67: 0 | AG67: =AH67+AI67+AJ67+AK67 -> 0 | AH67: 0 | AI67: 0 | AJ67: 0 | AK67: 0 | AL67: =AM67+AN67+AO67+AP67 -> 0 | AM67: 0 | AN67: 0 | AO67: 0 | AP67: 0 | AQ67: =AR67+AS67+AT67+AU67 -> 0 | AR67: 0 | AS67: 0 | AT67: 0 | AU67: 0 | AV67: =AW67+AX67+AY67+AZ67 -> 0 | AW67: 0 | AX67: 0 | AY67: 0 | AZ67: 0 | BA67: =BB67+BC67+BD67+BE67 -> 0 | BB67: 0 | BC67: 0 | BD67: 0 | BE67: 0 | BF67: =BG67+BH67+BI67+BJ67 -> 0 | BG67: 0 | BH67: 0 | BI67: 0 | BJ67: 0 | BK67: =BL67+BM67+BN67+BO67 -> 0 | BL67: 0 | BM67: 0 | BN67: 0 | BO67: 0
B69: Руководитель организации | G69: ='Инф-я'!C17 -> Окунев Василий Михайлович

Sheet Баланс мощности
A3: Электрическая мощность по диапазонам напряжения
A4: ='Инф-я'!C9 -> Общество с ограниченной ответственностью "Энергетик"
P5: МВт
A6: № п.п. | B6: Показатели | C6: Принято регулирующим органом на 2017 год | H6: Факт за 2017 год | M6: По данным организации на 2019 год | R6: Принято регулирующим органом на 2019 год
C7: Всего | D7: ВН | E7: СН1 | F7: СН2 | G7: НН | H7: Всего | I7: ВН | J7: СН1 | K7: СН2 | L7: НН | M7: Всего | N7: ВН | O7: СН1 | P7: СН2 | Q7: НН | R7: Всего | S7: ВН | T7: СН1 | U7: СН2 | V7: НН
A8: 1 | B8: 2 | C8: 3 | D8: 4 | E8: 5 | F8: 6 | G8: 7 | H8: 8 | I8: 9 | J8: 10 | K8: 11 | L8: 12 | M8: 13 | N8: 14 | O8: 15 | P8: 16 | Q8: 17 | R8: 18 | S8: 19 | T8: 20 | U8: 21 | V8: 22
A9: 1. | B9: Поступление мощности в сеть , ВСЕГО | C9: =C19+C21+C22 -> 4.47 | D9: =D15+D16+D17+D18 -> 4.47 | E9: =E10+E15+E16+E17+E18 -> 0 | F9: =F10+F15+F16+F17+F18 -> 4.47 | G9: =G10+G15+G16+G17+G18 -> 3.42184174 | H9: =H19+H21+H22 -> 4.47 | I9: =I15+I16+I17+I18 -> 4.47 | J9: =J10+J15+J16+J17+J18 -> 0 | K9: =K10+K15+K16+K17+K18 -> 4.47 | L9: =L10+L15+L16+L17+L18 -> 3.42163612 | M9: =M19+M21+M22 -> 4.47 | N9: =N15+N16+N17+N18 -> 4.47 | O9: =O10+O15+O16+O17+O18 -> 0 | P9: =P10+P15+P16+P17+P18 -> 4.47 | Q9: =Q10+Q15+Q16+Q17+Q18 -> 3.421654 | R9: =R19+R21+R22 -> 0 | S9: =S15+S16+S17+S18 -> 0 | T9: =T10+T15+T16+T17+T18 -> 0 | U9: =U10+U15+U16+U17+U18 -> 0 | V9: =V10+V15+V16+V17+V18 -> 0
A10: 1.1. | B10: из смежной сети, всего | C10: х | D10: х | E10: =E12 -> 0 | F10: =F12+F13 -> 4.47 | G10: =G12+G13+G14 -> 3.42184174 | H10: х | I10: х | J10: =J12 -> 0 | K10: =K12+K13 -> 4.47 | L10: =L12+L13+L14 -> 3.42163612 | M10: х | N10: х | O10: =O12 -> 0 | P10: =P12+P13 -> 4.47 | Q10: =Q12+Q13+Q14 -> 3.421654 | R10: х | S10: х | T10: =T12 -> 0 | U10: =U12+U13 -> 0 | V10: =V12+V13+V14 -> 0
B11: в том числе из сети | C11: х | D11: х | E11: х | F11: х | G11: х | H11: х | I11: х | J11: х | K11: х | L11: х | M11: х | N11: х | O11: х | P11: х | Q11: х | R11: х | S11: х | T11: х | U11: х | V11: х
A12: 1.1.1. | B12: ВН | C12: х | D12: х | F12: =D9-D19-D21-D22-G12-E12 -> 4.47 | H12: х | I12: х | K12: =I9-I19-I21-I22-L12-J12 -> 4.47 | M12: х | N12: х | P12: =N9-N19-N21-N22-Q12-O12 -> 4.47 | R12: х | S12: х | U12: =S9-S19-S21-S22-V12-T12 -> 0
A13: 1.1.2. | B13: СН1 | C13: х | D13: х | E13: х | F13: =E9-E19-E21-E22-G13 -> 0 | H13: х | I13: х | J13: х | K13: =J9-J19-J21-J22-L13 -> 0 | M13: х | N13: х | O13: х | P13: =O9-O19-O21-O22-Q13 -> 0 | R13: х | S13: х | T13: х | U13: =T9-T19-T21-T22-V13 -> 0
A14: 1.1.3. | B14: СН2 | C14: х | D14: х | E14: х | F14: х | G14: =F9-F19-F21-F22 -> 3.42184174 | H14: х | I14: х | J14: х | K14: х | L14: =K9-K19-K21-K22 -> 3.42163612 | M14: х | N14: х | O14: х | P14: х | Q14: =P9-P19-P21-P22 -> 3.421654 | R14: х | S14: х | T14: х | U14: х | V14: =U9-U19-U21-U22 -> 0
A15: 1.2. | B15: от электростанций | C15: =SUM(D15:G15) -> 0 | H15: =SUM(I15:L15) -> 0 | M15: =SUM(N15:Q15) -> 0 | R15: =SUM(S15:V15) -> 0
A16: 1.3. | B16: от ОАО "ФСК ЕЭС" | C16: =SUM(D16:G16) -> 0 | H16: =SUM(I16:L16) -> 0 | M16: =SUM(N16:Q16) -> 0 | R16: =SUM(S16:V16) -> 0
A17: 1.4. | B17: от филиала "Владимирэнерго" ОАО "МРСК Центра и Приволжья" | C17: =SUM(D17:G17) -> 4.47 | D17: 4.47 | H17: =SUM(I17:L17) -> 4.47 | I17: 4.47 | M17: =SUM(N17:Q17) -> 4.47 | N17: 4.47 | R17: =SUM(S17:V17) -> 0
A18: 1.5. | B18: от других сетевых организаций | C18: =SUM(D18:G18) -> 0 | H18: =SUM(I18:L18) -> 0 | M18: =SUM(N18:Q18) -> 0 | R18: =SUM(S18:V18) -> 0
A19: 2. | B19: Потери мощности в сети | C19: =SUM(D19:G19) -> 0.6986557149 | D19: =D9*D20/100 -> 0 | E19: =E9*E20/100 -> 0 | F19: =F9*F20/100 -> 0.27605826 | G19: =G9*G20/100 -> 0.4225974549 | H19: =SUM(I19:L19) -> 0.6988359408 | I19: =I9*I20/100 -> 0 | J19: =J9*J20/100 -> 0 | K19: =K9*K20/100 -> 0.27626388 | L19: =L9*L20/100 -> 0.4225720608 | M19: =SUM(N19:Q19) -> 0.698820269 | N19: =N9*N20/100 -> 0 | O19: =O9*O20/100 -> 0 | P19: =P9*P20/100 -> 0.276246 | Q19: =Q9*Q20/100 -> 0.422574269 | R19: =SUM(S19:V19) -> 0 | S19: =S9*S20/100 -> 0 | T19: =T9*T20/100 -> 0 | U19: =U9*U20/100 -> 0 | V19: =V9*V20/100 -> 0
A20: 2.1. | B20: то же в % (п.2./п.1.) | C20: =IF(C9=0,0,C19/C9*100) -> 15.62988176 | D20: ='Баланс энергии'!D20 -> 0 | E20: ='Баланс энергии'!E20 -> 0 | F20: ='Баланс энергии'!F20 -> 6.1758 | G20: 12.35 | H20: =IF(H9=0,0,H19/H9*100) -> 15.63391366 | I20: ='Баланс энергии'!S20 -> 0 | J20: ='Баланс энергии'!T20 -> 0 | K20: ='Баланс энергии'!U20 -> 6.1804 | L20: 12.35 | M20: =IF(M9=0,0,M19/M9*100) -> 15.63356306 | N20: ='Баланс энергии'!AW20 -> 0 | O20: ='Баланс энергии'!AX20 -> 0 | P20: ='Баланс энергии'!AY20 -> 6.18 | Q20: 12.35 | R20: =IF(R9=0,0,R19/R9*100) -> 0 | S20: ='Баланс энергии'!BL20 -> 0 | T20: ='Баланс энергии'!BM20 -> 0 | U20: ='Баланс энергии'!BN20 -> 0
A21: 3. | B21: Расход электроэнергии на производственные и хознужды | C21: =SUM(D21:G21) -> 0 | H21: =SUM(I21:L21) -> 0 | M21: =SUM(N21:Q21) -> 0 | R21: =SUM(S21:V21) -> 0
A22: 4. | B22: Полезный отпуск из сети | C22: =SUM(D22:G22) -> 3.771344285 | D22: =D23+D24+D25 -> 0 | E22: =E23+E24+E25 -> 0 | F22: =F23+F24+F25 -> 0.7721 | G22: =G9-G19-G21 -> 2.999244285 | H22: =SUM(I22:L22) -> 3.771164059 | I22: =I23+I24+I25 -> 0 | J22: =J23+J24+J25 -> 0 | K22: =K23+K24+K25 -> 0.7721 | L22: =L9-L19-L21 -> 2.999064059 | M22: =SUM(N22:Q22) -> 3.771179731 | N22: =N23+N24+N25 -> 0 | O22: =O23+O24+O25 -> 0 | P22: =P23+P24+P25 -> 0.7721 | Q22: =Q9-Q19-Q21 -> 2.999079731 | R22: =SUM(S22:V22) -> 0 | S22: =S23+S24+S25 -> 0 | T22: =T23+T24+T25 -> 0 | U22: =U23+U24+U25 -> 0 | V22: =V9-V19-V21 -> 0
A23: 4.1. | B23: потребителям, присоединенным к сети | C23: =SUM(D23:G23) -> 3.7713 | F23: 0.7721 | G23: 2.9992 | H23: =SUM(I23:L23) -> 3.7712 | K23: 0.7721 | L23: 2.9991 | M23: =SUM(N23:Q23) -> 3.7712 | P23: 0.7721 | Q23: 2.9991 | R23: =SUM(S23:V23) -> 0
A24: 4.2. | B24: переток в филиал "Владимирэнерго" ОАО "МРСК Центра и Приволжья" | C24: =SUM(D24:G24) -> 0 | H24: =SUM(I24:L24) -> 0 | M24: =SUM(N24:Q24) -> 0 | R24: =SUM(S24:V24) -> 0
A25: 4.3. | B25: переток в другие сетевые организации | C25: =SUM(D25:G25) -> 0 | H25: =SUM(I25:L25) -> 0 | M25: =SUM(N25:Q25) -> 0 | R25: =SUM(S25:V25) -> 0
B26: Проверка | D26: =D9-D19-D21-D23-D24-D25-E12-F12-G12 -> 0 | E26: =E9-E19-E21-E23-E24-E25-F13-G13 -> 0 | F26: =F9-F19-F21-F23-F24-F25-G14 -> 0 | G26: =G9-G19-G21-G23-G24-G25 -> 4.428511e-05 | I26: =I9-I19-I21-I23-I24-I25-J12-K12-L12 -> 0 | J26: =J9-J19-J21-J23-J24-J25-K13-L13 -> 0 | K26: =K9-K19-K21-K23-K24-K25-L14 -> 0 | L26: =L9-L19-L21-L23-L24-L25 -> -3.594082e-05 | N26: =N9-N19-N21-N23-N24-N25-O12-P12-Q12 -> 0 | O26: =O9-O19-O21-O23-O24-O25-P13-Q13 -> 0 | P26: =P9-P19-P21-P23-P24-P25-Q14 -> 0 | Q26: =Q9-Q19-Q21-Q23-Q24-Q25 -> -2.0269e-05 | S26: =S9-S19-S21-S23-S24-S25-T12-U12-V12 -> 0 | T26: =T9-T19-T21-T23-T24-T25-U13-V13 -> 0 | U26: =U9-U19-U21-U23-U24-U25-V14 -> 0 | V26: =V9-V19-V21-V23-V24-V25 -> 0
B28: Примечание
B30: Расшифровка п. 1.5. (Поступление от других сетевых организаций)
A31: № | B31: Наименование других сетевых организаций | C31: Всего | D31: ВН | E31: СН1 | F31: СН2 | G31: НН | H31: Всего | I31: ВН | J31: СН1 | K31: СН2 | L31: НН | M31: Всего | N31: ВН | O31: СН1 | P31: СН2 | Q31: НН | R31: Всего | S31: ВН | T31: СН1 | U31: СН2 | V31: НН
C32: =SUM(D32:G32) -> 0 | H32: =SUM(I32:L32) -> 0 | M32: =SUM(N32:Q32) -> 0 | R32: =SUM(S32:V32) -> 0
C33: =SUM(D33:G33) -> 0 | H33: =SUM(I33:L33) -> 0 | M33: =SUM(N33:Q33) -> 0 | R33: =SUM(S33:V33) -> 0
B34: Добавить
B35: Итого | C35: =SUM(C32:C33) -> 0 | D35: 0 | E35: 0 | F35: 0 | G35: 0 | H35: 0 | I35: 0 | J35: 0 | K35: 0 | L35: 0 | M35: 0 | N35: 0 | O35: 0 | P35: 0 | Q35: 0 | R35: 0 | S35: 0 | T35: 0 | U35: 0 | V35: 0
B37: Расшифровка п. 4.3. (Полезный отпуск - переток в другие сетевые организации)
A38: № | B38: Наименование других сетевых организаций | C38: Всего | D38: ВН | E38: СН1 | F38: СН2 | G38: НН | H38: Всего | I38: ВН | J38: СН1 | K38: СН2 | L38: НН | M38: Всего | N38: ВН | O38: СН1 | P38: СН2 | Q38: НН | R38: Всего | S38: ВН | T38: СН1 | U38: СН2 | V38: НН
C39: =SUM(D39:G39) -> 0 | H39: =SUM(I39:L39) -> 0 | M39: =SUM(N39:Q39) -> 0 | R39: =SUM(S39:V39) -> 0
C40: =SUM(D40:G40) -> 0 | H40: =SUM(I40:L40) -> 0 | M40: =SUM(N40:Q40) -> 0 | R40: =SUM(S40:V40) -> 0
C41: =SUM(D41:G41) -> 0 | H41: =SUM(I41:L41) -> 0 | M41: =SUM(N41:Q41) -> 0 | R41: =SUM(S41:V41) -> 0
B42: Добавить
B43: Итого | C43: =SUM(C39:C41) -> 0 | D43: =SUM(D39:D41) -> 0 | E43: =SUM(E39:E41) -> 0 | F43: =SUM(F39:F41) -> 0 | G43: =SUM(G39:G41) -> 0 | H43: =SUM(H39:H41) -> 0 | I43: 0 | J43: 0 | K43: 0 | L43: 0 | M43: 0 | N43: 0 | O43: 0 | P43: 0 | Q43: 0 | R43: 0 | S43: 0 | T43: 0 | U43: 0 | V43: 0
B45: Расшифровка п. 4.1. (Полезный отпуск потребителям, присоединенным к сети)
A46: № | B46: Наименование сбытовых организаций | C46: Всего | D46: ВН | E46: СН1 | F46: СН2 | G46: НН | H46: Всего | I46: ВН | J46: СН1 | K46: СН2 | L46: НН | M46: Всего | N46: ВН | O46: СН1 | P46: СН2 | Q46: НН | R46: Всего | S46: ВН | T46: СН1 | U46: СН2 | V46: НН
A47: 1. | B47: ОАО "Владимирэнергосбыт" всего, в том числе: | C47: =D47+E47+F47+G47 -> 0 | D47: =D48+D49 -> 0 | E47: =E48+E49 -> 0 | F47: =F48+F49 -> 0 | G47: =G48+G49 -> 0 | H47: =I47+J47+K47+L47 -> 0 | I47: =I48+I49 -> 0 | J47: =J48+J49 -> 0 | K47: =K48+K49 -> 0 | L47: =L48+L49 -> 0 | M47: =N47+O47+P47+Q47 -> 0 | N47: =N48+N49 -> 0 | O47: =O48+O49 -> 0 | P47: =P48+P49 -> 0 | Q47: =Q48+Q49 -> 0 | R47: =S47+T47+U47+V47 -> 0 | S47: =S48+S49 -> 0 | T47: =T48+T49 -> 0 | U47: =U48+U49 -> 0 | V47: =V48+V49 -> 0
A48: 1.1. | B48: прочие потребители | C48: =D48+E48+F48+G48 -> 0 | H48: =I48+J48+K48+L48 -> 0 | M48: =N48+O48+P48+Q48 -> 0 | R48: =S48+T48+U48+V48 -> 0
A49: 1.2. | B49: население | C49: 0 | H49: 0 | M49: 0 | R49: 0
A50: 2. | B50: ОАО "ВКС" всего, в том числе: | C50: 0 | D50: =D51+D52 -> 0 | E50: =E51+E52 -> 0 | F50: =F51+F52 -> 0 | G50: =G51+G52 -> 0 | H50: 0 | I50: =I51+I52 -> 0 | J50: =J51+J52 -> 0 | K50: =K51+K52 -> 0 | L50: =L51+L52 -> 0 | M50: 0 | N50: =N51+N52 -> 0 | O50: =O51+O52 -> 0 | P50: =P51+P52 -> 0 | Q50: =Q51+Q52 -> 0 | R50: 0 | S50: =S51+S52 -> 0 | T50: =T51+T52 -> 0 | U50: =U51+U52 -> 0 | V50: =V51+V52 -> 0
A51: 2.1. | B51: прочие потребители | C51: 0 | H51: 0 | M51: 0 | R51: 0
A52: 2.2. | B52: население | C52: 0 | H52: 0 | M52: 0 | R52: 0
A53: 3. | B53: ОАО "Русэнергосбыт" | C53: 0 | D53: =D54+D55 -> 0 | E53: =E54+E55 -> 0 | F53: =F54+F55 -> 0 | G53: =G54+G55 -> 0 | H53: 0 | I53: =I54+I55 -> 0 | J53: =J54+J55 -> 0 | K53: =K54+K55 -> 0 | L53: =L54+L55 -> 0 | M53: 0 | N53: =N54+N55 -> 0 | O53: =O54+O55 -> 0 | P53: =P54+P55 -> 0 | Q53: =Q54+Q55 -> 0 | R53: 0 | S53: =S54+S55 -> 0 | T53: =T54+T55 -> 0 | U53: =U54+U55 -> 0 | V53: =V54+V55 -> 0
A54: 3.1. | B54: прочие потребители | C54: 0 | H54: 0 | M54: 0 | R54: 0
A55: 3.2. | B55: население | C55: 0 | H55: 0 | M55: 0 | R55: 0
A56: 4. | B56: ОАО "Оборонэнергосбыт" | C56: 0 | D56: =D57+D58 -> 0 | E56: =E57+E58 -> 0 | F56: =F57+F58 -> 0 | G56: =G57+G58 -> 0 | H56: 0 | I56: =I57+I58 -> 0 | J56: =J57+J58 -> 0 | K56: =K57+K58 -> 0 | L56: =L57+L58 -> 0 | M56: 0 | N56: =N57+N58 -> 0 | O56: =O57+O58 -> 0 | P56: =P57+P58 -> 0 | Q56: =Q57+Q58 -> 0 | R56: 0 | S56: =S57+S58 -> 0 | T56: =T57+T58 -> 0 | U56: =U57+U58 -> 0 | V56: =V57+V58 -> 0
A57: 4.1. | B57: прочие потребители | C57: 0 | H57: 0 | M57: 0 | R57: 0
A58: 4.2. | B58: население | C58: 0 | H58: 0 | M58: 0 | R58: 0
A59: Добавить
B60: Итого всего, в том числе: | C60: =D60+E60+F60+G60 -> 0 | D60: =D61+D62 -> 0 | E60: =E61+E62 -> 0 | F60: =F61+F62 -> 0 | G60: =G61+G62 -> 0 | H60: =I60+J60+K60+L60 -> 0 | I60: =I61+I62 -> 0 | J60: =J61+J62 -> 0 | K60: =K61+K62 -> 0 | L60: =L61+L62 -> 0 | M60: =N60+O60+P60+Q60 -> 0 | N60: =N61+N62 -> 0 | O60: =O61+O62 -> 0 | P60: =P61+P62 -> 0 | Q60: =Q61+Q62 -> 0 | R60: =S60+T60+U60+V60 -> 0 | S60: =S61+S62 -> 0 | T60: =T61+T62 -> 0 | U60: =U61+U62 -> 0 | V60: =V61+V62 -> 0
B61: прочие потребители | C61: =D61+E61+F61+G61 -> 0 | D61: =D48+D51+D54+D57 -> 0 | E61: =E48+E51+E54+E57 -> 0 | F61: 0 | G61: 0 | H61: =I61+J61+K61+L61 -> 0 | I61: =I48+I51+I54+I57 -> 0 | J61: =J48+J51+J54+J57 -> 0 | K61: 0 | L61: 0 | M61: =N61+O61+P61+Q61 -> 0 | N61: =N48+N51+N54+N57 -> 0 | O61: =O48+O51+O54+O57 -> 0 | P61: 0 | Q61: 0 | R61: =S61+T61+U61+V61 -> 0 | S61: =S48+S51+S54+S57 -> 0 | T61: 0 | U61: 0 | V61: 0
B62: население | C62: =D62+E62+F62+G62 -> 0 | D62: =D49+D52+D55+D58 -> 0 | E62: 0 | F62: 0 | G62: 0 | H62: =I62+J62+K62+L62 -> 0 | I62: =I49+I52+I55+I58 -> 0 | J62: 0 | K62: 0 | L62: 0 | M62: =N62+O62+P62+Q62 -> 0 | N62: =N49+N52+N55+N58 -> 0 | O62: 0 | P62: 0 | Q62: 0 | R62: =S62+T62+U62+V62 -> 0 | S62: 0 | T62: 0 | U62: 0 | V62: 0
B64: Руководитель организации | G64: ='Инф-я'!C17 -> Окунев Василий Михайлович
B66: Справочная информация:
B67: Фактические данные по мощности заполняются по данным приборов учета электрической мощности, в случае отсутствия приборов учета по результатам контрольных замеров мощности

Sheet УЕ ВЛЭП 2016-2019
A3: Объем воздушных линий электропередач (ВЛЭП) и кабельных линий электропередач (КЛЭП) в условных единицах в зависимости от протяженности, напряжения, конструктивного использования и материала опор в период с 2016 по 2019 годы
A4: ='Инф-я'!C9 -> Общество с ограниченной ответственностью "Энергетик"
A6: ЛЭП | B6: Напряжение, кВ | C6: Количество цепей на опоре | D6: Материал опор | E6: Наименование | F6: Количество условных единиц (у) на 100 км трассы ЛЭП | G6: Протяженность | H6: Объем условных единиц | I6: Протяженность | J6: Объем условных единиц | K6: Протяженность | L6: Объем условных единиц | M6: Протяженность | N6: Объем условных единиц | O6: Протяженность | P6: Объем условных единиц | Q6: Протяженность | R6: Объем условных единиц | S6: Протяженность | T6: Объем условных единиц
F7: у/100км | G7: ед.изм. | H7: у | I7: ед.изм. | J7: у | K7: ед.изм. | L7: у | M7: ед.изм. | N7: у | O7: км | P7: у | Q7: км | R7: у | S7: км | T7: у
G8: 2016 год факт | I8: 2017 год утверждено | K8: 2017 год факт по данным Общества | M8: 2017 год факт по данным экспертов | O8: 2018 год утверждено | Q8: 2019 год план по данным организации | S8: 2019 год по данным экспертов
A9: 1 | B9: =+A9+1 -> 2 | C9: =+B9+1 -> 3 | D9: =+C9+1 -> 4 | E9: 5 | F9: 6 | G9: 7 | H9: 8 | I9: 9 | J9: 10 | K9: 11 | L9: 12 | M9: 13 | N9: 14 | O9: 15 | P9: 16 | Q9: 17 | R9: 18 | S9: 17 | T9: 18
A10: ВЛЭП | B10: 1150 | C10: - | D10: металл | E10: ВЛЭП-1150кВ-металл | F10: 800 | H10: =G10*F10/100 -> 0 | J10: =I10*F10/100 -> 0 | L10: =K10*F10/100 -> 0 | N10: =M10*F10/100 -> 0 | P10: =F10*O10/100 -> 0 | R10: =F10*Q10/100 -> 0 | T10: =$F10*S10/100 -> 0
B11: 750 | C11: 1 | D11: металл | E11: ВЛЭП-750кВ-цепей:1-металл | F11: 600 | H11: =G11*F11/100 -> 0 | J11: =I11*F11/100 -> 0 | L11: 0 | N11: =M11*F11/100 -> 0 | P11: 0 | R11: 0 | T11: 0
B12: 400-500 | C12: 1 | D12: металл | E12: ВЛЭП-400-500кВ-цепей:1-металл | F12: 400 | H12: 0 | J12: 0 | L12: 0 | N12: 0 | P12: 0 | R12: 0 | T12: 0
D13: ж/бетон | E13: ВЛЭП-400-500кВ-ж/бетон | F13: 300 | H13: 0 | J13: 0 | L13: 0 | N13: 0 | P13: 0 | R13: 0 | T13: 0
B14: 330 | C14: 1 | D14: металл | E14: ВЛЭП-330кВ-цепей:1-металл | F14: 230 | H14: 0 | J14: 0 | L14: 0 | N14: 0 | P14: 0 | R14: 0 | T14: 0
D15: ж/бетон | E15: ВЛЭП-330кВ-ж/бетон | F15: 170 | H15: 0 | J15: 0 | L15: 0 | N15: 0 | P15: 0 | R15: 0 | T15: 0
C16: 2 | D16: металл | E16: ВЛЭП-330кВ-цепей:2-металл | F16: 290 | H16: 0 | J16: 0 | L16: 0 | N16: 0 | P16: 0 | R16: 0 | T16: 0
D17: ж/бетон | E17: ВЛЭП-330кВ-ж/бетон | F17: 210 | H17: 0 | J17: 0 | L17: 0 | N17: 0 | P17: 0 | R17: 0 | T17: 0
B18: 220 | C18: 1 | D18: дерево | E18: ВЛЭП-220кВ-цепей:1-дерево | F18: 260 | H18: 0 | J18: 0 | L18: 0 | N18: 0 | P18: 0 | R18: 0 | T18: 0
D19: металл | E19: ВЛЭП-220кВ-металл | F19: 210 | H19: 0 | J19: 0 | L19: 0 | N19: 0 | P19: 0 | R19: 0 | T19: 0
D20: ж/бетон | E20: ВЛЭП-220кВ-ж/бетон | F20: 140 | H20: 0 | J20: 0 | L20: 0 | N20: 0 | P20: 0 | R20: 0 | T20: 0
C21: 2 | D21: металл | E21: ВЛЭП-220кВ-цепей:2-металл | F21: 270 | H21: 0 | J21: 0 | L21: 0 | N21: 0 | P21: 0 | R21: 0 | T21: 0
D22: ж/бетон | E22: ВЛЭП-220кВ-ж/бетон | F22: 180 | H22: 0 | J22: 0 | L22: 0 | N22: 0 | P22: 0 | R22: 0 | T22: 0
B23: 110-150 | C23: 1 | D23: дерево | E23: ВЛЭП-110-150кВ-цепей:1-дерево | F23: 180 | H23: 0 | J23: 0 | L23: 0 | N23: 0 | P23: 0 | R23: 0 | T23: 0
D24: металл | E24: ВЛЭП-110-150кВ-металл | F24: 160 | H24: 0 | J24: 0 | L24: 0 | N24: 0 | P24: 0 | R24: 0 | T24: 0
D25: ж/бетон | E25: ВЛЭП-110-150кВ-ж/бетон | F25: 130 | H25: 0 | J25: 0 | L25: 0 | N25: 0 | P25: 0 | R25: 0 | T25: 0
C26: 2 | D26: металл | E26: ВЛЭП-110-150кВ-цепей:2-металл | F26: 190 | H26: 0 | J26: 0 | L26: 0 | N26: 0 | P26: 0 | R26: 0 | T26: 0
D27: ж/бетон | E27: ВЛЭП-110-150кВ-ж/бетон | F27: 160 | H27: 0 | J27: 0 | L27: 0 | N27: 0 | P27: 0 | R27: 0 | T27: 0
A28: КЛЭП | B28: 220 | C28: - | D28: - | E28: КЛЭП-220кВ | F28: 3000 | H28: 0 | J28: 0 | L28: 0 | N28: 0 | P28: 0 | R28: 0 | T28: 0
B29: 110 | C29: - | D29: - | E29: КЛЭП-110кВ | F29: 2300 | H29: 0 | J29: 0 | L29: 0 | N29: 0 | P29: 0 | R29: 0 | T29: 0
A30: ВН, всего | E30: Итого: | G30: =SUM(G10:G29) -> 0 | H30: =SUM(H10:H29) -> 0 | I30: =SUM(I10:I29) -> 0 | J30: =SUM(J10:J29) -> 0 | K30: =SUM(K10:K29) -> 0 | L30: 0 | M30: =SUM(M10:M29) -> 0 | N30: 0 | O30: 0 | P30: 0 | Q30: 0 | R30: 0 | S30: =SUM(S10:S29) -> 0 | T30: 0
A31: ВЛЭП | B31: 35 | C31: 1 | D31: дерево | E31: ВЛЭП-35кВ-цепей:1-дерево | F31: 170 | H31: 0 | J31: 0 | L31: =K31*F31/100 -> 0 | N31: 0 | P31: =F31*O31/100 -> 0 | R31: =F31*Q31/100 -> 0 | T31: =$F31*S31/100 -> 0
D32: металл | E32: ВЛЭП-35кВ-металл | F32: 140 | H32: 0 | J32: 0 | L32: 0 | N32: 0 | P32: 0 | R32: 0 | T32: 0
D33: ж/бетон | E33: ВЛЭП-35кВ-ж/бетон | F33: 120 | H33: 0 | J33: 0 | L33: 0 | N33: 0 | P33: 0 | R33: 0 | T33: 0
C34: 2 | D34: металл | E34: ВЛЭП-35кВ-цепей:2-металл | F34: 180 | H34: 0 | J34: 0 | L34: 0 | N34: 0 | P34: 0 | R34: 0 | T34: 0
D35: ж/бетон | E35: ВЛЭП-35кВ-ж/бетон | F35: 150 | H35: 0 | J35: 0 | L35: 0 | N35: 0 | P35: 0 | R35: 0 | T35: 0
B36: 1 - 20 | C36: - | D36: дерево | E36: ВЛЭП-1-20кВ-дерево | F36: 160 | H36: 0 | J36: 0 | L36: 0 | N36: 0 | P36: 0 | R36: 0 | T36: 0
D37: дерево на ж/б пасынках | E37: ВЛЭП-1-20кВ-дерево на ж/б пасынках | F37: 140 | G37: 7.52 | H37: 10.528 | I37: 7.52 | J37: 10.528 | K37: 7.52 | L37: 10.528 | N37: 0 | O37: 7.52 | P37: 10.528 | Q37: 7.52 | R37: 10.528 | T37: 0
D38: ж/бетон, металл | E38: ВЛЭП-1-20кВ-ж/бетон,металл | F38: 110 | G38: 36.18 | H38: 39.798 | I38: 36.18 | J38: 39.798 | K38: 37.169 | L38: 40.8859 | N38: 0 | O38: 36.18 | P38: 39.798 | Q38: 39.77 | R38: 43.747 | T38: 0
A39: КЛЭП | B39: 20 -35 | C39: - | D39: - | E39: КЛЭП-20-35кВ | F39: 470 | H39: 0 | J39: 0 | L39: 0 | N39: 0 | P39: 0 | R39: 0 | T39: 0
B40: 3 - 10 | C40: - | D40: - | E40: КЛЭП-3-10кВ | F40: 350 | G40: 16.7 | H40: 58.45 | I40: 16.7 | J40: 58.45 | K40: 16.7 | L40: 58.45 | N40: 0 | O40: 16.7 | P40: 58.45 | Q40: 16.7 | R40: 58.45 | T40: 0
A41: СН-1, всего | E41: Итого: | G41: =SUM(G31:G35)+G39 -> 0 | H41: =SUM(H31:H35)+H39 -> 0 | I41: =SUM(I31:I35)+I39 -> 0 | J41: =SUM(J31:J35)+J39 -> 0 | K41: =SUM(K31:K35)+K39 -> 0 | L41: 0 | M41: =SUM(M31:M35)+M39 -> 0 | N41: 0 | O41: 0 | P41: 0 | Q41: 0 | R41: 0 | S41: =SUM(S31:S35)+S39 -> 0 | T41: 0
A42: СН-2, всего | E42: Итого: | G42: =SUM(G36:G38)+G40 -> 60.4 | H42: =SUM(H36:H38)+H40 -> 108.776 | I42: =SUM(I36:I38)+I40 -> 60.4 | J42: =SUM(J36:J38)+J40 -> 108.776 | K42: =SUM(K36:K38)+K40 -> 61.389 | L42: 109.8639 | M42: =SUM(M36:M38)+M40 -> 0 | N42: 0 | O42: 60.4 | P42: 108.776 | Q42: 63.99 | R42: 112.725 | S42: =SUM(S36:S38)+S40 -> 0 | T42: 0
A43: ВЛЭП | B43: 0,4 кВ | C43: - | D43: дерево | E43: ВЛЭП-0,4кВ-дерево | F43: 260 | H43: =G43*F43/100 -> 0 | J43: =I43*F43/100 -> 0 | L43: =K43*F43/100 -> 0 | N43: =M43*F43/100 -> 0 | P43: =F43*O43/100 -> 0 | R43: =F43*Q43/100 -> 0 | T43: =$F43*S43/100 -> 0
D44: дерево на ж/б пасынках | E44: ВЛЭП-0,4кВ-дерево на ж/б пасынках | F44: 220 | G44: 122.81 | H44: =G44*F44/100 -> 270.182 | I44: 122.81 | J44: 270.182 | K44: 122.81 | L44: =K44*F44/100 -> 270.182 | N44: 0 | O44: 122.81 | P44: =F44*O44/100 -> 270.182 | Q44: 122.81 | R44: =F44*Q44/100 -> 270.182 | T44: =$F44*S44/100 -> 0
D45: ж/бетон, металл | E45: ВЛЭП-0,4кВ-ж/бетон,металл | F45: 150 | G45: 13.71 | H45: =G45*F45/100 -> 20.565 | I45: 13.71 | J45: 20.565 | K45: 29.404 | L45: =K45*F45/100 -> 44.106 | N45: 0 | O45: 13.71 | P45: =F45*O45/100 -> 20.565 | Q45: 29.404 | R45: =F45*Q45/100 -> 44.106 | T45: =$F45*S45/100 -> 0
A46: КЛЭП | B46: до 1 кВ | C46: - | D46: - | E46: КЛЭП-до1кВ | F46: 270 | G46: 12.4 | H46: =G46*F46/100 -> 33.48 | I46: 12.4 | J46: 33.48 | K46: 12.4 | L46: =K46*F46/100 -> 33.48 | N46: 0 | O46: 12.4 | P46: =F46*O46/100 -> 33.48 | Q46: 12.4 | R46: =F46*Q46/100 -> 33.48 | T46: =$F46*S46/100 -> 0
A47: НН, всего | E47: Итого: | G47: =SUM(G43:G46) -> 148.92 | H47: =SUM(H43:H46) -> 324.227 | I47: =SUM(I43:I46) -> 148.92 | J47: =SUM(J43:J46) -> 324.227 | K47: =SUM(K43:K46) -> 164.614 | L47: 347.768 | M47: =SUM(M43:M46) -> 0 | N47: 0 | O47: 148.92 | P47: 324.227 | Q47: 164.614 | R47: 347.768 | S47: =SUM(S43:S46) -> 0 | T47: 0
B48: Итого по уровням напряжения: | E48: ВН | G48: =G30 -> 0 | H48: =H30 -> 0 | I48: =I30 -> 0 | J48: =J30 -> 0 | K48: =K30 -> 0 | L48: 0 | M48: =M30 -> 0 | N48: 0 | O48: 0 | P48: 0 | Q48: 0 | R48: 0 | S48: =S30 -> 0 | T48: 0
E49: СН1 | G49: =G41 -> 0 | H49: 0 | I49: 0 | J49: 0 | K49: =K41 -> 0 | L49: 0 | M49: =M41 -> 0 | N49: 0 | O49: 0 | P49: 0 | Q49: 0 | R49: 0 | S49: =S41 -> 0 | T49: 0
E50: СН2 | G50: 60.4 | H50: 108.776 | I50: 60.4 | J50: 108.776 | K50: 61.389 | L50: 109.8639 | M50: =M42 -> 0 | N50: 0 | O50: 60.4 | P50: 108.776 | Q50: 63.99 | R50: 112.725 | S50: =S42 -> 0 | T50: 0
E51: НН | G51: =G47 -> 148.92 | H51: =H47 -> 324.227 | I51: =I47 -> 148.92 | J51: =J47 -> 324.227 | K51: =K47 -> 164.614 | L51: 347.768 | M51: =M47 -> 0 | N51: 0 | O51: 148.92 | P51: 324.227 | Q51: 164.614 | R51: 347.768 | S51: =S47 -> 0 | T51: 0
A52: ВСЕГО: | G52: =SUM(G48:G51) -> 209.32 | H52: =SUM(H48:H51) -> 433.003 | I52: =SUM(I48:I51) -> 209.32 | J52: =SUM(J48:J51) -> 433.003 | K52: =SUM(K48:K51) -> 226.003 | L52: 457.6319 | M52: =SUM(M48:M51) -> 0 | N52: 0 | O52: 209.32 | P52: 433.003 | Q52: 228.604 | R52: 460.493 | S52: =SUM(S48:S51) -> 0 | T52: 0
B54: Руководитель организации | G54: ='Инф-я'!C17 -> Окунев Василий Михайлович

Sheet УЕ ТП 2016-2019
A2: Объем подстанций 35-1150 кВ, трансформаторных подстанций (ТП), комплексных трансформаторных подстанций (КТП) и распределительных пунктов(РП) 0,4-20 кВ в условных единицах в период с 2016 по 2019 годы
B3: ='Инф-я'!C9 -> Общество с ограниченной ответственностью "Энергетик"
A5: № п.п. | B5: Наименование | D5: Единица измерения | E5: Напряжение, кВ | F5: Количество условных единиц (у) на единицу измерения | G5: Количество единиц измерения | H5: Объем условных единиц | I5: Количество единиц измерения | J5: Объем условных единиц | K5: Количество единиц измерения | L5: Объем условных единиц | M5: Количество единиц измерения | N5: Объем условных единиц | O5: Количество единиц измерения | P5: Объем условных единиц | Q5: Количество единиц измерения | R5: Объем условных единиц | S5: Количество единиц измерения | T5: Объем условных единиц
F6: у/ед.изм. | G6: ед.изм. | H6: у | I6: ед.изм. | J6: у | K6: ед.изм. | L6: у | M6: ед.изм. | N6: у | O6: ед.изм. | P6: у | Q6: ед.изм. | R6: у | S6: ед.изм. | T6: у
G7: 2016 год факт | I7: 2017 год утверждено | K7: 2017 год факт по данным организации | M7: 2017 год факт по данным экспертов | O7: 2018 год утверждено | Q7: 2019 год план по данным организации | S7: 2019 год по данным экспертов
A8: 1 | B8: =+A8+1 -> 2 | C8: 3 | D8: 4 | E8: 5 | F8: 6 | G8: 7 | H8: 8 | I8: 9 | J8: 10 | K8: 11 | L8: 12 | M8: 13 | N8: 14 | O8: 15 | P8: 16 | Q8: 17 | R8: 18 | S8: 19 | T8: 20
A9: 1 | B9: Подстанция | C9: =B9 -> Подстанция | D9: П/ст | E9: 1150 | F9: 1000 | H9: =F9*G9 -> 0 | J9: =I9*F9 -> 0 | L9: =K9*F9 -> 0 | N9: =M9*F9 -> 0 | P9: =F9*O9 -> 0 | R9: =F9*Q9 -> 0 | T9: =$F9*S9 -> 0
C10: =B9 -> Подстанция | E10: 750 | F10: 600 | H10: 0 | J10: =I10*F10 -> 0 | L10: 0 | N10: =M10*F10 -> 0 | P10: 0 | R10: 0 | T10: =$F10*S10 -> 0
C11: =B9 -> Подстанция | E11: 400-500 | F11: 500 | H11: 0 | J11: 0 | L11: 0 | N11: 0 | P11: 0 | R11: 0 | T11: 0
C12: =B9 -> Подстанция | E12: 330 | F12: 250 | H12: 0 | J12: 0 | L12: 0 | N12: 0 | P12: 0 | R12: 0 | T12: 0
C13: =B9 -> Подстанция | E13: 220 | F13: 210 | H13: 0 | J13: 0 | L13: 0 | N13: 0 | P13: 0 | R13: 0 | T13: 0
C14: =B9 -> Подстанция | E14: 110-150 | F14: 105 | H14: 0 | J14: 0 | L14: 0 | N14: 0 | P14: 0 | R14: 0 | T14: 0
C15: =B9 -> Подстанция | E15: 35 | F15: 75 | H15: 0 | J15: 0 | L15: 0 | N15: 0 | P15: 0 | R15: 0 | T15: 0
A16: 2 | B16: Силовой трансформатор или реактор (одно- или трехфазный), или вольтодобавочный трансформатор | C16: =B16 -> Силовой трансформатор или реактор (одно- или трехфазный), или вольтодобавочный трансформатор | D16: Ед. оборуд. | E16: 1150 | F16: 60 | H16: 0 | J16: 0 | L16: 0 | N16: 0 | P16: 0 | R16: 0 | T16: 0
C17: =B16 -> Силовой трансформатор или реактор (одно- или трехфазный), или вольтодобавочный трансформатор | E17: 750 | F17: 43 | H17: 0 | J17: 0 | L17: 0 | N17: 0 | P17: 0 | R17: 0 | T17: 0
C18: =B16 -> Силовой трансформатор или реактор (одно- или трехфазный), или вольтодобавочный трансформатор | E18: 400-500 | F18: 28 | H18: 0 | J18: 0 | L18: 0 | N18: 0 | P18: 0 | R18: 0 | T18: 0
C19: =B16 -> Силовой трансформатор или реактор (одно- или трехфазный), или вольтодобавочный трансформатор | E19: 330 | F19: 18 | H19: 0 | J19: 0 | L19: 0 | N19: 0 | P19: 0 | R19: 0 | T19: 0
C20: =B16 -> Силовой трансформатор или реактор (одно- или трехфазный), или вольтодобавочный трансформатор | E20: 220 | F20: 14 | H20: 0 | J20: 0 | L20: 0 | N20: 0 | P20: 0 | R20: 0 | T20: 0
C21: =B16 -> Силовой трансформатор или реактор (одно- или трехфазный), или вольтодобавочный трансформатор | E21: 110-150 | F21: 7.8 | H21: 0 | J21: 0 | L21: 0 | N21: 0 | P21: 0 | R21: 0 | T21: 0
C22: =B16 -> Силовой трансформатор или реактор (одно- или трехфазный), или вольтодобавочный трансформатор | E22: 35 | F22: 2.1 | H22: 0 | J22: 0 | L22: 0 | N22: 0 | P22: 0 | R22: 0 | T22: 0
C23: =B16 -> Силовой трансформатор или реактор (одно- или трехфазный), или вольтодобавочный трансформатор | E23: 1-20 | F23: 1 | H23: 0 | J23: 0 | L23: 0 | N23: 0 | P23: 0 | R23: 0 | T23: 0
A24: 3 | B24: Воздушный выключатель | C24: =B24 -> Воздушный выключатель | D24: 3 фазы | E24: 1150 | F24: 180 | H24: 0 | J24: 0 | L24: 0 | N24: 0 | P24: 0 | R24: 0 | T24: 0
C25: =B24 -> Воздушный выключатель | E25: 750 | F25: 130 | H25: 0 | J25: 0 | L25: 0 | N25: 0 | P25: 0 | R25: 0 | T25: 0
C26: =B24 -> Воздушный выключатель | E26: 400-500 | F26: 88 | H26: 0 | J26: 0 | L26: 0 | N26: 0 | P26: 0 | R26: 0 | T26: 0
C27: =B24 -> Воздушный выключатель | E27: 330 | F27: 66 | H27: 0 | J27: 0 | L27: 0 | N27: 0 | P27: 0 | R27: 0 | T27: 0
C28: =B24 -> Воздушный выключатель | E28: 220 | F28: 43 | H28: 0 | J28: 0 | L28: 0 | N28: 0 | P28: 0 | R28: 0 | T28: 0
C29: =B24 -> Воздушный выключатель | E29: 110-150 | F29: 26 | H29: 0 | J29: 0 | L29: 0 | N29: 0 | P29: 0 | R29: 0 | T29: 0
C30: =B24 -> Воздушный выключатель | E30: 35 | F30: 11 | H30: 0 | J30: 0 | L30: 0 | N30: 0 | P30: 0 | R30: 0 | T30: 0
C31: =B24 -> Воздушный выключатель | E31: 1-20 | F31: 5.5 | H31: 0 | J31: 0 | L31: 0 | N31: 0 | P31: 0 | R31: 0 | T31: 0
A32: 4 | B32: Масляный (вакуумный) выключатель | C32: =B32 -> Масляный (вакуумный) выключатель | D32: - " - | E32: 220 | F32: 23 | H32: 0 | J32: 0 | L32: 0 | N32: 0 | P32: 0 | R32: 0 | T32: 0
C33: =B32 -> Масляный (вакуумный) выключатель | E33: 110-150 | F33: 14 | H33: 0 | J33: 0 | L33: 0 | N33: 0 | P33: 0 | R33: 0 | T33: 0
C34: =B32 -> Масляный (вакуумный) выключатель | E34: 35 | F34: 6.4 | H34: 0 | J34: 0 | L34: 0 | N34: 0 | P34: 0 | R34: 0 | T34: 0
C35: =B32 -> Масляный (вакуумный) выключатель | E35: 1-20 | F35: 3.1 | G35: 9 | H35: 27.9 | I35: 9 | J35: 27.9 | K35: 9 | L35: 27.9 | N35: 0 | O35: 9 | P35: 27.9 | Q35: 9 | R35: 27.9 | T35: 0
A36: 5 | B36: Отделитель с короткозамыкателем | C36: =B36 -> Отделитель с короткозамыкателем | D36: Ед. оборуд. | E36: 400-500 | F36: 35 | H36: 0 | J36: 0 | L36: 0 | N36: 0 | P36: 0 | R36: 0 | T36: 0
C37: =B36 -> Отделитель с короткозамыкателем | E37: 330 | F37: 24 | H37: 0 | J37: 0 | L37: 0 | N37: 0 | P37: 0 | R37: 0 | T37: 0
C38: =B36 -> Отделитель с короткозамыкателем | E38: 220 | F38: 19 | H38: 0 | J38: 0 | L38: 0 | N38: 0 | P38: 0 | R38: 0 | T38: 0
C39: =B36 -> Отделитель с короткозамыкателем | E39: 110-150 | F39: 9.5 | H39: 0 | J39: 0 | L39: 0 | N39: 0 | P39: 0 | R39: 0 | T39: 0
C40: =B36 -> Отделитель с короткозамыкателем | E40: 35 | F40: 4.7 | H40: 0 | J40: 0 | L40: 0 | N40: 0 | P40: 0 | R40: 0 | T40: 0
A41: 6 | B41: Выключатель нагрузки | C41: =B41 -> Выключатель нагрузки | D41: - " - | E41: 1-20 | F41: 2.3 | G41: 142 | H41: 326.6 | I41: 142 | J41: 326.6 | K41: 155 | L41: 356.5 | N41: 0 | O41: 157 | P41: 361.1 | Q41: 165 | R41: 379.5 | T41: 0
A42: 7 | B42: Синхронный компенсатор мощн. до 50 Мвар | C42: =B42 -> Синхронный компенсатор мощн. до 50 Мвар | D42: - " - | E42: 1-20 | F42: 26 | H42: 0 | J42: 0 | L42: 0 | N42: 0 | P42: 0 | R42: 0 | T42: 0
A43: 8 | B43: То же, 50 Мвар и более | C43: Синхронный компенсатор мощн. 50 Мвар и выше | D43: - " - | E43: 1-20 | F43: 48 | H43: 0 | J43: 0 | L43: 0 | N43: 0 | P43: 0 | R43: 0 | T43: 0
A44: 9 | B44: Статические конденсаторы | C44: =B44 -> Статические конденсаторы | D44: 100 конд. | E44: 35 | F44: 2.4 | H44: 0 | J44: 0 | L44: 0 | N44: 0 | P44: 0 | R44: 0 | T44: 0
C45: =B44 -> Статические конденсаторы | E45: 1-20 | F45: 2.4 | H45: 0 | J45: 0 | L45: 0 | N45: 0 | P45: 0 | R45: 0 | T45: 0
A46: 10 | B46: Мачтовая (столбовая) ТП | C46: =B46 -> Мачтовая (столбовая) ТП | D46: ТП | E46: 1-20 | F46: 2.5 | G46: 9 | H46: 22.5 | I46: 9 | J46: 22.5 | K46: 19 | L46: 47.5 | N46: 0 | O46: 9 | P46: 22.5 | Q46: 22 | R46: 55 | T46: 0
A47: 11 | B47: Однотрансфор-маторная ТП, КТП | C47: =B47 -> Однотрансфор-маторная ТП, КТП | D47: ТП, КТП | E47: 1-20 | F47: 2.3 | G47: 28 | H47: 64.4 | I47: 28 | J47: 64.4 | K47: 29 | L47: 66.7 | N47: 0 | O47: 29 | P47: 66.7 | Q47: 29 | R47: 66.7 | T47: 0
A48: 12 | B48: Двухтрансформаторная ТП, КТП | C48: =B48 -> Двухтрансформаторная ТП, КТП | D48: ТП, КТП | E48: 1-20 | F48: 3 | G48: 9 | H48: 27 | I48: 9 | J48: 27 | K48: 9 | L48: 27 | N48: 0 | O48: 9 | P48: 27 | Q48: 10 | R48: 30 | T48: 0
A49: 13 | B49: Однотрансфор-маторная подстанция 34/0,4 кВ | C49: =B49 -> Однотрансфор-маторная подстанция 34/0,4 кВ | D49: п/ст | E49: 35 | F49: 3.5 | H49: 0 | J49: 0 | L49: 0 | N49: 0 | P49: 0 | R49: 0 | T49: 0
B50: Итого оборудование по уровням напряжения: | E50: ВН | G50: х | H50: =H9+H10+H11+H12+H16+H17+H18+H19+H24+H25+H26+H27+H36+H37+H39+H38+H33+H32+H29+H28+H21+H20+H14+H13 -> 0 | I50: х | J50: 0 | K50: х | L50: 0 | M50: х | N50: =N9+N10+N11+N12+N16+N17+N18+N19+N24+N25+N26+N27+N36+N37+N39+N38+N33+N32+N29+N28+N21+N20+N14+N13 -> 0 | O50: х | P50: =P9+P10+P11+P12+P16+P17+P18+P19+P24+P25+P26+P27+P36+P37+P39+P38+P33+P32+P29+P28+P21+P20+P14+P13 -> 0 | Q50: х | R50: =R9+R10+R11+R12+R16+R17+R18+R19+R24+R25+R26+R27+R36+R37+R39+R38+R33+R32+R29+R28+R21+R20+R14+R13 -> 0 | S50: х | T50: =T9+T10+T11+T12+T16+T17+T18+T19+T24+T25+T26+T27+T36+T37+T39+T38+T33+T32+T29+T28+T21+T20+T14+T13 -> 0
E51: СН1 | G51: х | H51: =H15+H22+H30+H34+H40+H44+H49 -> 0 | I51: х | J51: 0 | K51: х | L51: 0 | M51: х | N51: =N15+N22+N30+N34+N40+N44+N49 -> 0 | O51: х | P51: =P15+P22+P30+P34+P40+P44+P49 -> 0 | Q51: х | R51: =R15+R22+R30+R34+R40+R44+R49 -> 0 | S51: х | T51: =T15+T22+T30+T34+T40+T44+T49 -> 0
E52: СН2 | G52: х | H52: =H23+H31+H35+H41+H42+H43+H45+H46+H47+H48 -> 468.4 | I52: х | J52: 468.4 | K52: х | L52: 525.6 | M52: х | N52: =N23+N31+N35+N41+N42+N43+N45+N46+N47+N48 -> 0 | O52: х | P52: =P23+P31+P35+P41+P42+P43+P45+P46+P47+P48 -> 505.2 | Q52: х | R52: =R23+R31+R35+R41+R42+R43+R45+R46+R47+R48 -> 559.1 | S52: х | T52: =T23+T31+T35+T41+T42+T43+T45+T46+T47+T48 -> 0
E53: НН | G53: х | H53: =SUM(H9:H49) - H50-H51-H52 -> 0 | I53: х | J53: 0 | K53: х | L53: 0 | M53: х | N53: =SUM(N9:N49) - N50-N51-N52 -> 0 | O53: х | P53: =SUM(P9:P49) - P50-P51-P52 -> 0 | Q53: х | R53: =SUM(R9:R49) - R50-R51-R52 -> 0 | S53: х | T53: =SUM(T9:T49) - T50-T51-T52 -> 0
B54: Итого по оборудованию | G54: х | H54: =SUM(H50:H53) -> 468.4 | I54: х | J54: 468.4 | K54: х | L54: 525.6 | M54: х | N54: =SUM(N50:N53) -> 0 | O54: х | P54: =SUM(P50:P53) -> 505.2 | Q54: х | R54: =SUM(R50:R53) -> 559.1 | S54: х | T54: =SUM(T50:T53) -> 0
B55: Всего активов по уровням напряжения: | E55: ВН | G55: х | H55: =H50+'УЕ ВЛЭП 2016-2019'!H48 -> 0 | I55: х | J55: =J50+'УЕ ВЛЭП 2016-2019'!J48 -> 0 | K55: х | L55: =L50+'УЕ ВЛЭП 2016-2019'!L48 -> 0 | M55: х | N55: =N50+'УЕ ВЛЭП 2016-2019'!N48 -> 0 | O55: х | P55: =P50+'УЕ ВЛЭП 2016-2019'!P48 -> 0 | Q55: х | R55: =R50+'УЕ ВЛЭП 2016-2019'!R48 -> 0 | S55: х | T55: =T50+'УЕ ВЛЭП 2016-2019'!T48 -> 0
E56: СН1 | G56: х | H56: =H51+'УЕ ВЛЭП 2016-2019'!H49 -> 0 | I56: х | J56: =J51+'УЕ ВЛЭП 2016-2019'!J49 -> 0 | K56: х | L56: =L51+'УЕ ВЛЭП 2016-2019'!L49 -> 0 | M56: х | N56: =N51+'УЕ ВЛЭП 2016-2019'!N49 -> 0 | O56: х | P56: =P51+'УЕ ВЛЭП 2016-2019'!P49 -> 0 | Q56: х | R56: =R51+'УЕ ВЛЭП 2016-2019'!R49 -> 0 | S56: х | T56: =T51+'УЕ ВЛЭП 2016-2019'!T49 -> 0
E57: СН2 | G57: х | H57: =H52+'УЕ ВЛЭП 2016-2019'!H50 -> 577.176 | I57: х | J57: =J52+'УЕ ВЛЭП 2016-2019'!J50 -> 577.176 | K57: х | L57: =L52+'УЕ ВЛЭП 2016-2019'!L50 -> 635.4639 | M57: х | N57: =N52+'УЕ ВЛЭП 2016-2019'!N50 -> 0 | O57: х | P57: =P52+'УЕ ВЛЭП 2016-2019'!P50 -> 613.976 | Q57: х | R57: =R52+'УЕ ВЛЭП 2016-2019'!R50 -> 671.825 | S57: х | T57: =T52+'УЕ ВЛЭП 2016-2019'!T50 -> 0
E58: НН | G58: х | H58: =H53+'УЕ ВЛЭП 2016-2019'!H51 -> 324.227 | I58: х | J58: =J53+'УЕ ВЛЭП 2016-2019'!J51 -> 324.227 | K58: х | L58: =L53+'УЕ ВЛЭП 2016-2019'!L51 -> 347.768 | M58: х | N58: =N53+'УЕ ВЛЭП 2016-2019'!N51 -> 0 | O58: х | P58: =P53+'УЕ ВЛЭП 2016-2019'!P51 -> 324.227 | Q58: х | R58: =R53+'УЕ ВЛЭП 2016-2019'!R51 -> 347.768 | S58: х | T58: =T53+'УЕ ВЛЭП 2016-2019'!T51 -> 0
B59: Количество активов - всего | G59: х | H59: =H58+H57+H56+H55 -> 901.403 | I59: х | J59: =J58+J57+J56+J55 -> 901.403 | K59: х | L59: =L58+L57+L56+L55 -> 983.2319 | M59: х | N59: =N58+N57+N56+N55 -> 0 | O59: х | P59: =P58+P57+P56+P55 -> 938.203 | Q59: х | R59: =R58+R57+R56+R55 -> 1019.593 | S59: х | T59: =T58+T57+T56+T55 -> 0
B61: Руководитель организации | F61: ='Инф-я'!$C$17 -> Окунев Василий Михайлович

Sheet Подконтрольные расходы
A2: Подконтрольные расходы на 2019 год долгосрочного периода регулирования 2015 - 2019 годы
A4: ='Инф-я'!C9 -> Общество с ограниченной ответственностью "Энергетик"
A6: № п.п. | B6: Наименование | C6: Ед.изм. | D6: 2018 год | E6: 2019 год
D7: Утверждено | E7: По данным организации | F7: По данным экспертов
A8: 1 | B8: 2 | C8: 3 | D8: 4 | E8: 5 | F8: 6
A9: Показатели для расчета подконтрольных расходов
A10: 1 | B10: Индекс эффективности подконтрольных расходов (Хэф) | C10: % | D10: 0.01 | E10: =D10 -> 0.01 | F10: =E10 -> 0.01
A11: 2 | B11: Коэффициент эластичности подконтрольных расходов по количеству активов (К эл) | C11: знач. | D11: 0.75 | E11: 0.75 | F11: 0.75
A12: 3 | B12: Индекс потребительских цен (ИПЦ) | C12: % | D12: 0.037 | E12: 0.04
A13: 4 | B13: Количество активов (УЕ) | C13: усл.ед. | D13: ='УЕ ТП 2016-2019'!P59 -> 938.203 | E13: ='УЕ ТП 2016-2019'!R59 -> 1019.593 | F13: ='УЕ ТП 2016-2019'!T59 -> 0
A14: 5 | B14: Индекс изменения количества активов (ИКА) | C14: % | D14: Х | E14: =IF(D13=0,0,(E13-D13)/D13) -> 0.08675094836 | F14: =IF(D13=0,0,(F13-D13)/D13) -> -1
A15: 6 | B15: Общий коэффициент индексации подконтрольных расходов ПР= ИПЦ*(1+(Кэл*ИКА))*(1-Хэф) | C15: знач. | D15: Х | E15: =(1+E12)*(1+(E11*E14))*(1-E10) -> 1.096589082 | F15: =(1+F12)*(1+(F11*F14))*(1-F10) -> 0.2475
A16: Подконтрольные расходы организации (ПР)
A17: 1 | B17: Расходы из фонда оплаты труда | C17: тыс.руб. | D17: 12064.66259 | E17: =D17*$E$15 -> 13229.97728 | F17: =D17*$F$15 -> 2986.003992
A18: 2 | B18: Материалы | C18: тыс.руб. | D18: 4364.838002 | E18: =D18*$E$15 -> 4786.433699 | F18: =D18*$F$15 -> 1080.297406
A19: 3 | B19: Ремонт основных фондов | C19: тыс.руб. | D19: 15449.32556 | E19: 16941.56174 | F19: =D19*$F$15 -> 3823.708077
A20: 4 | B20: Другие обоснованные подконтрольные расходы, в том числе: | C20: тыс.руб. | D20: =D21+D22+D23+D24+D25+D26+D27+D28 -> 936.369706 | E20: 1026.812797 | F20: 231.7515022
A21: 4.1 | B21: Работы и услуги производственного характера | C21: тыс.руб. | D21: 0 | E21: 0 | F21: 0
A22: 4.2 | B22: Работы и услуги непроизводственного характера | C22: тыс.руб. | D22: 584.0195288 | E22: 640.4294392 | F22: 144.5448334
A23: 4.3 | B23: Обеспечение нормальных условий труда и техники безопасности | C23: тыс.руб. | D23: 80.78093546 | E23: 88.58349189 | F23: 19.99328153
A24: 4.4. | B24: Расходы на командировки | C24: тыс.руб. | D24: 0 | E24: 0 | F24: 0
A25: 4.5 | B25: Расходы на обучение персонала | C25: тыс.руб. | D25: 104.7776224 | E25: 114.8979968 | F25: 25.93246154
A26: 4.6 | B26: Расходы на страхование | C26: тыс.руб. | D26: 0 | E26: 0 | F26: 0
A27: 4.7 | B27: Расходы на услуги банков | C27: тыс.руб. | D27: 166.7916193 | E27: 182.9018688 | F27: 41.28092579
A28: 4.8 | B28: Прочие обоснованные подконтрольные расходы | C28: тыс.руб. | D28: 0 | E28: 0 | F28: 0
A29: 5 | B29: Расходы из прибыли, в том числе: | C29: тыс.руб. | D29: =D30+D31 -> 348.184384 | E29: 381.8151941 | F29: 86.17563503
A30: 5.1 | B30: Расходы по коллективным договорам | C30: тыс.руб. | D30: 348.184384 | E30: 381.8151941 | F30: 86.17563503
A31: 5.2 | B31: Прочие обоснованные расходы из прибыли | C31: тыс.руб. | E31: 0 | F31: 0
B32: Итого ПР | C32: тыс.руб. | D32: =D17+D18+D19+D20+D29 -> 33163.38025 | E32: 36366.60071 | F32: =D32*F$15 -> 8207.936611
B34: Руководитель организации | D34: ='Инф-я'!C17 -> Окунев Василий Михайлович

Sheet Расчет аморт. max срок
A1: Заполняется в Рублях !
A2: Расчет амортизационных отчислений основных средств, участвующих в передаче электрической энергии по максимальному сроку использования и расчет среднегодовой стоимости ОС
A3: ='Инф-я'!C9 -> Общество с ограниченной ответственностью "Энергетик"
A5: Группа учета ОС \ Амортизационная группа \ Основное средство, Инвентарный номер, Дата принятия к учету | B5: Год ввода | C5: Срок полезного использования, мес. | E5: На начало 01.01.2018 г. | H5: За 1 квартал 2018 года | L5: На конец 31.03.2018 г. | O5: Амортизация (2-4 квартал 2018) | P5: Амортизация (2018 год) | Q5: Остаточная стоимость на начало 2019 года | R5: Амортизация на 2019 год | T5: Остаточная стоимость на начало 2020 года | U5: Налоговая ставка (%) | V5: Среднегодовая остаточная стоимость ОС
C6: бух.учет | D6: Максимальный срок по группе | E6: Стоимость | F6: Накопленная амортизация (износ) | G6: Остаточная стоимость | H6: Увеличение стоимости | I6: Начисление амортизации (износа) | J6: Уменьшение стоимости | K6: Списание амортизации (износа) | L6: Стоимость | M6: Накопленная амортизация (износ) | N6: Остаточная стоимость | P6: Амортизация (2015 год) | Q6: Остаточная стоимость на начало 2016 года | R6: бух.учет | S6: Максимальный срок по группе | V6: облагаемых по ставке 2,2 % | W6: необлагаемых налогом (движимое имущество, введенное с 01.01.2013 года
A7: Первая группа (от 1 года до 2 лет включительно)
D8: 24 | O8: =IF(C8>0,IF(N8>L8/C8*9,(L8/C8*9),N8),0) -> 0 | P8: =I8+O8 -> 0 | Q8: =IF((N8-O8)>0,(N8-O8),0) -> 0 | R8: =IF(C8>0,IF(Q8>L8/C8*12,(L8/C8*12),Q8),0) -> 0 | S8: =IF(D8>0,IF(Q8>L8/D8*12,(L8/D8*12),Q8),0) -> 0 | T8: =IF((Q8-R8)>0,(Q8-R8),0) -> 0 | V8: =IF(U8=2.2,(T8+Q8)/2,0) -> 0 | W8: =IF(U8=0,(T8+Q8)/2,0) -> 0
D9: =$D$8 -> 24 | O9: 0 | P9: =I9+O9 -> 0 | Q9: =IF((N9-O9)>0,(N9-O9),0) -> 0 | R9: =IF(C9>0,IF(Q9>L9/C9*12,(L9/C9*12),Q9),0) -> 0 | S9: =IF(D9>0,IF(Q9>L9/D9*12,(L9/D9*12),Q9),0) -> 0 | T9: =IF((Q9-R9)>0,(Q9-R9),0) -> 0 | V9: =IF(U9=2.2,(T9+Q9)/2,0) -> 0 | W9: =IF(U9=0,(T9+Q9)/2,0) -> 0
D10: =$D$8 -> 24 | O10: 0 | P10: =I10+O10 -> 0 | Q10: =IF((N10-O10)>0,(N10-O10),0) -> 0 | R10: =IF(C10>0,IF(Q10>L10/C10*12,(L10/C10*12),Q10),0) -> 0 | S10: =IF(D10>0,IF(Q10>L10/D10*12,(L10/D10*12),Q10),0) -> 0 | T10: =IF((Q10-R10)>0,(Q10-R10),0) -> 0 | V10: =IF(U10=2.2,(T10+Q10)/2,0) -> 0 | W10: =IF(U10=0,(T10+Q10)/2,0) -> 0
A11: Добавить
A12: Вторая группа (свыше 2 лет до 3 лет включительно)
D13: 36 | O13: =IF(C13>0,IF(N13>L13/C13*9,(L13/C13*9),N13),0) -> 0 | P13: =I13+O13 -> 0 | Q13: =IF((N13-O13)>0,(N13-O13),0) -> 0 | R13: =IF(C13>0,IF(Q13>L13/C13*12,(L13/C13*12),Q13),0) -> 0 | S13: =IF(D13>0,IF(Q13>L13/D13*12,(L13/D13*12),Q13),0) -> 0 | T13: =IF((Q13-R13)>0,(Q13-R13),0) -> 0 | V13: =IF(U13=2.2,(T13+Q13)/2,0) -> 0 | W13: =IF(U13=0,(T13+Q13)/2,0) -> 0
D14: =$D$13 -> 36 | O14: =IF(C14>0,IF(N14>L14/C14*9,(L14/C14*9),N14),0) -> 0 | P14: =I14+O14 -> 0 | Q14: =IF((N14-O14)>0,(N14-O14),0) -> 0 | R14: =IF(C14>0,IF(Q14>L14/C14*12,(L14/C14*12),Q14),0) -> 0 | S14: =IF(D14>0,IF(Q14>L14/D14*12,(L14/D14*12),Q14),0) -> 0 | T14: =IF((Q14-R14)>0,(Q14-R14),0) -> 0 | V14: =IF(U14=2.2,(T14+Q14)/2,0) -> 0 | W14: =IF(U14=0,(T14+Q14)/2,0) -> 0
D15: =$D$13 -> 36 | O15: 0 | P15: =I15+O15 -> 0 | Q15: =IF((N15-O15)>0,(N15-O15),0) -> 0 | R15: =IF(C15>0,IF(Q15>L15/C15*12,(L15/C15*12),Q15),0) -> 0 | S15: =IF(D15>0,IF(Q15>L15/D15*12,(L15/D15*12),Q15),0) -> 0 | T15: =IF((Q15-R15)>0,(Q15-R15),0) -> 0 | V15: =IF(U15=2.2,(T15+Q15)/2,0) -> 0 | W15: =IF(U15=0,(T15+Q15)/2,0) -> 0
A16: Добавить
A17: Третья группа (свыше 3 лет до 5 лет включительно)
A18: Зеркальная камера | C18: 60 | D18: 60 | E18: 89980 | F18: 32992.74 | G18: =E18-F18 -> 56987.26 | I18: 4499.01 | L18: 89980 | M18: =F18+I18 -> 37491.75 | N18: =L18-M18 -> 52488.25 | O18: =IF(C18>0,IF(N18>L18/C18*9,(L18/C18*9),N18),0) -> 13497 | P18: =I18+O18 -> 17996.01 | Q18: =IF((N18-O18)>0,(N18-O18),0) -> 38991.25 | R18: =IF(C18>0,IF(Q18>L18/C18*12,(L18/C18*12),Q18),0) -> 17996 | S18: =IF(D18>0,IF(Q18>L18/D18*12,(L18/D18*12),Q18),0) -> 17996 | T18: =IF((Q18-R18)>0,(Q18-R18),0) -> 20995.25 | V18: =IF(U18=2.2,(T18+Q18)/2,0) -> 0 | W18: =IF(U18=0,(T18+Q18)/2,0) -> 29993.25
D19: =$D$18 -> 60 | O19: =IF(C19>0,IF(N19>L19/C19*9,(L19/C19*9),N19),0) -> 0 | P19: =I19+O19 -> 0 | Q19: =IF((N19-O19)>0,(N19-O19),0) -> 0 | R19: =IF(C19>0,IF(Q19>L19/C19*12,(L19/C19*12),Q19),0) -> 0 | S19: =IF(D19>0,IF(Q19>L19/D19*12,(L19/D19*12),Q19),0) -> 0 | T19: =IF((Q19-R19)>0,(Q19-R19),0) -> 0 | V19: =IF(U19=2.2,(T19+Q19)/2,0) -> 0 | W19: =IF(U19=0,(T19+Q19)/2,0) -> 0
D20: =$D$18 -> 60 | O20: 0 | P20: =I20+O20 -> 0 | Q20: =IF((N20-O20)>0,(N20-O20),0) -> 0 | R20: =IF(C20>0,IF(Q20>L20/C20*12,(L20/C20*12),Q20),0) -> 0 | S20: =IF(D20>0,IF(Q20>L20/D20*12,(L20/D20*12),Q20),0) -> 0 | T20: =IF((Q20-R20)>0,(Q20-R20),0) -> 0 | V20: =IF(U20=2.2,(T20+Q20)/2,0) -> 0 | W20: =IF(U20=0,(T20+Q20)/2,0) -> 0
A21: Добавить
A22: Четвертая группа (свыше 5 лет до 7 лет включительно)
A23: Подъемник 2-х стоечный электрогидравлический | D23: 84 | E23: 162000 | F23: 9969.24 | G23: =E23-F23 -> 152030.76 | I23: 7476.93 | L23: 162000 | M23: =F23+I23 -> 17446.17 | N23: =L23-M23 -> 144553.83 | O23: =IF(C23>0,IF(N23>L23/C23*9,(L23/C23*9),N23),0) -> 0 | P23: =I23+O23 -> 7476.93 | Q23: =IF((N23-O23)>0,(N23-O23),0) -> 144553.83 | R23: =IF(C23>0,IF(Q23>L23/C23*12,(L23/C23*12),Q23),0) -> 0 | S23: =IF(D23>0,IF(Q23>L23/D23*12,(L23/D23*12),Q23),0) -> 23142.85714 | T23: =IF((Q23-R23)>0,(Q23-R23),0) -> 144553.83 | V23: =IF(U23=2.2,(T23+Q23)/2,0) -> 0 | W23: =IF(U23=0,(T23+Q23)/2,0) -> 144553.83
A24: Подъемник 2-х стоечный электрогидравлический | D24: =$D$23 -> 84 | E24: 162000 | F24: 29907.72 | G24: 132092.28 | I24: 7476.93 | L24: 162000 | M24: 37384.65 | N24: 124615.35 | O24: =IF(C24>0,IF(N24>L24/C24*9,(L24/C24*9),N24),0) -> 0 | P24: =I24+O24 -> 7476.93 | Q24: =IF((N24-O24)>0,(N24-O24),0) -> 124615.35 | R24: =IF(C24>0,IF(Q24>L24/C24*12,(L24/C24*12),Q24),0) -> 0 | S24: =IF(D24>0,IF(Q24>L24/D24*12,(L24/D24*12),Q24),0) -> 23142.85714 | T24: =IF((Q24-R24)>0,(Q24-R24),0) -> 124615.35 | V24: =IF(U24=2.2,(T24+Q24)/2,0) -> 0 | W24: =IF(U24=0,(T24+Q24)/2,0) -> 124615.35
A25: Планшет 12,9* Apple IPAD Pro Wi-Fi | D25: =$D$23 -> 84 | E25: 76990 | F25: 47049.42 | G25: 29940.58 | I25: 6415.83 | L25: 76990 | M25: =F25+I25 -> 53465.25 | N25: =L25-M25 -> 23524.75 | O25: 0 | P25: =I25+O25 -> 6415.83 | Q25: =IF((N25-O25)>0,(N25-O25),0) -> 23524.75 | R25: =IF(C25>0,IF(Q25>L25/C25*12,(L25/C25*12),Q25),0) -> 0 | S25: =IF(D25>0,IF(Q25>L25/D25*12,(L25/D25*12),Q25),0) -> 10998.57143 | T25: =IF((Q25-R25)>0,(Q25-R25),0) -> 23524.75 | V25: =IF(U25=2.2,(T25+Q25)/2,0) -> 0 | W25: =IF(U25=0,(T25+Q25)/2,0) -> 23524.75
A26: Добавить
A27: Пятая группа (свыше 7 лет до 10 лет включительно)
A28: Аппарат высокого давления 1,286-500 HD 10/25-4 SX | D28: 120 | E28: 116394 | F28: 28128.55 | G28: =E28-F28 -> 88265.45 | I28: 2909.85 | L28: 116394 | M28: =F28+I28 -> 31038.4 | N28: =L28-M28 -> 85355.6 | O28: =IF(C28>0,IF(N28>L28/C28*9,(L28/C28*9),N28),0) -> 0 | P28: =I28+O28 -> 2909.85 | Q28: =IF((N28-O28)>0,(N28-O28),0) -> 85355.6 | R28: =IF(C28>0,IF(Q28>L28/C28*12,(L28/C28*12),Q28),0) -> 0 | S28: =IF(D28>0,IF(Q28>L28/D28*12,(L28/D28*12),Q28),0) -> 11639.4 | T28: =IF((Q28-R28)>0,(Q28-R28),0) -> 85355.6 | V28: =IF(U28=2.2,(T28+Q28)/2,0) -> 0 | W28: =IF(U28=0,(T28+Q28)/2,0) -> 85355.6
D29: =$D$28 -> 120 | O29: 0 | P29: =I29+O29 -> 0 | Q29: =IF((N29-O29)>0,(N29-O29),0) -> 0 | R29: =IF(C29>0,IF(Q29>L29/C29*12,(L29/C29*12),Q29),0) -> 0 | S29: =IF(D29>0,IF(Q29>L29/D29*12,(L29/D29*12),Q29),0) -> 0 | T29: =IF((Q29-R29)>0,(Q29-R29),0) -> 0 | V29: =IF(U29=2.2,(T29+Q29)/2,0) -> 0 | W29: =IF(U29=0,(T29+Q29)/2,0) -> 0
D30: =$D$28 -> 120 | O30: 0 | P30: =I30+O30 -> 0 | Q30: =IF((N30-O30)>0,(N30-O30),0) -> 0 | R30: =IF(C30>0,IF(Q30>L30/C30*12,(L30/C30*12),Q30),0) -> 0 | S30: =IF(D30>0,IF(Q30>L30/D30*12,(L30/D30*12),Q30),0) -> 0 | T30: =IF((Q30-R30)>0,(Q30-R30),0) -> 0 | V30: =IF(U30=2.2,(T30+Q30)/2,0) -> 0 | W30: =IF(U30=0,(T30+Q30)/2,0) -> 0
A31: Добавить
A32: Шестая группа (свыше 10 лет до 15 лет включительно)
A33: Возд. двухц(ВЛ)10кВ от ПС"Караб."доТП13ф1003,1005 | B33: 10 кВ | C33: 180 | D33: 180 | E33: 1398812.18 | F33: 450884.42 | G33: =E33-F33 -> 947927.76 | I33: 23313.54 | L33: =E33 -> 1398812.18 | M33: =F33+I33 -> 474197.96 | N33: =L33-M33 -> 924614.22 | O33: =IF(C33>0,IF(N33>L33/C33*9,(L33/C33*9),N33),0) -> 69940.609 | P33: =I33+O33 -> 93254.149 | Q33: =IF((N33-O33)>0,(N33-O33),0) -> 854673.611 | R33: =IF(C33>0,IF(Q33>L33/C33*12,(L33/C33*12),Q33),0) -> 93254.14533 | S33: =IF(D33>0,IF(Q33>L33/D33*12,(L33/D33*12),Q33),0) -> 93254.14533 | T33: =IF((Q33-R33)>0,(Q33-R33),0) -> 761419.4657 | V33: =IF(U33=2.2,(T33+Q33)/2,0) -> 0 | W33: =IF(U33=0,(T33+Q33)/2,0) -> 808046.5383
A34: Возд. одноц(ВЛ)10кВ от ТП 2 до ТП 62ф1003 | B34: 10 кВ | C34: 180 | D34: =$D$33 -> 180 | E34: 659289.64 | F34: 263715.84 | G34: 395573.8 | I34: 10988.16 | L34: =E34 -> 659289.64 | M34: =F34+I34 -> 274704 | N34: 384585.64 | O34: =IF(C34>0,IF(N34>L34/C34*9,(L34/C34*9),N34),0) -> 32964.482 | P34: 43952.642 | Q34: 351621.158 | R34: 43952.64267 | S34: 43952.64267 | T34: 307668.5153 | V34: 0 | W34: 329644.8367
A35: Возд. одноц(ВЛ)10кВ от ТП 55 до ТП 57ф1022 | B35: 10 кВ | C35: 180 | D35: 180 | E35: 748971.92 | F35: 270462.4 | G35: 478509.52 | I35: 12482.88 | L35: 748971.92 | M35: 282945.28 | N35: 466026.64 | O35: 37448.596 | P35: 49931.476 | Q35: 428578.044 | R35: 49931.46133 | S35: 49931.46133 | T35: 378646.5827 | V35: 0 | W35: 403612.3133
A36: Возд. одноц(ВЛ)10кВ от ТП 55 до ТП3ф1022 | B36: 10 кВ | C36: 180 | D36: 180 | E36: 558227.64 | F36: 223290.72 | G36: 334936.92 | I36: 9303.78 | L36: 558227.64 | M36: 232594.5 | N36: 325633.14 | O36: 27911.382 | P36: 37215.162 | Q36: 297721.758 | R36: 37215.176 | S36: 37215.176 | T36: 260506.582 | V36: 0 | W36: 279114.17
A37: Возд. одноц(ВЛ)10кВ от ТП 55 до ТП54ф1022 | B37: 10 кВ | C37: 180 | D37: 180 | E37: 400737.9 | F37: 160295.04 | G37: 240442.86 | I37: 6678.96 | L37: 400737.9 | M37: 166974 | N37: 233763.9 | O37: 20036.895 | P37: 26715.855 | Q37: 213727.005 | R37: 26715.86 | S37: 26715.86 | T37: 187011.145 | V37: 0 | W37: 200369.075
A38: Возд-каб. двухц(ВЛ)10кВ от ТП 1 до ТП 63ф1003,1005 | B38: 10 кВ | C38: 180 | D38: 180 | E38: 2303696.72 | F38: 685117.11 | G38: 1618579.61 | I38: 38394.96 | L38: 2303696.72 | M38: 723512.07 | N38: 1580184.65 | O38: 115184.836 | P38: 153579.796 | Q38: 1464999.814 | R38: 153579.7813 | S38: 153579.7813 | T38: 1311420.033 | V38: 0 | W38: 1388209.923
A39: Возд-каб. двухц(ВЛ+КЛ)10кВотПС"Караб"доТП51 | B39: 10 кВ | C39: 180 | D39: 180 | E39: 8415145.52 | F39: 2243950.15 | G39: 6171195.37 | I39: 140252.43 | L39: 8415145.52 | M39: 2384202.58 | N39: 6030942.94 | O39: 420757.276 | P39: 561009.706 | Q39: 5610185.664 | R39: 561009.7013 | S39: 561009.7013 | T39: 5049175.963 | V39: 0 | W39: 5329680.813
A40: Воздушн. одноц.(ВЛ)10кВ от ТП8 до ТП83,84 ф1001 | B40: 10 кВ | C40: 180 | D40: 180 | E40: 616520.09 | F40: 164405.28 | G40: 452114.81 | I40: 10275.33 | L40: 616520.09 | M40: 174680.61 | N40: 441839.48 | O40: 30826.0045 | P40: 41101.3345 | Q40: 411013.4755 | R40: 41101.33933 | S40: 41101.33933 | T40: 369912.1362 | V40: 0 | W40: 390462.8058
A41: Воздушн. одноцеп. (ВЛ) 10кВ от ТП39 до ТП40 ф1004 | B41: 10 кВ | C41: 180 | D41: 180 | E41: 700537.25 | F41: 198485.37 | G41: 502051.88 | I41: 11675.61 | L41: 700537.25 | M41: 210160.98 | N41: 490376.27 | O41: 35026.8625 | P41: 46702.4725 | Q41: 455349.4075 | R41: 46702.48333 | S41: 46702.48333 | T41: 408646.9242 | V41: 0 | W41: 431998.1658
A42: Воздушн. одноцеп. (ВЛ) 10кВ отТП38 доТП39 ф1004 | B42: 10 кВ | C42: 180 | D42: 180 | E42: 1096068.19 | F42: 310552.77 | G42: 785515.42 | I42: 18267.81 | L42: 1096068.19 | M42: 328820.58 | N42: 767247.61 | O42: 54803.4095 | P42: 73071.2195 | Q42: 712444.2005 | R42: 73071.21267 | S42: 73071.21267 | T42: 639372.9878 | V42: 0 | W42: 675908.5942
A43: Воздушн. одноцеп. (ВЛ) 10кВ отТП40 доТП58/37 ф1004 | B43: 10 кВ | C43: 180 | D43: 180 | E43: 537327.7 | F43: 152242.65 | G43: 385085.05 | I43: 8955.45 | L43: 537327.7 | M43: 161198.1 | N43: 376129.6 | O43: 26866.385 | P43: 35821.835 | Q43: 349263.215 | R43: 35821.84667 | S43: 35821.84667 | T43: 313441.3683 | V43: 0 | W43: 331352.2917
A44: Воздушн. одноцеп. (ВЛ) 10кВ отТП55 доТП56 ф1022 | B44: 10 кВ | C44: 180 | D44: 180 | E44: 833308.07 | F44: 236103.99 | G44: 597204.08 | I44: 13888.47 | L44: 833308.07 | M44: 249992.46 | N44: 583315.61 | O44: 41665.4035 | P44: 55553.8735 | Q44: 541650.2065 | R44: 55553.87133 | S44: 55553.87133 | T44: 486096.3352 | V44: 0 | W44: 513873.2708
A45: Воздушн. одноцеп. (ВЛ) 10кВ отТП56 доТП82/20 ф1022 | B45: 10 кВ | C45: 180 | D45: 180 | E45: 429493.27 | F45: 121689.57 | G45: 307803.7 | I45: 7158.21 | L45: 429493.27 | M45: 128847.78 | N45: 300645.49 | O45: 21474.6635 | P45: 28632.8735 | Q45: 279170.8265 | R45: 28632.88467 | S45: 28632.88467 | T45: 250537.9418 | V45: 0 | W45: 264854.3842
A46: Воздушн. одноцеп.(ВЛ)10кВ от опоры №16доТП44 ф1001 | B46: 10 кВ | C46: 180 | D46: 180 | E46: 187578.58 | F46: 50020.8 | G46: 137557.78 | I46: 3126.3 | L46: 187578.58 | M46: 53147.1 | N46: 134431.48 | O46: 9378.929 | P46: 12505.229 | Q46: 125052.551 | R46: 12505.23867 | S46: 12505.23867 | T46: 112547.3123 | V46: 0 | W46: 118799.9317
A47: Воздушная двухц(ВЛ)10кВ от ТП1 до ТП61 ф1003,1005 | B47: 10 кВ | C47: 180 | D47: 180 | E47: 641304.05 | F47: 256521.6 | G47: 384782.45 | I47: 10688.4 | L47: 641304.05 | M47: 267210 | N47: 374094.05 | O47: =IF(C47>0,IF(N47>L47/C47*9,(L47/C47*9),N47),0) -> 32065.2025 | P47: 42753.6025 | Q47: 342028.8475 | R47: 42753.60333 | S47: 42753.60333 | T47: 299275.2442 | V47: 0 | W47: 320652.0458
A48: Воздушная двухц(ВЛ)10кВ от ТП13 до ТП1 ф1003,1005 | B48: 10 кВ | C48: 180 | D48: 180 | E48: 2130397.72 | F48: 636848.36 | G48: 1493549.36 | I48: 35506.62 | L48: 2130397.72 | M48: 672354.98 | N48: 1458042.74 | O48: 106519.886 | P48: 142026.506 | Q48: 1351522.854 | R48: 142026.5147 | S48: 142026.5147 | T48: 1209496.339 | V48: 0 | W48: 1280509.597
A49: Воздушная двухц(ВЛ)10кВ от ТП9-ТП8-ТП32-ТП18 ф1001,1005 | B49: 10 кВ | C49: 180 | D49: 180 | E49: 4547113.62 | F49: 1060993.08 | G49: 3486120.54 | I49: 75785.22 | L49: 4547113.62 | M49: 1136778.3 | N49: 3410335.32 | O49: 227355.681 | P49: 303140.901 | Q49: 3182979.639 | R49: 303140.908 | S49: 303140.908 | T49: 2879838.731 | V49: 0 | W49: 3031409.185
A50: ВЛ 10кВ ТП №11-ТП №66 Ф 1001 | B50: 10 кВ | C50: 180 | D50: 180 | E50: 2604937.89 | F50: 390740.76 | G50: 2214197.13 | I50: 43415.64 | L50: 2604937.89 | M50: 434156.4 | N50: 2170781.49 | O50: 130246.8945 | P50: 173662.5345 | Q50: 2040534.596 | R50: 173662.526 | S50: 173662.526 | T50: 1866872.07 | V50: 0 | W50: 1953703.333
A51: ВЛ 10кВ ТП №12-ТП №11 Ф 1001 | B51: 10 кВ | C51: 180 | D51: 180 | E51: 1804578.12 | F51: 300762.9 | G51: 1503815.22 | I51: 30076.29 | L51: 1804578.12 | M51: 330839.19 | N51: 1473738.93 | O51: 90228.906 | P51: 120305.196 | Q51: 1383510.024 | R51: 120305.208 | S51: 120305.208 | T51: 1263204.816 | V51: 0 | W51: 1323357.42
A52: ВЛ 0,4 кВ и мачтовые подстанции №94 ул.Первомайская, №90 ул.Пионерская, №97 ВРУ 0,4 кВ | B52: 10 кВ | C52: 180 | D52: 180 | E52: 8559056.22 | F52: 427952.79 | G52: 8131103.43 | I52: 142650.93 | L52: 8559056.22 | M52: 570603.72 | N52: 7988452.5 | O52: 427952.811 | P52: 570603.741 | Q52: 7560499.689 | R52: 570603.748 | S52: 570603.748 | T52: 6989895.941 | V52: 0 | W52: 7275197.815
A53: ВЛ 0,4 кВ от ТП №102 ул. Строителей, ул.Красноармейская | B53: 10 кВ | C53: 180 | D53: 180 | E53: 2063779.82 | F53: 103188.96 | G53: 1960590.86 | I53: 34396.32 | L53: 2063779.82 | M53: 137585.28 | N53: 1926194.54 | O53: 103188.991 | P53: 137585.311 | Q53: 1823005.549 | R53: 137585.3213 | S53: 137585.3213 | T53: 1685420.228 | V53: 0 | W53: 1754212.888
A54: ВЛ 0,4 кВ от ТП №35 ул.1й Садовый пер., Баня, Детский Дом, ул.Гагарина | B54: 10 кВ | C54: 180 | D54: 180 | E54: 1747422.6 | F54: 87371.1 | G54: 1660051.5 | I54: 29123.7 | L54: 1747422.6 | M54: 116494.8 | N54: 1630927.8 | O54: 87371.13 | P54: 116494.83 | Q54: 1543556.67 | R54: 116494.84 | S54: 116494.84 | T54: 1427061.83 | V54: 0 | W54: 1485309.25
A55: ВЛ 10 кВ и мачтовые подстанции №93 СНТ "Заря" и №92 ул.Красногорская | B55: 10 кВ | C55: 180 | D55: 180 | E55: 1460815.16 | F55: 73040.76 | G55: 1387774.4 | I55: 24346.92 | L55: 1460815.16 | M55: 97387.68 | N55: 1363427.48 | O55: =IF(C55>0,IF(N55>L55/C55*9,(L55/C55*9),N55),0) -> 73040.758 | P55: 97387.678 | Q55: 1290386.722 | R55: 97387.67733 | S55: 97387.67733 | T55: 1192999.045 | V55: 0 | W55: 1241692.883
A56: ВЛ от ТП 24 до ул. Мира 30А | B56: 10 кВ | C56: 180 | D56: 180 | E56: 171464.46 | F56: 28577.4 | G56: 142887.06 | I56: 2857.74 | L56: 171464.46 | M56: 31435.14 | N56: 140029.32 | O56: 8573.223 | P56: 11430.963 | Q56: 131456.097 | R56: 11430.964 | S56: 11430.964 | T56: 120025.133 | V56: 0 | W56: 125740.615
A57: ВЛ от ТП 32 по ул. Красноармейская с подкл. В ТП 18 | B57: 10 кВ | C57: 180 | D57: 180 | E57: 245516.82 | F57: 40919.4 | G57: 204597.42 | I57: 4091.94 | L57: 245516.82 | M57: 45011.34 | N57: 200505.48 | O57: 12275.841 | P57: 16367.781 | Q57: 188229.639 | R57: 16367.788 | S57: 16367.788 | T57: 171861.851 | V57: 0 | W57: 180045.745
A58: Воздушная линия 0,4 кВ и мачтовые подстанции от ТП №11 | B58: 10 кВ | C58: 180 | D58: 180 | E58: 5742091.26 | F58: 350905.61 | G58: 5391185.65 | I58: 95701.53 | L58: 5742091.26 | M58: 446607.14 | N58: 5295484.12 | O58: 287104.563 | P58: 382806.093 | Q58: 5008379.557 | R58: 382806.084 | S58: 382806.084 | T58: 4625573.473 | V58: 0 | W58: 4816976.515
A59: Воздушная линия 0,4 кВ ул. Почтовая | B59: 10 кВ | C59: 180 | D59: 180 | E59: 788791.59 | F59: 48203.98 | G59: 740587.61 | I59: 13146.54 | L59: 788791.59 | M59: 61350.52 | N59: 727441.07 | O59: 39439.5795 | P59: 52586.1195 | Q59: 688001.4905 | R59: 52586.106 | S59: 52586.106 | T59: 635415.3845 | V59: 0 | W59: 661708.4375
A60: Воздушная линия 0,4 кВ ул.Зеленая ии мачтовая подстанция № 100 | B60: 10 кВ | C60: 180 | D60: 180 | E60: 1295023.12 | F60: 79140.27 | G60: 1215882.85 | I60: 21583.71 | L60: 1295023.12 | M60: 100723.98 | N60: 1194299.14 | O60: =IF(C60>0,IF(N60>L60/C60*9,(L60/C60*9),N60),0) -> 64751.156 | P60: 86334.866 | Q60: 1129547.984 | R60: 86334.87467 | S60: 86334.87467 | T60: 1043213.109 | V60: 0 | W60: 1086380.547
A61: Воздушная линия 0,4кВ и мачтовые трансформаторые подстанции от ТП 8 | B61: 10 кВ | C61: 180 | D61: 180 | E61: 7584542.89 | F61: 463499.85 | G61: 7121043.04 | I61: 126409.05 | L61: 7584542.89 | M61: 589908.9 | N61: 6994633.99 | O61: 379227.1445 | P61: 505636.1945 | Q61: 6615406.845 | R61: 505636.1927 | S61: 505636.1927 | T61: 6109770.653 | V61: 0 | W61: 6362588.749
A62: Воздушная линия 10 кВ Ф1004 | B62: 10 кВ | C62: 180 | D62: 180 | E62: 5287101.45 | F62: 264355.11 | G62: 5022746.34 | I62: 88118.37 | L62: 5287101.45 | M62: 352473.48 | N62: 4934627.97 | O62: =IF(C62>0,IF(N62>L62/C62*9,(L62/C62*9),N62),0) -> 264355.0725 | P62: 352473.4425 | Q62: 4670272.898 | R62: 352473.43 | S62: 352473.43 | T62: 4317799.468 | V62: 0 | W62: 4494036.183
A63: Воздушная двухц(ВЛ)10кВ от ТП2 до ТП22 ф1003,1005 | B63: 10 кВ | C63: 180 | D63: =MAX(361,C63) -> 361 | E63: 192147.14 | F63: 76858.56 | G63: 115288.58 | I63: 3202.44 | L63: 192147.14 | M63: =F63+I63 -> 80061 | N63: =L63-M63 -> 112086.14 | O63: 9607.357 | P63: 12809.797 | Q63: 102478.783 | R63: 12809.80933 | S63: 6387.162548 | T63: 89668.97367 | V63: 0 | W63: 96073.87833
A64: ВЛ 10кВ энергетический комплекс "Больница" Ф 1001 | B64: 10 кВ | C64: 180 | D64: =$D$33 -> 180 | I64: 52517.32 | L64: 4726559.22 | M64: =F64+I64 -> 52517.32 | N64: =L64-M64 -> 4674041.9 | O64: 236327.961 | P64: 288845.281 | Q64: 4437713.939 | R64: 315103.948 | S64: 315103.948 | T64: 4122609.991 | V64: 0 | W64: 4280161.965
A65: Добавить
A66: Седьмая группа (свыше 15 лет до 20 лет включительно)
A67: Трансформаторная подстанция ТП 61 10/0,4-250кВА | B67: 10/0,4 | C67: 240 | D67: 240 | E67: 1636018.1 | F67: 490805.28 | G67: =E67-F67 -> 1145212.82 | I67: 20450.22 | L67: =E67 -> 1636018.1 | M67: =F67+I67 -> 511255.5 | N67: =L67-M67 -> 1124762.6 | O67: =IF(C67>0,IF(N67>L67/C67*9,(L67/C67*9),N67),0) -> 61350.67875 | P67: =I67+O67 -> 81800.89875 | Q67: =IF((N67-O67)>0,(N67-O67),0) -> 1063411.921 | R67: =IF(C67>0,IF(Q67>L67/C67*12,(L67/C67*12),Q67),0) -> 81800.905 | S67: =IF(D67>0,IF(Q67>L67/D67*12,(L67/D67*12),Q67),0) -> 81800.905 | T67: =IF((Q67-R67)>0,(Q67-R67),0) -> 981611.0163 | V67: =IF(U67=2.2,(T67+Q67)/2,0) -> 0 | W67: =IF(U67=0,(T67+Q67)/2,0) -> 1022511.469
A68: Трансформаторная подстанция ТП 66 10/0,4-250кВА | B68: 10/0,4 | C68: 240 | D68: =$D$67 -> 240 | E68: 1653625.37 | F68: 413406.6 | G68: 1240218.77 | I68: 20670.33 | L68: 1653625.37 | M68: 434076.93 | N68: 1219548.44 | O68: =IF(C68>0,IF(N68>L68/C68*9,(L68/C68*9),N68),0) -> 62010.95138 | P68: 82681.28138 | Q68: 1157537.489 | R68: 82681.2685 | S68: 82681.2685 | T68: 1074856.22 | V68: 0 | W68: 1116196.854
A69: Мачтовая ТП 95 10/0,4-100кВА | B69: 10/0,4 | C69: 240 | D69: =$D$67 -> 240 | E69: 334555.91 | F69: 58547.16 | G69: 276008.75 | I69: 4181.943 | L69: 334555.91 | M69: 62729.103 | N69: 271826.807 | O69: 12545.84663 | P69: 16727.78963 | Q69: 259280.9604 | R69: 16727.7955 | S69: 16727.7955 | T69: 242553.1649 | V69: 0 | W69: 250917.0626
A70: Мачтовая ТП 96 10/0,4-100кВА | B70: 10/0,4 | C70: 240 | D70: =$D$67 -> 240 | E70: 334555.91 | F70: 58547.16 | G70: 276008.75 | I70: 4181.94 | L70: 334555.91 | M70: 62729.1 | N70: 271826.81 | O70: 12545.84663 | P70: 16727.78663 | Q70: 259280.9634 | R70: 16727.7955 | S70: 16727.7955 | T70: 242553.1679 | V70: 0 | W70: 250917.0656
A71: АИИС КУЭ | B71: 0,4 кВ | C71: 192 | D71: =$D$67 -> 240 | E71: 15315771.43 | F71: 5212196.26 | G71: 10103575.17 | I71: 239308.92 | L71: 15315771.43 | M71: 5451505.18 | N71: 9864266.25 | O71: =IF(C71>0,IF(N71>L71/C71*9,(L71/C71*9),N71),0) -> 717926.7858 | P71: 957235.7058 | Q71: 9146339.464 | R71: 957235.7144 | S71: 765788.5715 | T71: 8189103.75 | V71: 0 | W71: 8667721.607
A72: Мачтовая ТП 88 ул. Чулкова | B72: 10/0,4 | C72: 240 | D72: =$D$67 -> 240 | E72: 296331.11 | F72: 13581.81 | G72: 282749.3 | I72: 3704.13 | L72: 296331.11 | M72: 17285.94 | N72: 279045.17 | O72: 11112.41662 | P72: 14816.54662 | Q72: 267932.7534 | R72: 14816.5555 | S72: 14816.5555 | T72: 253116.1979 | V72: 0 | W72: 260524.4756
A73: Добавить
A74: Восьмая группа (свыше 20 лет до 25 лет включительно)
D75: 300 | O75: =IF(C75>0,IF(N75>L75/C75*9,(L75/C75*9),N75),0) -> 0 | P75: =I75+O75 -> 0 | Q75: =IF((N75-O75)>0,(N75-O75),0) -> 0 | R75: =IF(C75>0,IF(Q75>L75/C75*12,(L75/C75*12),Q75),0) -> 0 | S75: =IF(D75>0,IF(Q75>L75/D75*12,(L75/D75*12),Q75),0) -> 0 | T75: =IF((Q75-R75)>0,(Q75-R75),0) -> 0 | V75: =IF(U75=2.2,(T75+Q75)/2,0) -> 0 | W75: =IF(U75=0,(T75+Q75)/2,0) -> 0
D76: =$D$75 -> 300 | O76: =IF(C76>0,IF(N76>L76/C76*9,(L76/C76*9),N76),0) -> 0 | P76: =I76+O76 -> 0 | Q76: =IF((N76-O76)>0,(N76-O76),0) -> 0 | R76: =IF(C76>0,IF(Q76>L76/C76*12,(L76/C76*12),Q76),0) -> 0 | S76: =IF(D76>0,IF(Q76>L76/D76*12,(L76/D76*12),Q76),0) -> 0 | T76: =IF((Q76-R76)>0,(Q76-R76),0) -> 0 | V76: =IF(U76=2.2,(T76+Q76)/2,0) -> 0 | W76: =IF(U76=0,(T76+Q76)/2,0) -> 0
D77: =$D$75 -> 300 | O77: 0 | P77: =I77+O77 -> 0 | Q77: =IF((N77-O77)>0,(N77-O77),0) -> 0 | R77: =IF(C77>0,IF(Q77>L77/C77*12,(L77/C77*12),Q77),0) -> 0 | S77: =IF(D77>0,IF(Q77>L77/D77*12,(L77/D77*12),Q77),0) -> 0 | T77: =IF((Q77-R77)>0,(Q77-R77),0) -> 0 | V77: =IF(U77=2.2,(T77+Q77)/2,0) -> 0 | W77: =IF(U77=0,(T77+Q77)/2,0) -> 0
A78: Добавить
A79: Девятая группа (свыше 25 лет до 30 лет включительно)
A80: Трансформаторная подстанция ТП 44 10/0,4-250кВА | B80: 10/0,4 | C80: 360 | D80: 360 | E80: 298798.03 | F80: 39839.52 | G80: =E80-F80 -> 258958.51 | I80: 2489.97 | L80: =E80 -> 298798.03 | M80: =F80+I80 -> 42329.49 | N80: =L80-M80 -> 256468.54 | O80: =IF(C80>0,IF(N80>L80/C80*9,(L80/C80*9),N80),0) -> 7469.95075 | P80: =I80+O80 -> 9959.92075 | Q80: =IF((N80-O80)>0,(N80-O80),0) -> 248998.5893 | R80: =IF(C80>0,IF(Q80>L80/C80*12,(L80/C80*12),Q80),0) -> 9959.934333 | S80: =IF(D80>0,IF(Q80>L80/D80*12,(L80/D80*12),Q80),0) -> 9959.934333 | T80: =IF((Q80-R80)>0,(Q80-R80),0) -> 239038.6549 | V80: =IF(U80=2.2,(T80+Q80)/2,0) -> 0 | W80: =IF(U80=0,(T80+Q80)/2,0) -> 244018.6221
D81: =$D$80 -> 360 | O81: =IF(C81>0,IF(N81>L81/C81*9,(L81/C81*9),N81),0) -> 0 | P81: =I81+O81 -> 0 | Q81: =IF((N81-O81)>0,(N81-O81),0) -> 0 | R81: =IF(C81>0,IF(Q81>L81/C81*12,(L81/C81*12),Q81),0) -> 0 | S81: =IF(D81>0,IF(Q81>L81/D81*12,(L81/D81*12),Q81),0) -> 0 | T81: =IF((Q81-R81)>0,(Q81-R81),0) -> 0 | V81: =IF(U81=2.2,(T81+Q81)/2,0) -> 0 | W81: =IF(U81=0,(T81+Q81)/2,0) -> 0
A82: Добавить
A83: Десятая группа (свыше 30 лет)
A84: Трансформаторная подстанция ТП 38 10/0,4-250кВА | B84: 10/0,4 | C84: 480 | D84: =MAX(361,C84) -> 480 | E84: 1200003.71 | F84: 120000.48 | G84: =E84-F84 -> 1080003.23 | I84: 7500.03 | L84: =E84 -> 1200003.71 | M84: =F84+I84 -> 127500.51 | N84: =L84-M84 -> 1072503.2 | O84: =IF(C84>0,IF(N84>L84/C84*9,(L84/C84*9),N84),0) -> 22500.06956 | P84: =I84+O84 -> 30000.09956 | Q84: =IF((N84-O84)>0,(N84-O84),0) -> 1050003.13 | R84: =IF(C84>0,IF(Q84>L84/C84*12,(L84/C84*12),Q84),0) -> 30000.09275 | S84: =IF(D84>0,IF(Q84>L84/D84*12,(L84/D84*12),Q84),0) -> 30000.09275 | T84: =IF((Q84-R84)>0,(Q84-R84),0) -> 1020003.038 | V84: =IF(U84=2.2,(T84+Q84)/2,0) -> 0 | W84: =IF(U84=0,(T84+Q84)/2,0) -> 1035003.084
A85: Трансформаторная подстанция ТП 39 10/0,4-250кВА | B85: 10/0,4 | C85: 480 | D85: 480 | E85: 1725143.97 | F85: 172514.4 | G85: 1552629.57 | I85: 10782.15 | L85: 1725143.97 | M85: 183296.55 | N85: 1541847.42 | O85: 32346.44944 | P85: 43128.59944 | Q85: 1509500.971 | R85: 43128.59925 | S85: 43128.59925 | T85: 1466372.371 | V85: 0 | W85: 1487936.671
A86: Трансформаторная подстанция ТП 45 10/0,4-250кВА | B86: 10/0,4 | C86: 600 | D86: 600 | E86: 1714123.93 | F86: 219811.08 | G86: 1494312.85 | I86: 8570.61 | L86: 1714123.93 | M86: 228381.69 | N86: 1485742.24 | O86: 25711.85895 | P86: 34282.46895 | Q86: 1460030.381 | R86: 34282.4786 | S86: 34282.4786 | T86: 1425747.902 | V86: 0 | W86: 1442889.142
A87: Трансформаторная подстанция ТП 51 Очистные сооружения | B87: 10/0,4 | C87: 600 | D87: 600 | E87: 4153930.01 | F87: 332314.56 | G87: 3821615.45 | I87: 20769.66 | L87: 4153930.01 | M87: 353084.22 | N87: 3800845.79 | O87: 62308.95015 | P87: 83078.61015 | Q87: 3738536.84 | R87: 83078.6002 | S87: 83078.6002 | T87: 3655458.24 | V87: 0 | W87: 3696997.54
A88: Трансформаторная подстанция ТП 54 10/0,4-250кВА | B88: 10/0,4 | C88: 480 | D88: 480 | E88: 1459986.91 | F88: 283383.48 | G88: 1176603.43 | I88: 9124.92 | L88: 1459986.91 | M88: 292508.4 | N88: 1167478.51 | O88: 27374.75456 | P88: 36499.67456 | Q88: 1140103.755 | R88: 36499.67275 | S88: 36499.67275 | T88: 1103604.083 | V88: 0 | W88: 1121853.919
A89: Трансформаторная подстанция ТП 55 10/0,4-400кВА | B89: 10/0,4 | C89: 480 | D89: 480 | E89: 2112753.69 | F89: 312237.2 | G89: 1800516.49 | I89: 13204.71 | L89: 2112753.69 | M89: 325441.91 | N89: 1787311.78 | O89: 39614.13169 | P89: 52818.84169 | Q89: 1747697.648 | R89: 52818.84225 | S89: 52818.84225 | T89: 1694878.806 | V89: 0 | W89: 1721288.227
A90: Трансформаторная подстанция ТП 56 10/0,4-400кВА*2 | B90: 10/0,4 | C90: 600 | D90: 600 | E90: 3337073.68 | F90: 266965.92 | G90: 3070107.76 | I90: 16685.37 | L90: 3337073.68 | M90: 283651.29 | N90: 3053422.39 | O90: 50056.1052 | P90: 66741.4752 | Q90: 3003366.285 | R90: 66741.4736 | S90: 66741.4736 | T90: 2936624.811 | V90: 0 | W90: 2969995.548
A91: Трансформаторная подстанция ТП 62 10/0,4-400кВА | B91: 10/0,4 | C91: 600 | D91: =MAX(361,C91) -> 600 | E91: 4367990.75 | F91: 522871.1 | G91: 3845119.65 | I91: 21839.94 | L91: 4367990.75 | M91: 544711.04 | N91: 3823279.71 | O91: =IF(C91>0,IF(N91>L91/C91*9,(L91/C91*9),N91),0) -> 65519.86125 | P91: 87359.80125 | Q91: 3757759.849 | R91: 87359.815 | S91: 87359.815 | T91: 3670400.034 | V91: 0 | W91: 3714079.941
A92: Трансформаторная подстанция ТП 63 10/0,4-400кВА*2 | B92: 10/0,4 | C92: 600 | D92: 600 | E92: 4241739.65 | F92: 339339.36 | G92: 3902400.29 | I92: 21208.71 | L92: 4241739.65 | M92: 360548.07 | N92: 3881191.58 | O92: 63626.09475 | P92: 84834.80475 | Q92: 3817565.485 | R92: 84834.793 | S92: 84834.793 | T92: 3732730.692 | V92: 0 | W92: 3775148.089
A93: Трансформаторная подстанция ТП 91 10/0,4-250кВА | B93: 10/0,4 | C93: 480 | D93: 480 | E93: 1702885.57 | F93: 170288.64 | G93: 1532596.93 | I93: 10643.04 | L93: 1702885.57 | M93: 180931.68 | N93: 1521953.89 | O93: =IF(C93>0,IF(N93>L93/C93*9,(L93/C93*9),N93),0) -> 31929.10444 | P93: 42572.14444 | Q93: 1490024.786 | R93: 42572.13925 | S93: 42572.13925 | T93: 1447452.646 | V93: 0 | W93: 1468738.716
A94: Трансформаторная подстанция ТП 10 10/0,4-100кВА | B94: 10/0,4 | C94: 600 | D94: 600 | E94: 1708942.34 | F94: 68357.76 | G94: 1640584.58 | I94: 8544.72 | L94: 1708942.34 | M94: 76902.48 | N94: 1632039.86 | O94: 25634.1351 | P94: 34178.8551 | Q94: 1606405.725 | R94: 34178.8468 | S94: 34178.8468 | T94: 1572226.878 | V94: 0 | W94: 1589316.302
A95: Трансформаторная подстанция ТП 11 10/0,4-250кВА | B95: 10/0,4 | C95: 600 | D95: =MAX(361,C95) -> 600 | E95: 1339231.89 | F95: 53569.2 | G95: 1285662.69 | I95: 6696.15 | L95: 1339231.89 | M95: 60265.35 | N95: 1278966.54 | O95: =IF(C95>0,IF(N95>L95/C95*9,(L95/C95*9),N95),0) -> 20088.47835 | P95: 26784.62835 | Q95: 1258878.062 | R95: 26784.6378 | S95: 26784.6378 | T95: 1232093.424 | V95: 0 | W95: 1245485.743
A96: Трансформаторная подстанция ТП 37 10/0,4-250кВА*2 | B96: 10/0,4 | C96: 600 | D96: 600 | E96: 2315283.12 | F96: 92611.44 | G96: 2222671.68 | I96: 11576.43 | L96: 2315283.12 | M96: 104187.87 | N96: 2211095.25 | O96: 34729.2468 | P96: 46305.6768 | Q96: 2176366.003 | R96: 46305.6624 | S96: 46305.6624 | T96: 2130060.341 | V96: 0 | W96: 2153213.172
A97: Подстанция ТП-13 | B97: 10/0,4 | C97: 600 | D97: =MAX(361,C97) -> 600 | E97: 660254.32 | F97: 26410.08 | G97: 633844.24 | I97: 3301.26 | L97: 660254.32 | M97: 29711.34 | N97: 630542.98 | O97: 9903.8148 | P97: 13205.0748 | Q97: 620639.1652 | R97: 13205.0864 | S97: 13205.0864 | T97: 607434.0788 | V97: 0 | W97: 614036.622
A98: Подстанция ТП-2 | B98: 10/0,4 | C98: 600 | D98: =MAX(361,C98) -> 600 | E98: 875872.97 | F98: 35034.96 | G98: 840838.01 | I98: 4379.37 | L98: 875872.97 | M98: 39414.33 | N98: 836458.64 | O98: =IF(C98>0,IF(N98>L98/C98*9,(L98/C98*9),N98),0) -> 13138.09455 | P98: 17517.46455 | Q98: 823320.5454 | R98: 17517.4594 | S98: 17517.4594 | T98: 805803.086 | V98: 0 | W98: 814561.8157
A99: КТП 40 ул. 1-я Воронцова | B99: 10/0,4 | C99: 480 | D99: =MAX(361,C99) -> 480 | E99: 2028474.33 | F99: 46485.89 | G99: =E99-F99 -> 1981988.44 | I99: 12677.97 | L99: =E99 -> 2028474.33 | M99: =F99+I99 -> 59163.86 | N99: =L99-M99 -> 1969310.47 | O99: 38033.89369 | P99: 50711.86369 | Q99: 1931276.576 | R99: 50711.85825 | S99: 50711.85825 | T99: 1880564.718 | V99: 0 | W99: 1905920.647
A100: КТП 41 ул. Мира | B100: 10/0,4 | C100: 480 | D100: 480 | I100: 24724.08 | L100: 5933777.67 | M100: 24724.08 | N100: 5909053.59 | O100: 111258.3313 | P100: 135982.4113 | Q100: 5797795.259 | R100: 148344.4417 | S100: 148344.4417 | T100: 5649450.817 | V100: 0 | W100: 5723623.038
A101: Добавить
A102: Неамортизируемое имущество (Земельные участки)
O103: х | Q103: =G103 -> 0 | R103: х | S103: х | T103: =Q103 -> 0 | V103: =IF(U103=2.2,(T103+Q103)/2,0) -> 0 | W103: =IF(U103=0,(T103+Q103)/2,0) -> 0
O104: х | Q104: =G104 -> 0 | R104: х | S104: х | T104: =Q104 -> 0 | V104: =IF(U104=2.2,(T104+Q104)/2,0) -> 0 | W104: =IF(U104=0,(T104+Q104)/2,0) -> 0
O105: х | Q105: =G105 -> 0 | R105: х | S105: х | T105: =Q105 -> 0 | V105: =IF(U105=2.2,(T105+Q105)/2,0) -> 0 | W105: =IF(U105=0,(T105+Q105)/2,0) -> 0
O106: х | Q106: =G106 -> 0 | R106: х | S106: х | T106: =Q106 -> 0 | V106: =IF(U106=2.2,(T106+Q106)/2,0) -> 0 | W106: =IF(U106=0,(T106+Q106)/2,0) -> 0
A107: Добавить
A108: Итого | B108: x | C108: x | D108: x | E108: =SUM(E7:E106) -> 121172509.3 | F108: 19718263.61 | G108: 101454245.7 | H108: 0 | I108: 1684375.693 | J108: 0 | K108: 0 | L108: 131832846.2 | M108: 21402639.3 | N108: 110430206.9 | O108: =SUM(O8:O10)+SUM(O13:O15)+SUM(O18:O20)+SUM(O23:O25)+SUM(O28:O30)+SUM(O33:O64)+SUM(O67:O72)+SUM(O75:O77)+SUM(O80:O81)+SUM(O84:O100)+SUM(O103:O106) -> 5096150.742 | P108: 6780526.435 | Q108: 105334056.1 | R108: 6794867.656 | S108: 6665921.552 | T108: 98539188.49 | U108: х | V108: =SUM(V8:V10)+SUM(V13:V15)+SUM(V18:V20)+SUM(V23:V25)+SUM(V28:V30)+SUM(V33:V64)+SUM(V67:V72)+SUM(V75:V77)+SUM(V80:V81)+SUM(V84:V100)+SUM(V103:V106) -> 0 | W108: =SUM(W8:W10)+SUM(W13:W15)+SUM(W18:W20)+SUM(W23:W25)+SUM(W28:W30)+SUM(W33:W64)+SUM(W67:W72)+SUM(W75:W77)+SUM(W80:W81)+SUM(W84:W100)+SUM(W103:W106) -> 101936622.3
A110: Руководитель организации | F110: ='Инф-я'!$C$17 -> Окунев Василий Михайлович
A112: Примечание
A113: Основные средства, полностью самортизированные по бухгалтерскому учету на 01.01.2018 г., участвующие в передаче электрической энергии, указываются в листе "Справка по ОС"

Sheet Справка по ОС
A2: Справка о наличии основных средств, полностью самортизированных по бухгалтерскому учету на 01.01.2018 г., участвующих в передаче электрической энергии
A4: ='Инф-я'!C9 -> Общество с ограниченной ответственностью "Энергетик"
A7: Основное средство, Инвентарный номер | B7: Амортизационная группа | C7: Срок полезного использования, мес. | E7: Дата принятия объекта | G7: Первоначальная стоимость, тыс. руб. | H7: Амортизация в месяц | J7: Остаточная стоимость на 01.01.2015 | K7: Амортизация 2015 год | L7: Остаточная стоимость на 01.01.2016 | M7: Амортизация 2016 год | N7: Остаточная стоимость на 01.01.2017 | O7: Амортизация 2017 год | P7: Остаточная стоимость на 01.01.2018 | Q7: Амортизация 2018 год | R7: Остаточная стоимость на 01.01.2019 | S7: Амортизация 2019 год
C8: бух.учет | D8: Максимальный срок по группе | E8: Порядковый номер месяца | F8: год | H8: бух.учет | I8: Максимальный срок по группе | S8: По данным организации | T8: По данным экспертов
A9: 1 | B9: =+A9+1 -> 2 | C9: 3 | D9: 4 | E9: 5 | F9: 6 | G9: 7 | H9: 8 | I9: 9 | J9: 10 | K9: 11 | L9: 12 | M9: 13 | N9: 14 | O9: 15 | P9: 16 | S9: 11 | T9: 12
H10: =IF(C10=0,0,G10/C10) -> 0 | I10: =IF(D10=0,0,G10/D10) -> 0 | J10: =IF(G10-((2015-F10)*12-(12-(13-E10))-1)*H10<0,0,G10-((2015-F10)*12-(12-(13-E10))-1)*H10) -> 0 | K10: =IF($D10>0,IF(J10>$I10*12,($I10*12),J10),0) -> 0 | L10: =IF((J10-K10)>0,(J10-K10),0) -> 0 | M10: =IF($D10>0,IF(L10>$I10*12,($I10*12),L10),0) -> 0 | N10: =IF((L10-M10)>0,(L10-M10),0) -> 0 | O10: =IF($D10>0,IF(N10>$I10*12,($I10*12),N10),0) -> 0 | P10: =IF((N10-O10)>0,(N10-O10),0) -> 0 | Q10: =IF($D10>0,IF(P10>$I10*12,($I10*12),P10),0) -> 0 | R10: =IF((P10-Q10)>0,(P10-Q10),0) -> 0 | S10: =IF($D10>0,IF(R10>$I10*12,($I10*12),R10),0) -> 0
H11: =IF(C11=0,0,G11/C11) -> 0 | I11: =IF(D11=0,0,G11/D11) -> 0 | J11: 0 | K11: =IF($D11>0,IF(J11>$I11*12,($I11*12),J11),0) -> 0 | L11: =IF((J11-K11)>0,(J11-K11),0) -> 0 | M11: =IF($D11>0,IF(L11>$I11*12,($I11*12),L11),0) -> 0 | N11: =IF((L11-M11)>0,(L11-M11),0) -> 0 | O11: =IF($D11>0,IF(N11>$I11*12,($I11*12),N11),0) -> 0 | P11: =IF((N11-O11)>0,(N11-O11),0) -> 0 | Q11: 0 | R11: 0 | S11: 0
H12: 0 | I12: 0 | J12: 0 | K12: 0 | L12: 0 | M12: 0 | N12: 0 | O12: 0 | P12: 0 | Q12: 0 | R12: 0 | S12: 0
H13: 0 | I13: 0 | J13: 0 | K13: 0 | L13: 0 | M13: 0 | N13: 0 | O13: 0 | P13: 0 | Q13: 0 | R13: 0 | S13: 0
H14: 0 | I14: 0 | J14: 0 | K14: 0 | L14: 0 | M14: 0 | N14: 0 | O14: 0 | P14: 0 | Q14: 0 | R14: 0 | S14: 0
H15: 0 | I15: 0 | J15: 0 | K15: 0 | L15: 0 | M15: 0 | N15: 0 | O15: 0 | P15: 0 | Q15: 0 | R15: 0 | S15: 0
H16: 0 | I16: 0 | J16: 0 | K16: 0 | L16: 0 | M16: 0 | N16: 0 | O16: 0 | P16: 0 | Q16: 0 | R16: 0 | S16: 0
H17: 0 | I17: 0 | J17: 0 | K17: 0 | L17: 0 | M17: 0 | N17: 0 | O17: 0 | P17: 0 | Q17: 0 | R17: 0 | S17: 0
H18: 0 | I18: 0 | J18: 0 | K18: 0 | L18: 0 | M18: 0 | N18: 0 | O18: 0 | P18: 0 | Q18: 0 | R18: 0 | S18: 0
H19: 0 | I19: 0 | J19: 0 | K19: 0 | L19: 0 | M19: 0 | N19: 0 | O19: 0 | P19: 0 | Q19: 0 | R19: 0 | S19: 0
A20: Добавить
A21: Всего по основным средствам, полностью самортизированным по бухгалтерскому учету, участвующим в передаче электрической энергии | L21: х | M21: х | N21: х | O21: х | P21: х | Q21: х | R21: х | S21: =SUM(S10:S20) -> 0 | T21: =SUM(T10:T20) -> 0
A23: Руководитель организации | D23: ='Инф-я'!C17 -> Окунев Василий Михайлович

Sheet Ввод выбытие ОС
A2: Справка о вводе основных средств в 2018 году (с 01.04.2018 г.), участвующих в передаче электрической энергии
A4: ='Инф-я'!C9 -> Общество с ограниченной ответственностью "Энергетик"
A6: Наименование вводимых объектов основных фондов | B6: По данным организации | E6: По данным экспертов
B7: Стоимость объекта (тыс. руб.) | C7: Норма амортизационных отчислений, % | D7: Корректировка годовой суммы амортизационных отчислений по вводимым объектам (тыс. руб.) | E7: Стоимость объекта (тыс. руб.) | F7: Норма амортизационных отчислений, % | G7: Корректировка годовой суммы амортизационных отчислений по вводимым объектам (тыс. руб.)
A8: 1 | B8: 2 | C8: 3 | D8: 4 | E8: 5 | F8: 6 | G8: 7
A9: Реконструкция ВЛ 10 кВ от ТП 10 до ТП 27 (фидер 1001) | B9: 2138.149 | C9: 0.0667 | D9: =B9*C9 -> 142.6145383 | G9: =E9*F9 -> 0
A10: Строительство ВЛ 10 кВ от ТП 12 до ТП 62 Ф1001, Фидер 1001 | B10: 1783.832 | C10: 0.0667 | D10: =B10*C10 -> 118.9815944 | G10: =E10*F10 -> 0
A11: Реконструкция ВЛ 10 кВ от ПС "Карабаново" до ТП 12 (фидер 1001) | B11: 3604.938 | C11: 0.0667 | D11: 240.4493646 | G11: 0
A12: Установка КРУН (10кВ)на выходе с ПС "Карабаново"фидера 1003 2 ячейки | B12: 2341.653 | C12: 0.0333 | D12: 77.9770449 | G12: 0
D13: 0 | G13: 0
A14: Добавить
A15: Всего по вводимым объектам в 2018 году (с 01.04.2018 г.), участвующим в передаче электрической энергии | B15: =SUM(B9:B13) -> 9868.572 | C15: х | D15: =SUM(D9:D13) -> 580.0225422 | E15: =SUM(E9:E13) -> 0 | F15: х | G15: =SUM(G9:G13) -> 0
A18: Справка о выбытии не полностью самортизированных основных средств в 2018 году (с 01.04.2018 г.), участвующих в передаче электрической энергии
A20: Наименование выводимых объектов основных фондов | B20: По данным организации | E20: По данным экспертов
B21: Стоимость объекта (тыс. руб.) | C21: Норма амортизационных отчислений | D21: Корректировка годовой суммы амортизационных отчислений по выбывающим объектам* (тыс. руб.) | E21: Стоимость объекта (тыс. руб.) | F21: Норма амортизационных отчислений | G21: Корректировка годовой суммы амортизационных отчислений по выбывающим объектам* (тыс. руб.)
A22: 1 | B22: 2 | C22: 3 | D22: 4 | E22: 5 | F22: 6 | G22: 7
D23: =B23*C23 -> 0 | G23: =E23*F23 -> 0
D24: =B24*C24 -> 0 | G24: =E24*F24 -> 0
D25: =B25*C25 -> 0 | G25: =E25*F25 -> 0
D26: 0 | G26: 0
A27: Добавить
A28: Всего по выбывающим объектам в 2018 году (с 01.04.2018 г.), участвующим в передаче электрической энергии | B28: =SUM(B23:B26) -> 0 | C28: х | D28: =SUM(D23:D26) -> 0 | E28: =SUM(E23:E26) -> 0 | F28: х | G28: =SUM(G23:G26) -> 0
A30: Руководитель организации | D30: ='Инф-я'!C17 -> Окунев Василий Михайлович
A32: В справке о выбытии основных средств указывается информация о выбывающих объектах (продажа, ликвидация)

Sheet Свод по амортизации
A3: Сводный расчет амортизационных отчислений на восстановление основных производственных фондов, участвующих в передаче электрической энергии
A5: ='Инф-я'!C9 -> Общество с ограниченной ответственностью "Энергетик"
G6: тыс. руб.
A7: Наименование | B7: 2017 год | D7: 2018 год | F7: 2019 год
B8: Утверждено | C8: Факт | D8: Утверждено | E8: Ожидаемые | F8: По данным организации | G8: По данным экспертов
A9: 1 | B9: 2 | C9: 3 | D9: 4 | E9: 5 | F9: 6 | G9: 7
A10: Амортизационные отчисления на 2018 год по основным средствам по состоянию на 01.04.2018 г. | B10: х | C10: х | D10: х | E10: х | F10: ='Расчет аморт. max срок '!S108/1000 -> 6665.921552
A11: Корректировка годовой суммы амортизационных отчислений, в том числе: | B11: х | C11: х | D11: х | E11: х | F11: =F12-F13+F14 -> 580.0225422 | G11: =G12-G13+G14 -> 0
A12: по вводимым объектам основных средств после 01.04.2018 г. (+) | B12: х | C12: х | D12: х | E12: х | F12: ='Ввод выбытие ОС '!D15 -> 580.0225422 | G12: ='Ввод выбытие ОС '!G15 -> 0
A13: по выбывающим объектам основных средств после 01.04.2018 г.(-) | B13: х | C13: х | D13: х | E13: х | F13: ='Ввод выбытие ОС '!D28 -> 0 | G13: ='Ввод выбытие ОС '!G28 -> 0
A14: по объектам основных средств, полностью самортизированных по бухгалтерскому учету | F14: ='Справка по ОС'!S21 -> 0 | G14: ='Справка по ОС'!T21 -> 0
A15: Годовая сумма амортизационных отчислений | B15: 4681.141312 | C15: 4014.395 | D15: 4803.363901 | E15: 6737.5 | F15: =F10+F11 -> 7245.944094 | G15: =G10+G11 -> 0
A16: в т.ч. по уровням напряжения: ВН | B16: х | C16: х | E16: х
A17: СН1 | B17: х | C17: х | E17: х
A18: СН2 | B18: х | C18: х | E18: х
A19: НН | B19: х | C19: х | E19: х
A21: Руководитель организации | D21: ='Инф-я'!C17 -> Окунев Василий Михайлович

Sheet Страховые взносы
B2: Расчет расходов на страховые взносы
B4: ='Инф-я'!C9 -> Общество с ограниченной ответственностью "Энергетик"
H5: тыс. руб.
A6: № п/п | B6: Наименование | C6: Ед.изм. | D6: 2017 год | F6: 2018 год | H6: 2019 год | J6: 2017 год
D7: Утверждено | E7: Факт | F7: Утверждено | G7: Ожидаемые | H7: По данным организации | I7: По данным экспертов | J7: Факт по данным экспертов
A8: 1 | B8: 2 | C8: 3 | D8: 4 | E8: 5 | F8: 6 | G8: 7 | H8: 8 | I8: 9 | J8: 10
A9: 1. | B9: Сумма выплат и иных вознаграждений, начисленных в пользу физических лиц, в соответствии со статьей 420 НК РФ | C9: тыс. руб. | D9: х | E9: х | F9: 12302.09609 | G9: 14270.79 | H9: =H10+H11 -> 13611.79248 | I9: =I10+I11 -> 3072.179627 | J9: х
A10: 1.1. | B10: Расходы из фонда оплаты труда | C10: тыс. руб. | D10: х | E10: х | F10: 12064.66259 | G10: 14033.4 | H10: ='Подконтрольные расходы'!E17 -> 13229.97728 | I10: ='Подконтрольные расходы'!F17 -> 2986.003992 | J10: х
A11: 1.2. | B11: Расходы по коллективным договорам | C11: тыс. руб. | D11: х | E11: х | F11: 348.184384 | G11: 475.78 | H11: ='Подконтрольные расходы'!E30 -> 381.8151941 | I11: ='Подконтрольные расходы'!F30 -> 86.17563503 | J11: х
A12: 2. | B12: Суммы, не подлежащие обложению страховыми взносами, в соответствии со статьей 422 НК РФ | C12: тыс. руб. | D12: х | E12: х | F12: 110.7508917 | G12: 140 | H12: =F12*'Подконтрольные расходы'!E15 -> 121.4482187 | I12: =F12*'Подконтрольные расходы'!F15 -> 27.4108457 | J12: х
A13: 3. | B13: Тарифы страховых взносов: | C13: % | D13: х | E13: х | F13: х | G13: х | H13: х | I13: х | J13: х
A14: 3.1. | B14: на обязательное пенсионное страхование | C14: % | D14: х | E14: х | F14: 0.22 | G14: 0.22 | H14: 0.22 | I14: 0.22 | J14: х
A15: 3.2. | B15: на обязательное медицинское страхование | C15: % | D15: х | E15: х | F15: 0.051 | G15: 0.051 | H15: 0.051 | I15: 0.051 | J15: х
A16: 3.3. | B16: на обязательное социальное страхование на случай временной нетрудоспособности и в связи с материнством | C16: % | D16: х | E16: х | F16: 0.029 | G16: 0.029 | H16: 0.029 | I16: 0.029 | J16: х
A17: 3.4. | B17: на обязательное страхование от несчастных случаев | C17: % | D17: х | E17: х | F17: 0.004 | G17: 0.004 | H17: 0.004 | J17: х
A18: 4. | B18: Расходы на страховые взносы: | C18: тыс. руб. | D18: 3542.84307 | E18: 3873.18 | F18: 3706.168939 | G18: =G19+G20+G21+G22 -> 4295.76016 | H18: =H19+H20+H21+H22 -> 4101.064654 | I18: =I19+I20+I21+I22 -> 913.4306343
A19: 4.1. | B19: на обязательное пенсионное страхование | C19: тыс. руб. | D19: х | E19: 2802.912 | F19: 2682.095943 | G19: =(G9-G12)*G14 -> 3108.7738 | H19: =(H9-H12)*H14 -> 2967.875736 | I19: =(I9-I12)*I14 -> 669.8491318
A20: 4.2. | B20: на обязательное медицинское страхование | C20: тыс. руб. | D20: х | E20: 649.766 | F20: 621.7586049 | G20: =(G9-G12)*G15 -> 720.67029 | H20: =(H9-H12)*H15 -> 688.0075571 | I20: =(I9-I12)*I15 -> 155.2832078
A21: 4.3. | B21: на обязательное социальное страхование на случай временной нетрудоспособности и в связи с материнством | C21: тыс. руб. | D21: х | E21: 369.474 | F21: 353.5490106 | G21: =(G9-G12)*G16 -> 409.79291 | H21: =(H9-H12)*H16 -> 391.2199834 | I21: =(I9-I12)*I16 -> 88.29829465
A22: 4.4. | B22: на обязательное страхование от несчастных случаев | C22: тыс. руб. | D22: х | E22: 51.024 | F22: 48.76538077 | G22: =(G9-G12)*G17 -> 56.52316 | H22: =(H9-H12)*H17 -> 53.96137703 | I22: =(I9-I12)*I17 -> 0
B24: Руководитель организации | E24: ='Инф-я'!C17 -> Окунев Василий Михайлович
A31: № п./п. | B31: Показатели | C31: По расчету Общества
A32: 1 | B32: 2 | C32: 3
A33: 1. | B33: Расходы на оплату труда, включаемые в базу для начисления страховых взносов | C33: =H9 -> 13611.79248
A34: 2. | B34: Выплаты работникам по коллективному договору - всего. в т. ч. | C34: 0
A35: 3. | B35: суммы, не подлежащие обложению страховыми взносами в соответствии со ст. 9 закона от 24.07.2009 г. № 212-ФЗ | C35: 0
A36: 4. | B36: Итого база страховых взносов (п.1+п.2-п.3) | C36: =C33+C34 -> 13611.79248
A37: 5. | B37: Отчисления во внебюджетные фонды | C37: =C36*C38/100 -> 4137.984912
A38: 6. | B38: Процент отчислений (%) | C38: 30.4

Sheet Расходы рег. орг-ий
A2: Расходы на оплату услуг организаций, осуществляющих регулируемые виды деятельности
A4: ='Инф-я'!C9 -> Общество с ограниченной ответственностью "Энергетик"
F6: тыс. руб.
A7: Наименование | B7: 2017 год | D7: 2018 год | F7: 2019 год | H7: 2017 год
B8: Утверждено | C8: Факт | D8: Утверждено | E8: Ожидаемые | F8: По данным организации | G8: По данным экспертов | H8: Факт по данным экспертов
A9: 1 | B9: 2 | C9: 3 | D9: 4 | E9: 5 | F9: 6 | G9: 7 | H9: 9
A10: Тепловая энергия | B10: 169.3951971 | C10: =SUM(C11:C12) -> 201.356 | D10: 209.1894709 | E10: =SUM(E11:E12) -> 221.49 | F10: 243.65 | G10: 0 | H10: 0
A11: договор с ООО "Теплосеть" от_____№ __ | B11: х | C11: 201.356 | D11: х | E11: 221.49 | F11: 243.65
A12: договор с _____ от_____№ __ на_________ | B12: х | D12: х
A13: Добавить
A14: Водоснабжение и канализация | B14: 22.67267163 | C14: =SUM(C15:C16) -> 20.416 | D14: 27.28460464 | E14: =SUM(E15:E16) -> 22.46 | F14: 24.7 | G14: 0 | H14: 0
A15: договор с ООО "ВодКанал" от_____№ __ | B15: х | C15: 20.416 | D15: х | E15: 22.46 | F15: 24.7
A16: договор с _____ от_____№ __ на_________ | B16: х | D16: х
A17: Добавить
A18: Прочие услуги по регулируемым тарифам (вывоз ТБО) | B18: 13.52076757 | C18: =SUM(C19:C21) -> 12.979 | D18: 13.47229241 | E18: =SUM(E19:E21) -> 12.98 | F18: 13 | G18: 0 | H18: 0
A19: договор с МПК "Пионер" от 30.12.2016г. № 87 на оказание услуг по вывозу отходов | B19: х | C19: 12.979 | D19: х | E19: 12.98 | F19: 13
A20: договор с _____ от_____№ __ на_________ | B20: х | D20: х
A21: договор с _____ от_____№ __ на_________ | B21: х | D21: х
A22: Добавить
A23: Итого | B23: =B10+B14+B18 -> 205.5886363 | C23: 234.751 | D23: 249.946368 | E23: 256.93 | F23: 281.35 | G23: =G10+G14+G18 -> 0 | H23: =H10+H14+H18 -> 0
A25: Руководитель организации | D25: ='Инф-я'!C17 -> Окунев Василий Михайлович

Sheet Аренда имущества
A2: Расходы по аренде имущества в части амортизации и налогов, относимых к арендуемому имуществу
A4: ='Инф-я'!C9 -> Общество с ограниченной ответственностью "Энергетик"
M5: тыс. руб.
A6: Наименование | B6: 2017 год | D6: 2018 год | F6: 2019 год | V6: 2017 год Факт по данным экспертов
F7: По данным организации | N7: По расчету экспертов
F8: Сумма арендной платы для включения в тариф | G8: Стоимость арендной платы по договору | H8: Стоимость арендной платы в соответствии с требованиями п. 28 Основ ценообразования | N8: Сумма арендной платы для включения в тариф | O8: Стоимость арендной платы по договору | P8: Стоимость арендной платы расчитанной в соответствии с требованиями п. 28 Основ ценообразования
B9: Утверждено | C9: Факт | D9: Утверждено | E9: Ожидаемые | H9: Всего | I9: амортизационные отчисления | J9: налог на имущество | K9: транспортный налог | L9: плата за землю | M9: иные обязательные платежи предусмотренные законодательством, связанные с арендуемым имуществом | P9: Всего | Q9: амортизационные отчисления | R9: налог на имущество | S9: транспортный налог | T9: плата за землю | U9: иные обязательные платежи предусмотренные законодательством, связанные с арендуемым имуществом
A10: 1 | B10: 2 | C10: 3 | D10: 4 | E10: 5 | F10: 6 | G10: 7 | H10: 8 | I10: 9 | J10: 10 | K10: 11 | L10: 12 | M10: 13 | N10: 14 | O10: 15 | P10: 16 | Q10: 17 | R10: 18 | S10: 19 | T10: 20 | U10: 21 | V10: 22
A11: Аренда объектов электросетевого хозяйства | B11: =SUM(B12:B14) -> 2976 | C11: =SUM(C12:C14) -> 2976 | D11: 2976 | E11: 2976 | F11: 2976 | G11: 2976 | H11: 2976 | I11: 2976 | J11: 0 | K11: 0 | L11: 0 | M11: 0 | N11: =SUM(N12:N14) -> 0 | O11: =SUM(O12:O14) -> 0 | P11: 0 | Q11: 0 | R11: 0 | S11: 0 | T11: 0 | U11: 0 | V11: =SUM(V12:V14) -> 0
A12: договор с ООО "Техстройэнерго" от 30.12.2016г № 13А-17 | B12: 2976 | C12: 2976 | D12: 2976 | E12: 2976 | F12: =MIN(G12,H12) -> 2976 | G12: 2976 | H12: =I12+J12+K12+L12+M12 -> 2976 | I12: 2976 | N12: =MIN(O12,P12) -> 0 | P12: =Q12+R12+S12+T12+U12 -> 0
A13: договор с _____ от_____№ __ | F13: =MIN(G13,H13) -> 0 | H13: =I13+J13+K13+L13+M13 -> 0 | N13: =MIN(O13,P13) -> 0 | P13: =Q13+R13+S13+T13+U13 -> 0
A14: договор с _____ от_____№ __ | F14: 0 | H14: 0 | N14: 0 | P14: 0
A15: Добавить
A16: Аренда зданий, соружений, помещений, основных средств | B16: =SUM(B17:B20) -> 228.48 | C16: =SUM(C17:C20) -> 228.48 | D16: 228.48 | E16: 228.48 | F16: 228.48 | G16: 228.48 | H16: 228.48 | I16: 228.48 | J16: 0 | K16: 0 | L16: 0 | M16: 0 | N16: =SUM(N17:N20) -> 0 | O16: =SUM(O17:O20) -> 0 | P16: 0 | Q16: 0 | R16: 0 | S16: 0 | T16: 0 | U16: 0 | V16: =SUM(V17:V20) -> 0
A17: договор с ООО "Техстройэнерго" от 30.12.2016г № 12А-17 | B17: 228.48 | C17: 228.48 | D17: 228.48 | E17: 228.48 | F17: =MIN(G17,H17) -> 228.48 | G17: 228.48 | H17: =I17+J17+K17+L17+M17 -> 228.48 | I17: 228.48 | N17: =MIN(O17,P17) -> 0 | P17: =Q17+R17+S17+T17+U17 -> 0
A18: договор с _____ от_____№ __ | F18: =MIN(G18,H18) -> 0 | H18: =I18+J18+K18+L18+M18 -> 0 | N18: 0 | P18: =Q18+R18+S18+T18+U18 -> 0
A19: договор с _____ от_____№ __ | F19: 0 | H19: 0 | N19: 0 | P19: 0
A20: договор с _____ от_____№ __ | F20: 0 | H20: 0 | N20: 0 | P20: 0
A21: Добавить
A22: Аренда транспортных средств | B22: =SUM(B23:B35) -> 1639.8 | C22: =SUM(C23:C35) -> 1681.742 | D22: 1639.8 | E22: 1678.942 | F22: 1681.74 | G22: 1681.74 | H22: 1681.74 | I22: 1681.74 | J22: 0 | K22: 0 | L22: 0 | M22: 0 | N22: =SUM(N23:N35) -> 0 | O22: =SUM(O23:O35) -> 0 | P22: 0 | Q22: 0 | R22: 0 | S22: 0 | T22: 0 | U22: 0 | V22: 0
A23: договор с ООО "Техстройэнерго" от 30.12.2016г. № 11А-17 на аренду УАЗ-3909 (VIN XTT39090030476836) | B23: 59.3 | C23: 59.3 | D23: 59.3 | E23: 59.3 | F23: =MIN(G23,H23) -> 59.3 | G23: 59.3 | H23: =I23+J23+K23+L23+M23 -> 59.3 | I23: 59.3 | N23: =MIN(O23,P23) -> 0 | P23: =Q23+R23+S23+T23+U23 -> 0
A24: договор с ООО "Техстройэнерго" от 30.12.2016г. № 8А-17 на аренду ЗИЛ-130 Г (VIN отсутствует; год выпуска 1985г.; модель двигателя 508.400; двигатель № 292036) | B24: 234.5 | C24: 240 | D24: 234.5 | E24: 240 | F24: 240 | G24: 240 | H24: 240 | I24: 240 | N24: 0 | P24: 0
A25: договор с ООО "Техстройэнерго" от 30.12.2016г. № 02А-17 на аренду ГАЗ-6612 (VIN XTH006612P0726008) | B25: 234.5 | C25: 240 | D25: 234.5 | E25: 240 | F25: 240 | G25: 240 | H25: 240 | I25: 240 | N25: 0 | P25: 0
A26: договор с ООО "Техстройэнерго" от 30.12.2016г. № 6А-17 на аренду АПТ-17Э (VIN XTH330700R1536123) | B26: 234.5 | C26: 240 | D26: 234.5 | E26: 240 | F26: 240 | G26: 240 | H26: 240 | I26: 240 | N26: 0 | P26: 0
A27: договор с ООО "Техстройэнерго" от 30.12.2016г. № 7А-17 на аренду ГАЗ-5312 (VIN XTH531200M1403186) | B27: 114.5 | C27: 120 | D27: 114.5 | E27: 120 | F27: 120 | G27: 120 | H27: 120 | I27: 120 | N27: 0 | P27: 0
A28: договор с ООО "Техстройэнерго" от 30.12.2016г. № 9А-17 на аренду ВАЗ-2105 (VIN ХТА210540А2178050) | B28: 34 | C28: 38.442 | D28: 34 | E28: 38.442 | F28: 38.44 | G28: 38.44 | H28: 38.44 | I28: 38.44 | N28: 0 | P28: 0
A29: договор с ООО "Техстройэнерго" от 30.12.2016г. № 5А-17 на аренду ВАЗ-11193 (VIN XTA11193070022812) | B29: 79.5 | C29: 84 | D29: 79.5 | E29: 18.2 | F29: 0 | H29: 0 | N29: 0 | P29: 0
A30: договор с ООО "Техстройэнерго" от 30.12.2016г. № 4А-17 на аренду ЗИЛ-131 (VIN отсутствует; год выпуска 1993г.; модель двигателя отсутствует; двигатель № 146550) | B30: 414.5 | C30: 420 | D30: 414.5 | E30: 420 | F30: 420 | G30: 420 | H30: 420 | I30: 420 | N30: 0 | P30: 0
A31: договор с ООО "Техстройэнерго" от 30.12.2016г. № 10А-17 на аренду ТА-18 (VIN X89483713FCAH3011) | B31: 234.5 | C31: 240 | D31: 234.5 | E31: 240 | F31: 240 | G31: 240 | H31: 240 | I31: 240 | N31: 0 | P31: 0
A32: договор с ООО "Техстройэнерго" от 01.04.2018г. № 3А-18 на аренду LADA GRANDA (VIN XTA219010J0532195) | E32: 63 | F32: 84 | G32: 84 | H32: 84 | I32: 84 | N32: 0 | P32: 0
A33: договор с _____ от_____№ __ | F33: 0 | H33: 0 | N33: 0 | P33: 0
A34: договор с _____ от_____№ __ | F34: 0 | H34: 0 | N34: 0 | P34: 0
A35: договор с _____ от_____№ __ | F35: 0 | H35: 0 | N35: 0 | P35: 0
A36: Добавить
A37: Лизинг | B37: =SUM(B38:B42) -> 0 | C37: =SUM(C38:C42) -> 0 | D37: 0 | E37: 0 | F37: 0 | G37: х | H37: х | I37: х | J37: х | K37: х | L37: х | M37: х | N37: =SUM(N38:N42) -> 0 | O37: х | P37: х | Q37: х | R37: х | S37: х | T37: х | U37: х | V37: =SUM(V38:V42) -> 0
A38: объектов электросетевого хозяйства договор с _____ от_____№ __ | G38: х | H38: х | I38: х | J38: х | K38: х | L38: х | M38: х | O38: х | P38: х | Q38: х | R38: х | S38: х | T38: х | U38: х
A39: иного имущества договор с _____ от_____№ __ | G39: х | H39: х | I39: х | J39: х | K39: х | L39: х | M39: х | O39: х | P39: х | Q39: х | R39: х | S39: х | T39: х | U39: х
A40: договор с _____ от_____№ __ | G40: х | H40: х | I40: х | J40: х | K40: х | L40: х | M40: х | O40: х | P40: х | Q40: х | R40: х | S40: х | T40: х | U40: х
A41: договор с _____ от_____№ __ | G41: х | H41: х | I41: х | J41: х | K41: х | L41: х | M41: х | O41: х | P41: х | Q41: х | R41: х | S41: х | T41: х | U41: х
A42: договор с _____ от_____№ __ | G42: х | H42: х | I42: х | J42: х | K42: х | L42: х | M42: х | O42: х | P42: х | Q42: х | R42: х | S42: х | T42: х | U42: х
A43: Добавить
A44: ИТОГО расходы по аренде имущества, всего в том числе | B44: =B11+B16+B22+B37 -> 4844.28 | C44: =C11+C16+C22+C37 -> 4886.222 | D44: =D11+D16+D22+D37 -> 4844.28 | E44: =E11+E16+E22+E37 -> 4883.422 | F44: =F11+F16+F22+F37 -> 4886.22 | G44: =G11+G16+G22 -> 4886.22 | H44: =H11+H16+H22 -> 4886.22 | I44: 4886.22 | J44: 0 | K44: 0 | L44: 0 | M44: 0 | N44: =N11+N16+N22+N37 -> 0 | O44: =O11+O16+O22 -> 0 | P44: =P11+P16+P22 -> 0 | Q44: 0 | R44: 0 | S44: 0 | T44: 0 | U44: 0 | V44: =V11+V16+V22+V37 -> 0
A45: в т.ч. по уровням напряжения: ВН | B45: х | C45: х | E45: х | G45: х | H45: х | I45: х | J45: х | K45: х | L45: х | M45: х | O45: х | P45: х | Q45: х | R45: х | S45: х | T45: х | U45: х
A46: СН1 | B46: х | C46: х | E46: х | G46: х | H46: х | I46: х | J46: х | K46: х | L46: х | M46: х | O46: х | P46: х | Q46: х | R46: х | S46: х | T46: х | U46: х
A47: СН2 | B47: х | C47: х | E47: х | G47: х | H47: х | I47: х | J47: х | K47: х | L47: х | M47: х | O47: х | P47: х | Q47: х | R47: х | S47: х | T47: х | U47: х
A48: НН | B48: х | C48: х | E48: х | G48: х | H48: х | I48: х | J48: х | K48: х | L48: х | M48: х | O48: х | P48: х | Q48: х | R48: х | S48: х | T48: х | U48: х
A49: Для проверки прибыли на капитальные вложения (аренда и лизинг объектов электросетевого хозяйства) | B49: =B11+B38 -> 2976 | C49: =C11+C38 -> 2976 | D49: =D11+D38 -> 2976 | E49: =E11+E38 -> 2976 | F49: =F11+F38 -> 2976 | G49: х | H49: х | I49: х | J49: х | K49: х | L49: х | M49: х | N49: =N11+N38 -> 0 | O49: х | P49: х | Q49: х | R49: х | S49: х | T49: х | U49: х | V49: =V11+V38 -> 0
A51: Руководитель организации | D51: ='Инф-я'!$C$17 -> Окунев Василий Михайлович

Sheet Плата за землю
A2: Плата за землю
A4: ='Инф-я'!C9 -> Общество с ограниченной ответственностью "Энергетик"
G5: тыс. руб.
A6: Наименование | B6: 2017 год | D6: 2018 год | F6: 2019 год | H6: 2017 год
B7: Утверждено | C7: Факт | D7: Утверждено | E7: Ожидаемые | F7: По данным организации | G7: По данным экспертов | H7: Факт по данным экспертов
A8: 1 | B8: 2 | C8: 3 | D8: 4 | E8: 5 | F8: 6 | G8: 7 | H8: 9
A9: Земельный налог
A11: Арендная плата за землю | B11: 200.4437656 | C11: =SUM(C12:C15) -> 335.09651 | D11: 369.5941697 | E11: =SUM(E12:E15) -> 502.51673 | F11: =SUM(F12:F15) -> 502.51673 | G11: =SUM(G12:G15) -> 0 | H11: =SUM(H12:H15) -> 0
A12: договор № 09/2017 от 22.03.17 на 2017г. | B12: x | D12: x
A13: договор № 10/2017 от 22.03.17 на 2017г. | B13: x | C13: 334.667 | D13: x | E13: 502 | F13: 502
A14: договор № 09/2017 от 22.03.2017г. | B14: x | C14: 0.18011 | D14: x | E14: 0.265 | F14: 0.265
A15: договор № 23/2017 от 11.12.2017 | B15: x | C15: 0.2494 | D15: x | E15: 0.25173 | F15: 0.25173
A16: Добавить
A17: Всего плата за землю | B17: =B9+B11 -> 200.4437656 | C17: 335.09651 | D17: 369.5941697 | E17: 502.51673 | F17: 502.51673 | G17: 0 | H17: 0
A19: Руководитель организации | D19: ='Инф-я'!$C$17 -> Окунев Василий Михайлович

Sheet Транспортный налог
A2: Расчет транспортного налога
A4: ='Инф-я'!C9 -> Общество с ограниченной ответственностью "Энергетик"
I5: тыс. руб.
A6: Объект налогообложения (вид и марка транспортного средства) | B6: Налоговая база, (л.с.) | C6: Налоговая ставка, руб. | D6: 2017 год | F6: 2018 год | H6: 2019 год | L6: 2017 год
H7: По расчету организации | J7: По расчету экспертов | L7: Факт по данным экспертов
D8: Утверждено | E8: Факт | F8: Утверждено | G8: Ожидаемые | H8: Коэф. использ. | I8: Годовая сумма налога, тыс.руб. | J8: Коэф. использ. | K8: Годовая сумма налога, тыс. руб.
A9: 1 | B9: 2 | C9: 3 | D9: 4 | E9: 5 | F9: 6 | G9: 7 | H9: 8 | I9: 9 | J9: 10 | K9: 11 | L9: 12
D10: х | F10: х | I10: =B10*C10*H10/1000 -> 0 | K10: =B10*C10*J10/1000 -> 0
D11: х | F11: х | I11: =B11*C11*H11/1000 -> 0 | K11: =B11*C11*J11/1000 -> 0
D12: х | F12: х | I12: 0 | K12: 0
D13: х | F13: х | I13: 0 | K13: 0
A14: Добавить
A15: Транспортный налог всего, в т.ч. | B15: х | C15: х | E15: =SUM(E10:E13) -> 0 | G15: =SUM(G10:G13) -> 0 | H15: х | I15: =SUM(I10:I13) -> 0 | J15: х | K15: =SUM(K10:K13) -> 0 | L15: =SUM(L10:L13) -> 0
A16: относимый на услугу по передаче электрической энергии | B16: х | C16: х | D16: 0 | E16: 0 | F16: 0 | G16: 0 | H16: х | I16: 0 | J16: х | M16: Условное форматирование: если в ячейке не указано значение -форматируется красным цветом
A18: Руководитель организации | D18: ='Инф-я'!$C$17 -> Окунев Василий Михайлович

Sheet Налог на имущество
A2: Налог на имущество
A4: ='Инф-я'!C9 -> Общество с ограниченной ответственностью "Энергетик"
F5: тыс. руб.
A6: Наименование | B6: 2017 год | D6: 2018 год | F6: 2019 год | H6: 2017 год
B7: Утверждено | C7: Факт | D7: Утверждено | E7: Ожидаемые | F7: По данным организации | G7: По данным экспертов | H7: Факт по данным экспертов
A8: 1 | B8: 2 | C8: 3 | D8: 4 | E8: 5 | F8: 6 | G8: 7 | H8: 8
A9: Среднегодовая остаточная стоимость основных средств, всего, в том числе: | B9: х | C9: =C10+C11+C12 -> 0 | D9: х | E9: =E10+E11+E12 -> 0 | F9: =F10+F12 -> 101936.6223 | G9: =G10+G12 -> 0 | H9: =H10+H11+H12 -> 0
A10: -облагаемых по ставке 2,2 % | B10: х | D10: х | F10: ='Расчет аморт. max срок '!V108/1000 -> 0
A11: -облагаемых по льготной ставке | B11: х | D11: х | F11: х | G11: х
A12: - необлагаемых (движимое имущество, введенное с 01.01.2013 года) | B12: х | D12: х | F12: ='Расчет аморт. max срок '!W108/1000 -> 101936.6223
A13: Льготная ставка налога | B13: х | C13: 0.016 | D13: х | E13: 0.019 | F13: х | G13: х | H13: 0.016
A14: Налог на имущество | C14: =C10*2.2%+C11*C13 -> 0 | E14: =E10*2.2%+E11*E13 -> 0 | F14: =F10*2.2% -> 0 | G14: =G10*2.2% -> 0 | H14: =H10*2.2%+H11*H13 -> 0
A15: Налог на имущество, относимый на услугу по передаче электрической энергии | B15: 0 | C15: 0 | D15: 0 | E15: 0 | F15: 0 | I15: Условное форматирование: если в ячейке не указано значение -форматируется красным цветом
A16: в т.ч. по уровням напряжения: ВН | B16: x | C16: x | E16: x
A17: СН1 | B17: x | C17: x | E17: x
A18: СН11 | B18: x | C18: x | E18: x
A19: НН | B19: x | C19: x | E19: x
A21: Руководитель организации | D21: ='Инф-я'!$C$17 -> Окунев Василий Михайлович

Sheet Налог прим при УСНО
B2: Налог организаций, применяющих УСНО от деятельности по передаче и технологического присоединения
B4: ='Инф-я'!C9 -> Общество с ограниченной ответственностью "Энергетик"
F5: тыс. руб.
A6: № п/п | B6: Наименование | C6: 2017 год | E6: 2018 год | F6: 2019 год | H6: 2017 год
C7: Утверждено | D7: Факт | E7: Утверждено | F7: По данным организации | G7: По данным экспертов | H7: Факт по данным экспертов
A8: 1 | B8: 2 | C8: 3 | D8: 4 | E8: 5 | F8: 6 | G8: 7 | H8: 8
A9: 1 | B9: Налог организаций, применяющих УСНО всего по декларации | C9: х | D9: 1318.804 | E9: х | F9: 1318.8 | G9: =#REF!+#REF!+#REF! ->  | H9: =#REF!+#REF!+#REF! -> 
A10: Налог организаций, применяющих УСНО от деятельности по передаче и технологического присоединения | C10: 1038.262 | D10: =D9 -> 1318.804 | E10: 991.895 | F10: =D10 -> 1318.804 | G10: =#REF!+#REF! ->  | H10: =#REF!+#REF! -> 
A11: в т.ч. по уровням напряжения: ВН | C11: х | D11: х
A12: СН1 | B12: СН1 | C12: х | D12: х
A13: СН11 | B13: СН11 | C13: х | D13: х
A14: НН | B14: НН | C14: х | D14: х
A16: Руководитель организации | D16: ='Инф-я'!$C$17 -> Окунев Василий Михайлович
A18: Постановлением Правительства РФ от 11 июня 2014 года № 542 внесены изменения в п. 20 Основ ценообразования в области регулируемых цен (тарифов) в электроэнергетике, утвержденных постановлением Правительства РФ от 29 декабря 2011 г. № 1178 в части определения налога на прибыль: «В необходимую валовую выручку включается величина налога на прибыль организаций по регулируемому виду деятельности, сформированная по данным бухгалтерского учета за последний истекший период. При установлении тарифов на услуги по передаче электрической энергии учитывается величина налога на прибыль организаций, которая относится по данным раздельного учета к деятельности по оказанию услуг по передаче электрической энергии и осуществлению технологического присоединения к электрическим сетям».

Sheet Негативное воздействие на ОС
B2: Расчет платы за негативное воздействие на окружающую среду
B4: ='Инф-я'!C9 -> Общество с ограниченной ответственностью "Энергетик"
G5: тыс. руб.
A6: № п./п. | B6: Наименование | C6: 2017 год | E6: 2018 год | G6: 2019 год | I6: 2017 год
C7: Утверждено | D7: Факт | E7: Утверждено | F7: Ожидаемые | G7: По данным организации | H7: По данным экспертов | I7: Факт по данным экспертов
A8: 1 | B8: 2 | C8: 3 | D8: 4 | E8: 5 | F8: 6 | G8: 7 | H8: 8 | I8: 9
A9: 1. | B9: Плата за выбросы загрязняющих веществ в атмосферный воздух стационарными объектами, исчисленная без учета корректировки, в том числе: | C9: x | D9: =SUM(D10:D12) -> 0 | E9: x | F9: x | G9: =SUM(G10:G12) -> 0 | H9: =SUM(H10:H12) -> 0 | I9: 0
A10: 1.1. | B10: плата за выбросы в пределах предельно-допустимых выбросов (ПДВ) | C10: x | E10: x | F10: x
A11: 1.2. | B11: плата за выбросы в пределах лимитов на выбросы загрязняющих веществ (временно согласованные выбросы ВСВ) | C11: x | E11: x | F11: x
A12: 1.3. | B12: плата за выбросы, превышающие установленные разрешениями на выброс загрязняющих веществ в атмосферный воздух | C12: x | E12: x | F12: x
A13: 2. | B13: Плата за сбросы загрязняющих веществ в водные объекты | C13: x | D13: =SUM(D14:D16) -> 0 | E13: x | F13: x | G13: =SUM(G14:G16) -> 0 | H13: =SUM(H14:H16) -> 0 | I13: 0
A14: 2.1. | B14: плата за сбросы в пределах нормативов допустимых сбросов (НДС) | C14: x | E14: x | F14: x
A15: 2.2. | B15: плата за сбросы в пределах лимитов на сбросы загрязняющих веществ (временно согласованный сбор ВСС) | C15: x | E15: x | F15: x
A16: 2.3. | B16: плата за сбросы, превышающие установленные разрешениями на сброс загрязняющих веществ (сверх лимита на сбросы) | C16: x | E16: x | F16: x
A17: 3. | B17: Плата за размещение отходов производства и потребления, исчисленная без учета корректировки, в том числе: | C17: x | D17: =SUM(D18:D19) -> 0.34328 | E17: x | F17: x | G17: =SUM(G18:G19) -> 0.53353 | H17: =SUM(H18:H19) -> 0 | I17: 0
A18: 3.1. | B18: плата за размещение отходов в пределах установленного лимита на их размещение | C18: x | E18: x | F18: x
A19: 3.2. | B19: плата за размещение отходов сверх установленного лимита на их размещение | C19: x | D19: 0.34328 | E19: x | F19: x | G19: 0.53353
A20: 4. | B20: Сумма средств на выполнение мероприятий по снижению негативного воздействия на окружающую среду, всего (п.4.1.+п.4.2.+п.4.3.), в том числе | C20: x | D20: =D21+D23+D25 -> 0 | E20: x | F20: x | G20: =G21+G23+G25 -> 0 | H20: =H21+H23+H25 -> 0 | I20: 0
A21: 4.1. | B21: платы за выбросы | C21: x | E21: x | F21: x
A22: 4.1.1. | B22: средства, уменьшающие плату за выбросы в части предельно допустимых выбросов | C22: x | D22: =IF(D9=0,0,D21*((D10+D11)/D9)) -> 0 | E22: x | F22: x | G22: =IF(G9=0,0,G21*((G10+G11)/G9)) -> 0 | H22: =IF(H9=0,0,H21*((H10+H11)/H9)) -> 0 | I22: 0
A23: 4.2. | B23: платы за сбросы | C23: x | E23: x | F23: x
A24: 4.2.1. | B24: средства, уменьшающие плату за сбросы в части нормативов сбросов | C24: x | D24: =IF(D13=0,0,D23*((D14+D15)/D13)) -> 0 | E24: x | F24: x | G24: =IF(G13=0,0,G23*((G14+G15)/G13)) -> 0 | H24: =IF(H13=0,0,H23*((H14+H15)/H13)) -> 0 | I24: 0
A25: 4.3. | B25: платы за размещение отходов | C25: x | E25: x | F25: x
A26: 4.3.1. | B26: средства, уменьшающие плату за размещение отходов в части лимита | C26: x | D26: =IF(D17=0,0,D25*(D18/D17)) -> 0 | E26: x | F26: x | G26: =IF(G17=0,0,G25*(G18/G17)) -> 0 | H26: =IF(H17=0,0,H25*(H18/H17)) -> 0 | I26: 0
A27: 5. | B27: Сумма платы, подлежащей внесению в бюджет, всего (п.1+п.2+п.3-п.4), в том числе | C27: x | D27: =D9+D13+D17-D20 -> 0.34328 | E27: x | F27: x | G27: =G9+G13+G17-G20 -> 0.53353 | H27: =H9+H13+H17-H20 -> 0 | I27: 0
A28: Плата за негативное воздействие на окружающую среду в пределах лимитов | D28: =D10+D11-D22+D14+D15-D24+D18-D26 -> 0 | G28: =G10+G11-G22+G14+G15-G24+G18-G26 -> 0 | H28: =H10+H11-H22+H14+H15-H24+H18-H26 -> 0 | I28: =I10+I11-I22+I14+I15-I24+I18-I26 -> 0
A29: Плата за негативное воздействие на окружающую среду, относимая на услугу по передаче электрической энергии | C29: 0 | D29: 0.53353 | E29: 0 | F29: 0.53333 | G29: 0.53333 | J29: Условное форматирование: если в ячейке не указано значение -форматируется красным цветом
B31: Руководитель организации | E31: ='Инф-я'!$C$17 -> Окунев Василий Михайлович
B35: Плата вносится раздельно по четырем компонентам окружающей среды: плата за выбросы, плата за выбросы ПНГ, плата за сбросы в водные объекты и плата за размещение отходов. Каждая по своему КБК (коду бюджетной классификации)
B36: 1. Плата за выбросы загрязняющих веществ в атмосферный воздух стационарными объектами, исчисленная без учета корректировки, в том числе:
B37: 1.1. плата за выбросы в пределах предельно-допустимых выбросов (ПДВ)
B38: 1.2. плата за выбросы в пределах лимитов на выбросы загрязняющих веществ (временно согласованные выбросы ВСВ)
B39: 1.3. плата за выбросы, превышающие установленные разрешениями на выброс загрязняющих веществ в атмосферный воздух
B40: 2. Плата за выбросы загрязняющих веществ при сжигании и (или) рассеивании попутного нефтяного газа
B41: 2.1. плата за выбросы ПНГ в пределах ПДВ
B42: 2.2. плата за выбросы ПНГ в пределах лимитов на выбросы загрязняющих веществ (ВСВ)
B43: 2.3. плата за выбросы ПНГ сверх лимита на выбросы
B44: 3. Плата за сбросы загрязняющих веществ в водные объекты
B45: 3.1. плата за сбросы в пределах НДС
B46: 3.2. плата за сбросы в пределах лимитов на сбросы загрязняющих веществ (ВСС)
B47: 3.3. плата за сбросы, превышающие установленные разрешениями на сброс загрязняющих веществ (сверх лимита на сбросы)
B48: 4. Плата за размещение отходов производства и потребления, исчисленная без учета корректировки, в том числе:
B49: 4.1. плата за размещение отходов в пределах установленного лимита на их размещение
B50: 4.2. плата за размещение отходов сверх установленного лимита на их размещение
B51: 5. Сумма средств на выполнение мероприятий по снижению негативного воздействия на окружающую среду, всего
B52: 5.1. платы за выбросы
B53: 5.2. платы за выбросы ПНГ
B54: 5.3. платы за сбросы
B55: 5.4. платы за размещение отходов
B56: Сумма платы, подлежащей внесению в бюджет, всего (п.1+п.2+п.3+п.4-п.5)
B58: НК, Статья 270. Расходы, не учитываемые в целях налогообложения
B59: 4) в виде суммы налога, а также суммы платежей за выбросы загрязняющих веществ в атмосферный воздух, сбросы загрязняющих веществ в составе сточных вод в водные объекты,
B60: осуществляемые с превышением нормативов допустимых сбросов, за размещение отходов производства и потребления с превышением установленных лимитов на их размещение;

Sheet Услуги ФСК
A2: Оплата услуг ПАО "ФСК ЕЭС"
A3: ='Инф-я'!C9 -> Общество с ограниченной ответственностью "Энергетик"
L4: тыс. руб.
A5: Показатели | B5: 2017 год | F5: 2018 год | J5: 2019 год | P5: 2017 год
B6: Утверждено | C6: Факт | F6: Утверждено | G6: Ожидаемые | J6: По данным организации | M6: По данным экспертов | P6: Факт по данным экспертов
B7: год | C7: 1 полугодие | D7: 2 полугодие | E7: год | F7: год | G7: 1 полугодие | H7: 2 полугодие | I7: год | J7: 1 полугодие | K7: 2 полугодие | L7: год | M7: 1 полугодие | N7: 2 полугодие | O7: год
A8: 1 | B8: 2 | C8: 3 | D8: 4 | E8: 5 | F8: 6 | G8: 7 | H8: 8 | I8: 9 | J8: 10 | K8: 11 | L8: 12 | M8: 13 | N8: 14 | O8: 15 | P8: 16
A9: Расходы на содержание сетей, тыс. руб. | B9: х | C9: =O26 -> 0 | D9: =P26 -> 0 | E9: =D9+C9 -> 0 | F9: х | G9: =G10*G11*6/1000 -> 0 | H9: =H10*H11*6/1000 -> 0 | I9: =H9+G9 -> 0 | J9: =J10*J11*6/1000 -> 0 | K9: =K10*K11*6/1000 -> 0 | L9: =K9+J9 -> 0 | M9: =M10*M11*6/1000 -> 0 | N9: =N10*N11*6/1000 -> 0 | O9: =M9+N9 -> 0 | P9: х
A10: Заявленная мощность в точках присоединения к сетям ПАО "ФСК ЕЭС", МВт | B10: х | C10: =B24 -> 0 | D10: =H24 -> 0 | E10: х | F10: х | I10: х | L10: х | O10: х | P10: х
A11: Ставка тарифа услуги по передаче электрической энергии на содержание объектов электросетевого хозяйства, входящих в ЕНЭС, руб. МВт/мес. | B11: х | C11: =B25 -> 0 | D11: =H25 -> 0 | E11: х | F11: х | I11: х | L11: х | O11: х | P11: х
A12: Расходы на компенсацию потерь, тыс. руб. | B12: х | C12: =C13*C16 ->  | D12: =D13*D16 ->  | E12: =D12+C12 ->  | F12: х | G12: =G13*G16 -> 0 | H12: =H13*H16 -> 0 | I12: =G12+H12 -> 0 | J12: =J13*J16 -> 0 | K12: =K13*K16 -> 0 | L12: =J12+K12 -> 0 | M12: =M13*M16 -> 0 | N12: =N13*N16 -> 0 | O12: =M12+N12 -> 0 | P12: х
A13: Объем технологических потерь электрической энергии при ее передаче по ЕНЭС, млн. кВт.ч | B13: х | C13: =C14*C15% -> 0 | D13: =D14*D15% -> 0 | E13: =E14*E15% -> 0 | F13: х | G13: =G14*G15% -> 0 | H13: 0 | I13: 0 | J13: =J14*J15% -> 0 | K13: 0 | L13: 0 | M13: 0 | N13: 0 | O13: 0 | P13: х
A14: Объем отпуска электроэнергии из сети ПАО "ФСК ЕЭС" в сеть организации, млн. кВт.ч | B14: х | C14: =O28/1000 -> 0 | D14: =P28/1000 -> 0 | E14: =D14+C14 -> 0 | F14: х | I14: =H14+G14 -> 0 | L14: =K14+J14 -> 0 | O14: =N14+M14 -> 0 | P14: х
A15: Норматив технологических потерь электрической энергии при ее передаче по ЕНЭС, применяемый к отпуску электроэнергии из сети ПАО "ФСК ЕЭС" класса 220 кВ и ниже, % | B15: х | C15: =B29 -> 0 | D15: =B29 -> 0 | E15: =B29 -> 0 | F15: х | G15: 4.65 | H15: 4.65 | I15: 4.65 | J15: 4.65 | K15: 4.65 | L15: 4.65 | M15: 4.65 | N15: 4.65 | O15: 4.65 | P15: х
A16: Ставка тарифа на оплату нормативных технологических потерь электрической энергии в ЕНЭС, руб./МВт.ч | B16: х | C16: =O31 ->  | D16: =P31 ->  | E16: х | F16: х | I16: х | L16: х | O16: х | P16: х
A17: ИТОГО оплата услуг ПАО "ФСК ЕЭС" | C17: =C9+C12 ->  | E17: =IFERROR(E9+E12,0) -> 0 | G17: =G9+G12 -> 0 | H17: 0 | I17: 0 | J17: =J9+J12 -> 0 | K17: 0 | L17: 0 | M17: 0 | N17: 0 | O17: 0
A19: Руководитель организации | D19: ='Инф-я'!$C$17 -> Окунев Василий Михайлович
A21: Факт по данным организации за 2017 год
B23: янв | C23: фев | D23: мар | E23: апр | F23: май | G23: июн | H23: июль | I23: авг | J23: сент | K23: окт | L23: ноя | M23: дек | N23: Итого | O23: 1 полуг | P23: 2 полуг
A24: Заявленная мощность в точках присоединения к сетям ПАО "ФСК ЕЭС", МВт | N24: х | O24: х | P24: х
A25: Ставка тарифа услуги по передаче электрической энергии на содержание объектов электросетевого хозяйства, входящих в ЕНЭС, руб. МВт/мес. | C25: =B25 -> 0 | D25: =C25 -> 0 | E25: 0 | F25: 0 | G25: 0 | I25: =H25 -> 0 | J25: =I25 -> 0 | K25: 0 | L25: 0 | M25: 0 | N25: х | O25: х | P25: х
A26: Стоимость услуги по передаче электрической энергии на содержание объектов элкутросетевого хозяйства, тыс. руб. | B26: =B24*B25/1000 -> 0 | C26: =C24*C25/1000 -> 0 | D26: 0 | E26: 0 | F26: 0 | G26: 0 | H26: 0 | I26: 0 | J26: 0 | K26: 0 | L26: 0 | M26: 0 | N26: =SUM(B26:M26) -> 0 | O26: =SUM(B26:G26) -> 0 | P26: =SUM(H26:M26) -> 0
B27: янв | C27: фев | D27: мар | E27: апр | F27: май | G27: июн | H27: июль | I27: авг | J27: сент | K27: окт | L27: ноя | M27: дек | N27: Итого | O27: 1 полуг | P27: 2 полуг
A28: Отпуск электрической энергии из сетей ПАО "ФСК ЕЭС" напряжением 220 кВ и ниже, МВт.ч | N28: =SUM(B28:M28) -> 0 | O28: =SUM(B28:G28) -> 0 | P28: =SUM(H28:M28) -> 0
A29: Норматив технологических потерь электрической энергии при ее передаче по ЕНЭС, применяемый к отпуску электроэнергии из сети ПАО "ФСК ЕЭС" класса 220 кВ и ниже, % | C29: =B29 -> 0 | D29: =C29 -> 0 | E29: 0 | F29: 0 | G29: 0 | H29: 0 | I29: 0 | J29: 0 | K29: 0 | L29: 0 | M29: 0 | N29: х | O29: х | P29: х
A30: Объем технологических потерь электрической энергии при ее передаче по ЕНЭС, МВт.ч | B30: =ROUND(B28*B29/100,3) -> 0 | C30: =ROUND(C28*C29/100,3) -> 0 | D30: 0 | E30: 0 | F30: 0 | G30: 0 | H30: 0 | I30: 0 | J30: 0 | K30: 0 | L30: 0 | M30: 0 | N30: =SUM(B30:M30) -> 0 | O30: =SUM(B30:G30) -> 0 | P30: =SUM(H30:M30) -> 0
A31: Ставка тарифа на оплату нормативных технологических потерь электрической энергии в ЕНЭС, руб./МВт.ч | N31: =N32/N30*1000 ->  | O31: =O32/O30*1000 ->  | P31: =P32/P30*1000 -> 
A32: Расходы на компенсацию потерь, тыс. руб. | B32: =B30*B31/1000 -> 0 | C32: =C30*C31/1000 -> 0 | D32: 0 | E32: 0 | F32: 0 | G32: 0 | H32: 0 | I32: 0 | J32: 0 | K32: 0 | L32: 0 | M32: 0 | N32: =SUM(B32:M32) -> 0 | O32: =SUM(B32:G32) -> 0 | P32: =SUM(H32:M32) -> 0
A33: Итого расходы на услуги ФСК, тыс. руб. | B33: =B26+B32 -> 0 | C33: =C26+C32 -> 0 | D33: 0 | E33: 0 | F33: 0 | G33: 0 | H33: 0 | I33: 0 | J33: 0 | K33: 0 | L33: 0 | M33: 0 | N33: 0 | O33: 0 | P33: 0

Sheet Прочие НР
A2: Прочие обоснованные неподконтрольные расходы
A3: ='Инф-я'!C9 -> Общество с ограниченной ответственностью "Энергетик"
F4: тыс. руб.
A5: Наименование | B5: 2017 год | D5: 2018 год | F5: 2019 год | H5: 2017 год
B6: Утверждено | C6: Факт | D6: Утверждено | E6: Ожидаемые | F6: По данным организации | G6: По данным экспертов | H6: Факт по данным экспертов
A7: 1 | B7: 2 | C7: 3 | D7: 4 | E7: 5 | F7: 6 | G7: 7 | H7: 9
A8: Экспертиза НВВ по договору с ТОРИ-АУДИТ | B8: 190.41 | C8: 388.436 | D8: 198.026 | E8: 205.3 | F8: 210
A9: Договор с ООО "Владимирэнерго" на инженерно-консалтинговые услуги№112/16-Э от 01.12.2016г. | C9: 1600
A10: Договор с ООО "Анит-Аудиторские услуги" №А 18/10-2016 от 18.10.2016г. | C10: 40
A11: Договор с ООО "Анит-Аудиторские услуги" №А 20/07-2017 от 20.07.2017г. | C11: 40 | E11: 80 | F11: 80
A12: Договор с ООО "Техкадастр" на проведение кадастровых работ №01-17 от 22.02.2017 | C12: 92 | F12: 200
A13: Договор с ООО "Техкадастр" на проведение кадастровых работ №07-17 от 05.04.2017 | C13: 115
A14: Добавить
A15: ИТОГО прочие обоснованные неподконтрольные расходы | B15: =SUM(B8:B13) -> 190.41 | C15: 2275.436 | D15: 198.026 | E15: 285.3 | F15: 490 | G15: 0 | H15: 0
A17: Руководитель организации | D17: ='Инф-я'!$C$17 -> Окунев Василий Михайлович

Sheet КВЛ
A2: Расходы на капитальные вложения
A4: ='Инф-я'!C9 -> Общество с ограниченной ответственностью "Энергетик"
F5: тыс. руб.
A6: Наименование капитальных вложений | B6: 2017 год | D6: 2018 год | F6: 2019 год
B7: Утверждено | C7: Факт | D7: Утверждено | E7: Ожидаемые | F7: По данным организации | G7: По данным экспертов
A8: 1 | B8: 2 | C8: 3 | D8: 4 | E8: 5 | F8: 6 | G8: 7
A9: Реконструкция ВЛ 10 кВ от ТП 27 до ТП 9 (фидер 1001) | B9: 1016.5 | C9: 1187.713
A10: Строительство ВЛ 10 кВ от ТП 27 до ТП 28 (фидер 1001) | B10: 1005 | C10: 1153.674
A11: Строительство ВЛ 10 кВ от ТП 45 до ТП 28 (фидер 1001) | B11: 2220.5 | C11: 2385.171
A12: Строительство ВЛ 10 кВ от ТП 9 до ТП 62 Ф1001, Фидер 1001 | D12: 1386.94893 | E12: 1554.512
A13: Строительство ВЛ 0,4 кВ от ТП 45, Технологическое присоединение абонентов в районе ул.Чистопольная, Луговая, Сосновая, Дружбы, Тихая, Фидер 1001 | D13: 4104.91226 | E13: 4600.845
A14: Установка КРУН (10кВ)на выходе с ПС "Карабаново"фидера 1001 1 ячейка | D14: 901.25 | E14: 1010.134
A15: Установка КРУН (10кВ)на выходе с ПС "Карабаново"фидера 1022 2 ячейки | D15: 1999.23 | E15: 2240.77
A16: Реконструкция ВЛ 10 кВ от ТП 10 до ТП 27 (фидер 1001) | F16: 2138.149
A17: Строительство ВЛ 10 кВ от ТП 12 до ТП 62 Ф1001, Фидер 1001 | F17: 1783.832
A18: Реконструкция ВЛ 10 кВ от ПС "Карабаново" до ТП 12 (фидер 1001) | F18: 3604.938
A19: Установка КРУН (10кВ)на выходе с ПС "Карабаново"фидера 1003 2 ячейки | F19: 2341.653
A20: Введите название
A21: Добавить
A22: ИТОГО капитальных вложений | B22: =SUM(B9:B20) -> 4242 | C22: =SUM(C9:C20) -> 4726.558 | D22: =SUM(D9:D20) -> 8392.34119 | E22: 9406.261 | F22: 9868.572 | G22: 0
A23: - амортизация | B23: 2891 | C23: ='Свод по амортизации'!C15 -> 4014.395 | D23: 4681.263209 | E23: ='Свод по амортизации'!E15 -> 6737.5 | F23: ='Свод по амортизации'!F15 -> 7245.944094 | G23: ='Свод по амортизации'!G15 -> 0
A24: - прочие средства
A25: - прибыль | B25: =IF((B22-B23-B24)<=0,0,(B22-B23-B24)) -> 1351 | C25: 712.163 | D25: =IF((D22-D23-D24)<=0,0,(D22-D23-D24)) -> 3711.077981 | E25: 2668.761 | F25: =IF((F22-F23-F24)<=0,0,(F22-F23-F24)) -> 2622.627906 | G25: 0
A26: в т.ч. по уровням напряжения: ВН | B26: х | C26: х | E26: х | G26: х
A27: СН1 | B27: х | C27: х | E27: х | G27: х
A28: СН11 | B28: х | C28: х | E28: х | G28: х
A29: НН | B29: х | C29: х | E29: х | G29: х
A31: Руководитель организации | D31: ='Инф-я'!$C$17 -> Окунев Василий Михайлович

Sheet Выпадающий доход
A2: Расходы, связанные с компенсацией выпадающих доходов по льготному технологическому присоединению
A3: ='Инф-я'!C9 -> Общество с ограниченной ответственностью "Энергетик"
D4: тыс. руб.
A5: Наименование | B5: 2017 год | C5: 2018 год | D5: 2019 год
B6: Утверждено | C6: Утверждено | D6: По данным организации | E6: По данным экспертов
A7: 1 | B7: 2 | C7: 3 | D7: 4 | E7: 5
A8: выпадающие доходы сетевой организации от присоединения энергопринимающих устройств максимальной мощностью, не превышающей 15 кВт включительно, исходя из стоимости мероприятий по технологическому присоединению в размере не более 550 рублей; | B8: =SUM(B9:B13) -> 0 | C8: 0 | D8: 0 | E8: 0
A9: за 2015 год | B9: ='Расчет выпадающих до 15 кВт'!C42 -> 0 | C9: х | D9: х | E9: х
A10: за 2016 год | B10: х | D10: х | E10: х
A11: за 2017 год | B11: ='Расчет выпадающих до 15 кВт'!C43 -> 0 | C11: х | D11: ='Расчет выпадающих до 15 кВт'!C45 -> 0
A12: за 2018 год | B12: х | D12: х | E12: х
A13: за 2019 год | B13: х | C13: х | D13: ='Расчет выпадающих до 15 кВт'!C46 -> 0
A14: выпадающие доходы сетевой организации от присоединения энергопринимающих устройств максимальной мощностью не более, чем 150 кВт на покрытие расходов на строительство объектов электросетевого хозяйства | B14: =SUM(B15:B18) -> 0 | C14: =SUM(C15:C18) -> 0 | D14: =SUM(D15:D18) -> 0 | E14: =SUM(E15:E18) -> 0
A15: за 2016 год | B15: х | D15: х | E15: х
A16: за 2017 год | B16: ='Расчет выпадающих до 150 кВт'!C42 -> 0 | C16: х | D16: ='Расчет выпадающих до 150 кВт'!C44 -> 0
A17: за 2018 год | B17: х | D17: х | E17: х
A18: за 2019 год | B18: х | C18: х | D18: ='Расчет выпадающих до 150 кВт'!C45 -> 0
A19: выпадающие доходы сетевой организации от выплаты процентов по кредитным договорам, связанным с рассрочкой по оплате субъектами малого и среднего предпринимательства технологического присоединения энергопринимающих устройств максимальной мощностью свыше 15 кВт и до 150 кВт включительно | D19: ='СВОД по % по рассрочке'!J18 -> 0
A20: Итого расходы, связанные с компенсацией выпадающих доходов по льготному технологическому присоединению | B20: =B8+B19+B14 -> 0 | C20: =C8+C19+C14 -> 0 | D20: 0 | E20: 0
A24: Руководитель организации | C24: ='Инф-я'!$C$17 -> Окунев Василий Михайлович

Sheet Расчет выпадающих до 15 кВт
G1: Приложение 1
G2: к Методическим указаниям,
G3: утвержденным приказом ФСТ от 11.09.2014 г. №215-э/1
A5: Расчет размера расходов, связанных с осуществлением технологического присоединения энергопринимающих устройств максимальной мощностью, не превышающей 15 кВт включительно, не включаемых в состав платы за технологическое присоединение за 2017 год и плановый период 2019 года
A7: ='Инф-я'!$C$9 -> Общество с ограниченной ответственностью "Энергетик"
A9: № п./п. | B9: Показатели | C9: Фактические данные за 2017 год | F9: Расчетные (фактические) данные за 2017 год | I9: Плановые показатели на 2019 год
C11: ставка платы (руб./кВт, руб./км) | D11: мощность, длина линий, (кВт., км) | E11: Сумма (в соответствии с актами приемки выполненных работ) тыс. руб. | F11: стандартизированная тарифная ставка (руб./кВт, руб./км) | G11: мощность, длина линий, (кВт., км) | H11: Сумма, тыс. руб. | I11: стандартизированная тарифная ставка (руб./присоединение, руб./кВт, руб./км) | J11: Среднее кол-во присоединений | K11: Сумма, тыс. руб.
A12: 1 | B12: 2 | C12: 3 | D12: 4 | E12: 5 | F12: 6 | G12: 7 | H12: 8 | I12: 9 | J12: 10 | K12: 11
A13: 1. | B13: Расходы на выполнение организационно-технических мероприятий, связанные с осуществлением технологического присоединения [п. 1.1 + п. 1.2 + п. 1.3 + п. 1.4]: | C13: =SUM(C14:C17) -> 0 | E13: =SUM(E14:E17) -> 0 | F13: =SUM(F14:F17) -> 0 | G13: =D13 -> 0 | H13: 0 | J13: =F37 -> 0 | K13: =I13*J13/1000 -> 0
A14: 1.1. | B14: подготовка и выдача сетевой организацией технических условий (ТУ) Заявителю, на уровне напряжения i и (или) диапазоне мощности j | C14: =IF(D14=0,0,E14/D14*1000) -> 0 | D14: =D13 -> 0 | G14: =G13 -> 0 | H14: =F14*G14/1000 -> 0 | I14: х | J14: х | K14: х
A15: 1.2. | B15: проверка сетевой организацией выполнения Заявителем ТУ, на уровне напряжения i и (или) диапазоне мощности j | C15: =IF(D15=0,0,E15/D15*1000) -> 0 | D15: =D13 -> 0 | G15: =G13 -> 0 | H15: =F15*G15/1000 -> 0 | I15: х | J15: х | K15: х
A16: 1.3. | B16: участие в осмотре должностным лицом органа федерального, государственного энергетического надзора при участии сетевой организации и собственника присоединяемых Устройств Заявителя, на уровне напряжения i и (или) диапазоне мощности j | C16: 0 | D16: =D13 -> 0 | G16: =G13 -> 0 | H16: 0 | I16: х | J16: х | K16: х
A17: 1.4. | B17: Осуществление сетевой организацией фактического присоединения объектов Заявителя к электрическим сетям и включение коммутационного аппарата (фиксация коммутационного аппарата в положение "включено"), на уровне напряжения i и (или) диапазоне мощности j | C17: 0 | D17: =D13 -> 0 | G17: =G13 -> 0 | H17: 0 | I17: х | J17: х | K17: х
A18: 2. | B18: Расходы по мероприятиям "последней мили", связанные с осуществлением технологического присоединения [п. 2.1 + п. 2.2 + п. 2.3 + п. 2.4 + 2.5]: | C18: х | D18: х | E18: =SUM(E19:E24) -> 0 | F18: =C18 -> х | G18: х | H18: =SUM(H19:H24) -> 0 | I18: =F18 -> х | J18: х | K18: =SUM(K19:K24) -> 0
A19: 2.1. | B19: строительство воздушных линий, на уровне напряжения i и (или) диапазоне мощности j | C19: 0 | H19: 0 | K19: =I19*J19/1000 -> 0
A20: 2.2. | B20: строительство кабельных линий, на уровне напряжения i и (или) диапазоне мощности j | C20: 0 | H20: 0 | K20: 0
A21: 2.3. | B21: строительством пунктов секционирования, на уровне напряжения i и (или) диапазоне мощности j | C21: 0 | H21: 0 | K21: 0
A22: 2.4. | B22: строительство комплектных трансформаторных подстанций (КТП) на уровне напряжения i и (или) диапазоне мощности j | C22: 0 | H22: 0 | K22: 0
A23: 2.5. | B23: строительство распределительных трансформаторных подстанций (РТП) с уровнем напряжения до 35 кВ, на уровне напряжения i и (или) диапазоне мощности j | C23: =IF(D23=0,0,E23/D23*1000) -> 0 | H23: =F23*G23/1000 -> 0 | K23: =I23*J23/1000 -> 0
A24: 2.6. | B24: строительство центров питания, подстанций уровнем напряжения 35 кВ и выше (ПС), на уровне напряжения i и (или) диапазоне мощности j | C24: 0 | H24: 0 | K24: 0
A25: 3. | B25: Суммарный размер платы за технологическое присоединение [п. 3.1 * п. 3.2 / 1000]: | C25: х | D25: х | E25: =E26*E27/1000 -> 0 | F25: х | G25: х | H25: =H26*H27/1000 -> 0 | I25: х | J25: х | K25: =K26*K27/1000 -> 0
A26: 3.1. | B26: Размер платы за технологическое присоединение (руб. без НДС) | C26: х | D26: х | E26: 466.1 | F26: х | G26: х | H26: 466.1 | I26: х | J26: х | K26: 466.1
A27: 3.2. | B27: Плановое количество договоров на осуществление технологическое присоединение к электрическим сетям (плановое количество членов объединений (организаций), указанных в п. 16 Методических указаний по определению размера платы за технологическое присоединение к электрическим сетям, утвержденных приказом ФАС России от 29 августа 2017 года, N 1135/17) (шт.) | C27: х | D27: х | E27: =C36 -> 0 | F27: х | G27: х | H27: =C36 -> 0 | I27: х | J27: х | K27: =C37 -> 0
A28: 4. | B28: Размер расходов, связанных с осуществлением технологического присоединения к электрическим сетям, не включаемых в состав платы за технологическое присоединение (п. 1 + п. 2 - п. 3) | C28: х | D28: х | E28: =E13+E18-E25 -> 0 | F28: х | G28: х | H28: =H13+H18-H25 -> 0 | I28: х | J28: х | K28: =K13+K18-K25 -> 0
B31: Фактические средние данные по выполненым договорам технологического присоединения за 3 предыдущих года
B33: Год | C33: Количество заявителей технологического присоединения, ед. (для расчета Доходов) | F33: Количество технологических присоединений, ед. (для расчета Расходов)
B34: Факт 2015 г.
B35: Факт 2016 г.
B36: Факт 2017 г.
B37: План 2019 г. (расчет плановых значений исходя из данных за 3 предыдущих периода) | C37: =ROUND((C34+C35+C36)/3,0) -> 0 | F37: =ROUND((F34+F35+F36)/3,0) -> 0
B39: Сводный расчет выпадающих доходов от льготного ТП, подлежащих учету в 2019 году, тыс. руб.
B41: Выпадающие доходы, учтенные при тарифном регулировании на 2017 год всего в т.ч. | C41: =C42+C43 -> 0
B42: фактические по итогам 2015 года
B43: планового периода 2017 года
B44: Выпадающие доходы по итогам 2017 года за минусом плановых показателей 2017 года, подлежащие учету в 2019 году, тыс. руб. | C44: =MIN(E28,H28)-C43 -> 0 | G44: ИПЦ, %
B45: Выпадающие доходы по итогам 2017 года c учетом ИПЦ, подлежащие учету в 2019 году, тыс. руб. | C45: =C44*(1+H45)*(1+H46) -> 0 | G45: 2019 г. к 2018 г.
B46: Плановые выпадающие доходы на 2019 год | C46: =K28 -> 0 | G46: 2018 г. к 2017 г.
B47: Итого выпадающие доходы от льготного ТП подлежащие учету в 2019 году, тыс. руб. | C47: =C46+C45 -> 0
B49: Руководитель организации | D49: ='Инф-я'!$C$17 -> Окунев Василий Михайлович

Sheet Расчет выпадающих до 150 кВт
G1: Приложение 3
G2: к Методическим указаниям,
G3: утвержденным приказом ФСТ от 11.09.2014 г. №215-э/1
A5: Расчет размера расходов, связанных с осуществлением технологического присоединения к электрическим сетям энергопринимающих устройств максимальной мощностью до 150 кВт включительно, не включаемых в состав платы за технологическое присоединение за 2017 год и плановый период 2019 года
B7: ='Инф-я'!$C$9 -> Общество с ограниченной ответственностью "Энергетик"
A9: № п./п. | B9: Показатели | C9: Фактические данные за 2017 год | F9: Расчетные (фактические) данные за 2017 год | I9: Плановые показатели на 2019 год
C11: ставка платы (руб./кВт, руб./км) | D11: мощность, длина линий, (кВт., км) | E11: Сумма (в соответствии с актами приемки выполненных работ) тыс. руб. | F11: стандартизированная тарифная ставка (руб./кВт, руб./км) | G11: мощность, длина линий, (кВт., км) | H11: Сумма, тыс. руб. | I11: стандартизированная тарифная ставка (руб./кВт, руб./км) | J11: мощность, длина линий, (кВт, км, шт) | K11: Сумма, тыс. руб.
A12: 1 | B12: 2 | C12: 3 | D12: 4 | E12: 5 | F12: 6 | G12: 7 | H12: 8 | I12: 9 | J12: 10 | K12: 11
A13: 1. | B13: Расходы по мероприятиям "последней мили", связанные с осуществлением технологического присоединения к электрическим сетям [п.1.1 + п.1.2 + п.1.3 + п.1.4+ п.1.5+ п.1.6]: | C13: х | D13: х | E13: =SUM(E14:E19) -> 0 | F13: х | G13: х | H13: =SUM(H14:H19) -> 0 | I13: х | J13: х | K13: =SUM(K14:K19) -> 0
A14: 1.1. | B14: строительство воздушных линий, на уровне напряжения i и (или) диапазоне мощности j | C14: =IF(D14=0,0,E14/D14*1000) -> 0 | G14: =D14 -> 0 | H14: =F14*G14/1000 -> 0 | J14: =C36 -> 0 | K14: =I14*J14/1000 -> 0
A15: 1.2. | B15: строительство кабельных линий, на уровне напряжения i и (или) диапазоне мощности j | C15: =IF(D15=0,0,E15/D15*1000) -> 0 | G15: =D15 -> 0 | H15: =F15*G15/1000 -> 0 | J15: =D36 -> 0 | K15: =I15*J15/1000 -> 0
A16: 1.3. | B16: строительством пунктов секционирования, на уровне напряжения i и (или) диапазоне мощности j | C16: 0 | G16: 0 | H16: =F16*G16/1000 -> 0 | J16: =E36 -> 0 | K16: 0
A17: 1.4. | B17: строительство комплектных трансформаторных подстанций (КТП) с уровнем напряжения до 35 кВ, на уровне напряжения i и (или) диапазоне мощности j | C17: 0 | G17: 0 | H17: 0 | J17: =F36 -> 0 | K17: 0
A18: 1.5. | B18: строительство распределительных трансформаторных подстанций (РТП) с уровнем напряжения до 35 кВ, на уровне напряжения i и (или) диапазоне мощности j | C18: =IF(D18=0,0,E18/D18*1000) -> 0 | G18: =D18 -> 0 | H18: =F18*G18/1000 -> 0 | J18: =G36 -> 0 | K18: =I18*J18/1000 -> 0
A19: 1.6. | B19: строительство центров питания, подстанций уровнем напряжения 35 кВ и выше (ПС), на уровне напряжения i и (или) диапазоне мощности j | C19: =IF(D19=0,0,E19/D19*1000) -> 0 | G19: 0 | H19: 0 | J19: =H36 -> 0 | K19: 0
A20: 2. | B20: Суммарный размер платы за технологическое присоединение в части мероприятий "последней мили" [n.2.1 + п.2.2 + п.2.3 + п.2.4 + п.2.5+ п.2.6]: | C20: х | D20: х | E20: =SUM(E21:E26) -> 0 | F20: =C20 -> х | G20: х | H20: =SUM(H21:H26) -> 0 | I20: =F20 -> х | J20: х | K20: =SUM(K21:K26) -> 0
A21: 2.1. | B21: строительство воздушных линий, на уровне напряжения i и (или) диапазоне мощности j | C21: =IF(D21=0,0,E21/D21*1000) -> 0 | H21: 0 | K21: =I21*J21/1000 -> 0
A22: 2.2. | B22: строительство кабельных линий, на уровне напряжения i и (или) диапазоне мощности j | C22: 0 | H22: 0 | K22: 0
A23: 2.3. | B23: строительством пунктов секционирования, на уровне напряжения i и (или) диапазоне мощности j | C23: 0 | H23: 0 | K23: 0
A24: 2.4. | B24: строительство комплектных трансформаторных подстанций (КТП) с уровнем напряжения до 35 кВ, на уровне напряжения i и (или) диапазоне мощности j | C24: 0 | H24: 0 | K24: 0
A25: 2.5. | B25: строительство распределительных трансформаторных подстанций (РТП) с уровнем напряжения до 35 кВ, на уровне напряжения i и (или) диапазоне мощности j | C25: =IF(D25=0,0,E25/D25*1000) -> 0 | H25: =F25*G25/1000 -> 0 | K25: =I25*J25/1000 -> 0
A26: 2.6. | B26: строительство центров питания, подстанций уровнем напряжения 35 кВ и выше (ПС), на уровне напряжения i и (или) диапазоне мощности j | C26: 0 | H26: 0 | K26: 0
A27: 3. | B27: Размер расходов по мероприятиям "последней мили", связанных с осуществлением технологического присоединения к электрическим сетям, не включаемых в плату за технологическое присоединение [п.1 - п.2] | C27: х | D27: х | E27: =E13-E20 -> 0 | F27: х | G27: х | H27: =H13-H20 -> 0 | I27: х | J27: х | K27: =K13-K20 -> 0
B30: Фактические средние данные по выполненым договорам технологического присоединения за 3 предыдущих года
B32: Год | C32: строительство ВЛ, км | D32: строительство КЛ, км | E32: строительством пунктов секционирования, шт | F32: строительство КТП с уровнем напряжения до 35 кВ, кВт | G32: строительство РТП с уровнем напряжения до 35 кВ, кВт | H32: строительство ПС, кВт
B33: Факт 2015 г.
B34: Факт 2016 г.
B35: Факт 2017 г.
B36: План 2019 г. (расчет плановых значений исходя из данных за 3 предыдущих периода) | C36: =(C33+C34+C35)/3 -> 0 | D36: =(D33+D34+D35)/3 -> 0 | E36: 0 | F36: 0 | G36: =(G33+G34+G35)/3 -> 0 | H36: =(H33+H34+H35)/3 -> 0
B38: Сводный расчет выпадающих доходов от льготного ТП, подлежащих учету в 2019 году, тыс. руб.
B40: Выпадающие доходы планового периода 2017 года, учтенные при тарифном регулировании на 2017 год ,всего в т.ч. | C40: =C41+C42 -> 0
B41: фактические по итогам 2015 года | G41: ИПЦ, %
B42: планового периода 2017 года | G42: 2019 г. к 2018 г. | H42: ='Расчет выпадающих до 15 кВт'!H45 -> 0
B43: Выпадающие доходы по итогам 2017 года за минусом плановых показателей 2017 года, подлежащие учету в 2019 году, тыс. руб. | C43: =MIN(E27,H27)-C42 -> 0 | G43: 2018 г. к 2017 г. | H43: ='Расчет выпадающих до 15 кВт'!H46 -> 0
B44: Выпадающие доходы по итогам 2017 года c учетом ИПЦ, подлежащие учету в 2019 году, тыс. руб. | C44: =C43*(1+H42)*(1+H43) -> 0
B45: Плановые выпадающие доходы на 2019 год | C45: =K27 -> 0
B46: Итого выпадающие доходы от льготного ТП, подлежащие учету в 2019 году, тыс. руб. | C46: =C44+C45 -> 0
B48: Руководитель организации | D48: ='Инф-я'!$C$17 -> Окунев Василий Михайлович

Sheet СВОД по % по рассрочке
B2: Выпадающие доходы сетевой организации от выплаты процентов по кредитным договорам, связанным с рассрочкой по оплате субъектами малого и среднего предпринимательства технологического присоединения энергопринимающих устройств максимальной мощностью свыше 15 кВт и до 150 кВт включительно в 2019 году
A4: ='Инф-я'!$C$9 -> Общество с ограниченной ответственностью "Энергетик"
A6: N п/п | B6: Информация о договоре технологического присоединения (Контрагент (наименование), № договора ТП, Дата заключения договора) | F6: Ставка рефинансирования Центрального банка Российской Федерации | G6: Год закрытия | H6: Квартал закрытия | I6: Сумма договора,тыс. руб. с НДС | J6: Размера расходов, связанных с предоставлением беспроцентной рассрочки в 2019 году, тыс. руб.
A9: 1 | B9: 2 | F9: 3 | G9: 4 | H9: 5 | I9: 6 | J9: 7
A10: 1 | B10: =Заявитель1!A4 -> 0 | F10: =Заявитель1!B31 -> 0 | G10: =Заявитель1!B34 -> 0 | H10: =Заявитель1!B32 -> 0 | I10: =Заявитель1!B33 -> 0 | J10: =Заявитель1!G36 -> 0
A11: 2 | B11: =Заявитель2!A4 -> 0 | F11: =Заявитель2!B31 -> 0 | G11: =Заявитель2!B34 -> 0 | H11: =Заявитель2!B32 -> 0 | I11: =Заявитель2!B33 -> 0 | J11: =Заявитель2!G36 -> 0
A12: 3 | B12: =Заявитель3!A4 -> 0 | F12: =Заявитель3!B31 -> 0 | G12: =Заявитель3!B34 -> 0 | H12: =Заявитель3!B32 -> 0 | I12: =Заявитель3!B33 -> 0 | J12: =Заявитель3!G36 -> 0
A13: 4 | B13: =Заявитель4!A4 -> 0 | F13: =Заявитель4!B31 -> 0 | G13: =Заявитель4!B34 -> 0 | H13: =Заявитель4!B32 -> 0 | I13: =Заявитель4!B33 -> 0 | J13: =Заявитель4!G36 -> 0
A17: Добавить
A18: ИТОГО | I18: =SUM(I10:I17) -> 0 | J18: =SUM(J10:J17) -> 0
B20: Свод по кварталам | C20: Сумма по договорам
B21: 1 | C21: =SUMIF(H$6:H$22,B21,I$6:I$22) -> 0
B22: 2 | C22: =SUMIF(H$6:H$22,B22,I$6:I$22) -> 0
B23: 3 | C23: =SUMIF(H$6:H$22,B23,I$6:I$22) -> 0
B24: 4 | C24: =SUMIF(H$6:H$22,B24,I$6:I$22) -> 0
B25: ГОД | C25: =SUM(C21:C24) -> 0
C26: =C25-I18 -> 0
F28: Приложение 2 к Методическим указаниям, утвержденным приказом ФСТ от 11.09.2014 г. №215-э/1
A32: Таблица 1. Расчет суммарного размера платы за технологическое присоединение, подлежащего беспроцентной рассрочке
B34: ='Инф-я'!C9 -> Общество с ограниченной ответственностью "Энергетик"
Q35: тыс. руб. с НДС
A36: N п/п | B36: Показатель | F36: Фактические данные за предыдущий период регулирования | K36: Ожидаемые данные за текущий период регулирования | P36: Плановые показатели на следующий период регулирования
F37: 1 кв. | G37: 2 кв. | H37: 3 кв. | I37: 4 кв. | J37: всего за год | K37: 1 кв. | L37: 2 кв. | M37: 3 кв. | N37: 4 кв. | O37: всего за год | P37: 1 кв. | Q37: 2 кв. | R37: 3 кв. | S37: 4 кв. | T37: всего за год
A38: 1 | B38: Суммарный размер платы за технологическое присоединение, тыс. руб., в т.ч.: | J38: =SUM(F38:I38) -> 0 | O38: =SUM(K38:N38) -> 0 | P38: =C21 -> 0 | Q38: =C22 -> 0 | R38: =C23 -> 0 | S38: =C24 -> 0 | T38: =SUM(P38:S38) -> 0
A39: 2 | B39: Суммарный размер платы за технологическое присоединение, подлежащий беспроцентной рассрочке | J39: =SUM(F39:I39) -> 0 | O39: =SUM(K39:N39) -> 0 | P39: =P38*0.95 -> 0 | Q39: =Q38*0.95 -> 0 | R39: 0 | S39: 0 | T39: 0
B41: Руководитель организации | D41: ='Инф-я'!$C$17 -> Окунев Василий Михайлович
A43: Примечание:
A44: 1) Суммарный размер платы за технологическое присоединение (п. 1) за каждый квартал следующего расчетного периода регулирования представляет собой прогнозную величину платы за технологическое присоединение для заявителей, обращающихся за беспроцентной рассрочкой, определенную на основе фактических данных о заявителях, обратившихся за рассрочкой за последний год, но не ниже документально подтвержденных данных о заявителях, обратившихся за рассрочкой на следующий период регулирования.
A45: 2) Суммарный размер платы за технологическое присоединение, подлежащий беспроцентной рассрочке (п. 2), за каждый квартал определяется как суммарный размер платы за технологическое присоединение (п. 1) за каждый квартал, умноженный на 0,95.

Sheet Заявитель1
C1: Приложение 2 к Методическим указаниям, утвержденным приказом ФСТ от 11.09.2014 г. №215-э/1
A3: Расчет размера расходов, связанных с предоставлением беспроцентной рассрочки (для конкретного заявителя)
B5: (Контрагент (наименование), № договора ТП, Дата заключения договора)
A7: N п/п | B7: Квартал, на который рассчитывается размер расходов, связанных с предоставлением беспроцентной рассрочки | C7: Расходы, связанные с предоставлением беспроцентной рассрочки, тыс. руб. (с учетом НДС) | H7: Номер квартала i
C8: в отношении суммарного размера платы за технологическое присоединение в 1 квартале | D8: в отношении суммарного размера платы за технологическое присоединение во 2 квартале | E8: в отношении суммарного размера платы за технологическое присоединение в 3 квартале | F8: в отношении суммарного размера платы за технологическое присоединение в 4 квартале | G8: всего в год
A9: 1 | B9: =CONCATENATE("1 год (",$B$34,"г.):") -> 1 год (г.): | C9: =SUM(C10:C13) -> 0 | D9: =SUM(D10:D13) -> 0 | E9: =SUM(E10:E13) -> 0 | F9: =SUM(F10:F13) -> 0 | G9: =SUM(C9:F9) -> 0
A10: 1.1. | B10: 1 квартал | C10: =IF($H10>=$B$32,Заявитель1!$B$33*0.95*((12+$B$32-$H10)/12)*($B$31/4),0) -> 0 | G10: 0 | H10: 1
A11: 1.2. | B11: 2 квартал | D11: =IF($H11>=$B$32,Заявитель1!$B$33*0.95*((12+$B$32-$H11)/12)*($B$31/4),0) -> 0 | G11: 0 | H11: 2
A12: 1.3. | B12: 3 квартал | E12: =IF($H12>=$B$32,Заявитель1!$B$33*0.95*((12+$B$32-$H12)/12)*($B$31/4),0) -> 0 | G12: 0 | H12: 3
A13: 1.4. | B13: 4 квартал | F13: =IF($H13>=$B$32,Заявитель1!$B$33*0.95*((12+$B$32-$H13)/12)*($B$31/4),0) -> 0 | G13: 0 | H13: 4
A14: 2 | B14: =CONCATENATE("1 год (",$B$34+1,"г.):") -> 1 год (1г.): | C14: =SUM(C15:C18) -> 0 | D14: =SUM(D15:D18) -> 0 | E14: =SUM(E15:E18) -> 0 | F14: =SUM(F15:F18) -> 0 | G14: 0
A15: 2.1. | B15: 5 квартал | C15: =Заявитель1!$B$33*0.95*((12+$B$32-$H15)/12)*($B$31/4) -> 0 | G15: 0 | H15: 5
A16: 2.2. | B16: 6 квартал | D16: =Заявитель1!$B$33*0.95*((12+$B$32-$H16)/12)*($B$31/4) -> 0 | G16: 0 | H16: 6
A17: 2.3. | B17: 7 квартал | E17: =Заявитель1!$B$33*0.95*((12+$B$32-$H17)/12)*($B$31/4) -> 0 | G17: 0 | H17: 7
A18: 2.4. | B18: 8 квартал | F18: =Заявитель1!$B$33*0.95*((12+$B$32-$H18)/12)*($B$31/4) -> 0 | G18: 0 | H18: 8
A19: 3 | B19: =CONCATENATE("1 год (",$B$34+2,"г.):") -> 1 год (2г.): | C19: =SUM(C20:C23) -> 0 | D19: =SUM(D20:D23) -> 0 | E19: =SUM(E20:E23) -> 0 | F19: =SUM(F20:F23) -> 0 | G19: 0
A20: 3.1. | B20: 9 квартал | C20: =Заявитель1!$B$33*0.95*((12+$B$32-$H20)/12)*($B$31/4) -> 0 | G20: 0 | H20: 9
A21: 3.2. | B21: 10 квартал | D21: =Заявитель1!$B$33*0.95*((12+$B$32-$H21)/12)*($B$31/4) -> 0 | G21: 0 | H21: 10
A22: 3.3. | B22: 11 квартал | E22: =Заявитель1!$B$33*0.95*((12+$B$32-$H22)/12)*($B$31/4) -> 0 | G22: 0 | H22: 11
A23: 3.4. | B23: 12 квартал | F23: =Заявитель1!$B$33*0.95*((12+$B$32-$H23)/12)*($B$31/4) -> 0 | G23: 0 | H23: 12
A24: 4 | B24: =CONCATENATE("1 год (",$B$34+3,"г.):") -> 1 год (3г.): | C24: =SUM(C25:C27) -> 0 | D24: =SUM(D25:D27) -> 0 | E24: =SUM(E25:E27) -> 0 | F24: =SUM(F25:F27) -> 0 | G24: 0
A25: 4.1. | B25: 13 квартал | C25: =Заявитель1!$B$33*0.95*((12+$B$32-$H25)/12)*($B$31/4) -> 0 | G25: 0 | H25: 13
A26: 4.2. | B26: 14 квартал | D26: =IF((Заявитель1!$B$33*0.95*((12+$B$32-$H26)/12)*($B$31/4))<0,0,Заявитель1!$B$33*0.95*((12+$B$32-$H26)/12)*($B$31/4)) -> 0 | G26: 0 | H26: 14
A27: 4.3. | B27: 15 квартал | E27: =IF((Заявитель1!$B$33*0.95*((12+$B$32-$H27)/12)*($B$31/4))<0,0,Заявитель1!$B$33*0.95*((12+$B$32-$H27)/12)*($B$31/4)) -> 0 | G27: 0 | H27: 15
A28: 5 | B28: Итого | C28: =C9+C14+C19+C24 -> 0 | D28: =D9+D14+D19+D24 -> 0 | E28: =E9+E14+E19+E24 -> 0 | F28: =F9+F14+F19+F24 -> 0 | G28: =G9+G14+G19+G24 -> 0
A32: k
A34: Год закрытия договора
A36: Размера расходов, связанных с предоставлением беспроцентной рассрочки в 2019 году | G36: =IF(B34<2015,0,IF(B34=2015,G24,IF(B34=2016,G19,IF(B34=2017,G14)))) -> 0 | H36: тыс. руб.
A38: Размер расходов, связанных с предоставлением беспроцентной рассрочки, в i-м квартале в течение трехлетнего периода предоставления беспроцентной рассрочки рассчитывается по формуле (1):
D40: , (1)
A42: где:
A43: - суммарный размер платы за технологическое присоединение, начисляемый заявителям, которым предоставляется рассрочка, в квартале k периода регулирования (тыс. руб.);
A44: k - номер квартала по порядку в периоде регулирования, в который начисляется размер платы за технологическое присоединение (равен от 1 до 4);
A45: i - номер квартала по порядку, начиная с момента начисления размера платы за технологическое присоединение с условием предоставления беспроцентной рассрочки в квартале k, с учетом квартала, в котором произведены начисления, в течение трехлетнего периода предоставления беспроцентной рассрочки (равен от k до 12 + k - 1);
A46: - ставка рефинансирования Центрального банка Российской Федерации на дату представления сетевой организацией заявки на установление размера платы за технологическое присоединение в регулирующий орган.
A47: В случае отклонения фактического значения процентной ставки по кредитам, связанным с рассрочкой по оплате технологического присоединения, от ставки рефинансирования Центрального банка Российской Федерации, при расчете фактического размера расходов, связанных с предоставлением беспроцентной рассрочки, применяется величина процентной ставки в соответствии с пунктом 87 Основ ценообразования.
A49: Примечание:
A50: 1) Периодом предоставления беспроцентной рассрочки считается 3 года.
A51: 2) Размер расходов, связанных с предоставлением беспроцентной рассрочки, в каждый квартал периода регулирования в течение трехлетнего периода предоставления беспроцентной рассрочки в отношении планируемого к получению (фактически полученного) от заявителей суммарного размера платы за технологическое присоединение, определяется в соответствии с формулой (1) Методических указаний по определению выпадающих доходов, связанных с осуществлением технологического присоединения к электрическим сетям.
A52: 3) При расчете планируемых значений показателей при заполнении таблиц 1 и 2 применяется планируемая к получению величина суммарного размера платы за технологическое присоединение, подлежащего беспроцентной рассрочке.
A53: 4) При расчете фактических значений показателей при заполнении таблиц 1 и 2 применяется суммарная плата за технологическое присоединение, начисленная с беспроцентной рассрочкой в соответствии с заключенными договорами об осуществлении технологического присоединения к электрическим сетям.

Sheet Заявитель2
C1: Приложение 2 к Методическим указаниям, утвержденным приказом ФСТ от 11.09.2014 г. №215-э/1
A3: Расчет размера расходов, связанных с предоставлением беспроцентной рассрочки (для конкретного заявителя)
B5: (Контрагент (наименование), № договора ТП, Дата заключения договора)
A7: N п/п | B7: Квартал, на который рассчитывается размер расходов, связанных с предоставлением беспроцентной рассрочки | C7: Расходы, связанные с предоставлением беспроцентной рассрочки, тыс. руб. (с учетом НДС) | H7: Номер квартала i
C8: в отношении суммарного размера платы за технологическое присоединение в 1 квартале | D8: в отношении суммарного размера платы за технологическое присоединение во 2 квартале | E8: в отношении суммарного размера платы за технологическое присоединение в 3 квартале | F8: в отношении суммарного размера платы за технологическое присоединение в 4 квартале | G8: всего в год
A9: 1 | B9: =CONCATENATE("1 год (",$B$34,"г.):") -> 1 год (г.): | C9: =SUM(C10:C13) -> 0 | D9: =SUM(D10:D13) -> 0 | E9: =SUM(E10:E13) -> 0 | F9: =SUM(F10:F13) -> 0 | G9: =SUM(C9:F9) -> 0
A10: 1.1. | B10: 1 квартал | C10: =IF($H10>=$B$32,Заявитель2!$B$33*0.95*((12+$B$32-$H10)/12)*($B$31/4),0) -> 0 | G10: 0 | H10: 1
A11: 1.2. | B11: 2 квартал | D11: =IF($H11>=$B$32,Заявитель2!$B$33*0.95*((12+$B$32-$H11)/12)*($B$31/4),0) -> 0 | G11: 0 | H11: 2
A12: 1.3. | B12: 3 квартал | E12: =IF($H12>=$B$32,Заявитель2!$B$33*0.95*((12+$B$32-$H12)/12)*($B$31/4),0) -> 0 | G12: 0 | H12: 3
A13: 1.4. | B13: 4 квартал | F13: =IF($H13>=$B$32,Заявитель2!$B$33*0.95*((12+$B$32-$H13)/12)*($B$31/4),0) -> 0 | G13: 0 | H13: 4
A14: 2 | B14: =CONCATENATE("1 год (",$B$34+1,"г.):") -> 1 год (1г.): | C14: =SUM(C15:C18) -> 0 | D14: =SUM(D15:D18) -> 0 | E14: =SUM(E15:E18) -> 0 | F14: =SUM(F15:F18) -> 0 | G14: 0
A15: 2.1. | B15: 5 квартал | C15: =Заявитель2!$B$33*0.95*((12+$B$32-$H15)/12)*($B$31/4) -> 0 | G15: 0 | H15: 5
A16: 2.2. | B16: 6 квартал | D16: =Заявитель2!$B$33*0.95*((12+$B$32-$H16)/12)*($B$31/4) -> 0 | G16: 0 | H16: 6
A17: 2.3. | B17: 7 квартал | E17: =Заявитель2!$B$33*0.95*((12+$B$32-$H17)/12)*($B$31/4) -> 0 | G17: 0 | H17: 7
A18: 2.4. | B18: 8 квартал | F18: =Заявитель2!$B$33*0.95*((12+$B$32-$H18)/12)*($B$31/4) -> 0 | G18: 0 | H18: 8
A19: 3 | B19: =CONCATENATE("1 год (",$B$34+2,"г.):") -> 1 год (2г.): | C19: =SUM(C20:C23) -> 0 | D19: =SUM(D20:D23) -> 0 | E19: =SUM(E20:E23) -> 0 | F19: =SUM(F20:F23) -> 0 | G19: 0
A20: 3.1. | B20: 9 квартал | C20: =Заявитель2!$B$33*0.95*((12+$B$32-$H20)/12)*($B$31/4) -> 0 | G20: 0 | H20: 9
A21: 3.2. | B21: 10 квартал | D21: =Заявитель2!$B$33*0.95*((12+$B$32-$H21)/12)*($B$31/4) -> 0 | G21: 0 | H21: 10
A22: 3.3. | B22: 11 квартал | E22: =Заявитель2!$B$33*0.95*((12+$B$32-$H22)/12)*($B$31/4) -> 0 | G22: 0 | H22: 11
A23: 3.4. | B23: 12 квартал | F23: =Заявитель2!$B$33*0.95*((12+$B$32-$H23)/12)*($B$31/4) -> 0 | G23: 0 | H23: 12
A24: 4 | B24: =CONCATENATE("1 год (",$B$34+3,"г.):") -> 1 год (3г.): | C24: =SUM(C25:C27) -> 0 | D24: =SUM(D25:D27) -> 0 | E24: =SUM(E25:E27) -> 0 | F24: =SUM(F25:F27) -> 0 | G24: 0
A25: 4.1. | B25: 13 квартал | C25: =Заявитель2!$B$33*0.95*((12+$B$32-$H25)/12)*($B$31/4) -> 0 | G25: 0 | H25: 13
A26: 4.2. | B26: 14 квартал | D26: =IF((Заявитель2!$B$33*0.95*((12+$B$32-$H26)/12)*($B$31/4))<0,0,Заявитель2!$B$33*0.95*((12+$B$32-$H26)/12)*($B$31/4)) -> 0 | G26: 0 | H26: 14
A27: 4.3. | B27: 15 квартал | E27: =IF((Заявитель2!$B$33*0.95*((12+$B$32-$H27)/12)*($B$31/4))<0,0,Заявитель2!$B$33*0.95*((12+$B$32-$H27)/12)*($B$31/4)) -> 0 | G27: 0 | H27: 15
A28: 5 | B28: Итого | C28: =C9+C14+C19+C24 -> 0 | D28: =D9+D14+D19+D24 -> 0 | E28: =E9+E14+E19+E24 -> 0 | F28: =F9+F14+F19+F24 -> 0 | G28: =G9+G14+G19+G24 -> 0
A32: k
A34: Год закрытия договора
A36: Размера расходов, связанных с предоставлением беспроцентной рассрочки в 2019 году | G36: =IF(B34<2015,0,IF(B34=2015,G24,IF(B34=2016,G19,IF(B34=2017,G14)))) -> 0 | H36: тыс. руб.
A38: Размер расходов, связанных с предоставлением беспроцентной рассрочки, в i-м квартале в течение трехлетнего периода предоставления беспроцентной рассрочки рассчитывается по формуле (1):
D40: , (1)
A42: где:
A43: - суммарный размер платы за технологическое присоединение, начисляемый заявителям, которым предоставляется рассрочка, в квартале k периода регулирования (тыс. руб.);
A44: k - номер квартала по порядку в периоде регулирования, в который начисляется размер платы за технологическое присоединение (равен от 1 до 4);
A45: i - номер квартала по порядку, начиная с момента начисления размера платы за технологическое присоединение с условием предоставления беспроцентной рассрочки в квартале k, с учетом квартала, в котором произведены начисления, в течение трехлетнего периода предоставления беспроцентной рассрочки (равен от k до 12 + k - 1);
A46: - ставка рефинансирования Центрального банка Российской Федерации на дату представления сетевой организацией заявки на установление размера платы за технологическое присоединение в регулирующий орган.
A47: В случае отклонения фактического значения процентной ставки по кредитам, связанным с рассрочкой по оплате технологического присоединения, от ставки рефинансирования Центрального банка Российской Федерации, при расчете фактического размера расходов, связанных с предоставлением беспроцентной рассрочки, применяется величина процентной ставки в соответствии с пунктом 87 Основ ценообразования.
A49: Примечание:
A50: 1) Периодом предоставления беспроцентной рассрочки считается 3 года.
A51: 2) Размер расходов, связанных с предоставлением беспроцентной рассрочки, в каждый квартал периода регулирования в течение трехлетнего периода предоставления беспроцентной рассрочки в отношении планируемого к получению (фактически полученного) от заявителей суммарного размера платы за технологическое присоединение, определяется в соответствии с формулой (1) Методических указаний по определению выпадающих доходов, связанных с осуществлением технологического присоединения к электрическим сетям.
A52: 3) При расчете планируемых значений показателей при заполнении таблиц 1 и 2 применяется планируемая к получению величина суммарного размера платы за технологическое присоединение, подлежащего беспроцентной рассрочке.
A53: 4) При расчете фактических значений показателей при заполнении таблиц 1 и 2 применяется суммарная плата за технологическое присоединение, начисленная с беспроцентной рассрочкой в соответствии с заключенными договорами об осуществлении технологического присоединения к электрическим сетям.

Sheet Заявитель3
C1: Приложение 2 к Методическим указаниям, утвержденным приказом ФСТ от 11.09.2014 г. №215-э/1
A3: Расчет размера расходов, связанных с предоставлением беспроцентной рассрочки (для конкретного заявителя)
B5: (Контрагент (наименование), № договора ТП, Дата заключения договора)
A7: N п/п | B7: Квартал, на который рассчитывается размер расходов, связанных с предоставлением беспроцентной рассрочки | C7: Расходы, связанные с предоставлением беспроцентной рассрочки, тыс. руб. (с учетом НДС) | H7: Номер квартала i
C8: в отношении суммарного размера платы за технологическое присоединение в 1 квартале | D8: в отношении суммарного размера платы за технологическое присоединение во 2 квартале | E8: в отношении суммарного размера платы за технологическое присоединение в 3 квартале | F8: в отношении суммарного размера платы за технологическое присоединение в 4 квартале | G8: всего в год
A9: 1 | B9: =CONCATENATE("1 год (",$B$34,"г.):") -> 1 год (г.): | C9: =SUM(C10:C13) -> 0 | D9: =SUM(D10:D13) -> 0 | E9: =SUM(E10:E13) -> 0 | F9: =SUM(F10:F13) -> 0 | G9: =SUM(C9:F9) -> 0
A10: 1.1. | B10: 1 квартал | C10: =IF($H10>=$B$32,Заявитель3!$B$33*0.95*((12+$B$32-$H10)/12)*($B$31/4),0) -> 0 | G10: 0 | H10: 1
A11: 1.2. | B11: 2 квартал | D11: =IF($H11>=$B$32,Заявитель3!$B$33*0.95*((12+$B$32-$H11)/12)*($B$31/4),0) -> 0 | G11: 0 | H11: 2
A12: 1.3. | B12: 3 квартал | E12: =IF($H12>=$B$32,Заявитель3!$B$33*0.95*((12+$B$32-$H12)/12)*($B$31/4),0) -> 0 | G12: 0 | H12: 3
A13: 1.4. | B13: 4 квартал | F13: =IF($H13>=$B$32,Заявитель3!$B$33*0.95*((12+$B$32-$H13)/12)*($B$31/4),0) -> 0 | G13: 0 | H13: 4
A14: 2 | B14: =CONCATENATE("1 год (",$B$34+1,"г.):") -> 1 год (1г.): | C14: =SUM(C15:C18) -> 0 | D14: =SUM(D15:D18) -> 0 | E14: =SUM(E15:E18) -> 0 | F14: =SUM(F15:F18) -> 0 | G14: 0
A15: 2.1. | B15: 5 квартал | C15: =Заявитель3!$B$33*0.95*((12+$B$32-$H15)/12)*($B$31/4) -> 0 | G15: 0 | H15: 5
A16: 2.2. | B16: 6 квартал | D16: =Заявитель3!$B$33*0.95*((12+$B$32-$H16)/12)*($B$31/4) -> 0 | G16: 0 | H16: 6
A17: 2.3. | B17: 7 квартал | E17: =Заявитель3!$B$33*0.95*((12+$B$32-$H17)/12)*($B$31/4) -> 0 | G17: 0 | H17: 7
A18: 2.4. | B18: 8 квартал | F18: =Заявитель3!$B$33*0.95*((12+$B$32-$H18)/12)*($B$31/4) -> 0 | G18: 0 | H18: 8
A19: 3 | B19: =CONCATENATE("1 год (",$B$34+2,"г.):") -> 1 год (2г.): | C19: =SUM(C20:C23) -> 0 | D19: =SUM(D20:D23) -> 0 | E19: =SUM(E20:E23) -> 0 | F19: =SUM(F20:F23) -> 0 | G19: 0
A20: 3.1. | B20: 9 квартал | C20: =Заявитель3!$B$33*0.95*((12+$B$32-$H20)/12)*($B$31/4) -> 0 | G20: 0 | H20: 9
A21: 3.2. | B21: 10 квартал | D21: =Заявитель3!$B$33*0.95*((12+$B$32-$H21)/12)*($B$31/4) -> 0 | G21: 0 | H21: 10
A22: 3.3. | B22: 11 квартал | E22: =Заявитель3!$B$33*0.95*((12+$B$32-$H22)/12)*($B$31/4) -> 0 | G22: 0 | H22: 11
A23: 3.4. | B23: 12 квартал | F23: =Заявитель3!$B$33*0.95*((12+$B$32-$H23)/12)*($B$31/4) -> 0 | G23: 0 | H23: 12
A24: 4 | B24: =CONCATENATE("1 год (",$B$34+3,"г.):") -> 1 год (3г.): | C24: =SUM(C25:C27) -> 0 | D24: =SUM(D25:D27) -> 0 | E24: =SUM(E25:E27) -> 0 | F24: =SUM(F25:F27) -> 0 | G24: 0
A25: 4.1. | B25: 13 квартал | C25: =Заявитель3!$B$33*0.95*((12+$B$32-$H25)/12)*($B$31/4) -> 0 | G25: 0 | H25: 13
A26: 4.2. | B26: 14 квартал | D26: =IF((Заявитель3!$B$33*0.95*((12+$B$32-$H26)/12)*($B$31/4))<0,0,Заявитель3!$B$33*0.95*((12+$B$32-$H26)/12)*($B$31/4)) -> 0 | G26: 0 | H26: 14
A27: 4.3. | B27: 15 квартал | E27: =IF((Заявитель3!$B$33*0.95*((12+$B$32-$H27)/12)*($B$31/4))<0,0,Заявитель3!$B$33*0.95*((12+$B$32-$H27)/12)*($B$31/4)) -> 0 | G27: 0 | H27: 15
A28: 5 | B28: Итого | C28: =C9+C14+C19+C24 -> 0 | D28: =D9+D14+D19+D24 -> 0 | E28: =E9+E14+E19+E24 -> 0 | F28: =F9+F14+F19+F24 -> 0 | G28: =G9+G14+G19+G24 -> 0
A32: k
A34: Год закрытия договора
A36: Размера расходов, связанных с предоставлением беспроцентной рассрочки в 2019 году | G36: =IF(B34<2015,0,IF(B34=2015,G24,IF(B34=2016,G19,IF(B34=2017,G14)))) -> 0 | H36: тыс. руб.
A38: Размер расходов, связанных с предоставлением беспроцентной рассрочки, в i-м квартале в течение трехлетнего периода предоставления беспроцентной рассрочки рассчитывается по формуле (1):
D40: , (1)
A42: где:
A43: - суммарный размер платы за технологическое присоединение, начисляемый заявителям, которым предоставляется рассрочка, в квартале k периода регулирования (тыс. руб.);
A44: k - номер квартала по порядку в периоде регулирования, в который начисляется размер платы за технологическое присоединение (равен от 1 до 4);
A45: i - номер квартала по порядку, начиная с момента начисления размера платы за технологическое присоединение с условием предоставления беспроцентной рассрочки в квартале k, с учетом квартала, в котором произведены начисления, в течение трехлетнего периода предоставления беспроцентной рассрочки (равен от k до 12 + k - 1);
A46: - ставка рефинансирования Центрального банка Российской Федерации на дату представления сетевой организацией заявки на установление размера платы за технологическое присоединение в регулирующий орган.
A47: В случае отклонения фактического значения процентной ставки по кредитам, связанным с рассрочкой по оплате технологического присоединения, от ставки рефинансирования Центрального банка Российской Федерации, при расчете фактического размера расходов, связанных с предоставлением беспроцентной рассрочки, применяется величина процентной ставки в соответствии с пунктом 87 Основ ценообразования.
A49: Примечание:
A50: 1) Периодом предоставления беспроцентной рассрочки считается 3 года.
A51: 2) Размер расходов, связанных с предоставлением беспроцентной рассрочки, в каждый квартал периода регулирования в течение трехлетнего периода предоставления беспроцентной рассрочки в отношении планируемого к получению (фактически полученного) от заявителей суммарного размера платы за технологическое присоединение, определяется в соответствии с формулой (1) Методических указаний по определению выпадающих доходов, связанных с осуществлением технологического присоединения к электрическим сетям.
A52: 3) При расчете планируемых значений показателей при заполнении таблиц 1 и 2 применяется планируемая к получению величина суммарного размера платы за технологическое присоединение, подлежащего беспроцентной рассрочке.
A53: 4) При расчете фактических значений показателей при заполнении таблиц 1 и 2 применяется суммарная плата за технологическое присоединение, начисленная с беспроцентной рассрочкой в соответствии с заключенными договорами об осуществлении технологического присоединения к электрическим сетям.

Sheet Заявитель4
C1: Приложение 2 к Методическим указаниям, утвержденным приказом ФСТ от 11.09.2014 г. №215-э/1
A3: Расчет размера расходов, связанных с предоставлением беспроцентной рассрочки (для конкретного заявителя)
B5: (Контрагент (наименование), № договора ТП, Дата заключения договора)
A7: N п/п | B7: Квартал, на который рассчитывается размер расходов, связанных с предоставлением беспроцентной рассрочки | C7: Расходы, связанные с предоставлением беспроцентной рассрочки, тыс. руб. (с учетом НДС) | H7: Номер квартала i
C8: в отношении суммарного размера платы за технологическое присоединение в 1 квартале | D8: в отношении суммарного размера платы за технологическое присоединение во 2 квартале | E8: в отношении суммарного размера платы за технологическое присоединение в 3 квартале | F8: в отношении суммарного размера платы за технологическое присоединение в 4 квартале | G8: всего в год
A9: 1 | B9: =CONCATENATE("1 год (",$B$34,"г.):") -> 1 год (г.): | C9: =SUM(C10:C13) -> 0 | D9: =SUM(D10:D13) -> 0 | E9: =SUM(E10:E13) -> 0 | F9: =SUM(F10:F13) -> 0 | G9: =SUM(C9:F9) -> 0
A10: 1.1. | B10: 1 квартал | C10: =IF($H10>=$B$32,Заявитель4!$B$33*0.95*((12+$B$32-$H10)/12)*($B$31/4),0) -> 0 | G10: 0 | H10: 1
A11: 1.2. | B11: 2 квартал | D11: =IF($H11>=$B$32,Заявитель4!$B$33*0.95*((12+$B$32-$H11)/12)*($B$31/4),0) -> 0 | G11: 0 | H11: 2
A12: 1.3. | B12: 3 квартал | E12: =IF($H12>=$B$32,Заявитель4!$B$33*0.95*((12+$B$32-$H12)/12)*($B$31/4),0) -> 0 | G12: 0 | H12: 3
A13: 1.4. | B13: 4 квартал | F13: =IF($H13>=$B$32,Заявитель4!$B$33*0.95*((12+$B$32-$H13)/12)*($B$31/4),0) -> 0 | G13: 0 | H13: 4
A14: 2 | B14: =CONCATENATE("1 год (",$B$34+1,"г.):") -> 1 год (1г.): | C14: =SUM(C15:C18) -> 0 | D14: =SUM(D15:D18) -> 0 | E14: =SUM(E15:E18) -> 0 | F14: =SUM(F15:F18) -> 0 | G14: 0
A15: 2.1. | B15: 5 квартал | C15: =Заявитель4!$B$33*0.95*((12+$B$32-$H15)/12)*($B$31/4) -> 0 | G15: 0 | H15: 5
A16: 2.2. | B16: 6 квартал | D16: =Заявитель4!$B$33*0.95*((12+$B$32-$H16)/12)*($B$31/4) -> 0 | G16: 0 | H16: 6
A17: 2.3. | B17: 7 квартал | E17: =Заявитель4!$B$33*0.95*((12+$B$32-$H17)/12)*($B$31/4) -> 0 | G17: 0 | H17: 7
A18: 2.4. | B18: 8 квартал | F18: =Заявитель4!$B$33*0.95*((12+$B$32-$H18)/12)*($B$31/4) -> 0 | G18: 0 | H18: 8
A19: 3 | B19: =CONCATENATE("1 год (",$B$34+2,"г.):") -> 1 год (2г.): | C19: =SUM(C20:C23) -> 0 | D19: =SUM(D20:D23) -> 0 | E19: =SUM(E20:E23) -> 0 | F19: =SUM(F20:F23) -> 0 | G19: 0
A20: 3.1. | B20: 9 квартал | C20: =Заявитель4!$B$33*0.95*((12+$B$32-$H20)/12)*($B$31/4) -> 0 | G20: 0 | H20: 9
A21: 3.2. | B21: 10 квартал | D21: =Заявитель4!$B$33*0.95*((12+$B$32-$H21)/12)*($B$31/4) -> 0 | G21: 0 | H21: 10
A22: 3.3. | B22: 11 квартал | E22: =Заявитель4!$B$33*0.95*((12+$B$32-$H22)/12)*($B$31/4) -> 0 | G22: 0 | H22: 11
A23: 3.4. | B23: 12 квартал | F23: =Заявитель4!$B$33*0.95*((12+$B$32-$H23)/12)*($B$31/4) -> 0 | G23: 0 | H23: 12
A24: 4 | B24: =CONCATENATE("1 год (",$B$34+3,"г.):") -> 1 год (3г.): | C24: =SUM(C25:C27) -> 0 | D24: =SUM(D25:D27) -> 0 | E24: =SUM(E25:E27) -> 0 | F24: =SUM(F25:F27) -> 0 | G24: 0
A25: 4.1. | B25: 13 квартал | C25: =Заявитель4!$B$33*0.95*((12+$B$32-$H25)/12)*($B$31/4) -> 0 | G25: 0 | H25: 13
A26: 4.2. | B26: 14 квартал | D26: =IF((Заявитель4!$B$33*0.95*((12+$B$32-$H26)/12)*($B$31/4))<0,0,Заявитель4!$B$33*0.95*((12+$B$32-$H26)/12)*($B$31/4)) -> 0 | G26: 0 | H26: 14
A27: 4.3. | B27: 15 квартал | E27: =IF((Заявитель4!$B$33*0.95*((12+$B$32-$H27)/12)*($B$31/4))<0,0,Заявитель4!$B$33*0.95*((12+$B$32-$H27)/12)*($B$31/4)) -> 0 | G27: 0 | H27: 15
A28: 5 | B28: Итого | C28: =C9+C14+C19+C24 -> 0 | D28: =D9+D14+D19+D24 -> 0 | E28: =E9+E14+E19+E24 -> 0 | F28: =F9+F14+F19+F24 -> 0 | G28: =G9+G14+G19+G24 -> 0
A32: k
A34: Год закрытия договора
A36: Размера расходов, связанных с предоставлением беспроцентной рассрочки в 2019 году | G36: =IF(B34<2015,0,IF(B34=2015,G24,IF(B34=2016,G19,IF(B34=2017,G14)))) -> 0 | H36: тыс. руб.
A38: Размер расходов, связанных с предоставлением беспроцентной рассрочки, в i-м квартале в течение трехлетнего периода предоставления беспроцентной рассрочки рассчитывается по формуле (1):
D40: , (1)
A42: где:
A43: - суммарный размер платы за технологическое присоединение, начисляемый заявителям, которым предоставляется рассрочка, в квартале k периода регулирования (тыс. руб.);
A44: k - номер квартала по порядку в периоде регулирования, в который начисляется размер платы за технологическое присоединение (равен от 1 до 4);
A45: i - номер квартала по порядку, начиная с момента начисления размера платы за технологическое присоединение с условием предоставления беспроцентной рассрочки в квартале k, с учетом квартала, в котором произведены начисления, в течение трехлетнего периода предоставления беспроцентной рассрочки (равен от k до 12 + k - 1);
A46: - ставка рефинансирования Центрального банка Российской Федерации на дату представления сетевой организацией заявки на установление размера платы за технологическое присоединение в регулирующий орган.
A47: В случае отклонения фактического значения процентной ставки по кредитам, связанным с рассрочкой по оплате технологического присоединения, от ставки рефинансирования Центрального банка Российской Федерации, при расчете фактического размера расходов, связанных с предоставлением беспроцентной рассрочки, применяется величина процентной ставки в соответствии с пунктом 87 Основ ценообразования.
A49: Примечание:
A50: 1) Периодом предоставления беспроцентной рассрочки считается 3 года.
A51: 2) Размер расходов, связанных с предоставлением беспроцентной рассрочки, в каждый квартал периода регулирования в течение трехлетнего периода предоставления беспроцентной рассрочки в отношении планируемого к получению (фактически полученного) от заявителей суммарного размера платы за технологическое присоединение, определяется в соответствии с формулой (1) Методических указаний по определению выпадающих доходов, связанных с осуществлением технологического присоединения к электрическим сетям.
A52: 3) При расчете планируемых значений показателей при заполнении таблиц 1 и 2 применяется планируемая к получению величина суммарного размера платы за технологическое присоединение, подлежащего беспроцентной рассрочке.
A53: 4) При расчете фактических значений показателей при заполнении таблиц 1 и 2 применяется суммарная плата за технологическое присоединение, начисленная с беспроцентной рассрочкой в соответствии с заключенными договорами об осуществлении технологического присоединения к электрическим сетям.

Sheet Возврат заемных средств
A2: Расходы на возврат и обслуживание долгосрочных заемных средств, направляемых на финансирование капитальных вложений
A3: ='Инф-я'!C9 -> Общество с ограниченной ответственностью "Энергетик"
F4: тыс. руб.
A5: Показатели | B5: 2017 год | D5: 2018 год | F5: 2019 год
B6: Утверждено | C6: Факт | D6: Утверждено | E6: Ожидаемые | F6: По данным организации | G6: По данным экспертов
A7: 1 | B7: 2 | C7: 3 | D7: 4 | E7: 5 | F7: 6 | G7: 7
A8: Расходы по возврату заемных средств, направляемых на финансирование капитальных вложений | B8: 506.68 | C8: 6402.041 | E8: 2450.811 | F8: 2175.464
A9: Расходы на обслуживание долгосрочных заемных средств, направляемых на финансирование капитальных вложений | B9: 184.9382 | C9: 5615.199 | E9: 1190.407 | F9: 1256.592
A10: Итого расходы на возврат и обслуживание долгосрочных заемных средств, направляемых на финансирование капитальных вложений | B10: =B9+B8 -> 691.6182 | C10: 12017.24 | D10: 0 | E10: 3641.218 | F10: 3432.056 | G10: 0
A11: в т.ч. по уровням напряжения: ВН | B11: х | C11: х | E11: х
A12: СН1 | B12: х | C12: х | E12: х
A13: СН11 | B13: х | C13: х | E13: х
A14: НН | B14: х | C14: х | E14: х
A16: Руководитель организации | D16: ='Инф-я'!$C$17 -> Окунев Василий Михайлович

Sheet Корр. ПР
A2: Корректировка подконтрольных расходов по результатам 2017 года
A4: ='Инф-я'!C9 -> Общество с ограниченной ответственностью "Энергетик"
A6: № п.п. | B6: Наименование | C6: Ед.изм. | D6: 2017 год
D8: По расчету организации | E8: По расчету экспертов
A9: 1 | B9: 2 | C9: 3 | D9: 4 | E9: 5
A10: 1. | B10: Величина подконтрольных расходов, утвержденных на 2016 год | C10: тыс.руб. | D10: 30260.18628
A11: 2. | B11: Величина подконтрольных расходов, утвержденных на 2017 год | C11: тыс.руб. | D11: =' НВВ содержание'!C9 -> 31416.51502 | E11: =D11 -> 31416.51502
A12: 3. | B12: Фактический индекс потребительских цен 2017 года (ИПЦ) | C12: % | D12: 0.042
A13: 4. | B13: Индекс эффективности подконтрольных расходов (Хэф) | C13: % | D13: ='Подконтрольные расходы'!E10 -> 0.01 | E13: =D13 -> 0.01
A14: 5. | B14: Индекс изменения количества активов (ИКА ф) ((стр.5.1.- стр. 5.2.)/стр.5.2*100) | C14: % | D14: =IF(D16=0,0,(D15-D16)/D16) -> 0.09077948487 | E14: =IF(E16=0,0,(E15-E16)/E16) -> -1
A15: 5.1. | B15: фактический объем условных единиц 2017 года | C15: усл.ед. | D15: ='УЕ ТП 2016-2019'!L59 -> 983.2319 | E15: ='УЕ ТП 2016-2019'!N59 -> 0
A16: 5.2. | B16: фактический объем условных единиц 2016 года | C16: усл.ед. | D16: ='УЕ ТП 2016-2019'!H59 -> 901.403 | E16: =D16 -> 901.403
A17: 6. | B17: Коэффициент эластичности подконтрольных расходов по количеству активов (К эл) | C17: знач. | D17: 0.75 | E17: 0.75
A18: Итого корректировка подконтрольных расходов | C18: тыс.руб. | D18: =D10*(1+D12)*(1+D17*D14)*(1-D13)-D11 -> 1924.603824 | E18: =E10*(1+E12)*(1+E17*E14)*(1-E13)-E11 -> -31416.51502
B20: Руководитель организации | D20: ='Инф-я'!$C$17 -> Окунев Василий Михайлович

Sheet Корр. ПО
A2: Корректировка НВВ с учетом изменения полезного отпуска и цен на электрическую энергию за 2017 год
A4: ='Инф-я'!C9 -> Общество с ограниченной ответственностью "Энергетик"
A6: Месяц (Период) | B6: Вход электрической энергии в сеть организации | D6: Норматив потерь | E6: Объем потерь 2017 года | G6: Цена покупки потерь электрической энергии | I6: Величина корректировки
B7: План | C7: Факт | E7: Согласовано регулирующим органом | F7: Факт | G7: Учтенная при установлении тарифа | H7: Фактическая цена | I7: По данным организации | J7: По данным экспертов
A8: Ед.изм. | B8: тыс.кВт.ч. | C8: тыс.кВт.ч. | D8: % | E8: тыс.кВт.ч. | F8: тыс.кВт.ч. | G8: руб/тыс.кВт.ч | H8: руб/тыс.кВт.ч | I8: тыс. руб. | J8: тыс. руб.
A9: По данным организации
A10: Январь | B10: х | C10: 2617.602 | D10: х | E10: х | F10: 366.491 | G10: х | H10: 2222.294 | I10: х | J10: х
A11: Февраль | B11: х | C11: 2234.004 | D11: х | E11: х | F11: 290.858 | G11: х | H11: 2759.843 | I11: х | J11: х
A12: Март | B12: х | C12: 2300.762 | D12: х | E12: х | F12: 318.438 | G12: х | H12: 2374.3134 | I12: х | J12: х
A13: Апрель | B13: х | C13: 2164.936 | D13: х | E13: х | F13: 306.608 | G13: х | H13: 2645.5836 | I13: х | J13: х
A14: Май | B14: х | C14: 1945.128 | D14: х | E14: х | F14: 136.734 | G14: х | H14: 2506.6032 | I14: х | J14: х
A15: Июнь | B15: х | C15: 1749.118 | D15: х | E15: х | F15: 115.331 | G15: х | H15: 2418.0206 | I15: х | J15: х
A16: 1 полугодие | B16: 14624.1 | C16: =C10+C11+C12+C13+C14+C15 -> 13011.55 | D16: х | E16: 2120.7 | F16: =F10+F11+F12+F13+F14+F15 -> 1534.46 | G16: 2482.89 | H16: х | I16: х
A17: Июль | B17: х | C17: 1716.616 | D17: х | E17: х | F17: 176.388 | G17: х | H17: 2774.4632 | I17: х | J17: х
A18: Август | B18: х | C18: 1732.848 | D18: х | E18: х | F18: 201.655 | G18: х | H18: 2782.4164 | I18: х | J18: х
A19: Сентябрь | B19: х | C19: 1851.02 | D19: х | E19: х | F19: 185.566 | G19: х | H19: 2838.5372 | I19: х | J19: х
A20: Октябрь | B20: х | C20: 2278.722 | D20: х | E20: х | F20: 265.806 | G20: х | H20: 2828.35 | I20: х | J20: х
A21: Ноябрь | B21: х | C21: 2297.276 | D21: х | E21: х | F21: 262.147 | G21: х | H21: 2766.67 | I21: х | J21: х
A22: Декабрь | B22: х | C22: 2418.08 | D22: х | E22: х | F22: 305.678 | G22: х | H22: 2574.6 | I22: х | J22: х
A23: 2 полугодие | B23: 12187.8 | C23: =C17+C18+C19+C20+C21+C22 -> 12294.562 | D23: х | E23: 1767.4 | F23: =F17+F18+F19+F20+F21+F22 -> 1397.24 | G23: 2903.36 | H23: х | I23: х | J23: х
A24: ВСЕГО: | B24: =B16+B23 -> 26811.9 | C24: =C16+C23 -> 25306.112 | D24: =E24/B24 -> 0.1450139677 | E24: =E16+E23 -> 3888.1 | F24: =F16+F23 -> 2931.7 | G24: =IF(E24=0,0,(E16*G16+E23*G23)/E24) -> 2674.021575 | H24: =IF(F24=0,0,(F10*H10+F11*H11+F12*H12+F13*H13+F14*H14+F15*H15+F17*H17+F18*H18+F19*H19+F20*H20+F21*H21+F22*H22)/F24) -> 2608.481051 | I24: =IFERROR((C24-B24)*D24*H24+B24*(H24-G24)*D24,0)/1000 -> -824.4167993 | J24: х
A25: По данным экспертов
A26: Январь | B26: х | D26: х | E26: х | G26: х | I26: х | J26: х
A27: Февраль | B27: х | D27: х | E27: х | G27: х | I27: х | J27: х
A28: Март | B28: х | D28: х | E28: х | G28: х | I28: х | J28: х
A29: Апрель | B29: х | D29: х | E29: х | G29: х | I29: х | J29: х
A30: Май | B30: х | D30: х | E30: х | G30: х | I30: х | J30: х
A31: Июнь | B31: х | D31: х | E31: х | G31: х | I31: х | J31: х
A32: 1 полугодие | C32: =C26+C27+C28+C29+C30+C31 -> 0 | D32: х | F32: =F26+F27+F28+F29+F30+F31 -> 0 | H32: х | I32: х | J32: х
A33: Июль | B33: х | D33: х | E33: х | G33: х | I33: х | J33: х
A34: Август | B34: х | D34: х | E34: х | G34: х | I34: х | J34: х
A35: Сентябрь | B35: х | D35: х | E35: х | G35: х | I35: х | J35: х
A36: Октябрь | B36: х | D36: х | E36: х | G36: х | I36: х | J36: х
A37: Ноябрь | B37: х | D37: х | E37: х | G37: х | I37: х | J37: х
A38: Декабрь | B38: х | D38: х | E38: х | G38: х | I38: х | J38: х
A39: 2 полугодие | C39: =C33+C34+C35+C36+C37+C38 -> 0 | D39: х | F39: =F33+F34+F35+F36+F37+F38 -> 0 | H39: х | I39: х | J39: х
A40: ВСЕГО: | B40: =B32+B39 -> 0 | C40: =C32+C39 -> 0 | D40: =E40/B40 ->  | E40: =E32+E39 -> 0 | F40: =F32+F39 -> 0 | G40: =IF(E40=0,0,(E32*G32+E39*G39)/E40) -> 0 | H40: =IF(F40=0,0,(F26*H26+F27*H27+F28*H28+F29*H29+F30*H30+F31*H31+F33*H33+F34*H34+F35*H35+F36*H36+F37*H37+F38*H38)/F40) -> 0 | I40: х | J40: =IFERROR((C40-B40)*D40*H40+B40*(H40-G40)*D40,0)/1000 -> 0
A42: Руководитель организации | F42: ='Инф-я'!$C$17 -> Окунев Василий Михайлович
A45: Справочная информация:
A47: Наименование энергосбытовой организации - Гарантирующего поставщика | C47: Ед.изм. | D47: Цена (тариф) покупки потерь электрической энергии, учтенная при расчете тарифа на компенсацию потерь на 2017 год
D48: с 01.01.2017 г. | F48: с 01.07.2017 г.
A49: ОАО "Владимирэнергосбыт" | C49: руб./МВт.ч.
A50: ОАО "Владимирские коммунальные сети" | C50: руб./МВт.ч.
A51: ООО "Русэнергосбыт" | C51: руб./МВт.ч.
A52: ОАО "Оборонэнергосбыт" | C52: руб./МВт.ч.

Sheet Корр.НВВ
A1: Корректировка необходимой валовой выручки по доходам от осуществления регулируемой деятельности за 2017 год
A2: ='Инф-я'!C9 -> Общество с ограниченной ответственностью "Энергетик"
C4: тыс. руб.
B5: Наименование показателя | C5: Расчет Общества | D5: Расчет Экспертов | G5: 1 полугодие 2017 г. | J5: 2 полугодие 2017 г.
B6: НВВ сод 2017 | C6: =' НВВ содержание'!C48 -> 50944.32211 | D6: =C6 -> 50944.32211 | G6: Двухставочный тариф | I6: Одноставочный тариф | J6: Двухставочный тариф | L6: Одноставоч-ный тариф
B7: НВВ факт 2017 | C7: =E32+M32 -> 50019.30254 | D7: =E47+M47 -> 0 | G7: ставка за содержание электрических сетей | H7: ставка на оплату технологического расхода (потерь) | J7: ставка за содержание электрических сетей | K7: ставка на оплату технологического расхода (потерь)
B8: ∆ НВВ сод за 2017 год | C8: =C6-C7 -> 925.0195736 | D8: =D6-D7 -> 50944.32211 | G8: руб./кВт мес. | H8: руб./ кВт ч | I8: руб./ кВт ч | J8: руб./кВт мес. | K8: руб./ кВт ч | L8: руб./ кВт ч
H9: 0.44475 | I9: 2.48289 | K9: 0.45988 | L9: 2.90336
B11: Руководитель организации | D11: ='Инф-я'!C17 -> Окунев Василий Михайлович
B14: Расчет доходов, полученных согласно актам оказания услуг Владимирэнерго
B15: 1. Доходы по двухставочному тарифу | I15: 1. Итого доходы по двухставочному тарифу, тыс. руб. | J15: 2. Доходы по одноставочному тарифу
C16: 1.1. Доходы на содержание сетей | E16: Доходы на содержание сетей, тыс. руб. | F16: 1.2. Доходы на компенсацию потерь | H16: Доходы на компенсацию нормативных потерь, тыс. руб. | J16: полезный отпуск, тыс кВт ч | K16: одноставочный инд тариф, руб./тыс. кВт ч | L16: Итого доходы по одноставочному тарифу, тыс. руб.
C17: договорная мощность, МВт | D17: ставка на содержание сетей, руб./МВт мес. | F17: полезный отпуск, тыс кВт ч | G17: инд тариф на потери, руб./ тыс.кВт ч | L17: Всего: | M17: в том числе, доходы на содержание сетей
B18: январь | D18: =$G$9*1000 -> 0 | E18: =C18*D18/1000 -> 0 | G18: =$H$9*1000 -> 444.75 | H18: =F18*$G$18/1000 -> 0 | I18: =E18+H18 -> 0 | J18: 2251.11 | K18: =$I$9*1000 -> 2482.89 | L18: =J18*K18/1000 -> 5589.258508 | M18: =J18*(K18-G18)/1000 -> 4588.077335
B19: февраль | D19: 0 | E19: =C19*D19/1000 -> 0 | G19: 444.75 | H19: =F19*$G$18/1000 -> 0 | I19: 0 | J19: 1943.146 | K19: 2482.89 | L19: =J19*K19/1000 -> 4824.617772 | M19: =J19*(K19-G19)/1000 -> 3960.403588
B20: март | D20: 0 | E20: 0 | G20: 444.75 | H20: 0 | I20: 0 | J20: 1982.324 | K20: 2482.89 | L20: 4921.892436 | M20: 4040.253837
B21: апрель | D21: 0 | E21: 0 | G21: 444.75 | H21: 0 | I21: 0 | J21: 1858.328 | K21: 2482.89 | L21: 4614.024008 | M21: 3787.53263
B22: май | D22: 0 | E22: 0 | G22: 444.75 | H22: 0 | I22: 0 | J22: 1808.394 | K22: 2482.89 | L22: 4490.043379 | M22: 3685.760147
B23: июнь | D23: 0 | E23: 0 | G23: 444.75 | H23: 0 | I23: 0 | J23: 1633.787 | K23: 2482.89 | L23: 4056.513404 | M23: 3329.886636
B24: Итого 1 пол. | C24: х | D24: х | E24: =SUM(E18:E23) -> 0 | F24: =SUM(F18:F23) -> 0 | G24: х | H24: =SUM(H18:H23) -> 0 | I24: 0 | J24: =SUM(J18:J23) -> 11477.089 | K24: х | L24: =SUM(L18:L23) -> 28496.34951 | M24: =SUM(M18:M23) -> 23391.91417
B25: июль | D25: =$J$9*1000 -> 0 | E25: =C25*D25/1000 -> 0 | G25: =$K$9*1000 -> 459.88 | H25: =F25*$G$25/1000 -> 0 | I25: 0 | J25: 1540.228 | K25: =$L$9*1000 -> 2903.36 | L25: =J25*K25/1000 -> 4471.836366 | M25: =J25*(K25-G25)/1000 -> 3763.516313
B26: август | D26: 0 | E26: 0 | G26: 459.88 | H26: 0 | I26: 0 | J26: 1531.193 | K26: 2903.36 | L26: 4445.604508 | M26: 3741.439472
B27: сентябрь | D27: 0 | E27: 0 | G27: 459.88 | H27: 0 | I27: 0 | J27: 1665.454 | K27: 2903.36 | L27: 4835.412525 | M27: 4069.50354
B28: октябрь | D28: 0 | E28: 0 | G28: 459.88 | H28: 0 | I28: 0 | J28: 2012.916 | K28: 2903.36 | L28: 5844.219798 | M28: 4918.519988
B29: ноябрь | D29: 0 | E29: 0 | G29: 459.88 | H29: 0 | I29: 0 | J29: 2035.129 | K29: 2903.36 | L29: 5908.712133 | M29: 4972.797009
B30: декабрь | D30: 0 | E30: 0 | G30: 459.88 | H30: 0 | I30: 0 | J30: 2112.402 | K30: 2903.36 | L30: 6133.063471 | M30: 5161.612039
B31: Итого 2 пол. | C31: х | D31: х | E31: =SUM(E25:E30) -> 0 | F31: =SUM(F25:F30) -> 0 | G31: х | H31: =SUM(H25:H30) -> 0 | I31: 0 | J31: =SUM(J25:J30) -> 10897.322 | K31: х | L31: =SUM(L25:L30) -> 31638.8488 | M31: =SUM(M25:M30) -> 26627.38836
B32: Всего за 2017 г. | C32: х | D32: х | E32: =E24+E31 -> 0 | F32: =F24+F31 -> 0 | G32: х | H32: =H24+H31 -> 0 | I32: =I24+I31 -> 0 | J32: =J24+J31 -> 22374.411 | K32: х | L32: х | M32: =M24+M31 -> 50019.30254
B33: январь | D33: =$G$9*1000 -> 0 | E33: =C33*D33/1000 -> 0 | G33: =$H$9*1000 -> 444.75 | H33: =F33*$G$33/1000 -> 0 | I33: =E33+H33 -> 0 | K33: =$I$9*1000 -> 2482.89 | L33: =J33*K33/1000 -> 0 | M33: =J33*(K33-G33)/1000 -> 0
B34: февраль | D34: 0 | E34: 0 | G34: 444.75 | H34: =F34*$G$33/1000 -> 0 | I34: 0 | K34: 2482.89 | L34: 0 | M34: 0
B35: март | D35: 0 | E35: 0 | G35: 444.75 | H35: 0 | I35: 0 | K35: 2482.89 | L35: 0 | M35: 0
B36: апрель | D36: 0 | E36: 0 | G36: 444.75 | H36: 0 | I36: 0 | K36: 2482.89 | L36: 0 | M36: 0
B37: май | D37: 0 | E37: 0 | G37: 444.75 | H37: 0 | I37: 0 | K37: 2482.89 | L37: 0 | M37: 0
B38: июнь | D38: 0 | E38: 0 | G38: 444.75 | H38: 0 | I38: 0 | K38: 2482.89 | L38: 0 | M38: 0
B39: Итого 1 пол. | C39: =SUM(C33:C38) -> 0 | D39: х | E39: =SUM(E33:E38) -> 0 | F39: =SUM(F33:F38) -> 0 | G39: х | H39: =SUM(H33:H38) -> 0 | I39: 0 | J39: =SUM(J33:J38) -> 0 | K39: х | L39: =SUM(L33:L38) -> 0 | M39: =SUM(M33:M38) -> 0
B40: июль | D40: =$J$9*1000 -> 0 | E40: =C40*D40/1000 -> 0 | G40: =$K$9*1000 -> 459.88 | H40: =F40*$G$40/1000 -> 0 | I40: 0 | K40: =$L$9*1000 -> 2903.36 | L40: =J40*K40/1000 -> 0 | M40: =J40*(K40-G40)/1000 -> 0
B41: август | D41: 0 | E41: 0 | G41: 459.88 | H41: =F41*$G$40/1000 -> 0 | I41: 0 | K41: 2903.36 | L41: 0 | M41: =J41*(K41-G41)/1000 -> 0
B42: сентябрь | D42: 0 | E42: 0 | G42: 459.88 | H42: 0 | I42: 0 | K42: 2903.36 | L42: 0 | M42: 0
B43: октябрь | D43: 0 | E43: 0 | G43: 459.88 | H43: 0 | I43: 0 | K43: 2903.36 | L43: 0 | M43: 0
B44: ноябрь | D44: 0 | E44: 0 | G44: 459.88 | H44: 0 | I44: 0 | K44: 2903.36 | L44: 0 | M44: 0
B45: декабрь | D45: 0 | E45: 0 | G45: 459.88 | H45: 0 | I45: 0 | K45: 2903.36 | L45: 0 | M45: 0
B46: Итого 2 пол. | C46: =SUM(C40:C45) -> 0 | D46: х | E46: =SUM(E40:E45) -> 0 | F46: =SUM(F40:F45) -> 0 | G46: х | H46: =SUM(H40:H45) -> 0 | I46: 0 | J46: =SUM(J40:J45) -> 0 | K46: х | L46: =SUM(L40:L45) -> 0 | M46: =SUM(M40:M45) -> 0
B47: Всего за 2017 г. | C47: х | D47: х | E47: =E39+E46 -> 0 | F47: =F39+F46 -> 0 | G47: х | H47: =H39+H46 -> 0 | I47: х | J47: =J39+J46 -> 0 | K47: х | L47: х | M47: =M39+M46 -> 0

Sheet Корр. НР
A2: Корректировка неподконтрольных расходов по результатам 2017 года
A4: ='Инф-я'!C9 -> Общество с ограниченной ответственностью "Энергетик"
A6: № п/п | B6: Наименование показателей | C6: 2017 год утверждено | D6: По данным организации | F6: По данным экспертов
D7: Факт 2017 год | E7: Величина корректировки НР | F7: Факт 2017 год | G7: Величина корректировки НР
A8: 1 | B8: 2 | C8: 3 | D8: 4 | E8: 5 | F8: 6 | G8: 7
A9: 1. | B9: Страховые взносы во внебюджетные фонды | C9: ='Страховые взносы'!D18 -> 3542.84307 | D9: ='Страховые взносы'!E18 -> 3873.18 | E9: =D9-C9 -> 330.3369302 | F9: ='Страховые взносы'!J18 -> 0 | G9: =F9-C9 -> -3542.84307
A10: 2. | B10: Расходы на оплату услуг организаций, осуществляющих регулируемые виды деятельности | C10: ='Расходы рег. орг-ий'!B23 -> 205.5886363 | D10: ='Расходы рег. орг-ий'!C23 -> 234.751 | E10: 29.16236369 | F10: ='Расходы рег. орг-ий'!H23 -> 0 | G10: -205.5886363
A11: 3. | B11: Плата за землю | C11: ='Плата за землю'!B17 -> 200.4437656 | D11: ='Плата за землю'!C17 -> 335.09651 | E11: 134.6527444 | F11: ='Плата за землю'!H17 -> 0 | G11: -200.4437656
A12: 4. | B12: Транспортный налог | C12: ='Транспортный налог'!D16 -> 0 | D12: ='Транспортный налог'!E16 -> 0 | E12: 0 | F12: ='Транспортный налог'!L16 -> 0 | G12: 0
A13: 5. | B13: Налог на имущество | C13: ='Налог на имущество'!B15 -> 0 | D13: ='Налог на имущество'!C15 -> 0 | E13: 0 | F13: ='Налог на имущество'!H15 -> 0 | G13: 0
A14: 6. | B14: Плата за негативное воздействие на окружающую среду | C14: ='Негативное воздействие на ОС'!C29 -> 0 | D14: ='Негативное воздействие на ОС'!D29 -> 0.53353 | E14: 0.53353 | F14: ='Негативное воздействие на ОС'!I29 -> 0 | G14: 0
A15: 7. | B15: Налог на прибыль | C15: ='Налог прим при УСНО'!C10 -> 1038.262 | D15: ='Налог прим при УСНО'!D10 -> 1318.804 | E15: 280.542 | F15: ='Налог прим при УСНО'!H10 -> 
A16: 8. | B16: Плата за аренду имущества | C16: ='Аренда имущества'!B44 -> 4844.28 | D16: ='Аренда имущества'!C44 -> 4886.222 | E16: 41.942 | F16: ='Аренда имущества'!V44 -> 0 | G16: -4844.28
A17: 9. | B17: Оплата услуг ПАО "ФСК ЕЭС" | C17: ='Услуги ФСК'!B17 -> 0 | D17: ='Услуги ФСК'!E17 -> 0 | E17: 0 | F17: ='Услуги ФСК'!P17 -> 0 | G17: 0
A18: 10. | B18: Прочие обоснованные неподконтрольные расходы | C18: ='Прочие НР'!B15 -> 190.41 | D18: ='Прочие НР'!C15 -> 2275.436 | E18: 2085.026 | F18: ='Прочие НР'!H15 -> 0 | G18: -190.41
A19: Итого корректировка неподконтрольных расходов по результатам 2017 года | C19: =SUM(C9:C18) -> 10021.82747 | D19: =SUM(D9:D18) -> 12924.02304 | E19: =SUM(E9:E18) -> 2902.195568 | F19: =SUM(F9:F18) ->  | G19: =SUM(G9:G18) -> 
A21: Руководитель организации | C21: ='Инф-я'!$C$17 -> Окунев Василий Михайлович

Sheet Корр. ИП
A2: Корректировка НВВ в связи с изменением (неисполнением) инвестиционной программы по результатам 2017 года
A4: ='Инф-я'!C9 -> Общество с ограниченной ответственностью "Энергетик"
A6: № п/п | B6: Наименование показателей | C6: Обозначение в методических указаниях | D6: По данным организации | E6: По данным экспертов
A7: 1 | B7: 2 | C7: 3 | D7: 4 | E7: 5
A8: 1. | B8: Расчетная величина собственных средств регулируемой организации для финансирования инвестиционной программы, учтенная при установлении тарифов в 2017 году, которая не может принимать отрицательные значения, всего, в том числе: | D8: =IF((D9+D10)>=D11,D11,(D9+D10)) -> 4242 | E8: =IF((E9+E10)>=E11,E11,(E9+E10)) -> 0
B9: -амортизация | D9: =' КВЛ'!B23 -> 2891
B10: - капитальные вложения из прибыли | D10: =' КВЛ'!B25 -> 1351
A11: 2. | B11: Плановый размер финансирования инвестиционной программы, представляющей собой совокупность инвестиционных проектов, утвержденной (скорректированной) в установленном порядке на 2017 год до его начала, за счет собственных средств (выручки от реализации товаров (услуг) по регулируемым ценам (тарифам)) без НДС | D11: =' КВЛ'!B22-' КВЛ'!B24 -> 4242
A12: 3. | B12: Объем фактического финансирования инвестиционной программы, представляющей собой совокупность инвестиционных проектов, утвержденной (скорректированной) в установленном порядке на 2017 год до его начала, за счет собственных средств (выручки от реализации товаров (услуг) по регулируемым ценам (тарифам)) без НДС в 2017 году | D12: =' КВЛ'!C22-' КВЛ'!C24 -> 4726.558
A13: 4. | B13: Учтенная при расчете тарифов на 2018 год корректировка необходимой валовой выручки на 2017-ой год долгосрочного периода регулирования, осуществленная в связи с изменением (неисполнением) инвестиционной программы за истекший период 2017-го года по результатам 9 месяцев | D13: 915.1858239
B14: Итого корректировка НВВ в связи с изменением (неисполнением) инвестиционной программы по результатам 2017 года | D14: =IF(D11=0,0,D8*(D12/D11-1)-D13) -> -430.6278239 | E14: =IF(E11=0,0,E8*(E12/E11-1)) -> 0
A17: Руководитель организации | C17: ='Инф-я'!$C$17 -> Окунев Василий Михайлович

Sheet Корр. КНК
A2: Корректировка НВВ с учетом надежности и качества оказываемых услуг по результатам 2017 года
A4: ='Инф-я'!C9 -> Общество с ограниченной ответственностью "Энергетик"
A6: № п/п | B6: Наименование показателей | C6: Обзнач. в МУ | D6: По данным организации | E6: По данным экспертов
A7: 1 | B7: 2 | C7: 3 | D7: 4 | E7: 5
A8: 1. | B8: Оценка достижения показателя уровня надежности оказываемых услуг | D8: =(IF(AND(D22=0,E22=0),0,IF(AND(68<F22,F22<132),0,IF(F22>=132,-1,IF(F22<=68,1))))) -> 1 | E8: =(IF(AND(G22=0,D22=0),0,IF(AND(68<H22,H22<132),0,IF(H22>=132,-1,IF(H22<=68,1))))) -> 1
A9: 2. | B9: Оценка достижения показателя уровня качества осуществляемого технологического присоединения к сети | D9: =(IF(AND(D23=0,E23=0),0,IF(AND(68<F23,F23<132),0,IF(F23>=132,-1,IF(F23<=68,1))))) -> 0 | E9: =(IF(AND(G23=0,D23=0),0,IF(AND(68<H23,H23<132),0,IF(H23>=132,-1,IF(H23<=68,1))))) -> 1
A10: 3. | B10: Оценка достижения показателя уровня качества обслуживания потребителей услуг | D10: =(IF(AND(68<F24,F24<132),0,IF(F24>=132,-1,IF(F24<=68,1)))) -> 0 | E10: =(IF(AND(68<H24,H24<132),0,IF(H24>=132,-1,IF(H24<=68,1)))) -> 1
A11: 4. | B11: Обобщенный показатель уровня надежности и качества оказываемых услуг | D11: =D8*0.65+D9*0.25+D10*0.1 -> 0.65 | E11: =E8*0.65+E9*0.25+E10*0.1 -> 1
A12: 5. | B12: Максимальный процент корректировки, % | D12: 0.02 | E12: 0.02
A13: 6. | B13: Коэффициент, корректирующий НВВ с учетом надежности и качества оказываемых услуг | D13: =D11*D12 -> 0.013 | E13: =E11*E12 -> 0.02
A14: 7. | B14: Утвержденная НВВ на содержание электрических сетей (тыс. руб.) | D14: =' НВВ содержание'!C48 -> 50944.32211 | E14: =' НВВ содержание'!C48 -> 50944.32211
A15: 8. | B15: Величина корректировки НВВ с учетом надежности и качества оказываемых услуг | D15: =D13*D14 -> 662.2761874 | E15: =E13*E14 -> 1018.886442
A17: Показатели уровня надежности и уровня качества оказываемых услуг
A19: № п/п | B19: Наименование показателей | C19: Обозначение в Методических указаниях | D19: Утверждено на 2017 год | E19: По данным организации | G19: По данным экспертов
E20: Факт | F20: % отклонения | G20: Факт | H20: % отклонения
A21: 1 | B21: 2 | C21: 3 | D21: 4 | E21: 5 | F21: 6 | G21: 7 | H21: 8
A22: 1. | B22: Показатель средней продолжительности прекращений передачи электрической энергии | D22: 0.9827 | E22: ='Форма 1.2'!E8 -> 0.003302982732 | F22: =IF(D22=0,0,E22/D22*100) -> 0.3361130285 | H22: =IF(D22=0,0,G22/D22*100) -> 0
A23: 2. | B23: Показатель уровня качества осуществляемого технологического присоединения к сети | D23: 0.9945 | E23: ='форма 3 '!D37 -> 1 | F23: =IF(D23=0,0,E23/D23*100) -> 100.5530417 | H23: =IF(D23=0,0,G23/D23*100) -> 0
A24: 3. | B24: Показатель уровня качества обслуживания потребителей услуг | D24: 0.8975 | E24: ='форма 2.4'!C14 -> 0.8855555556 | F24: =IF(D24=0,0,E24/D24*100) -> 98.66914268 | H24: =IF(D24=0,0,G24/D24*100) -> 0
A27: Руководитель организации | C27: ='Инф-я'!$C$17 -> Окунев Василий Михайлович
A30: Приказ Министерства энергетики РФ от 14 октября 2013 г. N 718 "Об утверждении Методических указаний по расчету уровня надежности и качества поставляемых товаров и оказываемых услуг для организации по управлению единой национальной (общероссийской) электрической сетью и территориальных сетевых организаций" (с изменениями и дополнениями) Методические указания по расчету уровня надежности и качества поставляемых товаров и оказываемых услуг для организации по управлению единой национальной (общероссийской) электрической сетью и территориальных сетевых организаций 4. Порядок определения плановых и фактических значений показателей надежности и качества услуг 4.3. Коэффициенты допустимого отклонения на первый долгосрочный период регулирования устанавливаются равными: для организации по управлению единой национальной (общероссийской) электрической сетью для показателя уровня надежности оказания услуг - 25% на первые три расчетных периода регулирования и 20% на следующие расчетные периоды регулирования первого долгосрочного периода регулирования, а для показателя уровня качества оказания услуг - 15%; для территориальных сетевых организаций, в отношении которых переход к регулированию цен (тарифов) на услуги по передаче электрической энергии в форме долгосрочных тарифов на основе долгосрочных параметров регулирования деятельности осуществлен до 1 июля 2010 г., - 30% на первые три расчетных периода регулирования и 25% на следующие расчетные периоды регулирования первого долгосрочного периода регулирования; для остальных территориальных сетевых организаций - 35% на первые три расчетных периода регулирования и 30% на следующие расчетные периоды регулирования первого долгосрочного периода регулирования. В последующие долгосрочные периоды регулирования коэффициенты снижаются в случае достижения показателей на 1% в год - до 15% для организации по управлению единой национальной (общероссийской) электрической сетью и до 25% для территориальных сетевых организаций.

Sheet НВВ содержание
A2: Расчет необходимой валовой выручки на содержание электрических сетей на 2019 год
A4: ='Инф-я'!C9 -> Общество с ограниченной ответственностью "Энергетик"
A6: № | B6: Наименование | C6: 2017 год | E6: 2018 год | F6: 2019 год | H6: Темп роста планируемых затрат по расчету организации, % | J6: Темп роста затрат организации по расчету экспертов, %
C7: Утверждено | D7: Факт | E7: Утверждено | F7: По данным организации | G7: По данным экспертов | H7: к факту 2017 года | I7: к утвержденным 2018 года | J7: к факту 2017 года | K7: к утвержденным 2018 года
A8: 1 | B8: 2 | C8: 3 | D8: 4 | E8: 5 | F8: 7 | G8: 8 | H8: 9 | I8: 10 | J8: 11 | K8: 12
A9: 1. | B9: Подконтрольные расходы | C9: =C10+C11+C12+C13+C22 -> 31416.51502 | D9: =D10+D11+D12+D13+D22 -> 39640.3 | E9: ='Подконтрольные расходы'!D32 -> 33163.38025 | F9: ='Подконтрольные расходы'!E32 -> 36366.60071 | G9: ='Подконтрольные расходы'!F32 -> 8207.936611 | H9: =IF(D9=0,IF(F9=0,0,100),F9/D9*100) -> 91.7414871 | I9: =IF(E9=0,IF(F9=0,0,100),F9/E9*100) -> 109.6589082 | J9: =IF(D9=0,IF(G9=0,0,100),G9/D9*100) -> 20.7060406 | K9: =IF(E9=0,IF(G9=0,0,100),G9/E9*100) -> 24.75
A10: 1.1. | B10: Расходы на оплату труда | C10: 11429.16225 | D10: 12973.5 | E10: ='Подконтрольные расходы'!D17 -> 12064.66259 | F10: ='Подконтрольные расходы'!E17 -> 13229.97728 | G10: ='Подконтрольные расходы'!F17 -> 2986.003992 | H10: =IF(D10=0,IF(F10=0,0,100),F10/D10*100) -> 101.9769321 | I10: =IF(E10=0,IF(F10=0,0,100),F10/E10*100) -> 109.6589082 | J10: =IF(D10=0,IF(G10=0,0,100),G10/D10*100) -> 23.01617907 | K10: =IF(E10=0,IF(G10=0,0,100),G10/E10*100) -> 24.75
A11: 1.2 | B11: Материалы | C11: 4134.922244 | D11: 9170 | E11: ='Подконтрольные расходы'!D18 -> 4364.838002 | F11: ='Подконтрольные расходы'!E18 -> 4786.433699 | G11: ='Подконтрольные расходы'!F18 -> 1080.297406 | H11: 52.19665975 | I11: 109.6589082 | J11: 11.78077869 | K11: 24.75
A12: 1.3 | B12: Ремонт основных фондов | C12: 14635.53971 | D12: 15807 | E12: ='Подконтрольные расходы'!D19 -> 15449.32556 | F12: ='Подконтрольные расходы'!E19 -> 16941.56174 | G12: ='Подконтрольные расходы'!F19 -> 3823.708077 | H12: 107.1775906 | I12: 109.6589082 | J12: 24.18996696 | K12: 24.75
A13: 1.4 | B13: Другие обоснованные подконтрольные расходы, в том числе: | C13: =SUM(C14:C21) -> 887.0468787 | D13: =SUM(D14:D21) -> 1257.3 | E13: ='Подконтрольные расходы'!D20 -> 936.369706 | F13: ='Подконтрольные расходы'!E20 -> 1026.812797 | G13: ='Подконтрольные расходы'!F20 -> 231.7515022 | H13: 81.66808213 | I13: 109.6589082 | J13: 18.43247453 | K13: 24.75
A14: 1.4.1 | B14: Работы и услуги производственного характера | C14: 0 | D14: 126.5 | E14: ='Подконтрольные расходы'!D21 -> 0 | F14: ='Подконтрольные расходы'!E21 -> 0 | G14: ='Подконтрольные расходы'!F21 -> 0 | H14: 0 | I14: 0 | J14: 0 | K14: 0
A15: 1.4.2 | B15: Работы и услуги непроизводственного характера | C15: 553.2565789 | D15: 759.9 | E15: ='Подконтрольные расходы'!D22 -> 584.0195288 | F15: ='Подконтрольные расходы'!E22 -> 640.4294392 | G15: ='Подконтрольные расходы'!F22 -> 144.5448334 | H15: 84.2781207 | I15: 109.6589082 | J15: 19.02155986 | K15: 24.75
A16: 1.4.3 | B16: Обеспечение нормальных условий труда и техники безопасности | C16: 76.52583824 | D16: 233.9 | E16: ='Подконтрольные расходы'!D23 -> 80.78093546 | F16: ='Подконтрольные расходы'!E23 -> 88.58349189 | G16: ='Подконтрольные расходы'!F23 -> 19.99328153 | H16: 37.87237789 | I16: 109.6589082 | J16: 8.547790306 | K16: 24.75
A17: 1.4.4. | B17: Расходы на командировки | C17: 0 | E17: ='Подконтрольные расходы'!D24 -> 0 | F17: ='Подконтрольные расходы'!E24 -> 0 | G17: ='Подконтрольные расходы'!F24 -> 0 | H17: 0 | I17: 0 | J17: 0 | K17: 0
A18: 1.4.5 | B18: Расходы на обучение персонала | C18: 99.25851115 | D18: 17.6 | E18: ='Подконтрольные расходы'!D25 -> 104.7776224 | F18: ='Подконтрольные расходы'!E25 -> 114.8979968 | G18: ='Подконтрольные расходы'!F25 -> 25.93246154 | H18: 652.8295272 | I18: 109.6589082 | J18: 147.3435315 | K18: 24.75
A19: 1.4.6 | B19: Расходы на страхование | C19: 0 | E19: ='Подконтрольные расходы'!D26 -> 0 | F19: ='Подконтрольные расходы'!E26 -> 0 | G19: ='Подконтрольные расходы'!F26 -> 0 | H19: 0 | I19: 0 | J19: 0 | K19: 0
A20: 1.4.7 | B20: Расходы на услуги банков | C20: 158.0059504 | D20: 119.4 | E20: ='Подконтрольные расходы'!D27 -> 166.7916193 | F20: ='Подконтрольные расходы'!E27 -> 182.9018688 | G20: ='Подконтрольные расходы'!F27 -> 41.28092579 | H20: 153.1841447 | I20: 109.6589082 | J20: 34.57363969 | K20: 24.75
A21: 1.4.8 | B21: Прочие обоснованные подконтрольные расходы | C21: 0 | E21: ='Подконтрольные расходы'!D28 -> 0 | F21: ='Подконтрольные расходы'!E28 -> 0 | G21: ='Подконтрольные расходы'!F28 -> 0 | H21: 0 | I21: 0 | J21: 0 | K21: 0
A22: 1.5 | B22: Расходы из прибыли, в том числе: | C22: =SUM(C23:C24) -> 329.8439377 | D22: =SUM(D23:D24) -> 432.5 | E22: ='Подконтрольные расходы'!D29 -> 348.184384 | F22: ='Подконтрольные расходы'!E29 -> 381.8151941 | G22: ='Подконтрольные расходы'!F29 -> 86.17563503 | H22: 88.28096973 | I22: 109.6589082 | J22: 19.92500232 | K22: 24.75
A23: 1.5.1 | B23: Расходы по коллективным договорам | C23: 329.8439377 | D23: 432.5 | E23: ='Подконтрольные расходы'!D30 -> 348.184384 | F23: ='Подконтрольные расходы'!E30 -> 381.8151941 | G23: ='Подконтрольные расходы'!F30 -> 86.17563503 | H23: 88.28096973 | I23: 109.6589082 | J23: 19.92500232 | K23: 24.75
A24: 1.5.2 | B24: Прочие обоснованные расходы из прибыли | E24: ='Подконтрольные расходы'!D31 -> 0 | F24: ='Подконтрольные расходы'!E31 -> 0 | G24: ='Подконтрольные расходы'!F31 -> 0 | H24: 0 | I24: 0 | J24: 0 | K24: 0
A25: 2. | B25: Неподконтрольные расходы | C25: =C26+C27+C28+C29+C35+C36+C37+C38+C39+C40 -> 16745.58698 | D25: =D26+D27+D28+D29+D35+D36+D37+D38+D40 -> 29667.82104 | E25: 18874.35236 | F25: =F26+F27+F28+F29+F35+F36+F37+F38+F39+F40 -> 24881.11671 | H25: =IF(D25=0,IF(F25=0,0,100),F25/D25*100) -> 83.86566941 | I25: =IF(E25=0,IF(F25=0,0,100),F25/E25*100) -> 131.8250091 | J25: =IF(D25=0,IF(G25=0,0,100),G25/D25*100) ->  | K25: =IF(E25=0,IF(G25=0,0,100),G25/E25*100) -> 
A26: 2.1. | B26: Амортизация основных средств | C26: ='Свод по амортизации'!B15 -> 4681.141312 | D26: ='Свод по амортизации'!C15 -> 4014.395 | E26: ='Свод по амортизации'!D15 -> 4803.363901 | F26: ='Свод по амортизации'!F15 -> 7245.944094 | G26: ='Свод по амортизации'!G15 -> 0 | H26: =IF(D26=0,IF(F26=0,0,100),F26/D26*100) -> 180.4990315 | I26: =IF(E26=0,IF(F26=0,0,100),F26/E26*100) -> 150.85145 | J26: 0 | K26: 0
A27: 2.2. | B27: Расходы на страховые взносы | C27: ='Страховые взносы'!D18 -> 3542.84307 | D27: ='Страховые взносы'!E18 -> 3873.18 | E27: ='Страховые взносы'!F18 -> 3706.168939 | F27: ='Страховые взносы'!H18 -> 4101.064654 | G27: ='Страховые взносы'!I18 -> 913.4306343 | H27: =IF(D27=0,IF(F27=0,0,100),F27/D27*100) -> 105.8836577 | I27: =IF(E27=0,IF(F27=0,0,100),F27/E27*100) -> 110.6550921 | J27: 23.58348009 | K27: 24.64622227
A28: 2.3. | B28: Расходы на оплату услуг организаций, осуществляющие регулируемые виды деятельности | C28: ='Расходы рег. орг-ий'!B23 -> 205.5886363 | D28: ='Расходы рег. орг-ий'!C23 -> 234.751 | E28: ='Расходы рег. орг-ий'!D23 -> 249.946368 | F28: ='Расходы рег. орг-ий'!F23 -> 281.35 | G28: ='Расходы рег. орг-ий'!G23 -> 0 | H28: 119.8503947 | I28: 112.5641482 | J28: 0 | K28: 0
A29: 2.4. | B29: Налоги и сборы, в том числе: | C29: =C30+C31+C32+C33+C34 -> 1238.705766 | D29: 1654.43404 | E29: 1361.48917 | F29: 1821.85406 | H29: 110.1194738 | I29: 133.8133347
A30: 2.4.1. | B30: Плата за землю | C30: ='Плата за землю'!B17 -> 200.4437656 | D30: ='Плата за землю'!C17 -> 335.09651 | E30: ='Плата за землю'!D17 -> 369.5941697 | F30: ='Плата за землю'!F17 -> 502.51673 | G30: ='Плата за землю'!G17 -> 0 | H30: 149.9617916 | I30: 135.9644635 | J30: 0 | K30: 0
A31: 2.4.2. | B31: Транспортный налог | C31: ='Транспортный налог'!D16 -> 0 | D31: ='Транспортный налог'!E16 -> 0 | E31: ='Транспортный налог'!F16 -> 0 | F31: ='Транспортный налог'!I16 -> 0 | G31: ='Транспортный налог'!K16 -> 0 | H31: 0 | I31: 0 | J31: 0 | K31: 0
A32: 2.4.3. | B32: Налог на имущество | C32: ='Налог на имущество'!B15 -> 0 | D32: ='Налог на имущество'!C15 -> 0 | E32: ='Налог на имущество'!D15 -> 0 | F32: ='Налог на имущество'!F15 -> 0 | G32: ='Налог на имущество'!G15 -> 0 | H32: 0 | I32: 0 | J32: 0 | K32: 0
A33: 2.4.4. | B33: Плата за негативное воздействие на окружающую среду | C33: ='Негативное воздействие на ОС'!C29 -> 0 | D33: ='Негативное воздействие на ОС'!D29 -> 0.53353 | E33: ='Негативное воздействие на ОС'!E29 -> 0 | F33: ='Негативное воздействие на ОС'!G29 -> 0.53333 | G33: ='Негативное воздействие на ОС'!H29 -> 0 | H33: 99.96251382 | I33: 100 | J33: 0 | K33: 0
A34: 2.4.5. | B34: Налог на прибыль | C34: ='Налог прим при УСНО'!C10 -> 1038.262 | D34: ='Налог прим при УСНО'!D10 -> 1318.804 | E34: ='Налог прим при УСНО'!E10 -> 991.895 | F34: ='Налог прим при УСНО'!F10 -> 1318.804 | G34: ='Налог прим при УСНО'!G10 ->  | H34: 100 | I34: 132.9580248
A35: 2.5. | B35: Плата за аренду имущества | C35: ='Аренда имущества'!B44 -> 4844.28 | D35: ='Аренда имущества'!C44 -> 4886.222 | E35: ='Аренда имущества'!D44 -> 4844.28 | F35: ='Аренда имущества'!F44 -> 4886.22 | G35: ='Аренда имущества'!N44 -> 0 | H35: 99.99995907 | I35: 100.8657633 | J35: 0 | K35: 0
A36: 2.6. | B36: Оплата услуг ОАО "ФСК ЕЭС" | C36: ='Услуги ФСК'!B17 -> 0 | D36: ='Услуги ФСК'!E17 -> 0 | E36: ='Услуги ФСК'!F17 -> 0 | F36: ='Услуги ФСК'!L17 -> 0 | G36: ='Услуги ФСК'!O17 -> 0 | H36: 0 | I36: 0 | J36: 0 | K36: 0
A37: 2.7. | B37: Прочие обоснованные неподконтрольные расходы | C37: ='Прочие НР'!B15 -> 190.41 | D37: ='Прочие НР'!C15 -> 2275.436 | E37: ='Прочие НР'!D15 -> 198.026 | F37: ='Прочие НР'!F15 -> 490 | G37: ='Прочие НР'!G15 -> 0 | H37: 21.53433452 | I37: 247.4422551 | J37: 0 | K37: 0
A38: 2.8. | B38: Капитальные вложения производственного характера из прибыли | C38: =' КВЛ'!B25 -> 1351 | D38: =' КВЛ'!C25 -> 712.163 | E38: =' КВЛ'!D25 -> 3711.077981 | F38: =' КВЛ'!F25 -> 2622.627906 | G38: =' КВЛ'!G25 -> 0 | H38: =IF(D38=0,IF(F38=0,0,100),F38/D38*100) -> 368.2623087 | I38: =IF(E38=0,IF(F38=0,0,100),F38/E38*100) -> 70.67024511 | J38: 0 | K38: 0
A39: 2.9. | B39: Расходы, связанные с компенсацией выпадающих доходов от льготного технологического присоединения | C39: ='Выпадающий доход'!B20 -> 0 | D39: х | E39: ='Выпадающий доход'!C20 -> 0 | F39: ='Выпадающий доход'!D20 -> 0 | G39: ='Выпадающий доход'!E20 -> 0 | H39: х | I39: 0 | J39: х | K39: 0
A40: 2.10. | B40: Расходы на возврат и обслуживание долгосрочных заемных средств, направляемых на финансирование капитальных вложений | C40: ='Возврат заемных средств'!B10 -> 691.6182 | D40: ='Возврат заемных средств'!C10 -> 12017.24 | E40: ='Возврат заемных средств'!D10 -> 0 | F40: ='Возврат заемных средств'!F10 -> 3432.056 | G40: ='Возврат заемных средств'!G10 -> 0 | H40: =IF(D40=0,IF(F40=0,0,100),F40/D40*100) -> 28.55943628 | I40: 100 | J40: =IF(D40=0,IF(G40=0,0,100),G40/D40*100) -> 0 | K40: 0
A41: 3. | B41: Корректировка необходимой валовой выручки | C41: =SUM(C42:C47) -> 2782.220104 | D41: x | E41: =SUM(E42:E47) -> 1627.618928 | F41: =SUM(F42:F47) -> 5159.050531 | G41: =SUM(G42:G47) ->  | H41: x | I41: 316.9691899 | J41: х
A42: 3.1. | B42: Корректировка подконтрольных расходов | C42: 0 | D42: x | E42: 126.3204528 | F42: ='Корр. ПР'!D18 -> 1924.603824 | G42: ='Корр. ПР'!E18 -> -31416.51502 | H42: x | I42: х | J42: х | K42: =IF(E42=0,IF(G42=0,0,100),G42/E42*100) -> -24870.48955
A43: 3.2. | B43: Корректировка неподконтрольных расходов | C43: 156.8966187 | D43: x | E43: 834.853854 | F43: ='Корр. НР'!E19 -> 2902.195568 | G43: ='Корр. НР'!G19 ->  | H43: x | I43: 347.6291754 | J43: х
A44: 3.3. | B44: Корректировка НВВ с учетом изменения полезного отпуска и цен на электрическую энергию | C44: 1126.813508 | D44: x | E44: -126.0540972 | F44: ='Корр. ПО'!I24 -> -824.4167993 | G44: ='Корр. ПО'!J40 -> 0 | H44: x | I44: 654.0182489 | J44: х | K44: 0
A45: 3.4. | B45: Корректировка необходимой валовой выручки по доходам от осуществления регулируемой деятельности | C45: x | D45: x | E45: x | F45: =Корр.НВВ!C8 -> 925.0195736 | G45: =Корр.НВВ!D8 -> 50944.32211 | H45: x | I45: x | J45: х | K45: х
A46: 3.5. | B46: Корректировка НВВ в связи с изменением (неисполнением) инвестиционной программы | C46: 915.1858239 | D46: x | E46: 175.3 | F46: ='Корр. ИП'!D14 -> -430.6278239 | G46: ='Корр. ИП'!E14 -> 0 | H46: x | I46: -245.6519246 | J46: х | K46: 0
A47: 3.6. | B47: Корректировка НВВ с учетом надежности и качества оказываемых услуг | C47: 583.324153 | D47: x | E47: 617.1987185 | F47: ='Корр. КНК'!D15 -> 662.2761874 | G47: ='Корр. КНК'!E15 -> 1018.886442 | H47: x | I47: 107.3035584 | J47: х | K47: 165.0823975
A48: 4. | B48: ИТОГО необходимая валовая выручка на содержание электрических сетей | C48: =C41+C25+C9 -> 50944.32211 | D48: =D25+D9 -> 69308.12104 | E48: 53665.35153 | F48: =F41+F25+F9 -> 66406.76796 | H48: =IF(D48=0,IF(F48=0,0,100),F48/D48*100) -> 95.81383388 | I48: =IF(E48=0,IF(F48=0,0,100),F48/E48*100) -> 123.7423516 | J48: =IF(D48=0,IF(G48=0,0,100),G48/D48*100) -> 
A50: Руководитель организации | C50: ='Инф-я'!$C$17 -> Окунев Василий Михайлович

Sheet НВВ по данным предпр.
A2: Расчет необходимой валовой выручки (НВВ) на оказание услуги по передаче электрической энергии на 2019 год долгосрочного периода регулирования 2015 - 2019 годы
A3: ='Инф-я'!C9 -> Общество с ограниченной ответственностью "Энергетик"
A5: № п.п. | B5: Наименование | C5: Ед.изм. | D5: 2017 год | F5: 2018 год утверждено | G5: 2019 год
D6: Утверждено | E6: Факт
A7: 1 | B7: 2 | C7: 3 | D7: 4 | E7: 5 | F7: 6 | G7: 7
A8: Долгосрочные параметры регулирования
A9: 1 | B9: Базовый уровень подконтрольных расходов (ПР) | C9: тыс.руб. | D9: 31416.52 | E9: х | F9: х | G9: х
A10: 2 | B10: Индекс эффективности подконтрольных расходов (Хэф) | C10: % | D10: ='Подконтрольные расходы'!D10 -> 0.01 | E10: ='Подконтрольные расходы'!D10 -> 0.01 | F10: ='Подконтрольные расходы'!E10 -> 0.01 | G10: ='Подконтрольные расходы'!F10 -> 0.01
A11: 3 | B11: Коэффициент эластичности подконтрольных расходов по количеству активов (К эл) | C11: знач. | D11: 0.75 | E11: 0.75 | F11: 0.75 | G11: 0.75
A12: 5 | B12: Уровень надежности и качества оказываемых услуг | C12: х | D12: х | E12: х | F12: х | G12: х
A13: 5.1. | B13: Показатель средней продолжительности прекращения передачи электрическолй энергии (Пп) | C13: знач. | D13: ='Корр. КНК'!D22 -> 0.9827 | E13: ='Корр. КНК'!E22 -> 0.003302982732 | F13: 0.9679 | G13: 0.9534
A14: 5.2. | B14: Показатель уровня качества осуществляемого технологического присоединения (Птпр) | C14: знач. | D14: ='Корр. КНК'!D23 -> 0.9945 | E14: ='Корр. КНК'!E23 -> 1 | F14: 0.9796 | G14: 0.9649
A15: 5.3. | B15: Показатель уровня качества оказываемых услуг территориальных сетевых организаций (Птсо) | C15: знач. | D15: ='Корр. КНК'!D24 -> 0.8975 | E15: ='Корр. КНК'!E24 -> 0.8855555556 | F15: 0.8975 | G15: 0.8975
A16: Планируемые значения параметров расчета тарифов
A17: 1 | B17: Индекс потребительских цен (ИПЦ) | C17: % | D17: х | E17: х | F17: ='Подконтрольные расходы'!D12 -> 0.037 | G17: ='Подконтрольные расходы'!E12 -> 0.04
A18: 2 | B18: Количество активов (УЕ) | C18: усл.ед. | D18: ='УЕ ТП 2016-2019'!J59 -> 901.403 | E18: ='УЕ ТП 2016-2019'!L59 -> 983.2319 | F18: ='УЕ ТП 2016-2019'!P59 -> 938.203 | G18: ='УЕ ТП 2016-2019'!R59 -> 1019.593
A19: 3 | B19: Величина неподконтрольных расходов (НР) | C19: тыс.руб. | D19: =D47 -> 16745.58698 | E19: =E47 -> 29667.82104 | F19: =F47 -> 18874.35236 | G19: =G47 -> 24881.11671
A20: 4 | B20: Величина мощности | C20: МВт | D20: ='Баланс мощности'!C9 -> 4.47 | E20: ='Баланс мощности'!H9 -> 4.47 | F20: =D20 -> 4.47 | G20: ='Баланс мощности'!M9 -> 4.47
A21: 5 | B21: Величина полезного отпуска электрической энергии | C21: млн.кВт.ч. | D21: ='Баланс энергии'!C22 -> 22.92380662 | E21: ='Баланс энергии'!R22 -> 22.37444158 | F21: ='Баланс энергии'!AG22 -> 22.47610195 | G21: ='Баланс энергии'!AV22 -> 22.47610025
A22: 6 | B22: Прогнозная цена (тариф) покупки потерь электрической энергии | C22: руб./МВт.ч. | D22: =D64 -> 2674.021575 | E22: =E64 -> 2608.481051 | F22: =F64 -> 2931.176086 | G22: =G64 -> 2931.172883
A23: Расчетные показатели
A24: 1 | B24: Доля подконтрольных расходов на МВт.ч. | C24: руб.МВт.ч. | D24: =IF(D21=0,0,D30/D21/10) -> 137.0475486 | E24: =IF(E21=0,0,E30/E21/10) -> 177.1677736 | F24: =IF(F21=0,0,F30/F21/10) -> 147.5495187 | G24: =IF(G21=0,0,G30/G21/10) -> 161.8012036
A25: 2 | B25: Проверка прибыли на капитальные вложения (не более 12 % от НВВ на содержание сетей) | C25: % | D25: х | E25: х | F25: х | G25: =IF(G26=0,0,G44/G26) -> 0.04623780251
A26: 3 | B26: НВВ для расчета КВЛ | C26: тыс.руб. | D26: х | E26: х | F26: х | G26: =G61-' КВЛ'!F25/0.8-'Услуги ФСК'!L17-'Аренда имущества'!F49-'Возврат заемных средств'!F10 -> 56720.42707
A27: 4 | B27: Индекс изменения количества активов (ИКА) | C27: % | D27: х | E27: х | F27: х | G27: ='Подконтрольные расходы'!E14 -> 0.08675094836
A28: 5 | B28: Общий коэффициент индексации подконтрольных расходов ПР= ИПЦ*(1+(Кэл*ИКА))*(1-Хэф) | C28: знач. | D28: х | E28: х | F28: х | G28: ='Подконтрольные расходы'!E15 -> 1.096589082
A29: Подконтрольные расходы организации (ПР)
B30: Итого ПР с учетом индексации: | C30: тыс.руб. | D30: =' НВВ содержание'!C9 -> 31416.51502 | E30: =' НВВ содержание'!D9 -> 39640.3 | F30: =' НВВ содержание'!E9 -> 33163.38025 | G30: =' НВВ содержание'!F9 -> 36366.60071
A31: Неподконтрольные расходы организации (НР)
A32: 1 | B32: Амортизация основных средств | C32: тыс.руб. | D32: ='Свод по амортизации'!B15 -> 4681.141312 | E32: ='Свод по амортизации'!C15 -> 4014.395 | F32: ='Свод по амортизации'!D15 -> 4803.363901 | G32: ='Свод по амортизации'!F15 -> 7245.944094
A33: 2 | B33: Страховые взносы | C33: тыс.руб. | D33: ='Страховые взносы'!D18 -> 3542.84307 | E33: ='Страховые взносы'!E18 -> 3873.18 | F33: ='Страховые взносы'!F18 -> 3706.168939 | G33: ='Страховые взносы'!H18 -> 4101.064654
A34: 3 | B34: Расходы на оплату услуг организаций, осуществляющие регулируемые виды деятельности | C34: тыс.руб. | D34: ='Расходы рег. орг-ий'!B23 -> 205.5886363 | E34: ='Расходы рег. орг-ий'!C23 -> 234.751 | F34: ='Расходы рег. орг-ий'!D23 -> 249.946368 | G34: ='Расходы рег. орг-ий'!F23 -> 281.35
A35: 4 | B35: Налоги и сборы, в том числе: | C35: тыс.руб. | D35: =SUM(D36:D40) -> 1238.705766 | E35: =SUM(E36:E40) -> 1654.43404 | F35: 1361.48917 | G35: 1821.85406
A36: 4.1 | B36: Плата за землю | C36: тыс.руб. | D36: ='Плата за землю'!B17 -> 200.4437656 | E36: ='Плата за землю'!C17 -> 335.09651 | F36: ='Плата за землю'!D17 -> 369.5941697 | G36: ='Плата за землю'!F17 -> 502.51673
A37: 4.2 | B37: Транспортный налог | C37: тыс.руб. | D37: ='Транспортный налог'!D16 -> 0 | E37: ='Транспортный налог'!E16 -> 0 | F37: ='Транспортный налог'!F16 -> 0 | G37: ='Транспортный налог'!I16 -> 0
A38: 4.3 | B38: Налог на имущество | C38: тыс.руб. | D38: ='Налог на имущество'!B15 -> 0 | E38: ='Налог на имущество'!C15 -> 0 | F38: ='Налог на имущество'!D15 -> 0 | G38: ='Налог на имущество'!F15 -> 0
A39: 4.4 | B39: Плата за негативное воздействие на окружающую среду | C39: тыс.руб. | D39: ='Негативное воздействие на ОС'!C29 -> 0 | E39: ='Негативное воздействие на ОС'!D29 -> 0.53353 | F39: ='Негативное воздействие на ОС'!E29 -> 0 | G39: ='Негативное воздействие на ОС'!G29 -> 0.53333
A40: 4.5 | B40: Налог на прибыль | C40: тыс.руб. | D40: ='Налог прим при УСНО'!C10 -> 1038.262 | E40: ='Налог прим при УСНО'!D10 -> 1318.804 | F40: ='Налог прим при УСНО'!E10 -> 991.895 | G40: ='Налог прим при УСНО'!F10 -> 1318.804
A41: 5 | B41: Плата за аренду имущества | C41: тыс.руб. | D41: ='Аренда имущества'!B44 -> 4844.28 | E41: ='Аренда имущества'!C44 -> 4886.222 | F41: ='Аренда имущества'!D44 -> 4844.28 | G41: ='Аренда имущества'!F44 -> 4886.22
A42: 6 | B42: Оплата услуг ОАО "ФСК ЕЭС" | C42: тыс.руб. | D42: ='Услуги ФСК'!B17 -> 0 | E42: ='Услуги ФСК'!E17 -> 0 | F42: ='Услуги ФСК'!F17 -> 0 | G42: ='Услуги ФСК'!L17 -> 0
A43: 7 | B43: Прочие обоснованные неподконтрольные расходы | C43: тыс.руб. | D43: ='Прочие НР'!B15 -> 190.41 | E43: ='Прочие НР'!C15 -> 2275.436 | F43: ='Прочие НР'!D15 -> 198.026 | G43: ='Прочие НР'!F15 -> 490
A44: 8 | B44: Капитальные вложения производственного характера из прибыли | C44: тыс.руб. | D44: =' КВЛ'!B25 -> 1351 | E44: =' КВЛ'!C25 -> 712.163 | F44: =' КВЛ'!D25 -> 3711.077981 | G44: =' КВЛ'!F25 -> 2622.627906
A45: 9 | B45: Расходы, связанные с компенсацией выпадающих доходов от льготного технологического присоединения | C45: тыс.руб. | D45: ='Выпадающий доход'!B20 -> 0 | E45: х | F45: ='Выпадающий доход'!C20 -> 0 | G45: ='Выпадающий доход'!D20 -> 0
A46: 10 | B46: =' НВВ содержание'!B40 -> Расходы на возврат и обслуживание долгосрочных заемных средств, направляемых на финансирование капитальных вложений | C46: тыс.руб. | D46: ='Возврат заемных средств'!B10 -> 691.6182 | E46: ='Возврат заемных средств'!C10 -> 12017.24 | F46: ='Возврат заемных средств'!D10 -> 0 | G46: ='Возврат заемных средств'!F10 -> 3432.056
B47: Итого НР: | C47: тыс.руб. | D47: =SUM(D32:D35,D41:D46) -> 16745.58698 | E47: =SUM(E32:E35,E41:E46) -> 29667.82104 | F47: 18874.35236 | G47: =SUM(G32:G35,G41:G46) -> 24881.11671
A49: Корректировка необходимой валовой выручки
A50: 1 | B50: Корректировка подконтрольных расходов | C50: тыс.руб. | D50: =' НВВ содержание'!C42 -> 0 | E50: =' НВВ содержание'!D42 -> x | F50: =' НВВ содержание'!E42 -> 126.3204528 | G50: =' НВВ содержание'!F42 -> 1924.603824
A51: 2 | B51: Корректировка неподконтрольных расходов | C51: тыс.руб. | D51: =' НВВ содержание'!C43 -> 156.8966187 | E51: =' НВВ содержание'!D43 -> x | F51: =' НВВ содержание'!E43 -> 834.853854 | G51: =' НВВ содержание'!F43 -> 2902.195568
A52: 3 | B52: Корректировка НВВ с учетом изменения полезного отпуска и цен на электрическую энергию | C52: тыс.руб. | D52: =' НВВ содержание'!C44 -> 1126.813508 | E52: =' НВВ содержание'!D44 -> x | F52: =' НВВ содержание'!E44 -> -126.0540972 | G52: =' НВВ содержание'!F44 -> -824.4167993
A53: 4 | B53: Корректировка необходимой валовой выручки по доходам от осуществления регулируемой деятельности | C53: тыс.руб. | D53: =' НВВ содержание'!C45 -> x | E53: =' НВВ содержание'!D45 -> x | F53: =' НВВ содержание'!E45 -> x | G53: =' НВВ содержание'!F45 -> 925.0195736
A54: 5 | B54: Корректировка НВВ в связи с изменением (неисполнением) инвестиционной программы | C54: тыс.руб. | D54: =' НВВ содержание'!C46 -> 915.1858239 | E54: =' НВВ содержание'!D46 -> x | F54: =' НВВ содержание'!E46 -> 175.3 | G54: =' НВВ содержание'!F46 -> -430.6278239
A55: 6 | B55: Корректировка НВВ с учетом надежности и качества оказываемых услуг | C55: тыс.руб. | D55: =' НВВ содержание'!C47 -> 583.324153 | E55: =' НВВ содержание'!D47 -> x | F55: =' НВВ содержание'!E47 -> 617.1987185 | G55: =' НВВ содержание'!F47 -> 662.2761874
B56: Итого корректировка НВВ | C56: тыс.руб. | D56: =SUM(D50:D55) -> 2782.220104 | E56: х | F56: =SUM(F50:F55) -> 1627.618928 | G56: =SUM(G50:G55) -> 5159.050531
A57: Расходы организации на содержание сетей
A58: 1 | B58: Подконтрольные расходы | C58: тыс.руб. | D58: =D30 -> 31416.51502 | E58: =E30 -> 39640.3 | F58: =F30 -> 33163.38025 | G58: =G30 -> 36366.60071
A59: 2 | B59: Неподконтрольные расходы | C59: тыс.руб. | D59: =D47 -> 16745.58698 | E59: =E47 -> 29667.82104 | F59: =F47 -> 18874.35236 | G59: =G47 -> 24881.11671
A60: 3 | B60: Корректировка необходимой валовой выручки | C60: тыс.руб. | D60: =D56 -> 2782.220104 | E60: =E56 -> х | F60: =F56 -> 1627.618928 | G60: =G56 -> 5159.050531
B61: Итого расходы на содержание электрических сетей: | C61: тыс.руб. | D61: =D58+D59+D60 -> 50944.32211 | E61: =E58+E59 -> 69308.12104 | F61: =F58+F59+F60 -> 53665.35153 | G61: =G58+G59+G60 -> 66406.76796
A62: Расходы организации на компенсацию потерь
A63: 1 | B63: Величина технологического расхода (потерь) электрической энергии | C63: млн.кВт.ч. | D63: ='Баланс энергии'!C19 -> 3.888093379 | E63: ='Баланс энергии'!R19 -> 2.931658421 | F63: ='Баланс энергии'!AG19 -> 3.67049805 | G63: ='Баланс энергии'!AV19 -> 3.670499755
A64: 2 | B64: Прогнозная цена (тариф) покупки потерь электрической энергии | C64: руб./МВт.ч. | D64: ='Корр. ПО'!G24 -> 2674.021575 | E64: ='Корр. ПО'!H24 -> 2608.481051 | F64: ='НВВ на потери'!F12 -> 2931.176086 | G64: ='НВВ на потери'!I12 -> 2931.172883
B65: Итого расходы на компенсацию потерь: | C65: тыс.руб. | D65: =D63*D64 -> 10396.84558 | E65: =E63*E64 -> 7647.175437 | F65: =F63*F64 -> 10758.87611 | G65: =G63*G64 -> 10758.86935
A66: Необходимая валовая выручка (НВВ) организации на оказание услуги по передаче электрической энергии
A67: 1 | B67: Расходы на содержание электрических сетей | C67: тыс.руб. | D67: =D61 -> 50944.32211 | E67: =E61 -> 69308.12104 | F67: =F61 -> 53665.35153 | G67: =G61 -> 66406.76796
A68: 2 | B68: Расходы на компенсацию потерь | C68: тыс.руб. | D68: =D65 -> 10396.84558 | E68: 7647.175437 | F68: 10758.87611 | G68: 10758.86935
B69: Необходимая валовая выручка (НВВ) организации на оказание услуги по передаче электрической энергии | C69: тыс.руб. | D69: =D67+D68 -> 61341.16769 | E69: 76955.29648 | F69: 64424.22764 | G69: =G67+G68 -> 77165.6373
A71: Руководитель организации | C71: ='Инф-я'!$C$17 -> Окунев Василий Михайлович

Sheet НВВ по данным экспертов
A2: Экспертиза необходимой валовой выручки (НВВ) на оказание услуги по передаче электрической энергии на 2019 год долгосрочного периода регулирования 2015 - 2019 годы
A3: ='Инф-я'!C9 -> Общество с ограниченной ответственностью "Энергетик"
A5: № п.п. | B5: Наименование | C5: Ед.изм. | D5: 2017 год | F5: 2018 год утверждено | G5: 2019 год
D6: Утверждено | E6: Факт
A7: 1 | B7: 2 | C7: 3 | D7: 4 | E7: 5 | F7: 6 | G7: 7
A8: Долгосрочные параметры регулирования
A9: 1 | B9: Базовый уровень подконтрольных расходов (ПР) | C9: тыс.руб. | E9: х | F9: х | G9: х
A10: 2 | B10: Индекс эффективности подконтрольных расходов (Хэф) | C10: % | D10: ='Подконтрольные расходы'!D10 -> 0.01 | E10: ='Подконтрольные расходы'!D10 -> 0.01 | F10: ='Подконтрольные расходы'!E10 -> 0.01 | G10: ='Подконтрольные расходы'!F10 -> 0.01
A11: 3 | B11: Коэффициент эластичности подконтрольных расходов по количеству активов (К эл) | C11: знач. | D11: 0.75 | E11: 0.75 | F11: ='Подконтрольные расходы'!E11 -> 0.75 | G11: ='Подконтрольные расходы'!F11 -> 0.75
A12: 5 | B12: Уровень надежности и качества оказываемых услуг | C12: х | D12: х | E12: х | F12: х | G12: х
A13: 5.1. | B13: Показатель средней продолжительности прекращения передачи электрическолй энергии (Пп) | C13: знач. | D13: ='Корр. КНК'!D22 -> 0.9827 | E13: ='Корр. КНК'!G22 -> 0
A14: 5.2. | B14: Показатель уровня качества осуществляемого технологического присоединения (Птпр) | C14: знач. | D14: ='Корр. КНК'!D23 -> 0.9945 | E14: ='Корр. КНК'!G23 -> 0
A15: 5.3. | B15: Показатель уровня качества оказываемых услуг территориальных сетевых организаций (Птсо) | C15: знач. | D15: ='Корр. КНК'!D24 -> 0.8975 | E15: ='Корр. КНК'!G24 -> 0
A16: Планируемые значения параметров расчета тарифов
A17: 1 | B17: Индекс потребительских цен (ИПЦ) | C17: % | D17: х | E17: ='НВВ по данным предпр.'!E17 -> х | F17: ='НВВ по данным предпр.'!F17 -> 0.037 | G17: ='Подконтрольные расходы'!F12 -> 0
A18: 2 | B18: Количество активов (УЕ) | C18: усл.ед. | D18: ='УЕ ТП 2016-2019'!J59 -> 901.403 | E18: ='УЕ ТП 2016-2019'!L59 -> 983.2319 | F18: ='УЕ ТП 2016-2019'!P59 -> 938.203 | G18: ='УЕ ТП 2016-2019'!T59 -> 0
A19: 3 | B19: Величина неподконтрольных расходов (НР) | C19: тыс.руб. | D19: =D47 -> 16745.58698 | E19: 29667.82104 | F19: 18874.35236 | G19: =G47 -> 
A20: 4 | B20: Величина мощности | C20: МВт | D20: ='НВВ по данным предпр.'!D20 -> 4.47 | E20: ='НВВ по данным предпр.'!E20 -> 4.47 | F20: =D20 -> 4.47 | G20: ='Баланс мощности'!R9 -> 0
A21: 5 | B21: Величина полезного отпуска электрической энергии | C21: млн.кВт.ч. | D21: ='НВВ по данным предпр.'!D21 -> 22.92380662 | E21: ='НВВ по данным предпр.'!E21 -> 22.37444158 | F21: ='НВВ по данным предпр.'!F21 -> 22.47610195 | G21: ='Баланс энергии'!BK22 -> 0
A22: 6 | B22: Прогнозная цена (тариф) покупки потерь электрической энергии | C22: руб./МВт.ч. | D22: ='НВВ по данным предпр.'!D22 -> 2674.021575 | E22: ='НВВ по данным предпр.'!E22 -> 2608.481051 | F22: ='НВВ по данным предпр.'!F22 -> 2931.176086 | G22: ='НВВ на потери'!L12 -> 0
A23: Расчетные показатели
A24: 1 | B24: Доля подконтрольных расходов на МВт.ч. | C24: руб.МВт.ч. | D24: =IF(D21=0,0,D30/D21/10) -> 137.0475486 | E24: =IF(E21=0,0,E30/E21/10) -> 177.1677736 | F24: =IF(F21=0,0,F30/F21/10) -> 147.5495187 | G24: =IF(G21=0,0,G30/G21/10) -> 0
A25: 2 | B25: Проверка прибыли на капитальные вложения (не более 12 % от НВВ на содержание сетей) | C25: % | D25: х | E25: х | F25: х | G25: =IF(G26=0,0,(G44+'Возврат заемных средств'!G8)/G26) -> 
A26: 3 | B26: НВВ для расчета КВЛ | C26: тыс.руб. | D26: х | E26: х | F26: х | G26: =G61-G44/0.8-G42-'Аренда имущества'!N49-'Возврат заемных средств'!G8 -> 
A27: 4 | B27: Индекс изменения количества активов (ИКА) | C27: % | D27: х | E27: х | F27: х | G27: ='Подконтрольные расходы'!F14 -> -1
A28: 5 | B28: Общий коэффициент индексации подконтрольных расходов ПР= ИПЦ*(1+(Кэл*ИКА))*(1-Хэф) | C28: знач. | D28: х | E28: х | F28: х | G28: ='Подконтрольные расходы'!F15 -> 0.2475
A29: Подконтрольные расходы организации (ПР)
B30: Итого ПР с учетом индексации: | C30: тыс.руб. | D30: =' НВВ содержание'!C9 -> 31416.51502 | E30: =' НВВ содержание'!D9 -> 39640.3 | F30: =' НВВ содержание'!E9 -> 33163.38025 | G30: =' НВВ содержание'!G9 -> 8207.936611
A31: Неподконтрольные расходы организации (НР)
A32: 1 | B32: Амортизация основных средств | C32: тыс.руб. | D32: ='Свод по амортизации'!B15 -> 4681.141312 | E32: ='Свод по амортизации'!C15 -> 4014.395 | F32: ='Свод по амортизации'!D15 -> 4803.363901 | G32: ='Свод по амортизации'!G15 -> 0
A33: 2 | B33: Страховые взносы | C33: тыс.руб. | D33: ='Страховые взносы'!D18 -> 3542.84307 | E33: ='Страховые взносы'!E18 -> 3873.18 | F33: ='Страховые взносы'!F18 -> 3706.168939 | G33: ='Страховые взносы'!I18 -> 913.4306343
A34: 3 | B34: Расходы на оплату услуг организаций, осуществляющие регулируемые виды деятельности | C34: тыс.руб. | D34: ='Расходы рег. орг-ий'!B23 -> 205.5886363 | E34: ='Расходы рег. орг-ий'!C23 -> 234.751 | F34: ='Расходы рег. орг-ий'!D23 -> 249.946368 | G34: ='Расходы рег. орг-ий'!G23 -> 0
A35: 4 | B35: Налоги и сборы, в том числе: | C35: тыс.руб. | D35: =SUM(D36:D40) -> 1238.705766 | E35: 1654.43404 | F35: 1361.48917
A36: 4.1 | B36: Плата за землю | C36: тыс.руб. | D36: ='Плата за землю'!B17 -> 200.4437656 | E36: ='Плата за землю'!C17 -> 335.09651 | F36: ='Плата за землю'!D17 -> 369.5941697 | G36: ='Плата за землю'!G17 -> 0
A37: 4.2 | B37: Транспортный налог | C37: тыс.руб. | D37: ='Транспортный налог'!D16 -> 0 | E37: ='Транспортный налог'!E16 -> 0 | F37: ='Транспортный налог'!F16 -> 0 | G37: ='Транспортный налог'!K16 -> 0
A38: 4.3 | B38: Налог на имущество | C38: тыс.руб. | D38: ='Налог на имущество'!B15 -> 0 | E38: ='Налог на имущество'!C15 -> 0 | F38: ='Налог на имущество'!D15 -> 0 | G38: ='Налог на имущество'!G15 -> 0
A39: 4.4 | B39: Плата за негативное воздействие на окружающую среду | C39: тыс.руб. | D39: ='Негативное воздействие на ОС'!C29 -> 0 | E39: ='Негативное воздействие на ОС'!D29 -> 0.53353 | F39: ='Негативное воздействие на ОС'!E29 -> 0 | G39: ='Негативное воздействие на ОС'!H29 -> 0
A40: 4.5 | B40: Налог на прибыль | C40: тыс.руб. | D40: ='Налог прим при УСНО'!C10 -> 1038.262 | E40: ='Налог прим при УСНО'!D10 -> 1318.804 | F40: ='Налог прим при УСНО'!E10 -> 991.895 | G40: ='Налог прим при УСНО'!G10 -> 
A41: 5 | B41: Плата за аренду имущества | C41: тыс.руб. | D41: ='Аренда имущества'!B44 -> 4844.28 | E41: ='Аренда имущества'!C44 -> 4886.222 | F41: ='Аренда имущества'!D44 -> 4844.28 | G41: ='Аренда имущества'!N44 -> 0
A42: 6 | B42: Оплата услуг ОАО "ФСК ЕЭС" | C42: тыс.руб. | D42: ='Услуги ФСК'!B17 -> 0 | E42: ='Услуги ФСК'!E17 -> 0 | F42: ='Услуги ФСК'!F17 -> 0 | G42: ='Услуги ФСК'!O17 -> 0
A43: 7 | B43: Прочие обоснованные неподконтрольные расходы | C43: тыс.руб. | D43: ='Прочие НР'!B15 -> 190.41 | E43: ='Прочие НР'!C15 -> 2275.436 | F43: ='Прочие НР'!D15 -> 198.026 | G43: ='Прочие НР'!G15 -> 0
A44: 8 | B44: Капитальные вложения производственного характера из прибыли | C44: тыс.руб. | D44: =' КВЛ'!B25 -> 1351 | E44: =' КВЛ'!C25 -> 712.163 | F44: =' КВЛ'!D25 -> 3711.077981 | G44: =' НВВ содержание'!G38 -> 0
A45: 9 | B45: Расходы, связанные с компенсацией выпадающих доходов от льготного технологического присоединения | C45: тыс.руб. | D45: ='Выпадающий доход'!B20 -> 0 | E45: х | F45: ='Выпадающий доход'!C20 -> 0 | G45: ='Выпадающий доход'!E20 -> 0
A46: 10 | B46: ='НВВ по данным предпр.'!B46 -> Расходы на возврат и обслуживание долгосрочных заемных средств, направляемых на финансирование капитальных вложений | C46: тыс.руб. | D46: ='Возврат заемных средств'!B10 -> 691.6182 | E46: ='Возврат заемных средств'!C10 -> 12017.24 | F46: ='Возврат заемных средств'!D10 -> 0 | G46: ='Возврат заемных средств'!G10 -> 0
B47: Итого НР: | C47: тыс.руб. | D47: =SUM(D32:D35,D41:D46) -> 16745.58698 | E47: 29667.82104 | F47: 18874.35236
A49: Корректировка необходимой валовой выручки
A50: 1 | B50: Корректировка подконтрольных расходов | C50: тыс.руб. | D50: =' НВВ содержание'!C42 -> 0 | E50: =' НВВ содержание'!D42 -> x | F50: =' НВВ содержание'!E42 -> 126.3204528 | G50: =' НВВ содержание'!G42 -> -31416.51502
A51: 2 | B51: Корректировка неподконтрольных расходов | C51: тыс.руб. | D51: =' НВВ содержание'!C43 -> 156.8966187 | E51: =' НВВ содержание'!D43 -> x | F51: =' НВВ содержание'!E43 -> 834.853854 | G51: =' НВВ содержание'!G43 -> 
A52: 3 | B52: Корректировка НВВ с учетом изменения полезного отпуска и цен на электрическую энергию | C52: тыс.руб. | D52: =' НВВ содержание'!C44 -> 1126.813508 | E52: =' НВВ содержание'!D44 -> x | F52: =' НВВ содержание'!E44 -> -126.0540972 | G52: =' НВВ содержание'!G44 -> 0
A53: 4 | B53: Корректировка необходимой валовой выручки по доходам от осуществления регулируемой деятельности | C53: тыс.руб. | D53: =' НВВ содержание'!C45 -> x | E53: =' НВВ содержание'!D45 -> x | F53: =' НВВ содержание'!E45 -> x | G53: =' НВВ содержание'!G45 -> 50944.32211
A54: 5 | B54: Корректировка НВВ в связи с изменением (неисполнением) инвестиционной программы | C54: тыс.руб. | D54: =' НВВ содержание'!C46 -> 915.1858239 | E54: =' НВВ содержание'!D46 -> x | F54: =' НВВ содержание'!E46 -> 175.3 | G54: =' НВВ содержание'!G46 -> 0
A55: 6 | B55: Корректировка НВВ с учетом надежности и качества оказываемых услуг | C55: тыс.руб. | D55: =' НВВ содержание'!C47 -> 583.324153 | E55: =' НВВ содержание'!D47 -> x | F55: =' НВВ содержание'!E47 -> 617.1987185 | G55: =' НВВ содержание'!G47 -> 1018.886442
B56: Итого корректировка НВВ | C56: тыс.руб. | D56: =SUM(D50:D55) -> 2782.220104 | E56: х | F56: =SUM(F50:F55) -> 1627.618928 | G56: =SUM(G50:G55) -> 
A57: Расходы организации на содержание сетей на долгосрочный период регулирования
A58: 1 | B58: Подконтрольные расходы | C58: тыс.руб. | D58: =D30 -> 31416.51502 | E58: =E30 -> 39640.3 | F58: =F30 -> 33163.38025 | G58: =G30 -> 8207.936611
A59: 2 | B59: Неподконтрольные расходы | C59: тыс.руб. | D59: =D47 -> 16745.58698 | E59: =E47 -> 29667.82104 | F59: =F47 -> 18874.35236 | G59: =G47 -> 
A60: 3 | B60: Корректировка необходимой валовой выручки | C60: тыс.руб. | D60: =D56 -> 2782.220104 | E60: =E56 -> х | F60: 1627.618928
B61: Итого расходы на содержание электрических сетей: | C61: тыс.руб. | D61: =D58+D59+D60 -> 50944.32211 | E61: =E58+E59 -> 69308.12104 | F61: =F58+F59+F60 -> 53665.35153
A62: Расходы организации на компенсацию потерь на долгосрочный период регулирования
A63: 1 | B63: Величина технологического расхода (потерь) электрической энергии | C63: млн.кВт.ч. | D63: ='Баланс энергии'!C19 -> 3.888093379 | E63: ='Баланс энергии'!R19 -> 2.931658421 | F63: ='Баланс энергии'!AG19 -> 3.67049805 | G63: ='Баланс энергии'!BK19 -> 0
A64: 2 | B64: Прогнозная цена (тариф) покупки потерь электрической энергии | C64: руб./МВт.ч. | D64: ='Корр. ПО'!G40 -> 0 | E64: ='Корр. ПО'!H40 -> 0 | F64: ='НВВ на потери'!F12 -> 2931.176086 | G64: ='НВВ на потери'!L12 -> 0
B65: Итого расходы на компенсацию потерь: | C65: тыс.руб. | D65: =D63*D64 -> 0 | E65: =E63*E64 -> 0 | F65: =F63*F64 -> 10758.87611 | G65: =G63*G64 -> 0
A66: Необходимая валовая выручка (НВВ) организации на оказание услуги по передаче электрической энергии
A67: 1 | B67: Расходы на содержание электрических сетей | C67: тыс.руб. | D67: =D61 -> 50944.32211 | E67: =E61 -> 69308.12104 | F67: =F61 -> 53665.35153 | G67: =G61 -> 
A68: 2 | B68: Расходы на компенсацию потерь | C68: тыс.руб. | D68: =D65 -> 0 | E68: 0 | F68: 10758.87611 | G68: 0
B69: Необходимая валовая выручка (НВВ) организации на оказание услуги по передаче электрической энергии | C69: тыс.руб. | D69: =D67+D68 -> 50944.32211 | E69: 69308.12104 | F69: 64424.22764
B71: Руководитель организации | D71: ='Инф-я'!$C$17 -> Окунев Василий Михайлович

Sheet НВВ на потери
A3: Расходы организации на компенсацию потерь на 2019 год долгосрочного периода регулирования 2015 - 2019 годы
A5: ='Инф-я'!C9 -> Общество с ограниченной ответственностью "Энергетик"
A7: № п/п | B7: Показатели | C7: Ед.измер. | D7: 2018 год утверждено | G7: 2019 год
G8: По данным организации | J8: По данным экспертов
D9: 1-е полугодие | E9: 2-е полугодие | F9: Год | G9: 1-е полугодие | H9: 2-е полугодие | I9: Год | J9: 1-е полугодие | K9: 2-е полугодие | L9: Год
A10: 1 | B10: 2 | C10: 3 | D10: 4 | E10: 5 | F10: 6 | G10: 7 | H10: 8 | I10: 9 | J10: 7 | K10: 8 | L10: 9
A11: 1 | B11: Величина технологического расхода (потерь) электрической энергии | C11: млн.кВт.ч. | D11: 2.002 | E11: 1.6685 | F11: =D11+E11 -> 3.6705 | G11: ='Баланс энергии'!AL19 -> 2.002041604 | H11: ='Баланс энергии'!AQ19 -> 1.668455681 | I11: ='Баланс энергии'!AV19 -> 3.670499755 | J11: ='Баланс энергии'!BA19 -> 0 | K11: ='Баланс энергии'!BF19 -> 0 | L11: ='Баланс энергии'!BK19 -> 0
A12: 2 | B12: Прогнозная цена (тариф) покупки потерь электрической энергии | C12: руб./МВт.ч. | D12: 2952.081862 | E12: 2906.091659 | F12: =IF(F11=0,0,F13/F11) -> 2931.176086 | G12: 2952.08 | H12: 2906.09 | I12: =IF(I11=0,0,I13/I11) -> 2931.172883 | L12: =IF(L11=0,0,L13/L11) -> 0
B13: Итого расходы на компенсацию потерь: | C13: тыс.руб. | D13: =D11*D12 -> 5910.067888 | E13: =E11*E12 -> 4848.813933 | F13: =D13+E13 -> 10758.88182 | G13: =G11*G12 -> 5910.186977 | H13: =H11*H12 -> 4848.682371 | I13: =G13+H13 -> 10758.86935 | J13: =J11*J12 -> 0 | K13: =K11*K12 -> 0 | L13: =J13+K13 -> 0
A15: Руководитель организации | C15: ='Инф-я'!$C$17 -> Окунев Василий Михайлович
A17: Справочная информация: расшифровка прогнозной цены покупки потерь электрической энергии у энергосбытовой организации

Sheet Тарифы
A2: Расчет индивидуальных тарифов на 2019 год долгосрочного периода регулирования 2015 - 2019 годы
A4: ='Инф-я'!C9 -> Общество с ограниченной ответственностью "Энергетик"
A6: № п./п. | B6: Показатели | C6: Ед. изм. | D6: По расчету организации | G6: По расчету экспертов
D7: 2019 | E7: 1 полугодие | F7: 2 полугодие | G7: 2019 | H7: 1 полугодие | I7: 2 полугодие
A8: 1 | B8: 2 | C8: 3 | D8: 4 | E8: 5 | F8: 6 | G8: 7 | H8: 8 | I8: 9
A9: 1 | B9: Необходимая валовая выручка на передачу электрической энергии, всего, в том числе: | C9: тыс. руб. | D9: =D10+D11 -> 77165.6373 | E9: 42441.12238 | F9: 34724.51493 | H9: 0
A10: 1.1. | B10: Необходимая валовая выручка на содержание электрических сетей | C10: тыс. руб. | D10: ='НВВ по данным предпр.'!G67 -> 66406.76796 | E10: =D10*0.55 -> 36523.72238 | F10: =D10-E10 -> 29883.04558 | G10: ='НВВ по данным экспертов'!G67 ->  | I10: =G10-H10 -> 
A11: 1.2. | B11: Необходимая валовая выручка на оплату технологического расхода (потерь) электрической энергии | C11: тыс. руб. | D11: ='НВВ по данным предпр.'!G68 -> 10758.86935 | E11: 5917.4 | F11: =D11-E11 -> 4841.469348 | G11: ='НВВ по данным экспертов'!G68 -> 0 | I11: =G11-H11 -> 0
A12: 2 | B12: Договорная мощность | C12: МВт | D12: 4.47 | E12: =D12 -> 4.47 | F12: =D12 -> 4.47 | H12: =G12 -> 0 | I12: =G12 -> 0
A13: 3 | B13: Полезный отпуск электрической энергии за исключением перетока в сети филиала «Владимирэнерго» ОАО «МРСК Центра и Приволжья» | C13: млн. кВт ч. | D13: =('Баланс энергии'!AV22-'Баланс энергии'!AV24) -> 22.47610025 | E13: =('Баланс энергии'!AL22-'Баланс энергии'!AL24) -> 12.2594584 | F13: =('Баланс энергии'!AQ22-'Баланс энергии'!AQ24) -> 10.21664432 | G13: =('Баланс энергии'!BK22-'Баланс энергии'!BK24)*1000 -> 0 | H13: =('Баланс энергии'!BA22-'Баланс энергии'!BA24)*1000 -> 0 | I13: =('Баланс энергии'!BF22-'Баланс энергии'!BF24)*1000 -> 0
A14: 4 | B14: Двухставочный тариф
A15: 4.1. | B15: ставка на содержание электрических сетей | C15: руб./кВт мес | D15: =IF(D12=0,0,D10/D12/12) -> 1238.008351 | E15: =IF(E12=0,0,E10/E12/6) -> 1361.809186 | F15: =IF(F12=0,0,F10/F12/6) -> 1114.207516 | G15: =IF(G12=0,0,G10/G12/12) -> 0 | H15: =IF(H12=0,0,H10/H12/6) -> 0 | I15: =IF(I12=0,0,I10/I12/6) -> 0
A16: 4.2. | B16: ставка на оплату технологического расхода (потерь) | C16: руб./кВт ч. | D16: =IF(D13=0,0,D11/D13/1000) -> 0.4786804308 | E16: =IF(E13=0,0,E11/E13/1000) -> 0.4826803769 | F16: 0.4738805812 | G16: =IF(G13=0,0,G11/G13/1000) -> 0 | H16: =IF(H13=0,0,H11/H13/1000) -> 0 | I16: 0
A17: 5 | B17: Одноставочный тариф | C17: руб./кВт ч. | D17: =IF(D13=0,0,D9/D13/1000) -> 3.433230697 | E17: =IF(E13=0,0,E9/E13/1000) -> 3.46190843 | F17: 3.398818031 | G17: =IF(G13=0,0,G9/G13/1000) -> 0 | H17: =IF(H13=0,0,H9/H13/1000) -> 0 | I17: 0
A19: Руководитель организации | C19: ='Инф-я'!$C$17 -> Окунев Василий Михайлович

Sheet Форма 1.1
A2: Форма 1.1 - Журнал учета текущей информации о прекращении передачи электрической энергии для потребителей услуг за 2017 год
B4: ='Инф-я'!C9 -> Общество с ограниченной ответственностью "Энергетик"
A6: (наименование территориальной сетевой организации)
A7: № | B7: Период | C7: Продолжительность прекращения, час. | D7: Количество точек присоединения потребителей услуг к электрической сети электросетевой организации, шт.
A8: 1 | B8: 2 | C8: 3 | D8: 4
A9: 1 | B9: январь | D9: 2542
A10: 2 | B10: февраль | D10: 2543
A11: 3 | B11: март | D11: 2543
A12: 4 | B12: апрель | D12: 2547
A13: 5 | B13: май | C13: 5.42 | D13: 2548
A14: 6 | B14: июнь | C14: 1.166 | D14: 2547
A15: 7 | B15: июль | D15: 2544
A16: 8 | B16: август | D16: 2544
A17: 9 | B17: сентябрь | D17: 2541
A18: 10 | B18: октябрь | D18: 2542
A19: 11 | B19: ноябрь | C19: 1 | D19: 2543
A20: 12 | B20: декабрь | C20: 0.83 | D20: 2544
A22: Руководитель организации | C22: ='Инф-я'!$C$17 -> Окунев Василий Михайлович
A27: Согласно п. 14 Постановления Правительства от 31.12.2009 г. № 1220 организации предоставляют регулирующим органам до 1 апреля года, следующего за отчетным, отчетные данные, используемые при расчете фактических значений показателей надежности и качества

Sheet Форма 1.2
A2: Форма 1.2 - Расчет фактического показателя средней продолжительности прекращений передачи электрической энергии за 2017 год
A3: ='Инф-я'!C9 -> Общество с ограниченной ответственностью "Энергетик"
A4: (наименование территориальной сетевой организации)
A6: Максимальное за расчетный период | D6: Максимальное за расчетный период регулирования число точек присоединения потребителей услуг к э. сети ТСО, шт. | E6: =MAX('Форма 1.1'!D9:D20) -> 2548
A7: Суммарная продолжительность прекращений передачи электрической энергии, час. (Тпр) | D7: гр. 3 формы 1.1 | E7: =SUM('Форма 1.1'!C9:C20) -> 8.416
A8: Показатель средней продолжительности прекращений передачи электрической энергии (Пп) | D8: Пп = Тпр/Nтп | E8: =IF(E6=0,0,E7/E6) -> 0.003302982732
B10: Руководитель организации | D10: ='Инф-я'!$C$17 -> Окунев Василий Михайлович

Sheet Форма 2.1
A1: Форма 2.1 - Расчет значения индикатора информативности за 2017 год
A2: ='Инф-я'!C9 -> Общество с ограниченной ответственностью "Энергетик"
A3: (наименование территориальной сетевой организации)
A6: Наименование параметра (критерия), характеризующего индикатор | B6: Ед.изм-ния | C6: Значение | E6: Ф / П * 100, % | F6: Зависи-мость | H6: Оценочный балл
C7: факти-ческое (Ф) | D7: плановое (П)
A8: 1 | C8: 2 | D8: 3 | E8: 4 | F8: 5 | H8: 6
A9: 1. Возможность личного приема заявителей и потребителей услуг уполномоченными должностными лицами территориальной сетевой организации - всего, | C9: - | D9: - | E9: - | F9: - | H9: =(H11+H12)/2 -> 2
A10: в том числе, по критериям:
A11: 1.1. Количество структурных подразделений по работе с заявителями и потребителями услуг в процентном отношении к общему количеству структурных подразделений | B11: % | C11: 0.33 | D11: 0.33 | E11: =(IF(AND(D11=0,C11=0),1,IF(AND(D11=0,C11>0),1.2,C11/D11))) -> 1 | F11: прямая | H11: =IF(E11<80%,3,IF(E11>120%,1,2)) -> 2
A12: 1.2. Количество утвержденных территориальной сетевой организацией в установленном порядке организационно-распорядительных документов по вопросам работы с заявителями и потребителями услуг - всего, шт. | B12: шт. | C12: 10 | D12: 10 | E12: =(IF(AND(D12=0,C12=0),1,IF(AND(D12=0,C12>0),1.2,C12/D12))) -> 1 | F12: прямая | H12: =IF(E12<80%,3,IF(E12>120%,1,2)) -> 2
A13: в том числе:
A14: а) регламенты оказания услуг и рассмотрения обращений заявителей и потребителей услуг, шт. | B14: шт. | C14: 0 | D14: 0 | E14: =(IF(AND(D14=0,C14=0),1,IF(AND(D14=0,C14>0),1.2,C14/D14))) -> 1 | F14: прямая | H14: -
A15: б) наличие положения о деятельности структурного подразделения по работе с заявителями и потребителями услуг ‎(наличие - 1, отсутствие - ‎‎0), шт.‎ | B15: шт. | C15: 0 | D15: 0 | E15: =(IF(AND(D15=0,C15=0),1,IF(AND(D15=0,C15>0),1.2,C15/D15))) -> 1 | F15: прямая | H15: -
A16: в) должностные инструкции сотрудников, обслуживающих заявителей и потребителей услуг, шт. | B16: шт. | C16: 8 | D16: 8 | E16: =(IF(AND(D16=0,C16=0),1,IF(AND(D16=0,C16>0),1.2,C16/D16))) -> 1 | F16: прямая | H16: -
A17: г) утвержденные территориальной сетевой организацией в установленном порядке формы отчетности о работе с заявителями и потребителями услуг, шт. | B17: шт. | C17: 2 | D17: 2 | E17: =(IF(AND(D17=0,C17=0),1,IF(AND(D17=0,C17>0),1.2,C17/D17))) -> 1 | F17: прямая | H17: -
A18: 2. Наличие телефонной связи для обращений потребителей услуг к уполномоченным должностным лицам территориальной сетевой организации, | C18: - | D18: - | E18: - | F18: - | H18: =(H20+H21+H22)/3 -> 2.333333333
A19: в том числе по критериям:
A20: 2.1. Наличие единого телефонного номера для приема обращений потребителей услуг (наличие - 1, отсутствие - 0) | B20: (наличие - 1, отсутствие - 0) | C20: 1 | D20: 1 | E20: =(IF(AND(D20=0,C20=0),1,IF(AND(D20=0,C20>0),1.2,C20/D20))) -> 1 | F20: прямая | H20: =IF(E20<80%,3,IF(E20>120%,1,2)) -> 2
A21: 2.2. Наличие информационно-справочной системы для автоматизации обработки обращений потребителей услуг, поступивших по телефону (наличие - 1, отсутствие - 0) | B21: (наличие - 1, отсутствие - 0) | C21: 0 | D21: 1 | E21: =(IF(AND(D21=0,C21=0),1,IF(AND(D21=0,C21>0),1.2,C21/D21))) -> 0 | F21: прямая | H21: =IF(E21<80%,3,IF(E21>120%,1,2)) -> 3
A22: 2.3. Наличие системы автоинформирования потребителей услуг по телефону, предназначенной для доведения до них типовой информации (наличие - 1, отсутствие - 0) | B22: (наличие - 1, отсутствие - 0) | C22: 0 | D22: 0 | E22: =(IF(AND(D22=0,C22=0),1,IF(AND(D22=0,C22>0),1.2,C22/D22))) -> 1 | F22: прямая | H22: =IF(E22<80%,3,IF(E22>120%,1,2)) -> 2
A23: 3. Наличие в сети Интернет сайта территориальной сетевой организации с возможностью обмена информацией с потребителями услуг посредством электронной почты (наличие - 1, отсутствие - 0) | B23: (наличие - 1, отсутствие - 0) | C23: 1 | D23: 1 | E23: =(IF(AND(D23=0,C23=0),1,IF(AND(D23=0,C23>0),1.2,C23/D23))) -> 1 | F23: прямая | H23: =IF(E23<80%,3,IF(E23>120%,1,2)) -> 2
A24: 4. Проведение мероприятий по доведению до сведения потребителей услуг необходимой информации, в том числе путем ее размещения в сети Интернет, на бумажных носителях или иными доступными способами (проведение - 1, отсутствие - 0) | B24: (наличие - 1, отсутствие - 0) | C24: 1 | D24: 1 | E24: =(IF(AND(D24=0,C24=0),1,IF(AND(D24=0,C24>0),1.2,C24/D24))) -> 1 | F24: прямая | H24: =IF(E24<80%,3,IF(E24>120%,1,2)) -> 2
A25: 5. Простота и доступность схемы обжалования потребителями услуг действий должностных лиц территориальной сетевой организации, по критерию | C25: - | D25: - | E25: - | F25: - | H25: =H26 -> 2
A26: 5.1. Общее количество обращений потребителей услуг о проведении консультаций по порядку обжалования действий (бездействия) территориальной сетевой организации в ходе исполнения своих функций в процентах от общего количества поступивших обращений | B26: % | C26: 0 | D26: 0 | E26: =(IF(AND(D26=0,C26=0),1,IF(AND(D26=0,C26>0),1.2,C26/D26))) -> 1 | F26: обратная | H26: =IF(E26<80%,1,IF(E26>120%,3,2)) -> 2
A27: 6. Степень полноты, актуальности и достоверности предоставляемой потребителям услуг информации о деятельности территориальной сетевой организации - всего, | C27: - | D27: - | E27: - | F27: - | H27: =(H29+H30)/2 -> 2
A28: в том числе по критериям:
A29: 6.1. Общее количество обращений потребителей услуг о проведении консультаций по вопросам деятельности территориальной сетевой организации в процентах от общего количества поступивших обращений | B29: % | C29: 0 | D29: 0 | E29: =(IF(AND(D29=0,C29=0),1,IF(AND(D29=0,C29>0),1.2,C29/D29))) -> 1 | F29: обратная | H29: =IF(E29<80%,1,IF(E29>120%,3,2)) -> 2
A30: 6.2. Количество обращений потребителей услуг с указанием на отсутствие необходимой информации, которая должна быть раскрыта территориальной сетевой организацией в соответствии с нормативными правовыми актами, в процентах от общего количества поступивших обращений | B30: % | C30: 0 | D30: 0 | E30: =(IF(AND(D30=0,C30=0),1,IF(AND(D30=0,C30>0),1.2,C30/D30))) -> 1 | F30: обратная | H30: =IF(E30<80%,1,IF(E30>120%,3,2)) -> 2
A31: 7. Итого по индикатору информативности (Ин) | B31: - | C31: - | D31: - | E31: - | F31: - | H31: =(H9+H18+H23+H24+H25+H27)/6 -> 2.055555556
A33: Руководитель организации | C33: ='Инф-я'!$C$17 -> Окунев Василий Михайлович

Sheet Форма 2.2
A3: Форма 2.2 - Расчет значения индикатора исполнительности за 2017 год
A4: ='Инф-я'!C9 -> Общество с ограниченной ответственностью "Энергетик"
B5: (наименование территориальной сетевой организации)
A7: Наименование параметра (показателя), характеризующего индикатор | C7: Ед.изм-ния | D7: Значение | F7: Ф / П * 100, % | G7: Зависи-мость | H7: Оценочный балл
D8: факти-ческое (Ф) | E8: плановое (П)
A9: 1 | D9: 2 | E9: 3 | F9: 4 | G9: 5 | H9: 6
B10: 1. Соблюдение сроков по процедурам взаимодействия с потребителями услуг (заявителями) - всего | D10: - | E10: - | F10: - | G10: - | H10: =(H12+H16)/2 -> 0.5
B11: в том числе, по критериям:
B12: 1.1. Среднее время, затраченное территориальной сетевой организацией на направление проекта договора оказания услуг по передаче электрической энергии потребителю услуг (заявителю), дней | C12: дней | D12: 3 | E12: 3 | F12: =(IF(AND(E12=0,D12=0),1,IF(AND(E12=0,D12>0),1.2,D12/E12))) -> 1 | G12: обратная | H12: =IF(F12<80%,0.25,IF(F12>120%,0.75,0.5)) -> 0.5
B13: 1.2. Среднее время, необходимое для оборудования точки поставки приборами учета с момента подачи заявления потребителем услуг: | C13: дней | D13: - | E13: - | F13: - | G13: обратная | H13: -
B14: а) для физических лиц, включая индивидуальных предпринимателей, и юридических лиц - субъектов малого и среднего предпринимательства, дней | D14: 3 | E14: 3 | G14: - | H14: -
B15: б) для остальных потребителей услуг, дней | G15: - | H15: -
B16: 1.3. Количество случаев отказа от заключения и случаев расторжения потребителем услуг договоров оказания услуг по передаче электрической энергии, процентов от общего количества заключенных территориальной сетевой организацией договоров с потребителями услуг (заявителями), кроме физических лиц | D16: 0.001 | E16: 0.001 | F16: =(IF(AND(E16=0,D16=0),1,IF(AND(E16=0,D16>0),1.2,D16/E16))) -> 1 | G16: обратная | H16: =IF(F16<80%,0.25,IF(F16>120%,0.75,0.5)) -> 0.5
B17: 2. Соблюдение требований нормативных правовых актов Российской Федерации по поддержанию качества электрической энергии, по критерию | D17: - | E17: - | F17: - | G17: - | H17: =(H18) -> 0.5
B18: 2.1. Количество обращений потребителей услуг с указанием на ненадлежащее качество электрической энергии, процентов от общего количества поступивших обращений | C18: дней | D18: 0.001 | E18: 0.001 | F18: =(IF(AND(E18=0,D18=0),1,IF(AND(E18=0,D18>0),1.2,D18/E18))) -> 1 | G18: обратная | H18: =IF(F18<80%,0.25,IF(F18>120%,0.75,0.5)) -> 0.5
B19: 3. Наличие взаимодействия с потребителями услуг при выводе оборудования в ремонт и (или) из эксплуатации | D19: - | E19: - | F19: - | G19: - | H19: =(H21+H22)/2 -> 0.5
B20: в том числе, по критериям:
B21: 3.1. Наличие (отсутствие) установленной процедуры согласования с потребителями услуг графиков вывода электросетевого оборудования в ремонт и (или) из эксплуатации (наличие - 1, отсутствие - 0) | C21: % | D21: 0.01 | E21: 0.01 | F21: =(IF(AND(E21=0,D21=0),1,IF(AND(E21=0,D21>0),1.2,D21/E21))) -> 1 | G21: обратная | H21: =IF(F21<80%,0.25,IF(F21>120%,0.75,0.5)) -> 0.5
B22: 3.2. Количество обращений потребителей услуг с указанием на несогласие введения предлагаемых территориальной сетевой организацией графиков вывода электросетевого оборудования в ремонт и (или) из эксплуатации, процентов от общего количества поступивших обращений, кроме физических лиц | D22: 0.02 | E22: 0 | F22: =(IF(AND(E22=0,D22=0),1,IF(AND(E22=0,D22>0),1.2,D22/E22))) -> 1.2 | G22: обратная | H22: =IF(F22<80%,0.25,IF(F22>120%,0.75,0.5)) -> 0.5
B23: 4. Соблюдение требований нормативных правовых актов по защите персональных данных потребителей услуг (заявителей), по критерию | D23: - | E23: - | F23: - | G23: - | H23: =H24 -> 0.1
B24: 4.1. Количество установленных вступившим в законную силу решением антимонопольного органа и (или) суда нарушений территориальной сетевой организацией требований в части государственного регулирования цен (тарифов), в процентах от общего количества поступивших заявок на технологическое присоединение | C24: % | D24: 0 | E24: 0.0001 | F24: =(IF(AND(E24=0,D24=0),1,IF(AND(E24=0,D24>0),1.2,D24/E24))) -> 0 | G24: обратная | H24: =IF(F24<80%,0.1,IF(F24>120%,0.3,0.2)) -> 0.1
B25: 5. Итого по индикатору исполнительности (Ис) | C25: - | D25: - | E25: - | F25: - | G25: - | H25: =(H10+H17+H19+H23)/4 -> 0.4
B28: Руководитель организации | D28: ='Инф-я'!$C$17 -> Окунев Василий Михайлович

Sheet форма 2.3
A3: Форма 2.3 - Расчет значения индикатора результативности обратной связи за 2017 год
A4: ='Инф-я'!C9 -> Общество с ограниченной ответственностью "Энергетик"
A5: (наименование территориальной сетевой организации)
A7: Наименование параметра (показателя), характеризующего индикатор | B7: Ед.изм-ния | C7: Значение | E7: Ф / П * 100, % | F7: Зависи-мость | H7: Оценочный балл
C8: факти-ческое (Ф) | D8: плановое (П)
C9: 2 | D9: 3 | E9: 4 | F9: 5 | H9: 6
A10: 1. Наличие структурного подразделения территориальной сетевой организации по рассмотрению, обработке и принятию мер по обращениям потребителей услуг (наличие - 1, отсутствие - 0) | B10: (наличие - 1, отсутствие - 0) | C10: 1 | D10: 1 | E10: =(IF(AND(D10=0,C10=0),1,IF(AND(D10=0,C10>0),1.2,C10/D10))) -> 1 | F10: прямая | H10: =IF(E10<80%,3,IF(E10>120%,1,2)) -> 2
A11: 2. Степень удовлетворения обращений потребителей услуг | C11: - | D11: - | E11: - | F11: - | H11: =(H13+H14+H15+H16+H17+H18)/6 -> 2
A12: в том числе по критериям:
A13: 2.1. Общее количество обращений потребителей услуг с указанием на ненадлежащее качество услуг по передаче электрической энергии и обслуживание, в процентах от общего количества поступивших обращений | B13: % | C13: 0 | D13: 0 | E13: =(IF(AND(D13=0,C13=0),1,IF(AND(D13=0,C13>0),1.2,C13/D13))) -> 1 | F13: обратная | H13: =IF(E13<80%,1,IF(E13>120%,3,2)) -> 2
A14: 2.2. Количество принятых мер по результатам рассмотрения обращений потребителей услуг с указанием на ненадлежащее качество услуг по передаче электрической энергии и обслуживание, в процентах от общего количества поступивших обращений | B14: % | C14: 0 | D14: 0 | E14: 1 | F14: прямая | H14: =IF(E14<80%,3,IF(E14>120%,1,2)) -> 2
A15: 2.3. Количество обращений, связанных с неудовлетворенностью принятыми мерами, указанными в п. 2.2 настоящей формы, поступивших от потребителей услуг в течение 30 рабочих дней после завершения мероприятий, указанных в п. 2.2 настоящей формы, в процентах от общего количества поступивших обращений | B15: % | C15: 0 | D15: 0 | E15: 1 | F15: обратная | H15: =IF(E15<80%,1,IF(E15>120%,3,2)) -> 2
A16: 2.4. Количество обращений потребителей услуг с указанием на ненадлежащее качество услуг, оказываемых территориальной сетевой организацией, поступивших в соответствующий контролирующий орган исполнительной власти, в процентах от общего количества поступивших обращений | B16: % | C16: 0 | D16: 0 | E16: 1 | F16: обратная | H16: =IF(E16<80%,1,IF(E16>120%,3,2)) -> 2
A17: 2.5. Количество отзывов и предложений по вопросам деятельности территориальной сетевой организации, поступивших через обратную связь, в процентах от общего количества поступивших обращений | B17: % | C17: 0 | D17: 0 | E17: 1 | F17: прямая | H17: =IF(E17<80%,3,IF(E17>120%,1,2)) -> 2
A18: 2.6. Количество реализованных изменений в деятельности организации, направленных на повышение качества обслуживания потребителей услуг, шт. | B18: шт. | C18: 0 | D18: 0 | E18: 1 | F18: прямая | H18: =IF(E18<80%,3,IF(E18>120%,1,2)) -> 2
A19: 3. Оперативность реагирования на обращения потребителей услуг - всего, | C19: - | D19: - | E19: - | F19: - | H19: =(H21+H22)/2 -> 2
A20: в том числе по критериям:
A21: 3.1. Средняя продолжительность времени принятия мер по результатам обращения потребителя услуг, дней | B21: дней | C21: 0 | D21: 0 | E21: =(IF(AND(D21=0,C21=0),1,IF(AND(D21=0,C21>0),1.2,C21/D21))) -> 1 | F21: обратная | H21: =IF(E21<80%,1,IF(E21>120%,3,2)) -> 2
A22: 3.2. Взаимодействие территориальной сетевой организации с потребителями услуг с целью получения информации о качестве обслуживания, реализованное посредством: | C22: - | D22: - | E22: - | F22: - | H22: =(H23+H24+H25)/3 -> 2
A23: а) письменных опросов, шт. на 1000 потребителей услуг | B23: шт. на 1000 потребителей услуг | C23: 0 | D23: 0 | E23: 1 | F23: прямая | H23: =IF(E23<80%,3,IF(E23>120%,1,2)) -> 2
A24: б) электронной связи через сеть Интернет, шт. на 1000 потребителей услуг | B24: шт. на 1000 потребителей услуг | C24: 0 | D24: 0 | E24: 1 | F24: прямая | H24: =IF(E24<80%,3,IF(E24>120%,1,2)) -> 2
A25: в) системы автоинформирования,шт. на 1000 потребителей услуг | B25: шт. на 1000 потребителей услуг | C25: 0 | D25: 0 | E25: 1 | F25: прямая | H25: =IF(E25<80%,3,IF(E25>120%,1,2)) -> 2
A26: 4. Индивидуальность подхода к потребителям услуг льготных категорий, по критерию | C26: - | D26: - | E26: - | F26: - | H26: =H27 -> 2
A27: 4.1. Количество обращений потребителей услуг льготных категорий с указанием на неудовлетворительность качества их обслуживания, шт. на 1000 потребителей услуг | B27: шт. на 1000 потребителей услуг | C27: 0 | D27: 0 | E27: 1 | F27: обратная | H27: =IF(E27<80%,1,IF(E27>120%,3,2)) -> 2
A28: 5. Оперативность возмещения убытков потребителям услуг при несоблюдении территориальной сетевой организацией обязательств, предусмотренных нормативными правовыми актами и договорами | C28: - | D28: - | E28: - | F28: - | H28: =(H30+H31)/2 -> 2
A29: в том числе по критериям:
A30: 5.1. Средняя продолжительность времени на принятие территориальной сетевой организацией мер по возмещению потребителю услуг убытков, месяцев | B30: месяцев | C30: 0 | D30: 0 | E30: =(IF(AND(D30=0,C30=0),1,IF(AND(D30=0,C30>0),1.2,C30/D30))) -> 1 | F30: обратная | H30: =IF(E30<80%,1,IF(E30>120%,3,2)) -> 2
A31: 5.2. Доля потребителей услуг, получивших возмещение убытков, возникших в результате неисполнения (ненадлежащего исполнения) территориальной сетевой организацией своих обязательств, от числа потребителей, в пользу которых было вынесено судебное решение, или возмещение было произведено во внесудебном порядке, % | B31: % | C31: 0 | D31: 0 | E31: 1 | F31: прямая | H31: =IF(E31<80%,3,IF(E31>120%,1,2)) -> 2
A32: 6. Итого по индикатору результативности обратной связи (Рс) | B32: - | C32: - | D32: - | E32: - | F32: - | H32: =(H10+H11+H19+H26+H28)/5 -> 2
A36: Руководитель организации | C36: ='Инф-я'!$C$17 -> Окунев Василий Михайлович

Sheet форма 2.4
A2: Форма 2.4 - Расчет фактического значения показателя уровня качества оказываемых услуг территориальной (прочей) сетевой организацией за 2017 год
A4: ='Инф-я'!C9 -> Общество с ограниченной ответственностью "Энергетик"
A6: (наименование территориальной сетевой организации)
B8: Ед.изм-ния
A9: Предлагаемые плановые значения параметров (критериев), характеризующих индикаторы качества ** | C9: 2016
C10: (год)
A11: Ин (индикатор информативности) | C11: ='Форма 2.1'!H31 -> 2.055555556
A12: Ис ( индикатор исполнительности) | C12: =ROUND('Форма 2.2'!H25,3) -> 0.4
A13: Рс (индикатор результативности обратной связи) | C13: ='форма 2.3'!H32 -> 2
A14: Фактическое значение показателя уровня качества оказываемых услуг территориальной сетевой организации | C14: =0.1*C11+0.7*C12+0.2*C13 -> 0.8855555556
A16: Руководитель организации | B16: ='Инф-я'!$C$17 -> Окунев Василий Михайлович

Sheet форма 3
A1: Формы, используемые для расчета значений показателей уровня качества оказываемых услуг
A5: ='Инф-я'!C9 -> Общество с ограниченной ответственностью "Энергетик"
D6: Форма 3.1
A7: Отчетные данные для расчета значения показателя качества рассмотрения заявок на технологическое присоединение к сети за 2017 год
A8: № п/п | B8: Наименование | D8: Значение
A9: 1 | B9: 2 | D9: 3
A10: 1 | B10: Число заявок на технологическое присоединение к сети, поданных в соответствии с требованиями нормативных правовых актов, по которым сетевой организацией в соответствующий расчетный период направлен проект договора об осуществлении технологического присоединения заявителей к сети, шт. (Nзаяв_тпр) | D10: 18
A11: 2 | B11: Число заявок на технологическое присоединение к сети, поданных в соответствии с требованиями нормативных правовых актов, по которым сетевой организацией в соответствующий расчетный период направлен проект договора об осуществлении технологического присоединения заявителей к сети с нарушением установленных сроков его направления, шт. (Nнсзаяв_тпр)
A12: max (1, Nзаяв_тпр - Nнсзаяв_тпр) | D12: =MAX(1,D10-D11) -> 18
A13: Пзаяв_тпр | D13: =IF(D10="",1,IF(D10="0",1,D10/D12)) -> 1
D16: Форма 3.2
A17: Отчетные данные для расчета значения показателя качества исполнения договоров об осуществлении технологического присоединения заявителей к сети за 2017 год
A18: № п/п | B18: Наименование | D18: Значение
A19: 1 | B19: 2 | D19: 3
A20: 1 | B20: Число договоров об осуществлении технологического присоединения заявителей к сети, исполненных в соответствующем расчетном периоде, по которым имеется подписанный сторонами акт о технологическом присоединении, шт. (Nсд_тпр) | D20: 18
A21: 2 | B21: Число договоров об осуществлении технологического присоединения заявителей к сети, исполненных в соответствующем расчетном периоде, по которым имеется подписанный сторонами акт о технологическом присоединении, по которым произошло нарушение установленных сроков технологического присоединения, шт. (Nнссд_тпр)
A22: max (1, Nсд_тпр - Nнссд_тпр) | D22: =MAX(1,D20-D21) -> 18
A23: Пнс_тпр | D23: =IF(D20="",1,IF(D20="0",1,D20/D22)) -> 1
D26: Форма 3.3
A27: Отчетные данные для расчета значения показателя соблюдения антимонопольного законодательства при технологическом присоединении заявителей к электрическим сетям сетевой организации за 2017 год
A28: № п/п | B28: Наименование | D28: Значение
A29: 1 | B29: 2 | D29: 3
A30: 1 | B30: Число вступивших в законную силу решений антимонопольного органа и (или) суда об установлении нарушений сетевой организацией требований антимонопольного законодательства Российской Федерации в части оказания услуг по технологическому присоединению в соответствующем расчетном периоде, шт. (Nн_тпр)
A31: 2 | B31: Общее число заявок на технологическое присоединение к сети, поданных заявителями в соответствующий расчетный период, в десятках шт. без округления (Nочз_тпр) | D31: 2
A32: max (1, Nочз_тпр - Nн_тпр) | D32: =MAX(1,D31-D30) -> 2
A33: Пнпа_тпр | D33: =IF(D31="",1,IF(D31="0",1,D31/D32)) -> 1
A36: Показатель уровня качества осуществляемого технологического присоединения к сети за 2017 год, Птпр
A37: Птпр | D37: =0.4*D13+0.4*D23+0.2*D33 -> 1
A39: Руководитель организации | C39: ='Инф-я'!$C$17 -> Окунев Василий Михайлович

Sheet НВВ для шаблона ЕИАС (hidden)
